Workbook

Sheet Title Page
B6: Final Standardised Metering Capex and Opex Model
B9: Version | D9: 1.08
B10: Date | D10: 44589
B13: Status
B15: Notes:
B16: Current model version contains test data.
C18: Locked Sheets Pwd:
B24: Changelog
B26: Date | C26: Version | D26: Author | E26: Changes
B28: 44589 | C28: 1.08 | D28: AER | E28: Minor changes from further Feedback
B29: 44575 | C29: 1.07 | D29: AER | E29: Updates following consultation
B30: 44494 | C30: 1 | D30: AER | E30: Consultation version (contains anonymised input data)

Sheet Input|General
B1: AER Metering Opex & Capex Forecasting Model
B2: Ver: | D2: 1.08 | H2: Key: | I2: Input | J2: External Link | L2: Internal Link | N2: NSP New Data | P2: AER Addition
B3: =MID(CELL("filename",A1),FIND("]",CELL("filename",A1))+1,255) -> Input|General
B5: Input | General inputs
E7: Inputs | G7: Source | J7: Value | N7: Note
E8: NSP name | G8: NSP | J8: Company Name | V8: =IF(COUNTBLANK($J8),0,1) -> 1
E9: Decision stage | G9: NSP | J9: draft | V9: =IF(COUNTBLANK($J9),0,1) -> 1
C11: Current Period
E12: Previous regulatory control period, first year | G12: NSP | J12: 2015-16 | N12: Enter either YYYY-YY (for June YE) or YYYY (for calendar year) | V12: =IF(COUNTBLANK($J12),0,1) -> 1
E13: Previous regulatory control period, last year | G13: NSP | J13: =(LEFT(PPFirstYear,4)+4&IF(MID(PPFirstYear,5,1)="","","-"&TEXT(MOD(MID(PPFirstYear,6,2)+4,100),"00"))) -> 2019-20 | V13: =IF(COUNTBLANK($J13),0,1) -> 1
E14: Year ending for current regulatory period | G14: NSP | J14: =IF(MID(PPFirstYear,5,1)="",DATE(2000,12,1),DATE(2000,6,1)) -> 2000-06-01 | V14: =IF(COUNTBLANK($J14),0,1) -> 1
E15: Notation Adjustment (YYYY or YYYY-YY) | J15: =IF(MID(PPFirstYear,5,1)="",0,1) -> 1
C17: Base Year | J17: End Year | L17: Base Year
E18: Opex - Forecast base year | G18: NSP | J18: 2019 | L18: =IF(MONTH('Input|General'!$J$14)=6,J18-1&"-"&RIGHT(J18,2),$J18) -> 2018-19 | V18: =IF(AND(NOT(COUNTBLANK($L18)),(IFERROR(SEARCH("-",PPFirstYear,1),-5)=IFERROR(SEARCH("-",$L18,1),-5)))/1,1,0) -> 1
E19: Capex - Forecast base year | G19: NSP | J19: 2019 | L19: =IF(MONTH('Input|General'!$J$14)=6,J19-1&"-"&RIGHT(J19,2),$J19) -> 2018-19 | V19: =IF(AND(NOT(COUNTBLANK($L19)),(IFERROR(SEARCH("-",PPFirstYear,1),-5)=IFERROR(SEARCH("-",$L19,1),-5)))/1,1,0) -> 1
C22: Forecast Regulatory Period
E23: Forecast regulatory control period, first year | G23: NSP | J23: =IF(MONTH('Input|General'!$J$14)=6,(LEFT(PPLastYear,4)+1&IF(MID(PPLastYear,5,1)="","","-"&TEXT(MOD(MID(PPLastYear,6,2)+1,100),"00"))),PPLastYear+1) -> 2020-21 | V23: =IF(COUNTBLANK($J23),0,1) -> 1
E24: Forecast regulatory control period, last year | G24: NSP | J24: =IF(MONTH('Input|General'!$J$14)=6,(LEFT(PPLastYear,4)+5&IF(MID(PPLastYear,5,1)="","","-"&TEXT(MOD(MID(PPLastYear,6,2)+5,100),"00"))),PPLastYear+5) -> 2024-25 | V24: =IF(COUNTBLANK($J24),0,1) -> 1
C27: Cost Basis | J27: $Basis, End Year | L27: $Basis
D28: Inputs
E29: Opex (Historical) | J29: nominal | L29: =IF(J29="nominal","nominal",DATE($J29,MONTH($J$14),1)) -> nominal | V29: =IF(COUNTBLANK($J29),0,1) -> 1
E30: Opex (Forecast) | J30: 2020 | L30: =DATE($J30,MONTH($J$14),1) -> 2020-06-01 | V30: =IF(COUNTBLANK($J30),0,1) -> 1
E31: Capex | V31: =IF(COUNTBLANK($J32),0,1) -> 1
F32: Input Year | J32: 2019
F33: Cash Flow Timing | J33: Mid Year | L33: =EDATE(DATE($J32,MONTH($J$14),1),IF($J$33="Mid Year",-6,0)) -> 2018-12-01
D34: Output Basis
E35: PTRM | J35: 2021 | L35: =DATE($J35,MONTH($J$14),1) -> 2021-06-01 | V35: =IF(COUNTBLANK($J35),0,1) -> 1
E36: RFM | J36: nominal | L36: =IF(J36="nominal","nominal",DATE($J36,MONTH($J$14),1)) -> nominal | V36: =IF(COUNTBLANK($J36),0,1) -> 1
C39: Validation
H40: Model | J40: =PRODUCT(J42:J45) -> 1
H42: Input|General | J42: =PRODUCT(V8:V9,V12:V14,V18:V19,V23:V24,V29:V31,V35:V36) -> 1
H43: Input| Prices | J43: ='Input| Prices'!A4 -> 1
H44: Input | Meter-Opex BST | J44: ='Input | Meter-Opex BST'!A5 -> 1
H45: Calc | Capex Meters | J45: ='Calc | Capex Meters'!A4 -> 1
B47: End

Sheet Input| Historical Inflation
B1: ='Input|General'!B1&" v"&'Input|General'!$D$2 -> AER Metering Opex & Capex Forecasting Model v1.08
B2: =MID(CELL("filename",B2),FIND("]",CELL("filename",B2))+1,255) -> Input| Historical Inflation
B5: Input | General inputs
D7: Added Calc | G7: Index value, new base | H7: Percentage Change from Corresponding Quarter of Previous Year | I7: Index value, new base | J7: Percentage Change from Corresponding Quarter of Previous Year
F8: Source | G8: ABS | H8: Calculated | I8: ABS | J8: Calculated
D9: Year | E9: Month | F9: Unit | G9: index | H9: Percent | I9: index2 | J9: Percent3
D10: =YEAR(F10) -> 2014 | E10: =MONTH(F10) -> 6 | F10: 2014-06-30 | I10: 105.9
D11: 2014 | E11: 9 | F11: 2014-09-30 | I11: 106.4
D12: 2014 | E12: 12 | F12: 2014-12-31 | I12: 106.6
D13: 2015 | E13: 3 | F13: 2015-03-31 | I13: 106.8
D14: 2015 | E14: 6 | F14: 2015-06-30 | I14: 107.5 | J14: =IF(ISBLANK(I14),0,I14/I10-1) -> 0.01510859301
D15: 2015 | E15: 9 | F15: 2015-09-30 | I15: 108 | J15: =IF(ISBLANK(I15),0,I15/I11-1) -> 0.01503759398
D16: 2015 | E16: 12 | F16: 2015-12-31 | I16: 108.4 | J16: 0.01688555347
D17: 2016 | E17: 3 | F17: 2016-03-31 | I17: 108.2 | J17: 0.01310861423
D18: 2016 | E18: 6 | F18: 2016-06-30 | I18: 108.6 | J18: 0.01023255814
D19: 2016 | E19: 9 | F19: 2016-09-30 | I19: 109.4 | J19: 0.01296296296
D20: 2016 | E20: 12 | F20: 2016-12-31 | I20: 110 | J20: 0.0147601476
D21: 2017 | E21: 3 | F21: 2017-03-31 | I21: 110.5 | J21: 0.02125693161
D22: 2017 | E22: 6 | F22: 2017-06-30 | I22: 110.7 | J22: 0.01933701657
D23: 2017 | E23: 9 | F23: 2017-09-30 | I23: 111.4 | J23: 0.01828153565
D24: 2017 | E24: 12 | F24: 2017-12-31 | I24: 112.1 | J24: 0.01909090909
D25: 2018 | E25: 3 | F25: 2018-03-31 | I25: 112.6 | J25: 0.01900452489
D26: 2018 | E26: 6 | F26: 2018-06-30 | I26: 113 | J26: 0.02077687444
D27: 2018 | E27: 9 | F27: 2018-09-30 | I27: 113.5 | J27: 0.01885098743
D28: 2018 | E28: 12 | F28: 2018-12-31 | I28: 114.1 | J28: 0.0178412132
D29: 2019 | E29: 3 | F29: 2019-03-31 | I29: 114.1 | J29: 0.01332149201
D30: 2019 | E30: 6 | F30: 2019-06-30 | I30: 114.8 | J30: 0.01592920354
D31: 2019 | E31: 9 | F31: 2019-09-30 | I31: 115.4 | J31: 0.01674008811
D32: 2019 | E32: 12 | F32: 2019-12-31 | I32: 116.2 | J32: 0.01840490798
D33: =YEAR(F33) -> 2020 | E33: =MONTH(F33) -> 3 | F33: 2020-03-31 | I33: 116.6 | J33: 0.02191060473
D34: 2020 | E34: 6 | F34: 2020-06-30 | J34: 0
D35: 2020 | E35: 9 | F35: 2020-09-30 | J35: 0
D36: 2020 | E36: 12 | F36: 2020-12-31 | J36: 0
D37: 2021 | E37: 3 | F37: 2021-03-31 | J37: 0
D38: 2021 | E38: 6 | F38: 2021-06-30 | J38: 0
D39: 2021 | E39: 9 | F39: 2021-09-30 | J39: 0
D40: 2021 | E40: 12 | F40: 2021-12-31 | J40: 0
D41: 2022 | E41: 3 | F41: 2022-03-31 | J41: 0
D42: 2022 | E42: 6 | F42: 2022-06-30 | J42: 0
D43: 2022 | E43: 9 | F43: 2022-09-30 | J43: 0
D44: 2022 | E44: 12 | F44: 2022-12-31 | J44: 0
D45: 2023 | E45: 3 | F45: 2023-03-31 | J45: 0
D46: 2023 | E46: 6 | F46: 2023-06-30 | J46: 0
D47: 2023 | E47: 9 | F47: 2023-09-30 | J47: 0
D48: 2023 | E48: 12 | F48: 2023-12-31 | J48: 0
D49: 2024 | E49: 3 | F49: 2024-03-31 | J49: 0
D50: 2024 | E50: 6 | F50: 2024-06-30 | J50: 0
D51: 2024 | E51: 9 | F51: 2024-09-30 | J51: 0
D52: 2024 | E52: 12 | F52: 2024-12-31 | J52: 0
D53: 2025 | E53: 3 | F53: 2025-03-31 | J53: 0
D54: 2025 | E54: 6 | F54: 2025-06-30 | J54: 0
D55: 2025 | E55: 9 | F55: 2025-09-30 | J55: 0
D56: 2025 | E56: 12 | F56: 2025-12-31 | J56: 0
D57: 2026 | E57: 3 | F57: 2026-03-31 | J57: 0
D58: 2026 | E58: 6 | F58: 2026-06-30 | J58: 0
D59: 2026 | E59: 9 | F59: 2026-09-30 | J59: 0
D60: 2026 | E60: 12 | F60: 2026-12-31 | J60: 0
D61: 2027 | E61: 3 | F61: 2027-03-31 | J61: 0
D62: 2027 | E62: 6 | F62: 2027-06-30 | J62: 0
D63: 2027 | E63: 9 | F63: 2027-09-30 | J63: 0
D64: 2027 | E64: 12 | F64: 2027-12-31 | J64: 0
D65: 2028 | E65: 3 | F65: 2028-03-31 | J65: 0
D66: 2028 | E66: 6 | F66: 2028-06-30 | J66: 0
D67: 2028 | E67: 9 | F67: 2028-09-30 | J67: 0
D68: 2028 | E68: 12 | F68: 2028-12-31 | J68: 0
D69: 2029 | E69: 3 | F69: 2029-03-31 | J69: 0
D70: 2029 | E70: 6 | F70: 2029-06-30 | J70: 0
D71: 2029 | E71: 9 | F71: 2029-09-30 | J71: 0
D72: 2029 | E72: 12 | F72: 2029-12-31 | J72: 0
D73: 2030 | E73: 3 | F73: 2030-03-31 | J73: 0
B75: End

Sheet Input| Prices
B1: ='Input|General'!B1&" v"&'Input|General'!$D$2 -> AER Metering Opex & Capex Forecasting Model v1.08
B2: =MID(CELL("filename",A1),FIND("]",CELL("filename",A1))+1,255) -> Input| Prices
A4: =PRODUCT(A5:A61) -> 1
D6: 6. Inflation table setup
D8: First year of forecast regulatory control period | J8: =FPFirstYear -> 2020-21
D9: Year End | J9: ='Input|General'!J14 -> 2000-06-01
D10: Notation Adjustment | J10: =IF(MID(PPFirstYear,5,1)="",0,1) -> 1
D12: =LEFT(D6,1)+1&". Forecast CPI, Real Labour/Non-Labour Price Growth" -> 7. Forecast CPI, Real Labour/Non-Labour Price Growth
B14: Year Series | M14: Forecast RP
D15: Dynamic Notation | I15: =(LEFT(J15,4)-1&IF(MID(J15,5,1)="","","-"&TEXT(MOD(MID(J15,6,2)-1,100),"00"))) -> 2016-17 | J15: =(LEFT(K15,4)-1&IF(MID(K15,5,1)="","","-"&TEXT(MOD(MID(K15,6,2)-1,100),"00"))) -> 2017-18 | K15: =(LEFT(L15,4)-1&IF(MID(L15,5,1)="","","-"&TEXT(MOD(MID(L15,6,2)-1,100),"00"))) -> 2018-19 | L15: =(LEFT(M15,4)-1&IF(MID(M15,5,1)="","","-"&TEXT(MOD(MID(M15,6,2)-1,100),"00"))) -> 2019-20 | M15: =FPFirstYear -> 2020-21 | N15: =(LEFT(M15,4)+1&IF(MID(M15,5,1)="","","-"&TEXT(MOD(MID(M15,6,2)+1,100),"00"))) -> 2021-22 | O15: =(LEFT(N15,4)+1&IF(MID(N15,5,1)="","","-"&TEXT(MOD(MID(N15,6,2)+1,100),"00"))) -> 2022-23 | P15: 2023-24 | Q15: 2024-25
D16: End Year Notation | I16: =(LEFT(I$15,4)+$J$10)/1 -> 2017 | J16: 2018 | K16: 2019 | L16: 2020 | M16: 2021 | N16: 2022 | O16: 2023 | P16: 2024 | Q16: 2025
B19: CPI | M19: Forecast RP
D20: Forecast Inflation - 6 months lagged | G20: YE Index | H20: Source | I20: =I$15 -> 2016-17 | J20: =J$15 -> 2017-18 | K20: 2018-19 | L20: 2019-20 | M20: 2020-21 | N20: 2021-22 | O20: 2022-23 | P20: 2023-24 | Q20: 2024-25
D21: CPI year on year change (NSP Forecast) | G21: =(EDATE(Basis_Ptrm,-6)) -> 2020-12-01 | L21: 0.0184 | M21: 0.019
D22: CPI year on year change (ABS Data) | G22: =(EDATE(Basis_Ptrm,-6)) -> 2020-12-01 | I22: =INDEX('Input| Historical Inflation'!$J$10:$J$72, MATCH(1,('Input| Historical Inflation'!$E$10:$E$72=(IF(MONTH($J$9)=6,12,6)))* ('Input| Historical Inflation'!$D$10:$D$72=I$16+IF(MONTH($J$9)=6,-1,0)),0)) -> 0.0147601476 | J22: =INDEX('Input| Historical Inflation'!$J$10:$J$72, MATCH(1,('Input| Historical Inflation'!$E$10:$E$72=(IF(MONTH($J$9)=6,12,6)))* ('Input| Historical Inflation'!$D$10:$D$72=J$16+IF(MONTH($J$9)=6,-1,0)),0)) -> 0.01909090909 | K22: =INDEX('Input| Historical Inflation'!$J$10:$J$72, MATCH(1,('Input| Historical Inflation'!$E$10:$E$72=(IF(MONTH($J$9)=6,12,6)))* ('Input| Historical Inflation'!$D$10:$D$72=K$16+IF(MONTH($J$9)=6,-1,0)),0)) -> 0.0178412132 | L22: =INDEX('Input| Historical Inflation'!$J$10:$J$72, MATCH(1,('Input| Historical Inflation'!$E$10:$E$72=(IF(MONTH($J$9)=6,12,6)))* ('Input| Historical Inflation'!$D$10:$D$72=L$16+IF(MONTH($J$9)=6,-1,0)),0)) -> 0.01840490798 | M22: =INDEX('Input| Historical Inflation'!$J$10:$J$72, MATCH(1,('Input| Historical Inflation'!$E$10:$E$72=(IF(MONTH($J$9)=6,12,6)))* ('Input| Historical Inflation'!$D$10:$D$72=M$16+IF(MONTH($J$9)=6,-1,0)),0)) -> 0 | N22: =INDEX('Input| Historical Inflation'!$J$10:$J$72, MATCH(1,('Input| Historical Inflation'!$E$10:$E$72=(IF(MONTH($J$9)=6,12,6)))* ('Input| Historical Inflation'!$D$10:$D$72=N$16+IF(MONTH($J$9)=6,-1,0)),0)) -> 0 | O22: =INDEX('Input| Historical Inflation'!$J$10:$J$72, MATCH(1,('Input| Historical Inflation'!$E$10:$E$72=(IF(MONTH($J$9)=6,12,6)))* ('Input| Historical Inflation'!$D$10:$D$72=O$16+IF(MONTH($J$9)=6,-1,0)),0)) -> 0 | P22: =INDEX('Input| Historical Inflation'!$J$10:$J$72, MATCH(1,('Input| Historical Inflation'!$E$10:$E$72=(IF(MONTH($J$9)=6,12,6)))* ('Input| Historical Inflation'!$D$10:$D$72=P$16+IF(MONTH($J$9)=6,-1,0)),0)) -> 0 | Q22: =INDEX('Input| Historical Inflation'!$J$10:$J$72, MATCH(1,('Input| Historical Inflation'!$E$10:$E$72=(IF(MONTH($J$9)=6,12,6)))* ('Input| Historical Inflation'!$D$10:$D$72=Q$16+IF(MONTH($J$9)=6,-1,0)),0)) -> 0
A23: =PRODUCT(($I$23:$Q$23<>0)/1) -> 1 | D23: CPI Calculated YoY change (ABS data where available) | H23: Calculated | I23: =IF(I$22>0,I$22,I$21) -> 0.0147601476 | J23: =IF(J$22>0,J$22,J$21) -> 0.01909090909 | K23: 0.0178412132 | L23: 0.01840490798 | M23: 0.019 | N23: =M23 -> 0.019 | O23: =N23 -> 0.019 | P23: =O23 -> 0.019 | Q23: =P23 -> 0.019
D26: Cumulative Inflation - 6 months lagged | G26: Cash Flow Timing | H26: Source | I26: =I$15 -> 2016-17 | J26: =J$15 -> 2017-18 | K26: 2018-19 | L26: 2019-20 | M26: 2020-21 | N26: 2021-22 | O26: 2022-23 | P26: 2023-24 | Q26: 2024-25
D27: Cumulative Inflation Index (Lagged) | G27: End Year | H27: Calculated | I27: 1 | J27: =I27*(1+J23) -> 1.019090909 | K27: 1.037272727 | L27: 1.056363636 | M27: 1.076434545 | N27: 1.096886802 | O27: 1.117727651 | P27: 1.138964476 | Q27: 1.160604801
D28: Cumulative Inflation Index (Lagged - Mid Year Input) | G28: Mid Year | H28: Calculated | I28: 1 | J28: =I27*((1+J23)^0.5) -> 1.009500326 | K28: 1.028141628 | L28: 1.046774661 | M28: 1.06635187 | N28: 1.086612556 | O28: 1.107258194 | P28: 1.1282961 | Q28: 1.149733726
D31: CPI - Basis Conversion Indexes | E31: Basis In - YE | F31: Basis Out - YE | G31: Note | H31: Source | I31: =I$15 -> 2016-17 | J31: =J$15 -> 2017-18 | K31: 2018-19 | L31: 2019-20 | M31: 2020-21 | N31: 2021-22 | O31: 2022-23 | P31: 2023-24 | Q31: 2024-25
D32: Opex Hist > Opex Forecast | E32: =Basis_OpexHistEY -> nominal | F32: =Basis_OpexForecastEY -> 2020 | G32: Lagged | H32: Calculated | J32: =IF($E32="nominal", (1+J$23)^0.5*INDEX($J$27:$Q$27,MATCH($F32,$J$16:$Q$16))/J$27, INDEX($J$27:$Q$27,MATCH($F32,$J$16:$Q$16))/INDEX($J$27:$Q$27,MATCH($E32,$J$16:$Q$16))) -> 1.046422283 | K32: 1.027449534 | L32: 1.009160497 | M32: 0.9906332666 | N32: 0.9721621851 | O32: 0.9540355104 | P32: 0.9362468208 | Q32: 0.9187898143
D33: Opex Forecast -> Output | E33: =Basis_OpexForecastEY -> 2020 | F33: =Basis_PtrmEY -> 2021 | G33: Lagged | H33: Calculated | J33: =IF($E33="nominal", (1+J23)^0.5*INDEX($J$27:$Q$27,MATCH($F33,$J$16:$Q$16))/J$27, INDEX($J$27:$Q$27,MATCH($F33,$J$16:$Q$16))/INDEX($J$27:$Q$27,MATCH($E33,$J$16:$Q$16))) -> 1.019 | K33: 1.019 | L33: 1.019 | M33: 1.019 | N33: 1.019 | O33: 1.019 | P33: 1.019 | Q33: 1.019
D34: Capex -> Output | E34: =Basis_CapexEY -> 2019 | F34: =Basis_PtrmEY -> 2021 | G34: ='Input|General'!J33&" Inputs" -> Mid Year Inputs | H34: Calculated | J34: =IF($E34="nominal", (1+J$23)^0.5*INDEX($J$27:$Q$27,MATCH($F34,$J$16:$Q$16))/J$27, INDEX($J$27:$Q$27,MATCH($F34,$J$16:$Q$16))/INDEX(IF('Input|General'!$J$33="Mid Year",$J$28:$Q$28,$J$27:$Q$27),MATCH($E34,$J$16:$Q$16))) -> 1.046971075 | K34: =IF($E34="nominal", (1+K$23)^0.5*INDEX($J$27:$Q$27,MATCH($F34,$J$16:$Q$16))/K$27, INDEX($J$27:$Q$27,MATCH($F34,$J$16:$Q$16))/INDEX(IF('Input|General'!$J$33="Mid Year",$J$28:$Q$28,$J$27:$Q$27),MATCH($E34,$J$16:$Q$16))) -> 1.046971075 | L34: =IF($E34="nominal", (1+L$23)^0.5*INDEX($J$27:$Q$27,MATCH($F34,$J$16:$Q$16))/L$27, INDEX($J$27:$Q$27,MATCH($F34,$J$16:$Q$16))/INDEX(IF('Input|General'!$J$33="Mid Year",$J$28:$Q$28,$J$27:$Q$27),MATCH($E34,$J$16:$Q$16))) -> 1.046971075 | M34: =IF($E34="nominal", (1+M$23)^0.5*INDEX($J$27:$Q$27,MATCH($F34,$J$16:$Q$16))/M$27, INDEX($J$27:$Q$27,MATCH($F34,$J$16:$Q$16))/INDEX(IF('Input|General'!$J$33="Mid Year",$J$28:$Q$28,$J$27:$Q$27),MATCH($E34,$J$16:$Q$16))) -> 1.046971075 | N34: =IF($E34="nominal", (1+N$23)^0.5*INDEX($J$27:$Q$27,MATCH($F34,$J$16:$Q$16))/N$27, INDEX($J$27:$Q$27,MATCH($F34,$J$16:$Q$16))/INDEX(IF('Input|General'!$J$33="Mid Year",$J$28:$Q$28,$J$27:$Q$27),MATCH($E34,$J$16:$Q$16))) -> 1.046971075 | O34: =IF($E34="nominal", (1+O$23)^0.5*INDEX($J$27:$Q$27,MATCH($F34,$J$16:$Q$16))/O$27, INDEX($J$27:$Q$27,MATCH($F34,$J$16:$Q$16))/INDEX(IF('Input|General'!$J$33="Mid Year",$J$28:$Q$28,$J$27:$Q$27),MATCH($E34,$J$16:$Q$16))) -> 1.046971075 | P34: =IF($E34="nominal", (1+P$23)^0.5*INDEX($J$27:$Q$27,MATCH($F34,$J$16:$Q$16))/P$27, INDEX($J$27:$Q$27,MATCH($F34,$J$16:$Q$16))/INDEX(IF('Input|General'!$J$33="Mid Year",$J$28:$Q$28,$J$27:$Q$27),MATCH($E34,$J$16:$Q$16))) -> 1.046971075 | Q34: =IF($E34="nominal", (1+Q$23)^0.5*INDEX($J$27:$Q$27,MATCH($F34,$J$16:$Q$16))/Q$27, INDEX($J$27:$Q$27,MATCH($F34,$J$16:$Q$16))/INDEX(IF('Input|General'!$J$33="Mid Year",$J$28:$Q$28,$J$27:$Q$27),MATCH($E34,$J$16:$Q$16))) -> 1.046971075
D35: PTRM -> RFM | E35: =Basis_PtrmEY -> 2021 | F35: =Basis_RfmEY -> nominal | H35: Calculated | J35: =J27/(INDEX($J$27:$Q$27,MATCH(YEAR(Basis_Ptrm),$J$16:$Q$16,0))) -> 0.9467281716 | K35: 0.9636189508 | L35: 0.9813542689 | M35: 1 | N35: 1.019 | O35: 1.038361 | P35: 1.058089859 | Q35: 1.078193566
B37: Opex Price Change
D38: Forecast Price Change Component | H38: Source | I38: Weights | J38: =J$15 -> 2017-18 | K38: 2018-19 | L38: 2019-20 | M38: 2020-21 | N38: 2021-22 | O38: 2022-23 | P38: 2023-24 | Q38: 2024-25
D39: Real Labour Price Change 1 | I39: 0.3 | K39: 0.01339765193 | L39: 0.003752511698 | M39: 0.01313749847 | N39: 0.01241952331 | O39: 0.01375146196 | P39: 0.01619653272 | Q39: 0.01618491396
D40: Real Labour Price Change 2 | I40: 0.3 | K40: 0.01366825798 | L40: 0.006096099685 | M40: 0.006933026323 | N40: 0.0008342016333 | O40: -0.001568922575 | P40: -0.001541076871 | Q40: 0.002834022519
D41: Real Non-Labour Price Change | I41: 0.4 | K41: 0.005 | L41: 0.005 | M41: 0.005 | N41: 0.005 | O41: 0.005 | P41: 0.005 | Q41: 0.005
D42: Forecast Price Change 4
D43: Forecast Weighted Real Price Change | H43: Calculated | K43: =SUMPRODUCT(K$39:K$42,$I$39:$I$42) -> 0.01011977297 | L43: =SUMPRODUCT(L$39:L$42,$I$39:$I$42) -> 0.004954583415 | M43: 0.008021157439 | N43: 0.005976117482 | O43: 0.005654761816 | P43: 0.006396636753 | Q43: 0.007705680942
A44: =I44 -> 1 | I44: =(SUM(I39:I42)=1)/1 -> 1
B48: Capex Price Change
D49: Forecast Price Change Component | H49: Source | I49: Weights | J49: =J$15 -> 2017-18 | K49: 2018-19 | L49: 2019-20 | M49: 2020-21 | N49: 2021-22 | O49: 2022-23 | P49: 2023-24 | Q49: 2024-25
D50: Real Labour Price Change | I50: Applied Directly | K50: =AVERAGE(K39:K40) -> 0.01353295495 | L50: =AVERAGE(L39:L40) -> 0.004924305692 | M50: 0.0100352624 | N50: 0.006626862471 | O50: 0.006091269693 | P50: 0.007327727922 | Q50: 0.009509468237
D51: Real Non-Labour Price Change | I51: Applied Directly | K51: =K41 -> 0.005 | L51: =L41 -> 0.005 | M51: 0.005 | N51: 0.005 | O51: 0.005 | P51: 0.005 | Q51: 0.005
C53: Labour Price Change
D54: Internal Real Price index | J54: =1 -> 1 | K54: =IFERROR(J54*(1+K50),"") -> 1.013532955 | L54: =IFERROR(K54*(1+L50),"") -> 1.018523901 | M54: 1.028745056 | N54: 1.035562408 | O54: 1.041870298 | P54: 1.04950484 | Q54: 1.059485073
D55: Real Price index to input year | J55: =J$54/INDEX($J$54:$Q$54,MATCH(Basis_CapexEY,$J$16:$Q$16)) -> 0.9866477406 | K55: 1 | L55: 1.004924306 | M55: 1.015008985 | N55: 1.02173531 | O55: 1.027958975 | P55: 1.035491579 | Q55: 1.045338553
C57: Non-Labour Price Change
D58: Internal Real Price index | J58: =1 -> 1 | K58: =IFERROR(J58*(1+K51),"") -> 1.005 | L58: =IFERROR(K58*(1+L51),"") -> 1.010025 | M58: 1.015075125 | N58: 1.020150501 | O58: 1.025251253 | P58: 1.030377509 | Q58: 1.035529397
D59: Real Price index to input year | J59: =J$58/INDEX($J$58:$Q$58,MATCH(Basis_CapexEY,$J$16:$Q$16)) -> 0.9950248756 | K59: 1 | L59: 1.005 | M59: 1.010025 | N59: 1.015075125 | O59: 1.020150501 | P59: 1.025251253 | Q59: 1.030377509

Sheet Opex Specific >

Sheet Input | Meter-Opex BST
B1: ='Input|General'!B1&" v"&'Input|General'!$D$2 -> AER Metering Opex & Capex Forecasting Model v1.08
B2: =MID(CELL("filename",A1),FIND("]",CELL("filename",A1))+1,255) -> Input | Meter-Opex BST
N4: =IF(N5=Opex_BaseYear,"Base Year","") ->  | O4: =IF(O5=Opex_BaseYear,"Base Year","") ->  | P4: =IF(P5=Opex_BaseYear,"Base Year","") -> Base Year | Q4: =IF(Q5=Opex_BaseYear,"Base Year","") ->  | R4: Forecast RP
A5: =PRODUCT($A$6:$A$52) -> 1 | J5: Value | L5: =IF(MONTH('Input|General'!$J$14)=6,LEFT(M5,4)-1&"-"&TEXT(MOD(MID(M5,6,2)-1,100),"00"),M5-1) -> 2014-15 | M5: =IF(MONTH('Input|General'!$J$14)=6,LEFT(N5,4)-1&"-"&TEXT(MOD(MID(N5,6,2)-1,100),"00"),N5-1) -> 2015-16 | N5: =IF(MONTH('Input|General'!$J$14)=6,LEFT(O5,4)-1&"-"&TEXT(MOD(MID(O5,6,2)-1,100),"00"),O5-1) -> 2016-17 | O5: =IF(MONTH('Input|General'!$J$14)=6,LEFT(P5,4)-1&"-"&TEXT(MOD(MID(P5,6,2)-1,100),"00"),P5-1) -> 2017-18 | P5: =IF(MONTH('Input|General'!$J$14)=6,LEFT(Q5,4)-1&"-"&TEXT(MOD(MID(Q5,6,2)-1,100),"00"),Q5-1) -> 2018-19 | Q5: =IF(MONTH('Input|General'!$J$14)=6,LEFT(R5,4)-1&"-"&TEXT(MOD(MID(R5,6,2)-1,100),"00"),R5-1) -> 2019-20 | R5: =FPFirstYear -> 2020-21 | S5: =IF(MONTH('Input|General'!$J$14)=6,LEFT(R5,4)+1&"-"&TEXT(MOD(MID(R5,6,2)+1,100),"00"),R5+1) -> 2021-22 | T5: =IF(MONTH('Input|General'!$J$14)=6,LEFT(S5,4)+1&"-"&TEXT(MOD(MID(S5,6,2)+1,100),"00"),S5+1) -> 2022-23 | U5: =IF(MONTH('Input|General'!$J$14)=6,LEFT(T5,4)+1&"-"&TEXT(MOD(MID(T5,6,2)+1,100),"00"),T5+1) -> 2023-24 | V5: =IF(MONTH('Input|General'!$J$14)=6,LEFT(U5,4)+1&"-"&TEXT(MOD(MID(U5,6,2)+1,100),"00"),U5+1) -> 2024-25
C7: Base
D8: Historical Opex
F9: Total opex | G9: $millions | H9: =Basis_OpexHist -> nominal | L9: 11 | M9: 11.5 | N9: 11.75 | O9: 12 | P9: 12.5
D11: Adjustments
F12: One-off expenditure item in base year reversed | G12: =$G$9 -> $millions | H12: =Basis_OpexHist -> nominal | L12: 0 | M12: 0 | N12: 0 | O12: 0 | P12: 0.25
F13: Uncontrollable | G13: =$G$9 -> $millions | H13: =Basis_OpexHist -> nominal | L13: 0 | M13: 0 | N13: 0 | O13: 0 | Q13: 0
F14: Adjustment 3 | G14: =$G$9 -> $millions | H14: =Basis_OpexHist -> nominal | L14: 0 | M14: 0 | N14: 0 | O14: 0 | Q14: 0
F15: Adjustment 4 | G15: =$G$9 -> $millions | H15: =Basis_OpexHist -> nominal | L15: 0 | M15: 0 | N15: 0 | O15: 0 | P15: 0 | Q15: 0
F17: Base Opex (After Adjustment) | G17: =$G$9 -> $millions | H17: =Basis_OpexHist -> nominal | O17: =IF(O$5=Opex_BaseYear,(SUM(O12:O15,O9)),"") ->  | P17: =IF(P$5=Opex_BaseYear,(SUM(P12:P15,P9)),"") -> 12.75 | Q17: =IF(Q$5=Opex_BaseYear,(SUM(Q12:Q15,Q9)),"") -> 
A18: =(SUM(N18:Q18)<>0)/1 -> 1 | F18: Base Opex (After Adjustment) | G18: =$G$9 -> $millions | H18: =Basis_OpexForecast -> 2020-06-01 | O18: =IF(O$5=Opex_BaseYear,O17*'Input| Prices'!J$32,"") ->  | P18: =IF(P$5=Opex_BaseYear,P17*'Input| Prices'!K$32,"") -> 13.09998156 | Q18: =IF(Q$5=Opex_BaseYear,Q17*'Input| Prices'!L$32,"") -> 
C20: Step
D22: Step Changes & Specific Forecasts
F23: External driver - required change in obligation | G23: =$G$9 -> $millions | H23: =Basis_OpexForecast -> 2020-06-01 | Q23: 0.4 | R23: 0.4 | S23: 0.4 | T23: 0.4 | U23: 0.4 | V23: 0.4
F24: New obligation commencing in 2022 | G24: =$G$9 -> $millions | H24: =Basis_OpexForecast -> 2020-06-01 | S24: 0.1 | T24: 0.1 | U24: 0.1 | V24: 0.1
F25: Step 3 | G25: =$G$9 -> $millions | H25: =Basis_OpexForecast -> 2020-06-01
F26: Step 4 | G26: =$G$9 -> $millions | H26: =Basis_OpexForecast -> 2020-06-01
C28: Trend
D30: Forecast output change
E31: Outputs | F31: Customer numbers (#) | G31: No. | P31: 400000 | Q31: =P31*0.95 -> 380000 | R31: =Q31*0.95 -> 361000 | S31: =R31*0.95 -> 342950 | T31: 325802.5 | U31: 309512.375 | V31: 294036.7562
E32: Outputs | F32: Output 2 | G32: No. | P32: 0 | Q32: 0 | R32: 0 | S32: 0 | T32: 0 | U32: 0 | V32: 0
E33: Outputs | F33: Output 3 | G33: No. | P33: 0 | Q33: 0 | R33: 0 | S33: 0 | T33: 0 | U33: 0 | V33: 0
E34: Outputs | F34: Output 4 | G34: No. | P34: 0 | Q34: 0 | R34: 0 | S34: 0 | T34: 0 | U34: 0 | V34: 0
A36: =IF(SUM(O31:V31)<>0,(J36<>0)/1,1) -> 1 | E36: Weights | F36: =F31 -> Customer numbers (#) | G36: % | J36: 1
A37: =IF(SUM(O32:V32)<>0,(J37<>0)/1,1) -> 1 | E37: Weights | F37: =F32 -> Output 2 | G37: %
A38: 1 | E38: Weights | F38: =F33 -> Output 3 | G38: % | J38: 0
A39: 1 | E39: Weights | F39: =F34 -> Output 4 | G39: % | J39: 0
D41: Forecast Real Price Change
E42: Forecast price change | F42: Forecast Weighted Real Price Change | G42: % | P42: ='Input| Prices'!K43 -> 0.01011977297 | Q42: ='Input| Prices'!L43 -> 0.004954583415 | R42: ='Input| Prices'!M43 -> 0.008021157439 | S42: ='Input| Prices'!N43 -> 0.005976117482 | T42: ='Input| Prices'!O43 -> 0.005654761816 | U42: ='Input| Prices'!P43 -> 0.006396636753 | V42: ='Input| Prices'!Q43 -> 0.007705680942
D44: Forecast Productivity change
E45: Economy of Scale | F45: Economies of Scale Factor | G45: % | J45: 1
E46: Productivity | F46: Partial Factor Productivity - Annual improvement | G46: % | R46: 0.005 | S46: 0.005 | T46: 0.005 | U46: 0.005 | V46: 0.005

Sheet Calc | Opex
B1: ='Input|General'!B1&" v"&'Input|General'!$D$2 -> AER Metering Opex & Capex Forecasting Model v1.08
B2: =MID(CELL("filename",A1),FIND("]",CELL("filename",A1))+1,255) -> Calc | Opex
J4: Value | L4: =IF(MONTH('Input|General'!$J$14)=6,LEFT(M4,4)-1&"-"&TEXT(MOD(MID(M4,6,2)-1,100),"00"),M4-1) -> 2014-15 | M4: =IF(MONTH('Input|General'!$J$14)=6,LEFT(N4,4)-1&"-"&TEXT(MOD(MID(N4,6,2)-1,100),"00"),N4-1) -> 2015-16 | N4: =IF(MONTH('Input|General'!$J$14)=6,LEFT(O4,4)-1&"-"&TEXT(MOD(MID(O4,6,2)-1,100),"00"),O4-1) -> 2016-17 | O4: =IF(MONTH('Input|General'!$J$14)=6,LEFT(P4,4)-1&"-"&TEXT(MOD(MID(P4,6,2)-1,100),"00"),P4-1) -> 2017-18 | P4: =IF(MONTH('Input|General'!$J$14)=6,LEFT(Q4,4)-1&"-"&TEXT(MOD(MID(Q4,6,2)-1,100),"00"),Q4-1) -> 2018-19 | Q4: =IF(MONTH('Input|General'!$J$14)=6,LEFT(R4,4)-1&"-"&TEXT(MOD(MID(R4,6,2)-1,100),"00"),R4-1) -> 2019-20 | R4: =FPFirstYear -> 2020-21 | S4: =IF(MONTH('Input|General'!$J$14)=6,LEFT(R4,4)+1&"-"&TEXT(MOD(MID(R4,6,2)+1,100),"00"),R4+1) -> 2021-22 | T4: =IF(MONTH('Input|General'!$J$14)=6,LEFT(S4,4)+1&"-"&TEXT(MOD(MID(S4,6,2)+1,100),"00"),S4+1) -> 2022-23 | U4: =IF(MONTH('Input|General'!$J$14)=6,LEFT(T4,4)+1&"-"&TEXT(MOD(MID(T4,6,2)+1,100),"00"),T4+1) -> 2023-24 | V4: =IF(MONTH('Input|General'!$J$14)=6,LEFT(U4,4)+1&"-"&TEXT(MOD(MID(U4,6,2)+1,100),"00"),U4+1) -> 2024-25
B6: Calcs
J8: Value | L8: =L4 -> 2014-15 | M8: =M4 -> 2015-16 | N8: 2016-17 | O8: 2017-18 | P8: 2018-19 | Q8: 2019-20 | R8: 2020-21 | S8: 2021-22 | T8: 2022-23 | U8: 2023-24 | V8: 2024-25
C10: Base
D12: Adjusted Base | F12: Total opex | G12: ='Input | Meter-Opex BST'!$G$9 -> $millions | H12: =Basis_OpexForecast -> 2020-06-01 | O12: ='Input | Meter-Opex BST'!O18 ->  | P12: ='Input | Meter-Opex BST'!P18 -> 13.09998156 | Q12: ='Input | Meter-Opex BST'!Q18 -> 
C14: Steps
D17: Steps (As Input) | F17: Total Steps | G17: ='Input | Meter-Opex BST'!$G$9 -> $millions | H17: =Basis_OpexForecast -> 2020-06-01 | P17: =SUM('Input | Meter-Opex BST'!P$23:P$26) -> 0 | Q17: =SUM('Input | Meter-Opex BST'!Q$23:Q$26) -> 0.4 | R17: =SUM('Input | Meter-Opex BST'!R$23:R$26) -> 0.4 | S17: =SUM('Input | Meter-Opex BST'!S$23:S$26) -> 0.5 | T17: =SUM('Input | Meter-Opex BST'!T$23:T$26) -> 0.5 | U17: =SUM('Input | Meter-Opex BST'!U$23:U$26) -> 0.5 | V17: =SUM('Input | Meter-Opex BST'!V$23:V$26) -> 0.5
C20: Trend
D23: Forecast output change
E24: Weighted | F24: ='Input | Meter-Opex BST'!F31 -> Customer numbers (#) | G24: % | P24: =IFERROR(LN('Input | Meter-Opex BST'!P31/'Input | Meter-Opex BST'!O31)*'Input | Meter-Opex BST'!$J36,"") ->  | Q24: =IFERROR(LN('Input | Meter-Opex BST'!Q31/'Input | Meter-Opex BST'!P31)*'Input | Meter-Opex BST'!$J36,"") -> -0.05129329439 | R24: =IFERROR(LN('Input | Meter-Opex BST'!R31/'Input | Meter-Opex BST'!Q31)*'Input | Meter-Opex BST'!$J36,"") -> -0.05129329439 | S24: =IFERROR(LN('Input | Meter-Opex BST'!S31/'Input | Meter-Opex BST'!R31)*'Input | Meter-Opex BST'!$J36,"") -> -0.05129329439 | T24: =IFERROR(LN('Input | Meter-Opex BST'!T31/'Input | Meter-Opex BST'!S31)*'Input | Meter-Opex BST'!$J36,"") -> -0.05129329439 | U24: =IFERROR(LN('Input | Meter-Opex BST'!U31/'Input | Meter-Opex BST'!T31)*'Input | Meter-Opex BST'!$J36,"") -> -0.05129329439 | V24: =IFERROR(LN('Input | Meter-Opex BST'!V31/'Input | Meter-Opex BST'!U31)*'Input | Meter-Opex BST'!$J36,"") -> -0.05129329439
E25: Weighted | F25: ='Input | Meter-Opex BST'!F32 -> Output 2 | G25: % | P25: =IFERROR(LN('Input | Meter-Opex BST'!P32/'Input | Meter-Opex BST'!O32)*'Input | Meter-Opex BST'!$J37,"") ->  | Q25: =IFERROR(LN('Input | Meter-Opex BST'!Q32/'Input | Meter-Opex BST'!P32)*'Input | Meter-Opex BST'!$J37,"") ->  | R25: =IFERROR(LN('Input | Meter-Opex BST'!R32/'Input | Meter-Opex BST'!Q32)*'Input | Meter-Opex BST'!$J37,"") ->  | S25: =IFERROR(LN('Input | Meter-Opex BST'!S32/'Input | Meter-Opex BST'!R32)*'Input | Meter-Opex BST'!$J37,"") ->  | T25: =IFERROR(LN('Input | Meter-Opex BST'!T32/'Input | Meter-Opex BST'!S32)*'Input | Meter-Opex BST'!$J37,"") ->  | U25: =IFERROR(LN('Input | Meter-Opex BST'!U32/'Input | Meter-Opex BST'!T32)*'Input | Meter-Opex BST'!$J37,"") ->  | V25: =IFERROR(LN('Input | Meter-Opex BST'!V32/'Input | Meter-Opex BST'!U32)*'Input | Meter-Opex BST'!$J37,"") -> 
E26: Weighted | F26: ='Input | Meter-Opex BST'!F33 -> Output 3 | G26: % | P26: =IFERROR(LN('Input | Meter-Opex BST'!P33/'Input | Meter-Opex BST'!O33)*'Input | Meter-Opex BST'!$J38,"") ->  | Q26: =IFERROR(LN('Input | Meter-Opex BST'!Q33/'Input | Meter-Opex BST'!P33)*'Input | Meter-Opex BST'!$J38,"") ->  | R26: =IFERROR(LN('Input | Meter-Opex BST'!R33/'Input | Meter-Opex BST'!Q33)*'Input | Meter-Opex BST'!$J38,"") ->  | S26: =IFERROR(LN('Input | Meter-Opex BST'!S33/'Input | Meter-Opex BST'!R33)*'Input | Meter-Opex BST'!$J38,"") ->  | T26: =IFERROR(LN('Input | Meter-Opex BST'!T33/'Input | Meter-Opex BST'!S33)*'Input | Meter-Opex BST'!$J38,"") ->  | U26: =IFERROR(LN('Input | Meter-Opex BST'!U33/'Input | Meter-Opex BST'!T33)*'Input | Meter-Opex BST'!$J38,"") ->  | V26: =IFERROR(LN('Input | Meter-Opex BST'!V33/'Input | Meter-Opex BST'!U33)*'Input | Meter-Opex BST'!$J38,"") -> 
E27: Weighted | F27: ='Input | Meter-Opex BST'!F34 -> Output 4 | G27: % | P27: =IFERROR(LN('Input | Meter-Opex BST'!P34/'Input | Meter-Opex BST'!O34)*'Input | Meter-Opex BST'!$J39,"") ->  | Q27: =IFERROR(LN('Input | Meter-Opex BST'!Q34/'Input | Meter-Opex BST'!P34)*'Input | Meter-Opex BST'!$J39,"") ->  | R27: =IFERROR(LN('Input | Meter-Opex BST'!R34/'Input | Meter-Opex BST'!Q34)*'Input | Meter-Opex BST'!$J39,"") ->  | S27: =IFERROR(LN('Input | Meter-Opex BST'!S34/'Input | Meter-Opex BST'!R34)*'Input | Meter-Opex BST'!$J39,"") ->  | T27: =IFERROR(LN('Input | Meter-Opex BST'!T34/'Input | Meter-Opex BST'!S34)*'Input | Meter-Opex BST'!$J39,"") ->  | U27: =IFERROR(LN('Input | Meter-Opex BST'!U34/'Input | Meter-Opex BST'!T34)*'Input | Meter-Opex BST'!$J39,"") ->  | V27: =IFERROR(LN('Input | Meter-Opex BST'!V34/'Input | Meter-Opex BST'!U34)*'Input | Meter-Opex BST'!$J39,"") -> 
E28: Weighted | F28: Average forecast output change | G28: % | P28: =SUM(P24:P27) -> 0 | Q28: -0.05129329439 | R28: -0.05129329439 | S28: -0.05129329439 | T28: -0.05129329439 | U28: -0.05129329439 | V28: -0.05129329439
D31: Forecast Real Price Change
F32: ='Input | Meter-Opex BST'!F42 -> Forecast Weighted Real Price Change | G32: % | P32: ='Input | Meter-Opex BST'!P42 -> 0.01011977297 | Q32: ='Input | Meter-Opex BST'!Q42 -> 0.004954583415 | R32: ='Input | Meter-Opex BST'!R42 -> 0.008021157439 | S32: ='Input | Meter-Opex BST'!S42 -> 0.005976117482 | T32: ='Input | Meter-Opex BST'!T42 -> 0.005654761816 | U32: ='Input | Meter-Opex BST'!U42 -> 0.006396636753 | V32: ='Input | Meter-Opex BST'!V42 -> 0.007705680942
D34: Forecast Productivity change
F35: Economies of Scale Factor | G35: % | J35: ='Input | Meter-Opex BST'!J45 -> 1
F36: Scaled Growth Output | G36: % | P36: =P28*(1-$J$35) -> 0 | Q36: =Q28*(1-$J$35) -> 0 | R36: =R28*(1-$J$35) -> 0 | S36: 0 | T36: 0 | U36: 0 | V36: 0
F37: ='Input | Meter-Opex BST'!F46 -> Partial Factor Productivity - Annual improvement | G37: % | P37: ='Input | Meter-Opex BST'!P46 -> 0 | Q37: ='Input | Meter-Opex BST'!Q46 -> 0 | R37: ='Input | Meter-Opex BST'!R46 -> 0.005 | S37: ='Input | Meter-Opex BST'!S46 -> 0.005 | T37: ='Input | Meter-Opex BST'!T46 -> 0.005 | U37: ='Input | Meter-Opex BST'!U46 -> 0.005 | V37: ='Input | Meter-Opex BST'!V46 -> 0.005
F38: Sum | G38: % | P38: =SUM(P36:P37) -> 0 | Q38: =SUM(Q36:Q37) -> 0 | R38: 0.005 | S38: 0.005 | T38: 0.005 | U38: 0.005 | V38: 0.005
D41: Forecast rate of change, year-on-year | G41: % | P41: =(1+P28)*(1+P32)*(1-P38)-1 -> 0.01011977297 | Q41: -0.04659284788 | R41: -0.0484651507 | S41: -0.0503955931 | T41: -0.05069894101 | U41: -0.0499986384 | V41: -0.04876294889
D42: Forecast rate of change, Index | G42: Index | O42: =1 -> 1 | P42: =PRODUCT(1+$P41:P41) -> 1.010119773 | Q42: =PRODUCT(1+$P41:Q41) -> 0.9630554161 | R42: =PRODUCT(1+$P41:R41) -> 0.9163807902 | S42: =PRODUCT(1+$P41:S41) -> 0.8701992368 | T42: =PRODUCT(1+$P41:T41) -> 0.826081057 | U42: =PRODUCT(1+$P41:U41) -> 0.7847781289 | V42: =PRODUCT(1+$P41:V41) -> 0.7465100331
D43: Forecast rate of change, Index base year movement | G43: Index | O43: =IF('Input | Meter-Opex BST'!$O$5=Opex_BaseYear,1,"") ->  | P43: =P$42/INDEX($O$42:$V$42,MATCH(Opex_BaseYear,$O$4:$V$4,0)) -> 1 | Q43: 0.9534071521 | R43: 0.9072001308 | S43: 0.8614812422 | T43: 0.8178050555 | U43: 0.7769159162 | V43: 0.7390312051
D44: Forecast rate of change, Cumulative % incl base year movement | G44: % | P44: =P43-1 -> 0 | Q44: -0.04659284788 | R44: -0.09279986918 | S44: -0.1385187578 | T44: -0.1821949445 | U44: -0.2230840838 | V44: -0.2609687949
B46: Outputs (In Input $ real terms)
D48: BST Forecast | O48: =IF(O49=Opex_BaseYear,"Base Year","") ->  | P48: =IF(P49=Opex_BaseYear,"Base Year","") -> Base Year | Q48: =IF(Q49=Opex_BaseYear,"Base Year","") -> 
O49: =O8 -> 2017-18 | P49: 2018-19 | Q49: 2019-20 | R49: =R$8 -> 2020-21 | S49: =S$8 -> 2021-22 | T49: =T$8 -> 2022-23 | U49: =U$8 -> 2023-24 | V49: =V$8 -> 2024-25
F50: Base | G50: ='Input | Meter-Opex BST'!$G$9 -> $millions | H50: =Basis_OpexForecast -> 2020-06-01 | R50: =INDEX($O$12:$Q$12,MATCH(Opex_BaseYear,$O$4:$Q$4,0)) -> 13.09998156 | S50: =INDEX($O$12:$Q$12,MATCH(Opex_BaseYear,'Input | Meter-Opex BST'!$O$5:$Q$5,0)) -> 13.09998156 | T50: =INDEX($O$12:$Q$12,MATCH(Opex_BaseYear,'Input | Meter-Opex BST'!$O$5:$Q$5,0)) -> 13.09998156 | U50: =INDEX($O$12:$Q$12,MATCH(Opex_BaseYear,'Input | Meter-Opex BST'!$O$5:$Q$5,0)) -> 13.09998156 | V50: =INDEX($O$12:$Q$12,MATCH(Opex_BaseYear,'Input | Meter-Opex BST'!$O$5:$Q$5,0)) -> 13.09998156
F51: Trend | G51: ='Input | Meter-Opex BST'!$G$9 -> $millions | H51: =Basis_OpexForecast -> 2020-06-01 | R51: =R50*R44 -> -1.215676575 | S51: =S50*S44 -> -1.814593173 | T51: =T50*T44 -> -2.386750413 | U51: =U50*U44 -> -2.922397384 | V51: =V50*V44 -> -3.418686401
F52: Steps | G52: ='Input | Meter-Opex BST'!$G$9 -> $millions | H52: =Basis_OpexForecast -> 2020-06-01 | R52: =R17 -> 0.4 | S52: =S17 -> 0.5 | T52: =T17 -> 0.5 | U52: =U17 -> 0.5 | V52: =V17 -> 0.5
F53: Forecast Opex | G53: ='Input | Meter-Opex BST'!$G$9 -> $millions | H53: =Basis_OpexForecast -> 2020-06-01 | O53: =SUM('Input | Meter-Opex BST'!O9,'Input | Meter-Opex BST'!O12:O15)*'Input| Prices'!J$32 -> 12.5570674 | P53: =SUM('Input | Meter-Opex BST'!P9,'Input | Meter-Opex BST'!P12:P15)*'Input| Prices'!K$32 -> 13.09998156 | Q53: =SUM('Input | Meter-Opex BST'!Q9,'Input | Meter-Opex BST'!Q12:Q15)*'Input| Prices'!L$32 -> 0 | R53: =SUM(R50:R52) -> 12.28430498 | S53: =SUM(S50:S52) -> 11.78538839 | T53: 11.21323115 | U53: 10.67758418 | V53: =SUM(V50:V52) -> 10.18129516

Sheet Capex Specific >

Sheet Input | Meters Vols & Costs
B1: ='Input|General'!B1&" v"&'Input|General'!$D$2 -> AER Metering Opex & Capex Forecasting Model v1.08
B2: =MID(CELL("filename",A1),FIND("]",CELL("filename",A1))+1,255) -> Input | Meters Vols & Costs
A4: =PRODUCT($A$5:$A$452) -> 1
B5: 1. Meter Types
F8: Meter Type | G8: RIN Subcategory 1 | H8: RIN Subcategory 2 | I8: AER Type | J8: RIN Subcategory 3 | K8: Meter Code
F9: AMI - Single Phase, single element | G9: Single Phase Meter Population | H9: Other | I9: Meter Type 4 | J9: Single phase single element - AMI | K9: AMI 1ph 1e
F10: AMI - Single Phase, two element | G10: Single Phase Meter Population | H10: Other | I10: Meter Type 4 | J10: Single phase two element with contactor - AMI | K10: AMI 1ph 2e
F11: AMI - 3 Phase DC | G11: Multi Phase Meter Population | H11: Direct Connect Meter Population | I11: Meter Type 4 | J11: Three phase - AMI | K11: AMI 3ph DC
F12: AMI 3Ph CT | G12: Multi Phase Meter Population | H12: Current Transformer Connected Meter Population | I12: Meter Type 4 | K12: AMI 3ph CT
F13: Non AMI - Type 5 Locally read Interval - Single Phase | G13: Single Phase Meter Population | H13: Direct Connect Meter Population | I13: Meter Type 5 | K13: INT 1ph
F14: Non AMI - Type 5 Locally read Interval - 3 Phase | G14: Single Phase Meter Population | H14: Direct Connect Meter Population | I14: Meter Type 5 | K14: INT 3ph
F15: Non AMI - Type 5 Locally read Interval - 3 Phase - CT | G15: Multi Phase Meter Population | H15: Current Transformer Connected Meter Population | I15: Meter Type 5 | K15: INT 3ph CT
F16: Non AMI - Type 6 Locally read Accumulation - Single Phase | G16: Multi Phase Meter Population | H16: Direct Connect Meter Population | I16: Meter Type 6 | K16: ACC 1ph
F17: Non AMI - Type 6 Locally read Accumulation - 3 Phase | H17: Direct Connect Meter Population | I17: Meter Type 6 | K17: ACC 3ph
B25: =LEFT(B5,1)+1&". Meter Actions" -> 2. Meter Actions
E28: # | F28: Action | G28: Action Name | H28: Impact on meter population | I28: Meter Equipment Cost? | J28: SCS Allocation | P28: (Calc) Impact on meter population | Q28: (Calc) Calc Equip Cost | R28: (Calc) Is New | S28: (Calc) Is Replacement | T28: (Calc) Is Other
A29: =IF(SUM(ICM_Vol1)<>0,(H29<>"")/1*(I29<>"")/1,1) -> 1 | E29: 1 | F29: New Meter Installations | G29: New Meter Installations - Growth | H29: Add | I29: Include | J29: 0 | P29: =IF(H29="Add",1,IF(H29="No Effect",0,IF(H29="Subtract",-1,IF(ISBLANK(H29),0)))) -> 1 | Q29: =IF(I29="Include",1,IF(I29="Exclude",0,IF(I29="Subtract",-1,IF(ISBLANK(I29),0)))) -> 1 | R29: =(P29=1)/1 -> 1 | S29: =ISNUMBER(SEARCH("Replacement",G29,1))/1 -> 0 | T29: =NOT(R29+S29)/1 -> 0
A30: =IF(SUM(ICM_Vol2)<>0,(H30<>"")/1,1) -> 1 | E30: 2 | F30: NSP Action 1 | G30: Refurbished meters | H30: No Effect | I30: Subtract | J30: 0 | P30: =IF(H30="Add",1,IF(H30="No Effect",0,IF(H30="Subtract",-1,IF(ISBLANK(H30),0)))) -> 0 | Q30: =IF(I30="Include",1,IF(I30="Exclude",0,IF(I30="Subtract",-1,IF(ISBLANK(I30),0)))) -> -1 | R30: 0 | S30: 0 | T30: 1
A31: =IF(SUM(ICM_Vol3)<>0,(H31<>"")/1,1) -> 1 | E31: 3 | F31: NSP Action 2 | G31: Replacements - End of life | H31: No Effect | I31: Include | J31: 0 | P31: 0 | Q31: 1 | R31: 0 | S31: 1 | T31: 0
A32: =IF(SUM(ICM_Vol4)<>0,(H32<>"")/1,1) -> 1 | E32: 4 | F32: NSP Action 3 | G32: Replacements - Failures and faults | H32: No Effect | I32: Include | J32: 0 | P32: 0 | Q32: 1 | R32: 0 | S32: 1 | T32: 0
A33: =IF(SUM(ICM_Vol5)<>0,(H33<>"")/1,1) -> 1 | E33: 5 | F33: NSP Action 4 | J33: 0 | P33: 0 | Q33: 0 | R33: 0 | S33: 0 | T33: 1
A34: =IF(SUM(ICM_Vol6)<>0,(H34<>"")/1,1) -> 1 | E34: 6 | F34: NSP Action 5 | J34: 0 | P34: 0 | Q34: 0 | R34: 0 | S34: 0 | T34: 1
A35: =IF(SUM(ICM_Vol7)<>0,(H35<>"")/1,1) -> 1 | E35: 7 | F35: NSP Action 6 | J35: 0 | P35: 0 | Q35: 0 | R35: 0 | S35: 0 | T35: 1
A36: =IF(SUM(ICM_Vol8)<>0,(H36<>"")/1,1) -> 1 | E36: 8 | F36: NSP Action 7 | J36: 0 | P36: 0 | Q36: 0 | R36: 0 | S36: 0 | T36: 1
A37: =IF(SUM(ICM_Vol9)<>0,(H37<>"")/1,1) -> 1 | E37: 9 | F37: NSP Action 8 | J37: 0 | P37: 0 | Q37: 0 | R37: 0 | S37: 0 | T37: 1
A38: =IF(SUM(ICM_Vol10)<>0,(H38<>"")/1,1) -> 1 | E38: 10 | F38: Abolishments | G38: Meter abolishments | H38: Subtract | I38: Exclude | J38: 0 | P38: -1 | Q38: 0 | R38: 0 | S38: 0 | T38: 1
B41: =LEFT(B25,1)+1&". Overheads and additional meter-related costs" -> 3. Overheads and additional meter-related costs
C44: b | D44: Meter Related Costs
K45: Additional Projects | L45: Units | M45: Basis | N45: =N$171 -> 2017-18 | O45: 2018-19 | P45: 2019-20 | Q45: 2020-21 | R45: 2021-22 | S45: 2022-23 | T45: 2023-24 | U45: 2024-25 | V45: Total
K46: Strategic project 1 | L46: $dollars | M46: =Basis_Capex -> 2018-12-01 | Q46: 50000 | R46: 50000 | V46: =SUM(P46:U46) -> 100000
K47: Project 2 | L47: =$L$46 -> $dollars | M47: =Basis_Capex -> 2018-12-01 | V47: =SUM(P47:U47) -> 0
K48: Project 3 | L48: =$L$46 -> $dollars | M48: =Basis_Capex -> 2018-12-01 | V48: =SUM(P48:U48) -> 0
K49: Project 4 | L49: =$L$46 -> $dollars | M49: =Basis_Capex -> 2018-12-01 | V49: =SUM(P49:U49) -> 0
K50: Total | L50: =$L$46 -> $dollars | M50: =Basis_Capex -> 2018-12-01 | N50: =SUM(N46:N49) -> 0 | O50: 0 | P50: 0 | Q50: 50000 | R50: 50000 | S50: 0 | T50: 0 | U50: 0 | V50: =SUM(Q50:U50) -> 100000
C52: a | D52: Metering Overheads
K53: Overheads Method | L53: Units | M53: Basis | O53: Value | Q53: =Q$171 -> 2020-21 | R53: =R$171 -> 2021-22 | S53: =S$171 -> 2022-23 | T53: =T$171 -> 2023-24 | U53: =U$171 -> 2024-25 | V53: Total
K54: Fixed proportion | L54: =IF(K54="Fixed proportion","%","$dollars") -> % | M54: =IF(L54="%","",Basis_Capex) ->  | O54: 0.05 | Q54: 15 | R54: 15 | S54: 15 | T54: 15 | U54: 15
K55: Total | L55: =$L$46 -> $dollars | M55: =Basis_Capex -> 2018-12-01 | Q55: =IF('Input | Meters Vols & Costs'!$K54="Fixed proportion",SUM('Calc | Capex Meters'!Q$162:Q$163)*$O54, IF('Input | Meters Vols & Costs'!$K54="Fixed number",$O54,Q54 )) -> 256374.3069 | R55: =IF('Input | Meters Vols & Costs'!$K54="Fixed proportion",SUM('Calc | Capex Meters'!R$162:R$163)*$O54, IF('Input | Meters Vols & Costs'!$K54="Fixed number",$O54,R54 )) -> 257845.9602 | S55: =IF('Input | Meters Vols & Costs'!$K54="Fixed proportion",SUM('Calc | Capex Meters'!S$162:S$163)*$O54, IF('Input | Meters Vols & Costs'!$K54="Fixed number",$O54,S54 )) -> 261809.0211 | T55: =IF('Input | Meters Vols & Costs'!$K54="Fixed proportion",SUM('Calc | Capex Meters'!T$162:T$163)*$O54, IF('Input | Meters Vols & Costs'!$K54="Fixed number",$O54,T54 )) -> 267563.4529 | U55: =IF('Input | Meters Vols & Costs'!$K54="Fixed proportion",SUM('Calc | Capex Meters'!U$162:U$163)*$O54, IF('Input | Meters Vols & Costs'!$K54="Fixed number",$O54,U54 )) -> 269473.2859 | V55: =SUM(Q55:U55) -> 1313066.027
C57: c | D57: Asset Disposal
K58: =D57 -> Asset Disposal | L58: Units | M58: Basis | N58: =N$171 -> 2017-18 | O58: 2018-19 | P58: 2019-20 | Q58: 2020-21 | R58: 2021-22 | S58: 2022-23 | T58: 2023-24 | U58: 2024-25 | V58: Total
K59: Income from disposal of meters | L59: $dollars | M59: =Basis_Capex -> 2018-12-01 | Q59: 10000 | R59: 10000 | S59: 10000 | T59: 10000 | U59: 10000 | V59: =SUM(P59:U59) -> 50000
K60: Disposal 2 | L60: =$L$59 -> $dollars | M60: =Basis_Capex -> 2018-12-01 | V60: =SUM(P60:U60) -> 0
K61: Disposal 3 | L61: =$L$59 -> $dollars | M61: =Basis_Capex -> 2018-12-01 | V61: =SUM(P61:U61) -> 0
K62: Total | L62: $dollars | M62: =Basis_Capex -> 2018-12-01 | Q62: =SUM(Q59:Q61) -> 10000 | R62: =SUM(R59:R61) -> 10000 | S62: 10000 | T62: 10000 | U62: 10000 | V62: =SUM(Q62:U62) -> 50000
C63: d | D63: Capital Contributions
K64: =D63 -> Capital Contributions | L64: Units | M64: Basis | N64: =N$171 -> 2017-18 | O64: 2018-19 | P64: 2019-20 | Q64: 2020-21 | R64: 2021-22 | S64: 2022-23 | T64: 2023-24 | U64: 2024-25 | V64: Total
K65: CapCon 1 | L65: $dollars | M65: =Basis_Capex -> 2018-12-01 | V65: =SUM(P65:U65) -> 0
K66: CapCon 2 | L66: =$L$65 -> $dollars | M66: =Basis_Capex -> 2018-12-01 | V66: =SUM(P66:U66) -> 0
K67: CapCon 3 | L67: =$L$65 -> $dollars | M67: =Basis_Capex -> 2018-12-01 | V67: =SUM(P67:U67) -> 0
K68: Total | L68: $dollars | M68: =Basis_Capex -> 2018-12-01 | Q68: =SUM(Q65:Q67) -> 0 | R68: =SUM(R65:R67) -> 0 | S68: =SUM(S65:S67) -> 0 | T68: =SUM(T65:T67) -> 0 | U68: =SUM(U65:U67) -> 0 | V68: =SUM(Q68:U68) -> 0
B71: =LEFT(B41,1)+1&". Labour Rates, Hours & Costs" -> 4. Labour Rates, Hours & Costs
C73: a | D73: Labour Rates
K75: Input | L75: Units | M75: Basis | P75: Value
K76: Labour Rate | L76: $dollars/hr | M76: =Basis_Capex -> 2018-12-01 | P76: 140
K77: Apply Labour Cost Escalation | L77: Y/N | P77: Yes
C79: b | D79: Labour Time Required
P81: 1 | Q81: 2 | R81: 3 | S81: 4 | T81: 5 | U81: 6 | V81: 7 | W81: 8 | X81: 9 | Y81: 10
F82: =I_MeterTypes[[#Headers],[Meter Type]] -> Meter Type | G82: =I_MeterTypes[[#Headers],[RIN Subcategory 1]] -> RIN Subcategory 1 | H82: =I_MeterTypes[[#Headers],[RIN Subcategory 2]] -> RIN Subcategory 2 | I82: =I_MeterTypes[[#Headers],[AER Type]] -> AER Type | J82: =I_MeterTypes[[#Headers],[RIN Subcategory 3]] -> RIN Subcategory 3 | K82: =I_MeterTypes[[#Headers],[Meter Code]] -> Meter Code | L82: Units | P82: =TRANSPOSE($G$29:$G$38) -> New Meter Installations - Growth | Q82: Refurbished meters | R82: Replacements - End of life | S82: Replacements - Failures and faults | T82: 0 | U82: 0 | V82: 0 | W82: 0 | X82: 0 | Y82: Meter abolishments
F83: =I_MeterTypes[Meter Type] -> AMI - Single Phase, single element | G83: =I_MeterTypes[RIN Subcategory 1] -> Single Phase Meter Population | H83: =I_MeterTypes[RIN Subcategory 2] -> Other | I83: =I_MeterTypes[AER Type] -> Meter Type 4 | J83: =I_MeterTypes[RIN Subcategory 3] -> Single phase single element - AMI | K83: =I_MeterTypes[Meter Code] -> AMI 1ph 1e | L83: Hours | R83: 2 | S83: 2
F84: AMI - Single Phase, two element | G84: Single Phase Meter Population | H84: Other | I84: Meter Type 4 | J84: Single phase two element with contactor - AMI | K84: AMI 1ph 2e | L84: Hours | R84: 2 | S84: 2
F85: AMI - 3 Phase DC | G85: Multi Phase Meter Population | H85: Direct Connect Meter Population | I85: Meter Type 4 | J85: Three phase - AMI | K85: AMI 3ph DC | L85: Hours | R85: 2 | S85: 2
F86: AMI 3Ph CT | G86: Multi Phase Meter Population | H86: Current Transformer Connected Meter Population | I86: Meter Type 4 | J86: 0 | K86: AMI 3ph CT | L86: Hours | R86: 5 | S86: 5
F87: Non AMI - Type 5 Locally read Interval - Single Phase | G87: Single Phase Meter Population | H87: Direct Connect Meter Population | I87: Meter Type 5 | J87: 0 | K87: INT 1ph | L87: Hours | R87: 2 | S87: 2
F88: Non AMI - Type 5 Locally read Interval - 3 Phase | G88: Single Phase Meter Population | H88: Direct Connect Meter Population | I88: Meter Type 5 | J88: 0 | K88: INT 3ph | L88: Hours | R88: 3 | S88: 3
F89: Non AMI - Type 5 Locally read Interval - 3 Phase - CT | G89: Multi Phase Meter Population | H89: Current Transformer Connected Meter Population | I89: Meter Type 5 | J89: 0 | K89: INT 3ph CT | L89: Hours | R89: 5 | S89: 5
F90: Non AMI - Type 6 Locally read Accumulation - Single Phase | G90: Multi Phase Meter Population | H90: Direct Connect Meter Population | I90: Meter Type 6 | J90: 0 | K90: ACC 1ph | L90: Hours | R90: 2 | S90: 2
F91: Non AMI - Type 6 Locally read Accumulation - 3 Phase | G91: 0 | H91: Direct Connect Meter Population | I91: Meter Type 6 | J91: 0 | K91: ACC 3ph | L91: Hours | R91: 3 | S91: 3
F92: 0 | G92: 0 | H92: 0 | I92: 0 | J92: 0 | K92: 0 | L92: Hours
F93: 0 | G93: 0 | H93: 0 | I93: 0 | J93: 0 | K93: 0 | L93: Hours
F94: 0 | G94: 0 | H94: 0 | I94: 0 | J94: 0 | K94: 0 | L94: Hours
F95: 0 | G95: 0 | H95: 0 | I95: 0 | J95: 0 | K95: 0 | L95: Hours
F96: 0 | G96: 0 | H96: 0 | I96: 0 | J96: 0 | K96: 0 | L96: Hours
F97: 0 | G97: 0 | H97: 0 | I97: 0 | J97: 0 | K97: 0 | L97: Hours
C99: c | D99: Labour Costs
P101: 1 | Q101: 2 | R101: 3 | S101: 4 | T101: 5 | U101: 6 | V101: 7 | W101: 8 | X101: 9 | Y101: 10
F102: =I_MeterTypes[[#Headers],[Meter Type]] -> Meter Type | G102: =I_MeterTypes[[#Headers],[RIN Subcategory 1]] -> RIN Subcategory 1 | H102: =I_MeterTypes[[#Headers],[RIN Subcategory 2]] -> RIN Subcategory 2 | I102: =I_MeterTypes[[#Headers],[AER Type]] -> AER Type | J102: =I_MeterTypes[[#Headers],[RIN Subcategory 3]] -> RIN Subcategory 3 | K102: =I_MeterTypes[[#Headers],[Meter Code]] -> Meter Code | L102: Units | M102: Basis | P102: =P$82 -> New Meter Installations - Growth | Q102: =Q$82 -> Refurbished meters | R102: Replacements - End of life | S102: Replacements - Failures and faults | T102: 0 | U102: 0 | V102: 0 | W102: 0 | X102: 0 | Y102: Meter abolishments
F103: =I_MeterTypes[Meter Type] -> AMI - Single Phase, single element | G103: =I_MeterTypes[RIN Subcategory 1] -> Single Phase Meter Population | H103: =I_MeterTypes[RIN Subcategory 2] -> Other | I103: =I_MeterTypes[AER Type] -> Meter Type 4 | J103: =I_MeterTypes[RIN Subcategory 3] -> Single phase single element - AMI | K103: =I_MeterTypes[Meter Code] -> AMI 1ph 1e | L103: $dollars | M103: =Basis_Capex -> 2018-12-01 | P103: =ICM_Rates*ICM_Hrs -> 0 | Q103: 0 | R103: 280 | S103: 280 | T103: 0 | U103: 0 | V103: 0 | W103: 0 | X103: 0 | Y103: 0
F104: AMI - Single Phase, two element | G104: Single Phase Meter Population | H104: Other | I104: Meter Type 4 | J104: Single phase two element with contactor - AMI | K104: AMI 1ph 2e | L104: $dollars | M104: 2018-12-01 | P104: 0 | Q104: 0 | R104: 280 | S104: 280 | T104: 0 | U104: 0 | V104: 0 | W104: 0 | X104: 0 | Y104: 0
F105: AMI - 3 Phase DC | G105: Multi Phase Meter Population | H105: Direct Connect Meter Population | I105: Meter Type 4 | J105: Three phase - AMI | K105: AMI 3ph DC | L105: $dollars | M105: 2018-12-01 | P105: 0 | Q105: 0 | R105: 280 | S105: 280 | T105: 0 | U105: 0 | V105: 0 | W105: 0 | X105: 0 | Y105: 0
F106: AMI 3Ph CT | G106: Multi Phase Meter Population | H106: Current Transformer Connected Meter Population | I106: Meter Type 4 | J106: 0 | K106: AMI 3ph CT | L106: $dollars | M106: 2018-12-01 | P106: 0 | Q106: 0 | R106: 700 | S106: 700 | T106: 0 | U106: 0 | V106: 0 | W106: 0 | X106: 0 | Y106: 0
F107: Non AMI - Type 5 Locally read Interval - Single Phase | G107: Single Phase Meter Population | H107: Direct Connect Meter Population | I107: Meter Type 5 | J107: 0 | K107: INT 1ph | L107: $dollars | M107: 2018-12-01 | P107: 0 | Q107: 0 | R107: 280 | S107: 280 | T107: 0 | U107: 0 | V107: 0 | W107: 0 | X107: 0 | Y107: 0
F108: Non AMI - Type 5 Locally read Interval - 3 Phase | G108: Single Phase Meter Population | H108: Direct Connect Meter Population | I108: Meter Type 5 | J108: 0 | K108: INT 3ph | L108: $dollars | M108: 2018-12-01 | P108: 0 | Q108: 0 | R108: 420 | S108: 420 | T108: 0 | U108: 0 | V108: 0 | W108: 0 | X108: 0 | Y108: 0
F109: Non AMI - Type 5 Locally read Interval - 3 Phase - CT | G109: Multi Phase Meter Population | H109: Current Transformer Connected Meter Population | I109: Meter Type 5 | J109: 0 | K109: INT 3ph CT | L109: $dollars | M109: 2018-12-01 | P109: 0 | Q109: 0 | R109: 700 | S109: 700 | T109: 0 | U109: 0 | V109: 0 | W109: 0 | X109: 0 | Y109: 0
F110: Non AMI - Type 6 Locally read Accumulation - Single Phase | G110: Multi Phase Meter Population | H110: Direct Connect Meter Population | I110: Meter Type 6 | J110: 0 | K110: ACC 1ph | L110: $dollars | M110: 2018-12-01 | P110: 0 | Q110: 0 | R110: 280 | S110: 280 | T110: 0 | U110: 0 | V110: 0 | W110: 0 | X110: 0 | Y110: 0
F111: Non AMI - Type 6 Locally read Accumulation - 3 Phase | G111: 0 | H111: Direct Connect Meter Population | I111: Meter Type 6 | J111: 0 | K111: ACC 3ph | L111: $dollars | M111: 2018-12-01 | P111: 0 | Q111: 0 | R111: 420 | S111: 420 | T111: 0 | U111: 0 | V111: 0 | W111: 0 | X111: 0 | Y111: 0
F112: 0 | G112: 0 | H112: 0 | I112: 0 | J112: 0 | K112: 0 | L112: $dollars | M112: 2018-12-01 | P112: 0 | Q112: 0 | R112: 0 | S112: 0 | T112: 0 | U112: 0 | V112: 0 | W112: 0 | X112: 0 | Y112: 0
F113: 0 | G113: 0 | H113: 0 | I113: 0 | J113: 0 | K113: 0 | L113: $dollars | M113: 2018-12-01 | P113: 0 | Q113: 0 | R113: 0 | S113: 0 | T113: 0 | U113: 0 | V113: 0 | W113: 0 | X113: 0 | Y113: 0
F114: 0 | G114: 0 | H114: 0 | I114: 0 | J114: 0 | K114: 0 | L114: $dollars | M114: 2018-12-01 | P114: 0 | Q114: 0 | R114: 0 | S114: 0 | T114: 0 | U114: 0 | V114: 0 | W114: 0 | X114: 0 | Y114: 0
F115: 0 | G115: 0 | H115: 0 | I115: 0 | J115: 0 | K115: 0 | L115: $dollars | M115: 2018-12-01 | P115: 0 | Q115: 0 | R115: 0 | S115: 0 | T115: 0 | U115: 0 | V115: 0 | W115: 0 | X115: 0 | Y115: 0
F116: 0 | G116: 0 | H116: 0 | I116: 0 | J116: 0 | K116: 0 | L116: $dollars | M116: 2018-12-01 | P116: 0 | Q116: 0 | R116: 0 | S116: 0 | T116: 0 | U116: 0 | V116: 0 | W116: 0 | X116: 0 | Y116: 0
F117: 0 | G117: 0 | H117: 0 | I117: 0 | J117: 0 | K117: 0 | L117: $dollars | M117: 2018-12-01 | P117: 0 | Q117: 0 | R117: 0 | S117: 0 | T117: 0 | U117: 0 | V117: 0 | W117: 0 | X117: 0 | Y117: 0
B120: =LEFT(B71,1)+1&". Equipment Unit Cost" -> 5. Equipment Unit Cost
C122: a | D122: Equipment Unit Cost
P123: 1
F124: =I_MeterTypes[[#Headers],[Meter Type]] -> Meter Type | G124: =I_MeterTypes[[#Headers],[RIN Subcategory 1]] -> RIN Subcategory 1 | H124: =I_MeterTypes[[#Headers],[RIN Subcategory 2]] -> RIN Subcategory 2 | I124: =I_MeterTypes[[#Headers],[AER Type]] -> AER Type | J124: =I_MeterTypes[[#Headers],[RIN Subcategory 3]] -> RIN Subcategory 3 | K124: =I_MeterTypes[[#Headers],[Meter Code]] -> Meter Code | L124: Units | M124: Basis | P124: Meter Unit Cost
F125: =I_MeterTypes[Meter Type] -> AMI - Single Phase, single element | G125: =I_MeterTypes[RIN Subcategory 1] -> Single Phase Meter Population | H125: =I_MeterTypes[RIN Subcategory 2] -> Other | I125: =I_MeterTypes[AER Type] -> Meter Type 4 | J125: =I_MeterTypes[RIN Subcategory 3] -> Single phase single element - AMI | K125: =I_MeterTypes[Meter Code] -> AMI 1ph 1e | L125: $dollars | M125: =Basis_Capex -> 2018-12-01 | P125: 180
F126: AMI - Single Phase, two element | G126: Single Phase Meter Population | H126: Other | I126: Meter Type 4 | J126: Single phase two element with contactor - AMI | K126: AMI 1ph 2e | L126: $dollars | M126: 2018-12-01 | P126: 230
F127: AMI - 3 Phase DC | G127: Multi Phase Meter Population | H127: Direct Connect Meter Population | I127: Meter Type 4 | J127: Three phase - AMI | K127: AMI 3ph DC | L127: $dollars | M127: 2018-12-01 | P127: 350
F128: AMI 3Ph CT | G128: Multi Phase Meter Population | H128: Current Transformer Connected Meter Population | I128: Meter Type 4 | J128: 0 | K128: AMI 3ph CT | L128: $dollars | M128: 2018-12-01 | P128: 380
F129: Non AMI - Type 5 Locally read Interval - Single Phase | G129: Single Phase Meter Population | H129: Direct Connect Meter Population | I129: Meter Type 5 | J129: 0 | K129: INT 1ph | L129: $dollars | M129: 2018-12-01
F130: Non AMI - Type 5 Locally read Interval - 3 Phase | G130: Single Phase Meter Population | H130: Direct Connect Meter Population | I130: Meter Type 5 | J130: 0 | K130: INT 3ph | L130: $dollars | M130: 2018-12-01
F131: Non AMI - Type 5 Locally read Interval - 3 Phase - CT | G131: Multi Phase Meter Population | H131: Current Transformer Connected Meter Population | I131: Meter Type 5 | J131: 0 | K131: INT 3ph CT | L131: $dollars | M131: 2018-12-01
F132: Non AMI - Type 6 Locally read Accumulation - Single Phase | G132: Multi Phase Meter Population | H132: Direct Connect Meter Population | I132: Meter Type 6 | J132: 0 | K132: ACC 1ph | L132: $dollars | M132: 2018-12-01
F133: Non AMI - Type 6 Locally read Accumulation - 3 Phase | G133: 0 | H133: Direct Connect Meter Population | I133: Meter Type 6 | J133: 0 | K133: ACC 3ph | L133: $dollars | M133: 2018-12-01
F134: 0 | G134: 0 | H134: 0 | I134: 0 | J134: 0 | K134: 0 | L134: $dollars | M134: 2018-12-01
F135: 0 | G135: 0 | H135: 0 | I135: 0 | J135: 0 | K135: 0 | L135: $dollars | M135: 2018-12-01
F136: 0 | G136: 0 | H136: 0 | I136: 0 | J136: 0 | K136: 0 | L136: $dollars | M136: 2018-12-01
F137: 0 | G137: 0 | H137: 0 | I137: 0 | J137: 0 | K137: 0 | L137: $dollars | M137: 2018-12-01
F138: 0 | G138: 0 | H138: 0 | I138: 0 | J138: 0 | K138: 0 | L138: $dollars | M138: 2018-12-01
F139: 0 | G139: 0 | H139: 0 | I139: 0 | J139: 0 | K139: 0 | L139: $dollars | M139: 2018-12-01
K141: Input | L141: Units | M141: Basis | P141: Value
K142: Apply Non-Labour Cost Escalation | L142: Y/N | P142: Yes
B144: =LEFT(B120,1)+1&". Meter Population" -> 6. Meter Population
C147: a | D147: Base Year Population (Year End)
M148: =IF(M149=Capex_BaseYear,"Base Year","") -> Base Year
F149: =I_MeterTypes[[#Headers],[Meter Type]] -> Meter Type | G149: =I_MeterTypes[[#Headers],[RIN Subcategory 1]] -> RIN Subcategory 1 | H149: =I_MeterTypes[[#Headers],[RIN Subcategory 2]] -> RIN Subcategory 2 | I149: =I_MeterTypes[[#Headers],[AER Type]] -> AER Type | J149: =I_MeterTypes[[#Headers],[RIN Subcategory 3]] -> RIN Subcategory 3 | K149: =I_MeterTypes[[#Headers],[Meter Code]] -> Meter Code | L149: Units | M149: =Capex_BaseYear -> 2018-19
F150: =I_MeterTypes[Meter Type] -> AMI - Single Phase, single element | G150: =I_MeterTypes[RIN Subcategory 1] -> Single Phase Meter Population | H150: =I_MeterTypes[RIN Subcategory 2] -> Other | I150: =I_MeterTypes[AER Type] -> Meter Type 4 | J150: =I_MeterTypes[RIN Subcategory 3] -> Single phase single element - AMI | K150: =I_MeterTypes[Meter Code] -> AMI 1ph 1e | L150: No. | M150: 350000
F151: AMI - Single Phase, two element | G151: Single Phase Meter Population | H151: Other | I151: Meter Type 4 | J151: Single phase two element with contactor - AMI | K151: AMI 1ph 2e | L151: =L$150 -> No. | M151: 50000
F152: AMI - 3 Phase DC | G152: Multi Phase Meter Population | H152: Direct Connect Meter Population | I152: Meter Type 4 | J152: Three phase - AMI | K152: AMI 3ph DC | L152: No. | M152: 4000
F153: AMI 3Ph CT | G153: Multi Phase Meter Population | H153: Current Transformer Connected Meter Population | I153: Meter Type 4 | J153: 0 | K153: AMI 3ph CT | L153: No. | M153: 2000
F154: Non AMI - Type 5 Locally read Interval - Single Phase | G154: Single Phase Meter Population | H154: Direct Connect Meter Population | I154: Meter Type 5 | J154: 0 | K154: INT 1ph | L154: No. | M154: 50
F155: Non AMI - Type 5 Locally read Interval - 3 Phase | G155: Single Phase Meter Population | H155: Direct Connect Meter Population | I155: Meter Type 5 | J155: 0 | K155: INT 3ph | L155: No. | M155: 50
F156: Non AMI - Type 5 Locally read Interval - 3 Phase - CT | G156: Multi Phase Meter Population | H156: Current Transformer Connected Meter Population | I156: Meter Type 5 | J156: 0 | K156: INT 3ph CT | L156: No. | M156: 50
F157: Non AMI - Type 6 Locally read Accumulation - Single Phase | G157: Multi Phase Meter Population | H157: Direct Connect Meter Population | I157: Meter Type 6 | J157: 0 | K157: ACC 1ph | L157: No. | M157: 4000
F158: Non AMI - Type 6 Locally read Accumulation - 3 Phase | G158: 0 | H158: Direct Connect Meter Population | I158: Meter Type 6 | J158: 0 | K158: ACC 3ph | L158: No. | M158: 1500
F159: 0 | G159: 0 | H159: 0 | I159: 0 | J159: 0 | K159: 0 | L159: No.
F160: 0 | G160: 0 | H160: 0 | I160: 0 | J160: 0 | K160: 0 | L160: No.
F161: 0 | G161: 0 | H161: 0 | I161: 0 | J161: 0 | K161: 0 | L161: No.
F162: 0 | G162: 0 | H162: 0 | I162: 0 | J162: 0 | K162: 0 | L162: No.
F163: 0 | G163: 0 | H163: 0 | I163: 0 | J163: 0 | K163: 0 | L163: No.
F164: 0 | G164: 0 | H164: 0 | I164: 0 | J164: 0 | K164: 0 | L164: No.
F165: Total | L165: No. | M165: =SUM(M150:M164) -> 411650
C167: b | D167: Meter Actions
D169: i | E169: =$G$29 -> New Meter Installations - Growth
N170: =IF(N171=Capex_BaseYear,"Base Year","") ->  | O170: =IF(O171=Capex_BaseYear,"Base Year","") -> Base Year | P170: =IF(P171=Capex_BaseYear,"Base Year","") ->  | Q170: Forecast RP
F171: =I_MeterTypes[[#Headers],[Meter Type]] -> Meter Type | G171: =I_MeterTypes[[#Headers],[RIN Subcategory 1]] -> RIN Subcategory 1 | H171: =I_MeterTypes[[#Headers],[RIN Subcategory 2]] -> RIN Subcategory 2 | I171: =I_MeterTypes[[#Headers],[AER Type]] -> AER Type | J171: =I_MeterTypes[[#Headers],[RIN Subcategory 3]] -> RIN Subcategory 3 | K171: =I_MeterTypes[[#Headers],[Meter Code]] -> Meter Code | L171: Units | N171: =(LEFT(O171,4)-1&IF(MID(O171,5,1)="","","-"&TEXT(MOD(MID(O171,6,2)-1,100),"00"))) -> 2017-18 | O171: 2018-19 | P171: =(LEFT(Q171,4)-1&IF(MID(Q171,5,1)="","","-"&TEXT(MOD(MID(Q171,6,2)-1,100),"00"))) -> 2019-20 | Q171: =FPFirstYear -> 2020-21 | R171: =(LEFT(Q171,4)+1&IF(MID(Q171,5,1)="","","-"&TEXT(MOD(MID(Q171,6,2)+1,100),"00"))) -> 2021-22 | S171: =(LEFT(R171,4)+1&IF(MID(R171,5,1)="","","-"&TEXT(MOD(MID(R171,6,2)+1,100),"00"))) -> 2022-23 | T171: =(LEFT(S171,4)+1&IF(MID(S171,5,1)="","","-"&TEXT(MOD(MID(S171,6,2)+1,100),"00"))) -> 2023-24 | U171: =(LEFT(T171,4)+1&IF(MID(T171,5,1)="","","-"&TEXT(MOD(MID(T171,6,2)+1,100),"00"))) -> 2024-25 | V171: RP Total
F172: =I_MeterTypes[Meter Type] -> AMI - Single Phase, single element | G172: =I_MeterTypes[RIN Subcategory 1] -> Single Phase Meter Population | H172: =I_MeterTypes[RIN Subcategory 2] -> Other | I172: =I_MeterTypes[AER Type] -> Meter Type 4 | J172: =I_MeterTypes[RIN Subcategory 3] -> Single phase single element - AMI | K172: =I_MeterTypes[Meter Code] -> AMI 1ph 1e | L172: No. | P172: 5000 | Q172: 6000 | R172: 6000 | S172: 6550 | T172: 7000 | U172: 7000 | V172: =SUM(Q172:U172) -> 32550
F173: AMI - Single Phase, two element | G173: Single Phase Meter Population | H173: Other | I173: Meter Type 4 | J173: Single phase two element with contactor - AMI | K173: AMI 1ph 2e | L173: =L$150 -> No. | P173: 0 | Q173: 0 | R173: 0 | S173: 0 | T173: 0 | U173: 0 | V173: =SUM(Q173:U173) -> 0
F174: AMI - 3 Phase DC | G174: Multi Phase Meter Population | H174: Direct Connect Meter Population | I174: Meter Type 4 | J174: Three phase - AMI | K174: AMI 3ph DC | L174: No. | V174: 0
F175: AMI 3Ph CT | G175: Multi Phase Meter Population | H175: Current Transformer Connected Meter Population | I175: Meter Type 4 | J175: 0 | K175: AMI 3ph CT | L175: No. | V175: 0
F176: Non AMI - Type 5 Locally read Interval - Single Phase | G176: Single Phase Meter Population | H176: Direct Connect Meter Population | I176: Meter Type 5 | J176: 0 | K176: INT 1ph | L176: No. | V176: 0
F177: Non AMI - Type 5 Locally read Interval - 3 Phase | G177: Single Phase Meter Population | H177: Direct Connect Meter Population | I177: Meter Type 5 | J177: 0 | K177: INT 3ph | L177: No. | V177: 0
F178: Non AMI - Type 5 Locally read Interval - 3 Phase - CT | G178: Multi Phase Meter Population | H178: Current Transformer Connected Meter Population | I178: Meter Type 5 | J178: 0 | K178: INT 3ph CT | L178: No. | V178: 0
F179: Non AMI - Type 6 Locally read Accumulation - Single Phase | G179: Multi Phase Meter Population | H179: Direct Connect Meter Population | I179: Meter Type 6 | J179: 0 | K179: ACC 1ph | L179: No. | V179: 0
F180: Non AMI - Type 6 Locally read Accumulation - 3 Phase | G180: 0 | H180: Direct Connect Meter Population | I180: Meter Type 6 | J180: 0 | K180: ACC 3ph | L180: No. | V180: 0
F181: 0 | G181: 0 | H181: 0 | I181: 0 | J181: 0 | K181: 0 | L181: No. | V181: 0
F182: 0 | G182: 0 | H182: 0 | I182: 0 | J182: 0 | K182: 0 | L182: No. | V182: 0
F183: 0 | G183: 0 | H183: 0 | I183: 0 | J183: 0 | K183: 0 | L183: No. | V183: 0
F184: 0 | G184: 0 | H184: 0 | I184: 0 | J184: 0 | K184: 0 | L184: No. | V184: 0
F185: 0 | G185: 0 | H185: 0 | I185: 0 | J185: 0 | K185: 0 | L185: No. | V185: 0
F186: 0 | G186: 0 | H186: 0 | I186: 0 | J186: 0 | K186: 0 | L186: No. | V186: 0
F187: Total | L187: No. | O187: =SUM(O172:O186) -> 0 | P187: =SUM(P172:P186) -> 5000 | Q187: =SUM(Q172:Q186) -> 6000 | R187: 6000 | S187: 6550 | T187: 7000 | U187: 7000 | V187: 32550
D189: ii | E189: =$G$30 -> Refurbished meters
F191: =I_MeterTypes[[#Headers],[Meter Type]] -> Meter Type | G191: =I_MeterTypes[[#Headers],[RIN Subcategory 1]] -> RIN Subcategory 1 | H191: =I_MeterTypes[[#Headers],[RIN Subcategory 2]] -> RIN Subcategory 2 | I191: =I_MeterTypes[[#Headers],[AER Type]] -> AER Type | J191: =I_MeterTypes[[#Headers],[RIN Subcategory 3]] -> RIN Subcategory 3 | K191: =I_MeterTypes[[#Headers],[Meter Code]] -> Meter Code | L191: Units | O191: =O$171 -> 2018-19 | P191: 2019-20 | Q191: 2020-21 | R191: 2021-22 | S191: 2022-23 | T191: 2023-24 | U191: 2024-25 | V191: RP Total
F192: =I_MeterTypes[Meter Type] -> AMI - Single Phase, single element | G192: =I_MeterTypes[RIN Subcategory 1] -> Single Phase Meter Population | H192: =I_MeterTypes[RIN Subcategory 2] -> Other | I192: =I_MeterTypes[AER Type] -> Meter Type 4 | J192: =I_MeterTypes[RIN Subcategory 3] -> Single phase single element - AMI | K192: =I_MeterTypes[Meter Code] -> AMI 1ph 1e | L192: No. | P192: 500 | Q192: 500 | R192: 500 | S192: 500 | T192: 500 | U192: 500 | V192: =SUM(Q192:U192) -> 2500
F193: AMI - Single Phase, two element | G193: Single Phase Meter Population | H193: Other | I193: Meter Type 4 | J193: Single phase two element with contactor - AMI | K193: AMI 1ph 2e | L193: =L$150 -> No. | V193: =SUM(Q193:U193) -> 0
F194: AMI - 3 Phase DC | G194: Multi Phase Meter Population | H194: Direct Connect Meter Population | I194: Meter Type 4 | J194: Three phase - AMI | K194: AMI 3ph DC | L194: No. | V194: 0
F195: AMI 3Ph CT | G195: Multi Phase Meter Population | H195: Current Transformer Connected Meter Population | I195: Meter Type 4 | J195: 0 | K195: AMI 3ph CT | L195: No. | V195: 0
F196: Non AMI - Type 5 Locally read Interval - Single Phase | G196: Single Phase Meter Population | H196: Direct Connect Meter Population | I196: Meter Type 5 | J196: 0 | K196: INT 1ph | L196: No. | V196: 0
F197: Non AMI - Type 5 Locally read Interval - 3 Phase | G197: Single Phase Meter Population | H197: Direct Connect Meter Population | I197: Meter Type 5 | J197: 0 | K197: INT 3ph | L197: No. | V197: 0
F198: Non AMI - Type 5 Locally read Interval - 3 Phase - CT | G198: Multi Phase Meter Population | H198: Current Transformer Connected Meter Population | I198: Meter Type 5 | J198: 0 | K198: INT 3ph CT | L198: No. | V198: 0
F199: Non AMI - Type 6 Locally read Accumulation - Single Phase | G199: Multi Phase Meter Population | H199: Direct Connect Meter Population | I199: Meter Type 6 | J199: 0 | K199: ACC 1ph | L199: No. | V199: 0
F200: Non AMI - Type 6 Locally read Accumulation - 3 Phase | G200: 0 | H200: Direct Connect Meter Population | I200: Meter Type 6 | J200: 0 | K200: ACC 3ph | L200: No. | V200: 0
F201: 0 | G201: 0 | H201: 0 | I201: 0 | J201: 0 | K201: 0 | L201: No. | V201: 0
F202: 0 | G202: 0 | H202: 0 | I202: 0 | J202: 0 | K202: 0 | L202: No. | V202: 0
F203: 0 | G203: 0 | H203: 0 | I203: 0 | J203: 0 | K203: 0 | L203: No. | V203: 0
F204: 0 | G204: 0 | H204: 0 | I204: 0 | J204: 0 | K204: 0 | L204: No. | P204: 0 | Q204: 0 | R204: 0 | S204: 0 | T204: 0 | U204: 0 | V204: 0
F205: 0 | G205: 0 | H205: 0 | I205: 0 | J205: 0 | K205: 0 | L205: No. | P205: 0 | Q205: 0 | R205: 0 | S205: 0 | T205: 0 | U205: 0 | V205: 0
F206: 0 | G206: 0 | H206: 0 | I206: 0 | J206: 0 | K206: 0 | L206: No. | P206: 0 | Q206: 0 | R206: 0 | S206: 0 | T206: 0 | U206: 0 | V206: 0
F207: Total | L207: No. | O207: =SUM(O192:O206) -> 0 | P207: =SUM(P192:P206) -> 500 | Q207: 500 | R207: 500 | S207: 500 | T207: 500 | U207: 500 | V207: 2500
D209: iii | E209: =$G$31 -> Replacements - End of life
F211: =I_MeterTypes[[#Headers],[Meter Type]] -> Meter Type | G211: =I_MeterTypes[[#Headers],[RIN Subcategory 1]] -> RIN Subcategory 1 | H211: =I_MeterTypes[[#Headers],[RIN Subcategory 2]] -> RIN Subcategory 2 | I211: =I_MeterTypes[[#Headers],[AER Type]] -> AER Type | J211: =I_MeterTypes[[#Headers],[RIN Subcategory 3]] -> RIN Subcategory 3 | K211: =I_MeterTypes[[#Headers],[Meter Code]] -> Meter Code | L211: Units | O211: =O$171 -> 2018-19 | P211: 2019-20 | Q211: 2020-21 | R211: 2021-22 | S211: 2022-23 | T211: 2023-24 | U211: 2024-25 | V211: RP Total
F212: =I_MeterTypes[Meter Type] -> AMI - Single Phase, single element | G212: =I_MeterTypes[RIN Subcategory 1] -> Single Phase Meter Population | H212: =I_MeterTypes[RIN Subcategory 2] -> Other | I212: =I_MeterTypes[AER Type] -> Meter Type 4 | J212: =I_MeterTypes[RIN Subcategory 3] -> Single phase single element - AMI | K212: =I_MeterTypes[Meter Code] -> AMI 1ph 1e | L212: No. | P212: 7000 | Q212: =P212 -> 7000 | R212: =Q212 -> 7000 | S212: 7000 | T212: 7000 | U212: 7000 | V212: =SUM(Q212:U212) -> 35000
F213: AMI - Single Phase, two element | G213: Single Phase Meter Population | H213: Other | I213: Meter Type 4 | J213: Single phase two element with contactor - AMI | K213: AMI 1ph 2e | L213: =L$150 -> No. | V213: =SUM(Q213:U213) -> 0
F214: AMI - 3 Phase DC | G214: Multi Phase Meter Population | H214: Direct Connect Meter Population | I214: Meter Type 4 | J214: Three phase - AMI | K214: AMI 3ph DC | L214: No. | V214: 0
F215: AMI 3Ph CT | G215: Multi Phase Meter Population | H215: Current Transformer Connected Meter Population | I215: Meter Type 4 | J215: 0 | K215: AMI 3ph CT | L215: No. | V215: 0
F216: Non AMI - Type 5 Locally read Interval - Single Phase | G216: Single Phase Meter Population | H216: Direct Connect Meter Population | I216: Meter Type 5 | J216: 0 | K216: INT 1ph | L216: No. | V216: 0
F217: Non AMI - Type 5 Locally read Interval - 3 Phase | G217: Single Phase Meter Population | H217: Direct Connect Meter Population | I217: Meter Type 5 | J217: 0 | K217: INT 3ph | L217: No. | V217: 0
F218: Non AMI - Type 5 Locally read Interval - 3 Phase - CT | G218: Multi Phase Meter Population | H218: Current Transformer Connected Meter Population | I218: Meter Type 5 | J218: 0 | K218: INT 3ph CT | L218: No. | V218: 0
F219: Non AMI - Type 6 Locally read Accumulation - Single Phase | G219: Multi Phase Meter Population | H219: Direct Connect Meter Population | I219: Meter Type 6 | J219: 0 | K219: ACC 1ph | L219: No. | V219: 0
F220: Non AMI - Type 6 Locally read Accumulation - 3 Phase | G220: 0 | H220: Direct Connect Meter Population | I220: Meter Type 6 | J220: 0 | K220: ACC 3ph | L220: No. | V220: 0
F221: 0 | G221: 0 | H221: 0 | I221: 0 | J221: 0 | K221: 0 | L221: No. | V221: 0
F222: 0 | G222: 0 | H222: 0 | I222: 0 | J222: 0 | K222: 0 | L222: No. | V222: 0
F223: 0 | G223: 0 | H223: 0 | I223: 0 | J223: 0 | K223: 0 | L223: No. | V223: 0
F224: 0 | G224: 0 | H224: 0 | I224: 0 | J224: 0 | K224: 0 | L224: No. | V224: 0
F225: 0 | G225: 0 | H225: 0 | I225: 0 | J225: 0 | K225: 0 | L225: No. | V225: 0
F226: 0 | G226: 0 | H226: 0 | I226: 0 | J226: 0 | K226: 0 | L226: No. | V226: 0
F227: Total | L227: No. | O227: =SUM(O212:O226) -> 0 | P227: =SUM(P212:P219) -> 7000 | Q227: 7000 | R227: 7000 | S227: 7000 | T227: 7000 | U227: 7000 | V227: 35000
D229: iv | E229: =$G$32 -> Replacements - Failures and faults
F231: =I_MeterTypes[[#Headers],[Meter Type]] -> Meter Type | G231: =I_MeterTypes[[#Headers],[RIN Subcategory 1]] -> RIN Subcategory 1 | H231: =I_MeterTypes[[#Headers],[RIN Subcategory 2]] -> RIN Subcategory 2 | I231: =I_MeterTypes[[#Headers],[AER Type]] -> AER Type | J231: =I_MeterTypes[[#Headers],[RIN Subcategory 3]] -> RIN Subcategory 3 | K231: =I_MeterTypes[[#Headers],[Meter Code]] -> Meter Code | L231: Units | O231: =O$171 -> 2018-19 | P231: 2019-20 | Q231: 2020-21 | R231: 2021-22 | S231: 2022-23 | T231: 2023-24 | U231: 2024-25 | V231: Total
F232: =I_MeterTypes[Meter Type] -> AMI - Single Phase, single element | G232: =I_MeterTypes[RIN Subcategory 1] -> Single Phase Meter Population | H232: =I_MeterTypes[RIN Subcategory 2] -> Other | I232: =I_MeterTypes[AER Type] -> Meter Type 4 | J232: =I_MeterTypes[RIN Subcategory 3] -> Single phase single element - AMI | K232: =I_MeterTypes[Meter Code] -> AMI 1ph 1e | L232: No. | P232: 1750 | Q232: =P232 -> 1750 | R232: =Q232 -> 1750 | S232: 1750 | T232: 1750 | U232: 1750 | V232: =SUM(N232:U232) -> 10500
F233: AMI - Single Phase, two element | G233: Single Phase Meter Population | H233: Other | I233: Meter Type 4 | J233: Single phase two element with contactor - AMI | K233: AMI 1ph 2e | L233: =L$150 -> No. | V233: 0
F234: AMI - 3 Phase DC | G234: Multi Phase Meter Population | H234: Direct Connect Meter Population | I234: Meter Type 4 | J234: Three phase - AMI | K234: AMI 3ph DC | L234: No. | V234: 0
F235: AMI 3Ph CT | G235: Multi Phase Meter Population | H235: Current Transformer Connected Meter Population | I235: Meter Type 4 | J235: 0 | K235: AMI 3ph CT | L235: No. | V235: 0
F236: Non AMI - Type 5 Locally read Interval - Single Phase | G236: Single Phase Meter Population | H236: Direct Connect Meter Population | I236: Meter Type 5 | J236: 0 | K236: INT 1ph | L236: No. | V236: 0
F237: Non AMI - Type 5 Locally read Interval - 3 Phase | G237: Single Phase Meter Population | H237: Direct Connect Meter Population | I237: Meter Type 5 | J237: 0 | K237: INT 3ph | L237: No. | V237: 0
F238: Non AMI - Type 5 Locally read Interval - 3 Phase - CT | G238: Multi Phase Meter Population | H238: Current Transformer Connected Meter Population | I238: Meter Type 5 | J238: 0 | K238: INT 3ph CT | L238: No. | V238: 0
F239: Non AMI - Type 6 Locally read Accumulation - Single Phase | G239: Multi Phase Meter Population | H239: Direct Connect Meter Population | I239: Meter Type 6 | J239: 0 | K239: ACC 1ph | L239: No. | V239: 0
F240: Non AMI - Type 6 Locally read Accumulation - 3 Phase | G240: 0 | H240: Direct Connect Meter Population | I240: Meter Type 6 | J240: 0 | K240: ACC 3ph | L240: No. | V240: 0
F241: 0 | G241: 0 | H241: 0 | I241: 0 | J241: 0 | K241: 0 | L241: No. | V241: 0
... 186 more rows

Sheet Input | Comms, IT, Other
B1: ='Input|General'!B1&" v"&'Input|General'!$D$2 -> AER Metering Opex & Capex Forecasting Model v1.08
B2: =MID(CELL("filename",A1),FIND("]",CELL("filename",A1))+1,255) -> Input | Comms, IT, Other
A6: =LEFT('Input | Meters Vols & Costs'!B144,1)+1&". Comms Setup" -> 7. Comms Setup
B8: a | C8: Define equipment types and actions / drivers of volumes and unit costs
E10: Equipment Type
E11: Access Points
E12: Relays
E13: Antennas
E14: Batteries
E15: Modems
E27: Action/Driver | F27: Impact on population | H27: (Calc) Impact on meter population
A28: =IF(E28<>"",(F28<>"")/1,1) -> 1 | E28: Growth | F28: Add | H28: =IFERROR(_xlfn.IFS(F28="Add",1,F28="No Effect",0,F28="Subtract",-1),0) -> 1
A29: =IF(E29<>"",(F29<>"")/1,1) -> 1 | E29: Replacements - faults and failures | F29: No Effect | H29: =IFERROR(_xlfn.IFS(F29="Add",1,F29="No Effect",0,F29="Subtract",-1),0) -> 0
A30: 1 | H30: =IFERROR(_xlfn.IFS(F30="Add",1,F30="No Effect",0,F30="Subtract",-1),0) -> 0
A31: 1 | H31: =IFERROR(_xlfn.IFS(F31="Add",1,F31="No Effect",0,F31="Subtract",-1),0) -> 0
A32: 1 | H32: =IFERROR(_xlfn.IFS(F32="Add",1,F32="No Effect",0,F32="Subtract",-1),0) -> 0
A33: 1 | H33: =IFERROR(_xlfn.IFS(F33="Add",1,F33="No Effect",0,F33="Subtract",-1),0) -> 0
A34: 1 | H34: =IFERROR(_xlfn.IFS(F34="Add",1,F34="No Effect",0,F34="Subtract",-1),0) -> 0
A35: 1 | H35: =IFERROR(_xlfn.IFS(F35="Add",1,F35="No Effect",0,F35="Subtract",-1),0) -> 0
A36: 1 | H36: =IFERROR(_xlfn.IFS(F36="Add",1,F36="No Effect",0,F36="Subtract",-1),0) -> 0
A37: 1 | H37: =IFERROR(_xlfn.IFS(F37="Add",1,F37="No Effect",0,F37="Subtract",-1),0) -> 0
A39: =LEFT(A6,1)+1&". Unit Costs & Cost Allocation" -> 8. Unit Costs & Cost Allocation
B41: a | C41: Unit costs and cost allocation
G42: Unit Costs
E43: Equipment Type | F43: Action/Driver | G43: Equipment cost | J43: Installation cost | M43: Allocation to SCS | N43: Overheads rate | R43: Allocation to SCS
G44: Basis | H44: Apply Non-Labour Real Price Change? | I44: Unit Rate | J44: Basis | K44: Apply Labour Real Price Change? | L44: Unit Rate | R44: Previous Value
E45: Access Points | F45: Growth | G45: =Basis_Capex -> 2018-12-01 | H45: Yes | I45: 8000 | J45: =Basis_Capex -> 2018-12-01 | K45: Yes | L45: 800 | M45: 0 | N45: 0.05 | R45: 0
E46: Relays | F46: Growth | G46: 2018-12-01 | H46: No | I46: 1500 | J46: 2018-12-01 | K46: No | L46: 800 | M46: 0 | N46: 0.05 | R46: 0
E47: Antennas | F47: Growth | G47: 2018-12-01 | H47: No | I47: 60 | J47: 2018-12-01 | K47: No | L47: 60 | M47: 0 | N47: 0.05 | R47: 0
E48: Batteries | F48: Growth | G48: 2018-12-01 | H48: No | I48: 800 | J48: 2018-12-01 | K48: No | L48: 800 | M48: 0 | N48: 0.05 | R48: 0
E49: Access Points | F49: Replacements - faults and failures | G49: 2018-12-01 | H49: No | I49: 8000 | J49: 2018-12-01 | K49: No | L49: 800 | M49: 0 | N49: 0.05 | R49: 0
E50: Batteries | F50: Replacements - faults and failures | G50: 2018-12-01 | H50: No | I50: 800 | J50: 2018-12-01 | K50: No | L50: 800 | M50: 0 | N50: 0.05 | R50: 0
G51: 2018-12-01 | J51: 2018-12-01
G52: 2018-12-01 | J52: 2018-12-01
G53: 2018-12-01 | J53: 2018-12-01
G54: 2018-12-01 | J54: 2018-12-01
G55: 2018-12-01 | J55: 2018-12-01
G56: 2018-12-01 | J56: 2018-12-01
G57: 2018-12-01 | J57: 2018-12-01
G58: 2018-12-01 | J58: 2018-12-01
G59: 2018-12-01 | J59: 2018-12-01
G60: 2018-12-01 | J60: 2018-12-01
G61: 2018-12-01 | J61: 2018-12-01
G62: 2018-12-01 | J62: 2018-12-01
G63: 2018-12-01 | J63: 2018-12-01
G64: 2018-12-01 | J64: 2018-12-01
B67: b | C67: Project Costs - Comms
E69: Project Name | G69: SCS Allocation | H69: Labour Cost Escalation | I69: Non-Labour Cost Escalation | J69: Labour Cost Weighting | K69: Overheads | Q69: Labour Cost Escalation | R69: Non-Labour Cost Escalation
E70: Project Management - replacement program | G70: 0 | H70: Yes | I70: Yes | J70: 0.6 | K70: 0.05 | Q70: =IF(H70="Yes",1,0) -> 1 | R70: =IF(I70="Yes",1,0) -> 1
E71: Project 2 | G71: 0 | H71: No | I71: No | J71: 0 | K71: 0 | Q71: 0 | R71: 0
E72: Project 3 | G72: 0 | H72: No | I72: No | J72: 0 | K72: 0 | Q72: 0 | R72: 0
E73: Project 4 | G73: 0 | H73: No | I73: No | J73: 0 | K73: 0 | Q73: 0 | R73: 0
E74: Project 5 | G74: 0 | H74: No | I74: No | J74: 0 | K74: 0 | Q74: 0 | R74: 0
E75: Project 6 | G75: 0 | H75: No | I75: No | J75: 0 | K75: 0 | Q75: 0 | R75: 0
E76: Project 7 | G76: 0 | H76: No | I76: No | J76: 0 | K76: 0 | Q76: 0 | R76: 0
E77: Project 8 | G77: 0 | H77: No | I77: No | J77: 0 | K77: 0 | Q77: 0 | R77: 0
E78: Project 9 | G78: 0 | H78: No | I78: No | J78: 0 | K78: 0 | Q78: 0 | R78: 0
E79: Project 10 | G79: 0 | H79: No | I79: No | J79: 0 | K79: 0 | Q79: 0 | R79: 0
M81: Forecast RP
E82: Project Name | G82: Units | H82: Basis | J82: =(LEFT(K82,4)-1&IF(MID(K82,5,1)="","","-"&TEXT(MOD(MID(K82,6,2)-1,100),"00"))) -> 2017-18 | K82: =(LEFT(L82,4)-1&IF(MID(L82,5,1)="","","-"&TEXT(MOD(MID(L82,6,2)-1,100),"00"))) -> 2018-19 | L82: =(LEFT(M82,4)-1&IF(MID(M82,5,1)="","","-"&TEXT(MOD(MID(M82,6,2)-1,100),"00"))) -> 2019-20 | M82: =FPFirstYear -> 2020-21 | N82: =(LEFT(M82,4)+1&IF(MID(M82,5,1)="","","-"&TEXT(MOD(MID(M82,6,2)+1,100),"00"))) -> 2021-22 | O82: =(LEFT(N82,4)+1&IF(MID(N82,5,1)="","","-"&TEXT(MOD(MID(N82,6,2)+1,100),"00"))) -> 2022-23 | P82: =(LEFT(O82,4)+1&IF(MID(O82,5,1)="","","-"&TEXT(MOD(MID(O82,6,2)+1,100),"00"))) -> 2023-24 | Q82: =(LEFT(P82,4)+1&IF(MID(P82,5,1)="","","-"&TEXT(MOD(MID(P82,6,2)+1,100),"00"))) -> 2024-25
E83: =E70 -> Project Management - replacement program | G83: $dollars | H83: =Basis_Capex -> 2018-12-01 | M83: 100000 | N83: 100000 | O83: 100000 | P83: 100000 | Q83: 100000
E84: =E71 -> Project 2 | G84: =$G$83 -> $dollars | H84: 2018-12-01
E85: Project 3 | G85: $dollars | H85: 2018-12-01
E86: Project 4 | G86: $dollars | H86: 2018-12-01
E87: Project 5 | G87: $dollars | H87: 2018-12-01
E88: Project 6 | G88: $dollars | H88: 2018-12-01
E89: Project 7 | G89: $dollars | H89: 2018-12-01
E90: Project 8 | G90: $dollars | H90: 2018-12-01
E91: Project 9 | G91: $dollars | H91: 2018-12-01
E92: Project 10 | G92: $dollars | H92: 2018-12-01
J93: =SUM(J83:J92) -> 0 | K93: =SUM(K83:K92) -> 0 | L93: =SUM(L83:L92) -> 0 | M93: =SUM(M83:M92) -> 100000 | N93: =SUM(N83:N92) -> 100000 | O93: =SUM(O83:O92) -> 100000 | P93: =SUM(P83:P92) -> 100000 | Q93: =SUM(Q83:Q92) -> 100000 | R93: =SUM(J93:Q93) -> 500000
B95: c | C95: Project Costs - IT
E96: Project Name | G96: SCS Allocation | H96: Labour Cost Escalation | I96: Non-Labour Cost Escalation | J96: Labour Cost Weighting | K96: Overheads | Q96: Labour Cost Escalation | R96: Non-Labour Cost Escalation
E97: Upgrade IT application X | G97: 0 | H97: Yes | I97: Yes | J97: 0.6 | K97: 0 | Q97: =IF(H97="Yes",1,0) -> 1 | R97: =IF(I97="Yes",1,0) -> 1
E98: EOL replacement for IT system X | G98: 0.1 | H98: No | I98: No | J98: 0.3 | K98: 0 | Q98: 0 | R98: 0
E99: Project 3 | G99: 0 | H99: No | I99: No | J99: 0 | K99: 0 | Q99: 0 | R99: 0
E100: Project 4 | G100: 0 | H100: No | I100: No | J100: 0 | K100: 0 | Q100: 0 | R100: 0
E101: Project 5 | G101: 0 | H101: No | I101: No | J101: 0 | K101: 0 | Q101: 0 | R101: 0
E102: Project 6 | G102: 0 | H102: No | I102: No | J102: 0 | K102: 0 | Q102: 0 | R102: 0
E103: Project 7 | G103: 0 | H103: No | I103: No | J103: 0 | K103: 0 | Q103: 0 | R103: 0
E104: Project 8 | G104: 0 | H104: No | I104: No | J104: 0 | K104: 0 | Q104: 0 | R104: 0
E105: Project 9 | G105: 0 | H105: No | I105: No | J105: 0 | K105: 0 | Q105: 0 | R105: 0
E106: Project 10 | G106: 0 | H106: No | I106: No | J106: 0 | K106: 0 | Q106: 0 | R106: 0
M108: Forecast RP
E109: Project Name | G109: Units | H109: Basis | J109: =J$82 -> 2017-18 | K109: =K$82 -> 2018-19 | L109: =L$82 -> 2019-20 | M109: =M$82 -> 2020-21 | N109: =N$82 -> 2021-22 | O109: =O$82 -> 2022-23 | P109: =P$82 -> 2023-24 | Q109: =Q$82 -> 2024-25
E110: =E97 -> Upgrade IT application X | G110: $dollars | H110: =Basis_Capex -> 2018-12-01 | M110: 150000
E111: =E98 -> EOL replacement for IT system X | G111: =$G$110 -> $dollars | H111: 2018-12-01 | O111: 300000 | P111: 50000
E112: Project 3 | G112: $dollars | H112: 2018-12-01
E113: Project 4 | G113: $dollars | H113: 2018-12-01
E114: Project 5 | G114: $dollars | H114: 2018-12-01
E115: Project 6 | G115: $dollars | H115: 2018-12-01
E116: Project 7 | G116: $dollars | H116: 2018-12-01
E117: Project 8 | G117: $dollars | H117: 2018-12-01
E118: Project 9 | G118: $dollars | H118: 2018-12-01
E119: Project 10 | G119: $dollars | H119: 2018-12-01
J120: =SUM(J110:J119) -> 0 | K120: =SUM(K110:K119) -> 0 | L120: 0 | M120: 150000 | N120: 0 | O120: 300000 | P120: 50000 | Q120: 0 | R120: =SUM(J120:Q120) -> 500000
B122: d | C122: Other 1 | M122: Forecast RP
E123: Project Name | F123: SCS Allocation | G123: Units | H123: Basis | J123: =J$82 -> 2017-18 | K123: =K$82 -> 2018-19 | L123: =L$82 -> 2019-20 | M123: 2020-21 | N123: 2021-22 | O123: 2022-23 | P123: 2023-24 | Q123: 2024-25 | R123: Overheads
E124: Project 1 | F124: 0 | G124: $dollars | H124: =Basis_Capex -> 2018-12-01 | M124: 20000 | O124: 25000 | R124: 0
E125: Project 2 | F125: 0 | G125: =$G$124 -> $dollars | H125: 2018-12-01 | R125: 0
E126: Project 3 | F126: 0 | G126: =$G$124 -> $dollars | H126: 2018-12-01 | P126: 10000 | R126: 0.05
E127: Project 4 | F127: 0 | G127: $dollars | H127: 2018-12-01 | R127: 0
J128: =SUM(J124:J127) -> 0 | K128: =SUM(K124:K127) -> 0 | L128: =SUM(L124:L127) -> 0 | M128: =SUM(M124:M127) -> 20000 | N128: =SUM(N124:N127) -> 0 | O128: =SUM(O124:O127) -> 25000 | P128: =SUM(P124:P127) -> 10000 | Q128: =SUM(Q124:Q127) -> 0 | R128: =SUM(J128:Q128) -> 55000
B129: e | C129: Other 2
E130: Project Name | F130: SCS Allocation | G130: Units | H130: Basis | J130: =J$82 -> 2017-18 | K130: =K$82 -> 2018-19 | L130: =L$82 -> 2019-20 | M130: 2020-21 | N130: 2021-22 | O130: 2022-23 | P130: 2023-24 | Q130: 2024-25 | R130: Overheads
E131: Project 1 | F131: 0 | G131: $dollars | H131: =Basis_Capex -> 2018-12-01 | M131: 15000 | N131: 16000 | O131: 16000 | P131: 17000 | Q131: 18000 | R131: 0
E132: Project 2 | F132: 0 | G132: =$G$131 -> $dollars | H132: 2018-12-01 | R132: 0
E133: Project 3 | F133: 0 | G133: =$G$131 -> $dollars | H133: 2018-12-01 | R133: 0
E134: Project 4 | F134: 0 | G134: $dollars | H134: 2018-12-01 | R134: 0
J135: =SUM(J131:J134) -> 0 | K135: =SUM(K131:K134) -> 0 | L135: 0 | M135: 15000 | N135: 16000 | O135: 16000 | P135: 17000 | Q135: 18000 | R135: =SUM(J135:Q135) -> 82000
B136: f | C136: Other 3
E137: Project Name | F137: SCS Allocation | G137: Units | H137: Basis | J137: =J$82 -> 2017-18 | K137: =K$82 -> 2018-19 | L137: =L$82 -> 2019-20 | M137: 2020-21 | N137: 2021-22 | O137: 2022-23 | P137: 2023-24 | Q137: 2024-25 | R137: Overheads
E138: Project 1 | F138: 0 | G138: $dollars | H138: =Basis_Capex -> 2018-12-01 | R138: 0
E139: Project 2 | F139: 0.02 | G139: =$G$138 -> $dollars | H139: 2018-12-01 | O139: 23500 | P139: 50000 | Q139: 23500 | R139: 0.05
E140: Project 3 | F140: 0 | G140: =$G$138 -> $dollars | H140: 2018-12-01 | R140: 0
E141: Project 4 | F141: 0 | G141: $dollars | H141: 2018-12-01 | R141: 0
J142: =SUM(J138:J141) -> 0 | K142: =SUM(K138:K141) -> 0 | L142: =SUM(L138:L141) -> 0 | M142: =SUM(M138:M141) -> 0 | N142: =SUM(N138:N141) -> 0 | O142: =SUM(O138:O141) -> 23500 | P142: =SUM(P138:P141) -> 50000 | Q142: =SUM(Q138:Q141) -> 23500 | R142: =SUM(J142:Q142) -> 97000
B143: g | C143: Other 4
E144: Project Name | F144: SCS Allocation | G144: Units | H144: Basis | J144: =J$82 -> 2017-18 | K144: =K$82 -> 2018-19 | L144: =L$82 -> 2019-20 | M144: 2020-21 | N144: 2021-22 | O144: 2022-23 | P144: 2023-24 | Q144: 2024-25 | R144: Overheads
E145: Project 1 | F145: 0 | G145: $000 | H145: =Basis_Capex -> 2018-12-01 | O145: 15 | R145: 0
E146: Project 2 | F146: 0.03 | G146: =$G$145 -> $000 | H146: 2018-12-01 | P146: 30 | R146: 0
E147: Project 3 | F147: 0 | G147: =$G$145 -> $000 | H147: 2018-12-01 | Q147: 30 | R147: 0.05
E148: Project 4 | F148: 0 | G148: $000 | H148: 2018-12-01 | R148: 0
J149: =SUM(J145:J148) -> 0 | K149: =SUM(K145:K148) -> 0 | L149: =SUM(L145:L148) -> 0 | M149: =SUM(M145:M148) -> 0 | N149: =SUM(N145:N148) -> 0 | O149: =SUM(O145:O148) -> 15 | P149: =SUM(P145:P148) -> 30 | Q149: =SUM(Q145:Q148) -> 30 | R149: =SUM(J149:Q149) -> 75
R151: =SUM(R149,R142,R135,R128,R120,R93) -> 1234075
A153: =LEFT(A39,1)+1&". Base Population" -> 9. Base Population
B155: a | C155: Population | G155: Base
E156: Equipment Type | F156: Units | G156: =Capex_BaseYear -> 2018-19
D157: 1 | E157: =E11 -> Access Points | F157: No. | G157: 100
D158: 2 | E158: Relays | F158: No. | G158: 500
D159: 3 | E159: Antennas | F159: No. | G159: 800
D160: 4 | E160: Batteries | F160: No. | G160: 600
D161: 5 | E161: Modems | F161: No. | G161: 800
D162: 6 | E162: 0 | F162: No.
D163: 7 | E163: 0 | F163: No.
D164: 8 | E164: 0 | F164: No.
D165: 9 | E165: 0 | F165: No.
D166: 10 | E166: 0 | F166: No.
D167: 11 | E167: 0 | F167: No.
D168: 12 | E168: 0 | F168: No.
D169: 13 | E169: 0 | F169: No.
D170: 14 | E170: 0 | F170: No.
D171: 15 | E171: 0 | F171: No.
A173: =LEFT(A153,1)+1&". Forecast Volumes" -> 10. Forecast Volumes
B175: a | C175: Inputs | J175: =IF(J176=Capex_BaseYear,"Base Year","") ->  | K175: =IF(K176=Capex_BaseYear,"Base Year","") -> Base Year | L175: =IF(L176=Capex_BaseYear,"Base Year","") ->  | M175: Forecast RP
E176: Equipment Type | F176: Action/Driver | G176: Volume basis | H176: Volume factor | J176: =J$82 -> 2017-18 | K176: =K$82 -> 2018-19 | L176: =L$82 -> 2019-20 | M176: 2020-21 | N176: 2021-22 | O176: 2022-23 | P176: 2023-24 | Q176: 2024-25
E177: =ICC_AllocFields -> Access Points | F177: Growth | G177: Proportionate to meter population | H177: =1/100000 -> 1e-05 | I177: =IF(AND(G177<>"Enter annual volume",G177<>""),"Auto-Calculated in next table","") -> Auto-Calculated in next table | M177: 5 | N177: 5 | O177: 5 | P177: 5 | Q177: 5
E178: Relays | F178: Growth | G178: Enter annual volume | I178: =IF(AND(G178<>"Enter annual volume",G178<>""),"Auto-Calculated in next table","") ->  | K178: 0 | L178: 0 | M178: 15 | N178: 15 | O178: 15 | P178: 15 | Q178: 15
E179: Antennas | F179: Growth | G179: Enter annual volume | M179: 20 | N179: 20 | O179: 20 | P179: 20 | Q179: 20
E180: Batteries | F180: Growth | G180: Enter annual volume | K180: 0 | L180: 0 | M180: 100 | N180: 100 | O180: 100 | P180: 100 | Q180: 100
E181: Access Points | F181: Replacements - faults and failures | G181: Proportionate to population of equipment type | H181: 0.05 | I181: Auto-Calculated in next table | M181: 380.5 | N181: 380.5
E182: Batteries | F182: Replacements - faults and failures | G182: Proportionate to population of equipment type | H182: 0.03 | I182: Auto-Calculated in next table | L182: 3.45 | M182: 3.555091975 | N182: 3.832571538 | O182: 4.063659615 | P182: 4.305728785 | Q182: 4.574980926
E183: 0 | F183: 0
E184: 0 | F184: 0
E185: 0 | F185: 0
E186: 0 | F186: 0
E187: 0 | F187: 0
E188: 0 | F188: 0
E189: 0 | F189: 0
E190: 0 | F190: 0
E191: 0 | F191: 0
E192: 0 | F192: 0
E193: 0 | F193: 0
E194: 0 | F194: 0
E195: 0 | F195: 0
E196: 0 | F196: 0
B198: b | C198: Auto-filled tables
C200: i | D200: Inputs and Options | M200: Forecast RP
E201: Equipment Type | F201: Action/Driver | G201: Volume basis | H201: Volume factor | J201: =J$82 -> 2017-18 | K201: =K$82 -> 2018-19 | L201: =L$82 -> 2019-20 | M201: 2020-21 | N201: 2021-22 | O201: 2022-23 | P201: 2023-24 | Q201: 2024-25
E202: =ICC_AllocFields -> Access Points | F202: Growth | G202: =G177 -> Proportionate to meter population | H202: =IFERROR(IF(G202="Enter annual volume","N/A",H177),"") -> 1e-05 | K202: =IF($G202="Proportionate to meter population",$H202*'Input | Meters Vols & Costs'!P$427, IF($G202="Proportionate to population of equipment type",$H202*INDEX(J$248:J$262,MATCH($E202,$E$157:$E$171,0)),K177)) -> 4.1565 | L202: =IF($G202="Proportionate to meter population",$H202*'Input | Meters Vols & Costs'!Q$427, IF($G202="Proportionate to population of equipment type",$H202*INDEX(K$248:K$262,MATCH($E202,$E$157:$E$171,0)),L177)) -> 4.2065 | M202: =IF($G202="Proportionate to meter population",$H202*'Input | Meters Vols & Costs'!R$427, IF($G202="Proportionate to population of equipment type",$H202*INDEX(L$248:L$262,MATCH($E202,$E$157:$E$171,0)),M177)) -> 4.2565 | N202: =IF($G202="Proportionate to meter population",$H202*'Input | Meters Vols & Costs'!S$427, IF($G202="Proportionate to population of equipment type",$H202*INDEX(M$248:M$262,MATCH($E202,$E$157:$E$171,0)),N177)) -> 4.312 | O202: =IF($G202="Proportionate to meter population",$H202*'Input | Meters Vols & Costs'!T$427, IF($G202="Proportionate to population of equipment type",$H202*INDEX(N$248:N$262,MATCH($E202,$E$157:$E$171,0)),O177)) -> 4.372 | P202: =IF($G202="Proportionate to meter population",$H202*'Input | Meters Vols & Costs'!U$427, IF($G202="Proportionate to population of equipment type",$H202*INDEX(O$248:O$262,MATCH($E202,$E$157:$E$171,0)),P177)) -> 4.432 | Q202: =IF($G202="Proportionate to meter population",$H202*'Input | Meters Vols & Costs'!V$427, IF($G202="Proportionate to population of equipment type",$H202*INDEX(P$248:P$262,MATCH($E202,$E$157:$E$171,0)),Q177)) -> 4.432
E203: Relays | F203: Growth | G203: Enter annual volume | H203: N/A | K203: =IF($G203="Proportionate to meter population",$H203*'Input | Meters Vols & Costs'!P$427, IF($G203="Proportionate to population of equipment type",$H203*INDEX(J$248:J$262,MATCH($E203,$E$157:$E$171,0)),K178)) -> 0 | L203: =IF($G203="Proportionate to meter population",$H203*'Input | Meters Vols & Costs'!Q$427, IF($G203="Proportionate to population of equipment type",$H203*INDEX(K$248:K$262,MATCH($E203,$E$157:$E$171,0)),L178)) -> 0 | M203: =IF($G203="Proportionate to meter population",$H203*'Input | Meters Vols & Costs'!R$427, IF($G203="Proportionate to population of equipment type",$H203*INDEX(L$248:L$262,MATCH($E203,$E$157:$E$171,0)),M178)) -> 15 | N203: =IF($G203="Proportionate to meter population",$H203*'Input | Meters Vols & Costs'!S$427, IF($G203="Proportionate to population of equipment type",$H203*INDEX(M$248:M$262,MATCH($E203,$E$157:$E$171,0)),N178)) -> 15 | O203: =IF($G203="Proportionate to meter population",$H203*'Input | Meters Vols & Costs'!T$427, IF($G203="Proportionate to population of equipment type",$H203*INDEX(N$248:N$262,MATCH($E203,$E$157:$E$171,0)),O178)) -> 15 | P203: =IF($G203="Proportionate to meter population",$H203*'Input | Meters Vols & Costs'!U$427, IF($G203="Proportionate to population of equipment type",$H203*INDEX(O$248:O$262,MATCH($E203,$E$157:$E$171,0)),P178)) -> 15 | Q203: =IF($G203="Proportionate to meter population",$H203*'Input | Meters Vols & Costs'!V$427, IF($G203="Proportionate to population of equipment type",$H203*INDEX(P$248:P$262,MATCH($E203,$E$157:$E$171,0)),Q178)) -> 15
E204: Antennas | F204: Growth | G204: Enter annual volume | H204: N/A | K204: =IF($G204="Proportionate to meter population",$H204*'Input | Meters Vols & Costs'!P$427, IF($G204="Proportionate to population of equipment type",$H204*INDEX(J$248:J$262,MATCH($E204,$E$157:$E$171,0)),K179)) -> 0 | L204: =IF($G204="Proportionate to meter population",$H204*'Input | Meters Vols & Costs'!Q$427, IF($G204="Proportionate to population of equipment type",$H204*INDEX(K$248:K$262,MATCH($E204,$E$157:$E$171,0)),L179)) -> 0 | M204: =IF($G204="Proportionate to meter population",$H204*'Input | Meters Vols & Costs'!R$427, IF($G204="Proportionate to population of equipment type",$H204*INDEX(L$248:L$262,MATCH($E204,$E$157:$E$171,0)),M179)) -> 20 | N204: =IF($G204="Proportionate to meter population",$H204*'Input | Meters Vols & Costs'!S$427, IF($G204="Proportionate to population of equipment type",$H204*INDEX(M$248:M$262,MATCH($E204,$E$157:$E$171,0)),N179)) -> 20 | O204: =IF($G204="Proportionate to meter population",$H204*'Input | Meters Vols & Costs'!T$427, IF($G204="Proportionate to population of equipment type",$H204*INDEX(N$248:N$262,MATCH($E204,$E$157:$E$171,0)),O179)) -> 20 | P204: =IF($G204="Proportionate to meter population",$H204*'Input | Meters Vols & Costs'!U$427, IF($G204="Proportionate to population of equipment type",$H204*INDEX(O$248:O$262,MATCH($E204,$E$157:$E$171,0)),P179)) -> 20 | Q204: =IF($G204="Proportionate to meter population",$H204*'Input | Meters Vols & Costs'!V$427, IF($G204="Proportionate to population of equipment type",$H204*INDEX(P$248:P$262,MATCH($E204,$E$157:$E$171,0)),Q179)) -> 20
E205: Batteries | F205: Growth | G205: Enter annual volume | H205: N/A | K205: =IF($G205="Proportionate to meter population",$H205*'Input | Meters Vols & Costs'!P$427, IF($G205="Proportionate to population of equipment type",$H205*INDEX(J$248:J$262,MATCH($E205,$E$157:$E$171,0)),K180)) -> 0 | L205: =IF($G205="Proportionate to meter population",$H205*'Input | Meters Vols & Costs'!Q$427, IF($G205="Proportionate to population of equipment type",$H205*INDEX(K$248:K$262,MATCH($E205,$E$157:$E$171,0)),L180)) -> 0 | M205: =IF($G205="Proportionate to meter population",$H205*'Input | Meters Vols & Costs'!R$427, IF($G205="Proportionate to population of equipment type",$H205*INDEX(L$248:L$262,MATCH($E205,$E$157:$E$171,0)),M180)) -> 100 | N205: =IF($G205="Proportionate to meter population",$H205*'Input | Meters Vols & Costs'!S$427, IF($G205="Proportionate to population of equipment type",$H205*INDEX(M$248:M$262,MATCH($E205,$E$157:$E$171,0)),N180)) -> 100 | O205: =IF($G205="Proportionate to meter population",$H205*'Input | Meters Vols & Costs'!T$427, IF($G205="Proportionate to population of equipment type",$H205*INDEX(N$248:N$262,MATCH($E205,$E$157:$E$171,0)),O180)) -> 100 | P205: =IF($G205="Proportionate to meter population",$H205*'Input | Meters Vols & Costs'!U$427, IF($G205="Proportionate to population of equipment type",$H205*INDEX(O$248:O$262,MATCH($E205,$E$157:$E$171,0)),P180)) -> 100 | Q205: =IF($G205="Proportionate to meter population",$H205*'Input | Meters Vols & Costs'!V$427, IF($G205="Proportionate to population of equipment type",$H205*INDEX(P$248:P$262,MATCH($E205,$E$157:$E$171,0)),Q180)) -> 100
E206: Access Points | F206: Replacements - faults and failures | G206: Proportionate to population of equipment type | H206: 0.05 | K206: =IF($G206="Proportionate to meter population",$H206*'Input | Meters Vols & Costs'!P$427, IF($G206="Proportionate to population of equipment type",$H206*INDEX(J$248:J$262,MATCH($E206,$E$157:$E$171,0)),K181)) -> 0 | L206: =IF($G206="Proportionate to meter population",$H206*'Input | Meters Vols & Costs'!Q$427, IF($G206="Proportionate to population of equipment type",$H206*INDEX(K$248:K$262,MATCH($E206,$E$157:$E$171,0)),L181)) -> 5 | M206: =IF($G206="Proportionate to meter population",$H206*'Input | Meters Vols & Costs'!R$427, IF($G206="Proportionate to population of equipment type",$H206*INDEX(L$248:L$262,MATCH($E206,$E$157:$E$171,0)),M181)) -> 5.25 | N206: =IF($G206="Proportionate to meter population",$H206*'Input | Meters Vols & Costs'!S$427, IF($G206="Proportionate to population of equipment type",$H206*INDEX(M$248:M$262,MATCH($E206,$E$157:$E$171,0)),N181)) -> 5.5 | O206: =IF($G206="Proportionate to meter population",$H206*'Input | Meters Vols & Costs'!T$427, IF($G206="Proportionate to population of equipment type",$H206*INDEX(N$248:N$262,MATCH($E206,$E$157:$E$171,0)),O181)) -> 5.75 | P206: =IF($G206="Proportionate to meter population",$H206*'Input | Meters Vols & Costs'!U$427, IF($G206="Proportionate to population of equipment type",$H206*INDEX(O$248:O$262,MATCH($E206,$E$157:$E$171,0)),P181)) -> 6 | Q206: =IF($G206="Proportionate to meter population",$H206*'Input | Meters Vols & Costs'!V$427, IF($G206="Proportionate to population of equipment type",$H206*INDEX(P$248:P$262,MATCH($E206,$E$157:$E$171,0)),Q181)) -> 6.25
E207: Batteries | F207: Replacements - faults and failures | G207: Proportionate to population of equipment type | H207: 0.03 | K207: =IF($G207="Proportionate to meter population",$H207*'Input | Meters Vols & Costs'!P$427, IF($G207="Proportionate to population of equipment type",$H207*INDEX(J$248:J$262,MATCH($E207,$E$157:$E$171,0)),K182)) -> 0 | L207: =IF($G207="Proportionate to meter population",$H207*'Input | Meters Vols & Costs'!Q$427, IF($G207="Proportionate to population of equipment type",$H207*INDEX(K$248:K$262,MATCH($E207,$E$157:$E$171,0)),L182)) -> 18 | M207: =IF($G207="Proportionate to meter population",$H207*'Input | Meters Vols & Costs'!R$427, IF($G207="Proportionate to population of equipment type",$H207*INDEX(L$248:L$262,MATCH($E207,$E$157:$E$171,0)),M182)) -> 18 | N207: =IF($G207="Proportionate to meter population",$H207*'Input | Meters Vols & Costs'!S$427, IF($G207="Proportionate to population of equipment type",$H207*INDEX(M$248:M$262,MATCH($E207,$E$157:$E$171,0)),N182)) -> 21 | O207: =IF($G207="Proportionate to meter population",$H207*'Input | Meters Vols & Costs'!T$427, IF($G207="Proportionate to population of equipment type",$H207*INDEX(N$248:N$262,MATCH($E207,$E$157:$E$171,0)),O182)) -> 24 | P207: =IF($G207="Proportionate to meter population",$H207*'Input | Meters Vols & Costs'!U$427, IF($G207="Proportionate to population of equipment type",$H207*INDEX(O$248:O$262,MATCH($E207,$E$157:$E$171,0)),P182)) -> 27 | Q207: =IF($G207="Proportionate to meter population",$H207*'Input | Meters Vols & Costs'!V$427, IF($G207="Proportionate to population of equipment type",$H207*INDEX(P$248:P$262,MATCH($E207,$E$157:$E$171,0)),Q182)) -> 30
E208: 0 | F208: 0 | G208: 0 | H208: 0 | K208: =IF($G208="Proportionate to meter population",$H208*'Input | Meters Vols & Costs'!P$427, IF($G208="Proportionate to population of equipment type",$H208*INDEX(J$248:J$262,MATCH($E208,$E$157:$E$171,0)),K183)) -> 0 | L208: =IF($G208="Proportionate to meter population",$H208*'Input | Meters Vols & Costs'!Q$427, IF($G208="Proportionate to population of equipment type",$H208*INDEX(K$248:K$262,MATCH($E208,$E$157:$E$171,0)),L183)) -> 0 | M208: =IF($G208="Proportionate to meter population",$H208*'Input | Meters Vols & Costs'!R$427, IF($G208="Proportionate to population of equipment type",$H208*INDEX(L$248:L$262,MATCH($E208,$E$157:$E$171,0)),M183)) -> 0 | N208: =IF($G208="Proportionate to meter population",$H208*'Input | Meters Vols & Costs'!S$427, IF($G208="Proportionate to population of equipment type",$H208*INDEX(M$248:M$262,MATCH($E208,$E$157:$E$171,0)),N183)) -> 0 | O208: =IF($G208="Proportionate to meter population",$H208*'Input | Meters Vols & Costs'!T$427, IF($G208="Proportionate to population of equipment type",$H208*INDEX(N$248:N$262,MATCH($E208,$E$157:$E$171,0)),O183)) -> 0 | P208: =IF($G208="Proportionate to meter population",$H208*'Input | Meters Vols & Costs'!U$427, IF($G208="Proportionate to population of equipment type",$H208*INDEX(O$248:O$262,MATCH($E208,$E$157:$E$171,0)),P183)) -> 0 | Q208: =IF($G208="Proportionate to meter population",$H208*'Input | Meters Vols & Costs'!V$427, IF($G208="Proportionate to population of equipment type",$H208*INDEX(P$248:P$262,MATCH($E208,$E$157:$E$171,0)),Q183)) -> 0
E209: 0 | F209: 0 | G209: 0 | H209: 0 | K209: =IF($G209="Proportionate to meter population",$H209*'Input | Meters Vols & Costs'!P$427, IF($G209="Proportionate to population of equipment type",$H209*INDEX(J$248:J$262,MATCH($E209,$E$157:$E$171,0)),K184)) -> 0 | L209: =IF($G209="Proportionate to meter population",$H209*'Input | Meters Vols & Costs'!Q$427, IF($G209="Proportionate to population of equipment type",$H209*INDEX(K$248:K$262,MATCH($E209,$E$157:$E$171,0)),L184)) -> 0 | M209: =IF($G209="Proportionate to meter population",$H209*'Input | Meters Vols & Costs'!R$427, IF($G209="Proportionate to population of equipment type",$H209*INDEX(L$248:L$262,MATCH($E209,$E$157:$E$171,0)),M184)) -> 0 | N209: =IF($G209="Proportionate to meter population",$H209*'Input | Meters Vols & Costs'!S$427, IF($G209="Proportionate to population of equipment type",$H209*INDEX(M$248:M$262,MATCH($E209,$E$157:$E$171,0)),N184)) -> 0 | O209: =IF($G209="Proportionate to meter population",$H209*'Input | Meters Vols & Costs'!T$427, IF($G209="Proportionate to population of equipment type",$H209*INDEX(N$248:N$262,MATCH($E209,$E$157:$E$171,0)),O184)) -> 0 | P209: =IF($G209="Proportionate to meter population",$H209*'Input | Meters Vols & Costs'!U$427, IF($G209="Proportionate to population of equipment type",$H209*INDEX(O$248:O$262,MATCH($E209,$E$157:$E$171,0)),P184)) -> 0 | Q209: =IF($G209="Proportionate to meter population",$H209*'Input | Meters Vols & Costs'!V$427, IF($G209="Proportionate to population of equipment type",$H209*INDEX(P$248:P$262,MATCH($E209,$E$157:$E$171,0)),Q184)) -> 0
E210: 0 | F210: 0 | G210: 0 | H210: 0 | K210: =IF($G210="Proportionate to meter population",$H210*'Input | Meters Vols & Costs'!P$427, IF($G210="Proportionate to population of equipment type",$H210*INDEX(J$248:J$262,MATCH($E210,$E$157:$E$171,0)),K185)) -> 0 | L210: =IF($G210="Proportionate to meter population",$H210*'Input | Meters Vols & Costs'!Q$427, IF($G210="Proportionate to population of equipment type",$H210*INDEX(K$248:K$262,MATCH($E210,$E$157:$E$171,0)),L185)) -> 0 | M210: =IF($G210="Proportionate to meter population",$H210*'Input | Meters Vols & Costs'!R$427, IF($G210="Proportionate to population of equipment type",$H210*INDEX(L$248:L$262,MATCH($E210,$E$157:$E$171,0)),M185)) -> 0 | N210: =IF($G210="Proportionate to meter population",$H210*'Input | Meters Vols & Costs'!S$427, IF($G210="Proportionate to population of equipment type",$H210*INDEX(M$248:M$262,MATCH($E210,$E$157:$E$171,0)),N185)) -> 0 | O210: =IF($G210="Proportionate to meter population",$H210*'Input | Meters Vols & Costs'!T$427, IF($G210="Proportionate to population of equipment type",$H210*INDEX(N$248:N$262,MATCH($E210,$E$157:$E$171,0)),O185)) -> 0 | P210: =IF($G210="Proportionate to meter population",$H210*'Input | Meters Vols & Costs'!U$427, IF($G210="Proportionate to population of equipment type",$H210*INDEX(O$248:O$262,MATCH($E210,$E$157:$E$171,0)),P185)) -> 0 | Q210: =IF($G210="Proportionate to meter population",$H210*'Input | Meters Vols & Costs'!V$427, IF($G210="Proportionate to population of equipment type",$H210*INDEX(P$248:P$262,MATCH($E210,$E$157:$E$171,0)),Q185)) -> 0
E211: 0 | F211: 0 | G211: 0 | H211: 0 | K211: =IF($G211="Proportionate to meter population",$H211*'Input | Meters Vols & Costs'!P$427, IF($G211="Proportionate to population of equipment type",$H211*INDEX(J$248:J$262,MATCH($E211,$E$157:$E$171,0)),K186)) -> 0 | L211: =IF($G211="Proportionate to meter population",$H211*'Input | Meters Vols & Costs'!Q$427, IF($G211="Proportionate to population of equipment type",$H211*INDEX(K$248:K$262,MATCH($E211,$E$157:$E$171,0)),L186)) -> 0 | M211: =IF($G211="Proportionate to meter population",$H211*'Input | Meters Vols & Costs'!R$427, IF($G211="Proportionate to population of equipment type",$H211*INDEX(L$248:L$262,MATCH($E211,$E$157:$E$171,0)),M186)) -> 0 | N211: =IF($G211="Proportionate to meter population",$H211*'Input | Meters Vols & Costs'!S$427, IF($G211="Proportionate to population of equipment type",$H211*INDEX(M$248:M$262,MATCH($E211,$E$157:$E$171,0)),N186)) -> 0 | O211: =IF($G211="Proportionate to meter population",$H211*'Input | Meters Vols & Costs'!T$427, IF($G211="Proportionate to population of equipment type",$H211*INDEX(N$248:N$262,MATCH($E211,$E$157:$E$171,0)),O186)) -> 0 | P211: =IF($G211="Proportionate to meter population",$H211*'Input | Meters Vols & Costs'!U$427, IF($G211="Proportionate to population of equipment type",$H211*INDEX(O$248:O$262,MATCH($E211,$E$157:$E$171,0)),P186)) -> 0 | Q211: =IF($G211="Proportionate to meter population",$H211*'Input | Meters Vols & Costs'!V$427, IF($G211="Proportionate to population of equipment type",$H211*INDEX(P$248:P$262,MATCH($E211,$E$157:$E$171,0)),Q186)) -> 0
E212: 0 | F212: 0 | G212: 0 | H212: 0 | K212: =IF($G212="Proportionate to meter population",$H212*'Input | Meters Vols & Costs'!P$427, IF($G212="Proportionate to population of equipment type",$H212*INDEX(J$248:J$262,MATCH($E212,$E$157:$E$171,0)),K187)) -> 0 | L212: =IF($G212="Proportionate to meter population",$H212*'Input | Meters Vols & Costs'!Q$427, IF($G212="Proportionate to population of equipment type",$H212*INDEX(K$248:K$262,MATCH($E212,$E$157:$E$171,0)),L187)) -> 0 | M212: =IF($G212="Proportionate to meter population",$H212*'Input | Meters Vols & Costs'!R$427, IF($G212="Proportionate to population of equipment type",$H212*INDEX(L$248:L$262,MATCH($E212,$E$157:$E$171,0)),M187)) -> 0 | N212: =IF($G212="Proportionate to meter population",$H212*'Input | Meters Vols & Costs'!S$427, IF($G212="Proportionate to population of equipment type",$H212*INDEX(M$248:M$262,MATCH($E212,$E$157:$E$171,0)),N187)) -> 0 | O212: =IF($G212="Proportionate to meter population",$H212*'Input | Meters Vols & Costs'!T$427, IF($G212="Proportionate to population of equipment type",$H212*INDEX(N$248:N$262,MATCH($E212,$E$157:$E$171,0)),O187)) -> 0 | P212: =IF($G212="Proportionate to meter population",$H212*'Input | Meters Vols & Costs'!U$427, IF($G212="Proportionate to population of equipment type",$H212*INDEX(O$248:O$262,MATCH($E212,$E$157:$E$171,0)),P187)) -> 0 | Q212: =IF($G212="Proportionate to meter population",$H212*'Input | Meters Vols & Costs'!V$427, IF($G212="Proportionate to population of equipment type",$H212*INDEX(P$248:P$262,MATCH($E212,$E$157:$E$171,0)),Q187)) -> 0
E213: 0 | F213: 0 | G213: 0 | H213: 0 | K213: =IF($G213="Proportionate to meter population",$H213*'Input | Meters Vols & Costs'!P$427, IF($G213="Proportionate to population of equipment type",$H213*INDEX(J$248:J$262,MATCH($E213,$E$157:$E$171,0)),K188)) -> 0 | L213: =IF($G213="Proportionate to meter population",$H213*'Input | Meters Vols & Costs'!Q$427, IF($G213="Proportionate to population of equipment type",$H213*INDEX(K$248:K$262,MATCH($E213,$E$157:$E$171,0)),L188)) -> 0 | M213: =IF($G213="Proportionate to meter population",$H213*'Input | Meters Vols & Costs'!R$427, IF($G213="Proportionate to population of equipment type",$H213*INDEX(L$248:L$262,MATCH($E213,$E$157:$E$171,0)),M188)) -> 0 | N213: =IF($G213="Proportionate to meter population",$H213*'Input | Meters Vols & Costs'!S$427, IF($G213="Proportionate to population of equipment type",$H213*INDEX(M$248:M$262,MATCH($E213,$E$157:$E$171,0)),N188)) -> 0 | O213: =IF($G213="Proportionate to meter population",$H213*'Input | Meters Vols & Costs'!T$427, IF($G213="Proportionate to population of equipment type",$H213*INDEX(N$248:N$262,MATCH($E213,$E$157:$E$171,0)),O188)) -> 0 | P213: =IF($G213="Proportionate to meter population",$H213*'Input | Meters Vols & Costs'!U$427, IF($G213="Proportionate to population of equipment type",$H213*INDEX(O$248:O$262,MATCH($E213,$E$157:$E$171,0)),P188)) -> 0 | Q213: =IF($G213="Proportionate to meter population",$H213*'Input | Meters Vols & Costs'!V$427, IF($G213="Proportionate to population of equipment type",$H213*INDEX(P$248:P$262,MATCH($E213,$E$157:$E$171,0)),Q188)) -> 0
E214: 0 | F214: 0 | G214: 0 | H214: 0 | K214: =IF($G214="Proportionate to meter population",$H214*'Input | Meters Vols & Costs'!P$427, IF($G214="Proportionate to population of equipment type",$H214*INDEX(J$248:J$262,MATCH($E214,$E$157:$E$171,0)),K189)) -> 0 | L214: =IF($G214="Proportionate to meter population",$H214*'Input | Meters Vols & Costs'!Q$427, IF($G214="Proportionate to population of equipment type",$H214*INDEX(K$248:K$262,MATCH($E214,$E$157:$E$171,0)),L189)) -> 0 | M214: =IF($G214="Proportionate to meter population",$H214*'Input | Meters Vols & Costs'!R$427, IF($G214="Proportionate to population of equipment type",$H214*INDEX(L$248:L$262,MATCH($E214,$E$157:$E$171,0)),M189)) -> 0 | N214: =IF($G214="Proportionate to meter population",$H214*'Input | Meters Vols & Costs'!S$427, IF($G214="Proportionate to population of equipment type",$H214*INDEX(M$248:M$262,MATCH($E214,$E$157:$E$171,0)),N189)) -> 0 | O214: =IF($G214="Proportionate to meter population",$H214*'Input | Meters Vols & Costs'!T$427, IF($G214="Proportionate to population of equipment type",$H214*INDEX(N$248:N$262,MATCH($E214,$E$157:$E$171,0)),O189)) -> 0 | P214: =IF($G214="Proportionate to meter population",$H214*'Input | Meters Vols & Costs'!U$427, IF($G214="Proportionate to population of equipment type",$H214*INDEX(O$248:O$262,MATCH($E214,$E$157:$E$171,0)),P189)) -> 0 | Q214: =IF($G214="Proportionate to meter population",$H214*'Input | Meters Vols & Costs'!V$427, IF($G214="Proportionate to population of equipment type",$H214*INDEX(P$248:P$262,MATCH($E214,$E$157:$E$171,0)),Q189)) -> 0
E215: 0 | F215: 0 | G215: 0 | H215: 0 | K215: =IF($G215="Proportionate to meter population",$H215*'Input | Meters Vols & Costs'!P$427, IF($G215="Proportionate to population of equipment type",$H215*INDEX(J$248:J$262,MATCH($E215,$E$157:$E$171,0)),K190)) -> 0 | L215: =IF($G215="Proportionate to meter population",$H215*'Input | Meters Vols & Costs'!Q$427, IF($G215="Proportionate to population of equipment type",$H215*INDEX(K$248:K$262,MATCH($E215,$E$157:$E$171,0)),L190)) -> 0 | M215: =IF($G215="Proportionate to meter population",$H215*'Input | Meters Vols & Costs'!R$427, IF($G215="Proportionate to population of equipment type",$H215*INDEX(L$248:L$262,MATCH($E215,$E$157:$E$171,0)),M190)) -> 0 | N215: =IF($G215="Proportionate to meter population",$H215*'Input | Meters Vols & Costs'!S$427, IF($G215="Proportionate to population of equipment type",$H215*INDEX(M$248:M$262,MATCH($E215,$E$157:$E$171,0)),N190)) -> 0 | O215: =IF($G215="Proportionate to meter population",$H215*'Input | Meters Vols & Costs'!T$427, IF($G215="Proportionate to population of equipment type",$H215*INDEX(N$248:N$262,MATCH($E215,$E$157:$E$171,0)),O190)) -> 0 | P215: =IF($G215="Proportionate to meter population",$H215*'Input | Meters Vols & Costs'!U$427, IF($G215="Proportionate to population of equipment type",$H215*INDEX(O$248:O$262,MATCH($E215,$E$157:$E$171,0)),P190)) -> 0 | Q215: =IF($G215="Proportionate to meter population",$H215*'Input | Meters Vols & Costs'!V$427, IF($G215="Proportionate to population of equipment type",$H215*INDEX(P$248:P$262,MATCH($E215,$E$157:$E$171,0)),Q190)) -> 0
E216: 0 | F216: 0 | G216: 0 | H216: 0 | K216: =IF($G216="Proportionate to meter population",$H216*'Input | Meters Vols & Costs'!P$427, IF($G216="Proportionate to population of equipment type",$H216*INDEX(J$248:J$262,MATCH($E216,$E$157:$E$171,0)),K191)) -> 0 | L216: =IF($G216="Proportionate to meter population",$H216*'Input | Meters Vols & Costs'!Q$427, IF($G216="Proportionate to population of equipment type",$H216*INDEX(K$248:K$262,MATCH($E216,$E$157:$E$171,0)),L191)) -> 0 | M216: =IF($G216="Proportionate to meter population",$H216*'Input | Meters Vols & Costs'!R$427, IF($G216="Proportionate to population of equipment type",$H216*INDEX(L$248:L$262,MATCH($E216,$E$157:$E$171,0)),M191)) -> 0 | N216: =IF($G216="Proportionate to meter population",$H216*'Input | Meters Vols & Costs'!S$427, IF($G216="Proportionate to population of equipment type",$H216*INDEX(M$248:M$262,MATCH($E216,$E$157:$E$171,0)),N191)) -> 0 | O216: =IF($G216="Proportionate to meter population",$H216*'Input | Meters Vols & Costs'!T$427, IF($G216="Proportionate to population of equipment type",$H216*INDEX(N$248:N$262,MATCH($E216,$E$157:$E$171,0)),O191)) -> 0 | P216: =IF($G216="Proportionate to meter population",$H216*'Input | Meters Vols & Costs'!U$427, IF($G216="Proportionate to population of equipment type",$H216*INDEX(O$248:O$262,MATCH($E216,$E$157:$E$171,0)),P191)) -> 0 | Q216: =IF($G216="Proportionate to meter population",$H216*'Input | Meters Vols & Costs'!V$427, IF($G216="Proportionate to population of equipment type",$H216*INDEX(P$248:P$262,MATCH($E216,$E$157:$E$171,0)),Q191)) -> 0
E217: 0 | F217: 0 | G217: 0 | H217: 0 | K217: =IF($G217="Proportionate to meter population",$H217*'Input | Meters Vols & Costs'!P$427, IF($G217="Proportionate to population of equipment type",$H217*INDEX(J$248:J$262,MATCH($E217,$E$157:$E$171,0)),K192)) -> 0 | L217: =IF($G217="Proportionate to meter population",$H217*'Input | Meters Vols & Costs'!Q$427, IF($G217="Proportionate to population of equipment type",$H217*INDEX(K$248:K$262,MATCH($E217,$E$157:$E$171,0)),L192)) -> 0 | M217: =IF($G217="Proportionate to meter population",$H217*'Input | Meters Vols & Costs'!R$427, IF($G217="Proportionate to population of equipment type",$H217*INDEX(L$248:L$262,MATCH($E217,$E$157:$E$171,0)),M192)) -> 0 | N217: =IF($G217="Proportionate to meter population",$H217*'Input | Meters Vols & Costs'!S$427, IF($G217="Proportionate to population of equipment type",$H217*INDEX(M$248:M$262,MATCH($E217,$E$157:$E$171,0)),N192)) -> 0 | O217: =IF($G217="Proportionate to meter population",$H217*'Input | Meters Vols & Costs'!T$427, IF($G217="Proportionate to population of equipment type",$H217*INDEX(N$248:N$262,MATCH($E217,$E$157:$E$171,0)),O192)) -> 0 | P217: =IF($G217="Proportionate to meter population",$H217*'Input | Meters Vols & Costs'!U$427, IF($G217="Proportionate to population of equipment type",$H217*INDEX(O$248:O$262,MATCH($E217,$E$157:$E$171,0)),P192)) -> 0 | Q217: =IF($G217="Proportionate to meter population",$H217*'Input | Meters Vols & Costs'!V$427, IF($G217="Proportionate to population of equipment type",$H217*INDEX(P$248:P$262,MATCH($E217,$E$157:$E$171,0)),Q192)) -> 0
E218: 0 | F218: 0 | G218: 0 | H218: 0 | K218: =IF($G218="Proportionate to meter population",$H218*'Input | Meters Vols & Costs'!P$427, IF($G218="Proportionate to population of equipment type",$H218*INDEX(J$248:J$262,MATCH($E218,$E$157:$E$171,0)),K193)) -> 0 | L218: =IF($G218="Proportionate to meter population",$H218*'Input | Meters Vols & Costs'!Q$427, IF($G218="Proportionate to population of equipment type",$H218*INDEX(K$248:K$262,MATCH($E218,$E$157:$E$171,0)),L193)) -> 0 | M218: =IF($G218="Proportionate to meter population",$H218*'Input | Meters Vols & Costs'!R$427, IF($G218="Proportionate to population of equipment type",$H218*INDEX(L$248:L$262,MATCH($E218,$E$157:$E$171,0)),M193)) -> 0 | N218: =IF($G218="Proportionate to meter population",$H218*'Input | Meters Vols & Costs'!S$427, IF($G218="Proportionate to population of equipment type",$H218*INDEX(M$248:M$262,MATCH($E218,$E$157:$E$171,0)),N193)) -> 0 | O218: =IF($G218="Proportionate to meter population",$H218*'Input | Meters Vols & Costs'!T$427, IF($G218="Proportionate to population of equipment type",$H218*INDEX(N$248:N$262,MATCH($E218,$E$157:$E$171,0)),O193)) -> 0 | P218: =IF($G218="Proportionate to meter population",$H218*'Input | Meters Vols & Costs'!U$427, IF($G218="Proportionate to population of equipment type",$H218*INDEX(O$248:O$262,MATCH($E218,$E$157:$E$171,0)),P193)) -> 0 | Q218: =IF($G218="Proportionate to meter population",$H218*'Input | Meters Vols & Costs'!V$427, IF($G218="Proportionate to population of equipment type",$H218*INDEX(P$248:P$262,MATCH($E218,$E$157:$E$171,0)),Q193)) -> 0
E219: 0 | F219: 0 | G219: 0 | H219: 0 | K219: =IF($G219="Proportionate to meter population",$H219*'Input | Meters Vols & Costs'!P$427, IF($G219="Proportionate to population of equipment type",$H219*INDEX(J$248:J$262,MATCH($E219,$E$157:$E$171,0)),K194)) -> 0 | L219: =IF($G219="Proportionate to meter population",$H219*'Input | Meters Vols & Costs'!Q$427, IF($G219="Proportionate to population of equipment type",$H219*INDEX(K$248:K$262,MATCH($E219,$E$157:$E$171,0)),L194)) -> 0 | M219: =IF($G219="Proportionate to meter population",$H219*'Input | Meters Vols & Costs'!R$427, IF($G219="Proportionate to population of equipment type",$H219*INDEX(L$248:L$262,MATCH($E219,$E$157:$E$171,0)),M194)) -> 0 | N219: =IF($G219="Proportionate to meter population",$H219*'Input | Meters Vols & Costs'!S$427, IF($G219="Proportionate to population of equipment type",$H219*INDEX(M$248:M$262,MATCH($E219,$E$157:$E$171,0)),N194)) -> 0 | O219: =IF($G219="Proportionate to meter population",$H219*'Input | Meters Vols & Costs'!T$427, IF($G219="Proportionate to population of equipment type",$H219*INDEX(N$248:N$262,MATCH($E219,$E$157:$E$171,0)),O194)) -> 0 | P219: =IF($G219="Proportionate to meter population",$H219*'Input | Meters Vols & Costs'!U$427, IF($G219="Proportionate to population of equipment type",$H219*INDEX(O$248:O$262,MATCH($E219,$E$157:$E$171,0)),P194)) -> 0 | Q219: =IF($G219="Proportionate to meter population",$H219*'Input | Meters Vols & Costs'!V$427, IF($G219="Proportionate to population of equipment type",$H219*INDEX(P$248:P$262,MATCH($E219,$E$157:$E$171,0)),Q194)) -> 0
E220: 0 | F220: 0 | G220: 0 | H220: 0 | K220: =IF($G220="Proportionate to meter population",$H220*'Input | Meters Vols & Costs'!P$427, IF($G220="Proportionate to population of equipment type",$H220*INDEX(J$248:J$262,MATCH($E220,$E$157:$E$171,0)),K195)) -> 0 | L220: =IF($G220="Proportionate to meter population",$H220*'Input | Meters Vols & Costs'!Q$427, IF($G220="Proportionate to population of equipment type",$H220*INDEX(K$248:K$262,MATCH($E220,$E$157:$E$171,0)),L195)) -> 0 | M220: =IF($G220="Proportionate to meter population",$H220*'Input | Meters Vols & Costs'!R$427, IF($G220="Proportionate to population of equipment type",$H220*INDEX(L$248:L$262,MATCH($E220,$E$157:$E$171,0)),M195)) -> 0 | N220: =IF($G220="Proportionate to meter population",$H220*'Input | Meters Vols & Costs'!S$427, IF($G220="Proportionate to population of equipment type",$H220*INDEX(M$248:M$262,MATCH($E220,$E$157:$E$171,0)),N195)) -> 0 | O220: =IF($G220="Proportionate to meter population",$H220*'Input | Meters Vols & Costs'!T$427, IF($G220="Proportionate to population of equipment type",$H220*INDEX(N$248:N$262,MATCH($E220,$E$157:$E$171,0)),O195)) -> 0 | P220: =IF($G220="Proportionate to meter population",$H220*'Input | Meters Vols & Costs'!U$427, IF($G220="Proportionate to population of equipment type",$H220*INDEX(O$248:O$262,MATCH($E220,$E$157:$E$171,0)),P195)) -> 0 | Q220: =IF($G220="Proportionate to meter population",$H220*'Input | Meters Vols & Costs'!V$427, IF($G220="Proportionate to population of equipment type",$H220*INDEX(P$248:P$262,MATCH($E220,$E$157:$E$171,0)),Q195)) -> 0
E221: 0 | F221: 0 | G221: 0 | H221: 0 | K221: =IF($G221="Proportionate to meter population",$H221*'Input | Meters Vols & Costs'!P$427, IF($G221="Proportionate to population of equipment type",$H221*INDEX(J$248:J$262,MATCH($E221,$E$157:$E$171,0)),K196)) -> 0 | L221: =IF($G221="Proportionate to meter population",$H221*'Input | Meters Vols & Costs'!Q$427, IF($G221="Proportionate to population of equipment type",$H221*INDEX(K$248:K$262,MATCH($E221,$E$157:$E$171,0)),L196)) -> 0 | M221: =IF($G221="Proportionate to meter population",$H221*'Input | Meters Vols & Costs'!R$427, IF($G221="Proportionate to population of equipment type",$H221*INDEX(L$248:L$262,MATCH($E221,$E$157:$E$171,0)),M196)) -> 0 | N221: =IF($G221="Proportionate to meter population",$H221*'Input | Meters Vols & Costs'!S$427, IF($G221="Proportionate to population of equipment type",$H221*INDEX(M$248:M$262,MATCH($E221,$E$157:$E$171,0)),N196)) -> 0 | O221: =IF($G221="Proportionate to meter population",$H221*'Input | Meters Vols & Costs'!T$427, IF($G221="Proportionate to population of equipment type",$H221*INDEX(N$248:N$262,MATCH($E221,$E$157:$E$171,0)),O196)) -> 0 | P221: =IF($G221="Proportionate to meter population",$H221*'Input | Meters Vols & Costs'!U$427, IF($G221="Proportionate to population of equipment type",$H221*INDEX(O$248:O$262,MATCH($E221,$E$157:$E$171,0)),P196)) -> 0 | Q221: =IF($G221="Proportionate to meter population",$H221*'Input | Meters Vols & Costs'!V$427, IF($G221="Proportionate to population of equipment type",$H221*INDEX(P$248:P$262,MATCH($E221,$E$157:$E$171,0)),Q196)) -> 0
C223: ii | D223: Impact on Population | M223: Forecast RP
E224: Equipment Type | F224: Action/Driver | G224: Volume basis | H224: Volume factor | J224: =J$82 -> 2017-18 | K224: =K$82 -> 2018-19 | L224: =L$82 -> 2019-20 | M224: 2020-21 | N224: 2021-22 | O224: 2022-23 | P224: 2023-24 | Q224: 2024-25
E225: =ICC_AllocFields -> Access Points | F225: Growth | G225: =G202 -> Proportionate to meter population | H225: 1e-05 | K225: =IFERROR(ROUNDUP(K202*INDEX(ICC_Calc_PopImpact,MATCH($F202,ICC_Action,0)),0),0) -> 5 | L225: 5 | M225: 5 | N225: 5 | O225: 5 | P225: 5 | Q225: 5
E226: Relays | F226: Growth | G226: Enter annual volume | H226: N/A | K226: 0 | L226: 0 | M226: 15 | N226: 15 | O226: 15 | P226: 15 | Q226: 15
E227: Antennas | F227: Growth | G227: Enter annual volume | H227: N/A | K227: 0 | L227: 0 | M227: 20 | N227: 20 | O227: 20 | P227: 20 | Q227: 20
E228: Batteries | F228: Growth | G228: Enter annual volume | H228: N/A | K228: 0 | L228: 0 | M228: 100 | N228: 100 | O228: 100 | P228: 100 | Q228: 100
E229: Access Points | F229: Replacements - faults and failures | G229: Proportionate to population of equipment type | H229: 0.05 | K229: 0 | L229: 0 | M229: 0 | N229: 0 | O229: 0 | P229: 0 | Q229: 0
E230: Batteries | F230: Replacements - faults and failures | G230: Proportionate to population of equipment type | H230: 0.03 | K230: 0 | L230: 0 | M230: 0 | N230: 0 | O230: 0 | P230: 0 | Q230: 0
E231: 0 | F231: 0 | G231: 0 | H231: 0 | K231: 0 | L231: 0 | M231: 0 | N231: 0 | O231: 0 | P231: 0 | Q231: 0
E232: 0 | F232: 0 | G232: 0 | H232: 0 | K232: 0 | L232: 0 | M232: 0 | N232: 0 | O232: 0 | P232: 0 | Q232: 0
E233: 0 | F233: 0 | G233: 0 | H233: 0 | K233: 0 | L233: 0 | M233: 0 | N233: 0 | O233: 0 | P233: 0 | Q233: 0
... 28 more rows

Sheet Calculations >
A1: w

Sheet Calc | Capex Meters
B1: ='Input|General'!B1&" v"&'Input|General'!$D$2 -> AER Metering Opex & Capex Forecasting Model v1.08
B2: =MID(CELL("filename",A1),FIND("]",CELL("filename",A1))+1,255) -> Calc | Capex Meters
A4: =PRODUCT(X48:X49,X89:X90,X110,X151,X163) -> 1 | C4: Sheet Check
B5: Summary: Yearly Meter Costs
C8: a | D8: Meter Costs by Labour/Non-Labour
D10: i | E10: Meters - Labour Component
E11: Unescalated
F12: =I_MeterTypes[[#Headers],[Meter Type]] -> Meter Type | G12: =I_MeterTypes[[#Headers],[RIN Subcategory 1]] -> RIN Subcategory 1 | H12: =I_MeterTypes[[#Headers],[RIN Subcategory 2]] -> RIN Subcategory 2 | I12: =I_MeterTypes[[#Headers],[AER Type]] -> AER Type | J12: =I_MeterTypes[[#Headers],[RIN Subcategory 3]] -> RIN Subcategory 3 | K12: =I_MeterTypes[[#Headers],[Meter Code]] -> Meter Code | L12: Units | M12: Basis | O12: ='Input | Meters Vols & Costs'!O$171 -> 2018-19 | P12: ='Input | Meters Vols & Costs'!P$171 -> 2019-20 | Q12: ='Input | Meters Vols & Costs'!Q$171 -> 2020-21 | R12: ='Input | Meters Vols & Costs'!R$171 -> 2021-22 | S12: ='Input | Meters Vols & Costs'!S$171 -> 2022-23 | T12: ='Input | Meters Vols & Costs'!T$171 -> 2023-24 | U12: ='Input | Meters Vols & Costs'!U$171 -> 2024-25 | V12: Total
F13: =I_MeterTypes[Meter Type] -> AMI - Single Phase, single element | G13: =I_MeterTypes[RIN Subcategory 1] -> Single Phase Meter Population | H13: =I_MeterTypes[RIN Subcategory 2] -> Other | I13: =I_MeterTypes[AER Type] -> Meter Type 4 | J13: =I_MeterTypes[RIN Subcategory 3] -> Single phase single element - AMI | K13: =I_MeterTypes[Meter Code] -> AMI 1ph 1e | L13: $dollars | M13: =Basis_Capex -> 2018-12-01 | O13: =INDEX(ICM_LabourCost,,1)*ICM_Vol1+ INDEX(ICM_LabourCost,,2)*ICM_Vol2+ INDEX(ICM_LabourCost,,3)*ICM_Vol3+ INDEX(ICM_LabourCost,,4)*ICM_Vol4+ INDEX(ICM_LabourCost,,5)*ICM_Vol5+ INDEX(ICM_LabourCost,,6)*ICM_Vol6+ INDEX(ICM_LabourCost,,7)*ICM_Vol7+ INDEX(ICM_LabourCost,,8)*ICM_Vol8+ INDEX(ICM_LabourCost,,9)*ICM_Vol9+ INDEX(ICM_LabourCost,,10)*ICM_Vol10 -> 0 | P13: 2450000 | Q13: 2450000 | R13: 2450000 | S13: 2450000 | T13: 2450000 | U13: 2450000 | V13: =SUM(N13:U13) -> 14700000
F14: AMI - Single Phase, two element | G14: Single Phase Meter Population | H14: Other | I14: Meter Type 4 | J14: Single phase two element with contactor - AMI | K14: AMI 1ph 2e | L14: $dollars | M14: 2018-12-01 | O14: 0 | P14: 0 | Q14: 0 | R14: 0 | S14: 0 | T14: 0 | U14: 0 | V14: 0
F15: AMI - 3 Phase DC | G15: Multi Phase Meter Population | H15: Direct Connect Meter Population | I15: Meter Type 4 | J15: Three phase - AMI | K15: AMI 3ph DC | L15: $dollars | M15: 2018-12-01 | O15: 0 | P15: 0 | Q15: 0 | R15: 0 | S15: 0 | T15: 0 | U15: 0 | V15: 0
F16: AMI 3Ph CT | G16: Multi Phase Meter Population | H16: Current Transformer Connected Meter Population | I16: Meter Type 4 | J16: 0 | K16: AMI 3ph CT | L16: $dollars | M16: 2018-12-01 | O16: 0 | P16: 0 | Q16: 0 | R16: 0 | S16: 0 | T16: 0 | U16: 0 | V16: 0
F17: Non AMI - Type 5 Locally read Interval - Single Phase | G17: Single Phase Meter Population | H17: Direct Connect Meter Population | I17: Meter Type 5 | J17: 0 | K17: INT 1ph | L17: $dollars | M17: 2018-12-01 | O17: 0 | P17: 0 | Q17: 0 | R17: 0 | S17: 0 | T17: 0 | U17: 0 | V17: 0
F18: Non AMI - Type 5 Locally read Interval - 3 Phase | G18: Single Phase Meter Population | H18: Direct Connect Meter Population | I18: Meter Type 5 | J18: 0 | K18: INT 3ph | L18: $dollars | M18: 2018-12-01 | O18: 0 | P18: 0 | Q18: 0 | R18: 0 | S18: 0 | T18: 0 | U18: 0 | V18: 0
F19: Non AMI - Type 5 Locally read Interval - 3 Phase - CT | G19: Multi Phase Meter Population | H19: Current Transformer Connected Meter Population | I19: Meter Type 5 | J19: 0 | K19: INT 3ph CT | L19: $dollars | M19: 2018-12-01 | O19: 0 | P19: 0 | Q19: 0 | R19: 0 | S19: 0 | T19: 0 | U19: 0 | V19: 0
F20: Non AMI - Type 6 Locally read Accumulation - Single Phase | G20: Multi Phase Meter Population | H20: Direct Connect Meter Population | I20: Meter Type 6 | J20: 0 | K20: ACC 1ph | L20: $dollars | M20: 2018-12-01 | O20: 0 | P20: 0 | Q20: 0 | R20: 0 | S20: 0 | T20: 0 | U20: 0 | V20: 0
F21: Non AMI - Type 6 Locally read Accumulation - 3 Phase | G21: 0 | H21: Direct Connect Meter Population | I21: Meter Type 6 | J21: 0 | K21: ACC 3ph | L21: $dollars | M21: 2018-12-01 | O21: 0 | P21: 0 | Q21: 0 | R21: 0 | S21: 0 | T21: 0 | U21: 0 | V21: 0
F22: 0 | G22: 0 | H22: 0 | I22: 0 | J22: 0 | K22: 0 | L22: $dollars | M22: 2018-12-01 | O22: 0 | P22: 0 | Q22: 0 | R22: 0 | S22: 0 | T22: 0 | U22: 0 | V22: 0
F23: 0 | G23: 0 | H23: 0 | I23: 0 | J23: 0 | K23: 0 | L23: $dollars | M23: 2018-12-01 | O23: 0 | P23: 0 | Q23: 0 | R23: 0 | S23: 0 | T23: 0 | U23: 0 | V23: 0
F24: 0 | G24: 0 | H24: 0 | I24: 0 | J24: 0 | K24: 0 | L24: $dollars | M24: 2018-12-01 | O24: 0 | P24: 0 | Q24: 0 | R24: 0 | S24: 0 | T24: 0 | U24: 0 | V24: 0
F25: 0 | G25: 0 | H25: 0 | I25: 0 | J25: 0 | K25: 0 | L25: $dollars | M25: 2018-12-01 | O25: 0 | P25: 0 | Q25: 0 | R25: 0 | S25: 0 | T25: 0 | U25: 0 | V25: 0
F26: 0 | G26: 0 | H26: 0 | I26: 0 | J26: 0 | K26: 0 | L26: $dollars | M26: 2018-12-01 | O26: 0 | P26: 0 | Q26: 0 | R26: 0 | S26: 0 | T26: 0 | U26: 0 | V26: 0
F27: 0 | G27: 0 | H27: 0 | I27: 0 | J27: 0 | K27: 0 | L27: $dollars | M27: 2018-12-01 | O27: 0 | P27: 0 | Q27: 0 | R27: 0 | S27: 0 | T27: 0 | U27: 0 | V27: 0
F28: Total | L28: $dollars | M28: 2018-12-01 | O28: =SUM(O13:O26) -> 0 | P28: 2450000 | Q28: =SUM(Q13:Q27) -> 2450000 | R28: 2450000 | S28: 2450000 | T28: 2450000 | U28: 2450000 | V28: =SUM(Q28:U28) -> 12250000
E31: Incl Escalation of Labour Costs
F32: =I_MeterTypes[[#Headers],[Meter Type]] -> Meter Type | G32: =I_MeterTypes[[#Headers],[RIN Subcategory 1]] -> RIN Subcategory 1 | H32: =I_MeterTypes[[#Headers],[RIN Subcategory 2]] -> RIN Subcategory 2 | I32: =I_MeterTypes[[#Headers],[AER Type]] -> AER Type | J32: =I_MeterTypes[[#Headers],[RIN Subcategory 3]] -> RIN Subcategory 3 | K32: =I_MeterTypes[[#Headers],[Meter Code]] -> Meter Code | L32: Units | M32: Basis | O32: =O$12 -> 2018-19 | P32: =P$12 -> 2019-20 | Q32: 2020-21 | R32: 2021-22 | S32: 2022-23 | T32: 2023-24 | U32: 2024-25 | V32: Total
F33: =I_MeterTypes[Meter Type] -> AMI - Single Phase, single element | G33: =I_MeterTypes[RIN Subcategory 1] -> Single Phase Meter Population | H33: =I_MeterTypes[RIN Subcategory 2] -> Other | I33: =I_MeterTypes[AER Type] -> Meter Type 4 | J33: =I_MeterTypes[RIN Subcategory 3] -> Single phase single element - AMI | K33: =I_MeterTypes[Meter Code] -> AMI 1ph 1e | L33: $dollars | M33: =Basis_Capex -> 2018-12-01 | O33: =IF('Input | Meters Vols & Costs'!$P$77="Yes",'Input| Prices'!K$55,1)*O13 -> 0 | P33: =IF('Input | Meters Vols & Costs'!$P$77="Yes",'Input| Prices'!L$55,1)*P13 -> 2462064.549 | Q33: =IF('Input | Meters Vols & Costs'!$P$77="Yes",'Input| Prices'!M$55,1)*Q13 -> 2486772.013 | R33: =IF('Input | Meters Vols & Costs'!$P$77="Yes",'Input| Prices'!N$55,1)*R13 -> 2503251.509 | S33: =IF('Input | Meters Vols & Costs'!$P$77="Yes",'Input| Prices'!O$55,1)*S13 -> 2518499.489 | T33: =IF('Input | Meters Vols & Costs'!$P$77="Yes",'Input| Prices'!P$55,1)*T13 -> 2536954.368 | U33: =IF('Input | Meters Vols & Costs'!$P$77="Yes",'Input| Prices'!Q$55,1)*U13 -> 2561079.455 | V33: =SUM(N33:U33) -> 15068621.38
F34: AMI - Single Phase, two element | G34: Single Phase Meter Population | H34: Other | I34: Meter Type 4 | J34: Single phase two element with contactor - AMI | K34: AMI 1ph 2e | L34: $dollars | M34: 2018-12-01 | O34: =IF('Input | Meters Vols & Costs'!$P$77="Yes",'Input| Prices'!K$55,1)*O14 -> 0 | P34: =IF('Input | Meters Vols & Costs'!$P$77="Yes",'Input| Prices'!L$55,1)*P14 -> 0 | Q34: =IF('Input | Meters Vols & Costs'!$P$77="Yes",'Input| Prices'!M$55,1)*Q14 -> 0 | R34: =IF('Input | Meters Vols & Costs'!$P$77="Yes",'Input| Prices'!N$55,1)*R14 -> 0 | S34: =IF('Input | Meters Vols & Costs'!$P$77="Yes",'Input| Prices'!O$55,1)*S14 -> 0 | T34: =IF('Input | Meters Vols & Costs'!$P$77="Yes",'Input| Prices'!P$55,1)*T14 -> 0 | U34: =IF('Input | Meters Vols & Costs'!$P$77="Yes",'Input| Prices'!Q$55,1)*U14 -> 0 | V34: 0
F35: AMI - 3 Phase DC | G35: Multi Phase Meter Population | H35: Direct Connect Meter Population | I35: Meter Type 4 | J35: Three phase - AMI | K35: AMI 3ph DC | L35: $dollars | M35: 2018-12-01 | O35: =IF('Input | Meters Vols & Costs'!$P$77="Yes",'Input| Prices'!K$55,1)*O15 -> 0 | P35: =IF('Input | Meters Vols & Costs'!$P$77="Yes",'Input| Prices'!L$55,1)*P15 -> 0 | Q35: =IF('Input | Meters Vols & Costs'!$P$77="Yes",'Input| Prices'!M$55,1)*Q15 -> 0 | R35: =IF('Input | Meters Vols & Costs'!$P$77="Yes",'Input| Prices'!N$55,1)*R15 -> 0 | S35: =IF('Input | Meters Vols & Costs'!$P$77="Yes",'Input| Prices'!O$55,1)*S15 -> 0 | T35: =IF('Input | Meters Vols & Costs'!$P$77="Yes",'Input| Prices'!P$55,1)*T15 -> 0 | U35: =IF('Input | Meters Vols & Costs'!$P$77="Yes",'Input| Prices'!Q$55,1)*U15 -> 0 | V35: 0
F36: AMI 3Ph CT | G36: Multi Phase Meter Population | H36: Current Transformer Connected Meter Population | I36: Meter Type 4 | J36: 0 | K36: AMI 3ph CT | L36: $dollars | M36: 2018-12-01 | O36: =IF('Input | Meters Vols & Costs'!$P$77="Yes",'Input| Prices'!K$55,1)*O16 -> 0 | P36: =IF('Input | Meters Vols & Costs'!$P$77="Yes",'Input| Prices'!L$55,1)*P16 -> 0 | Q36: =IF('Input | Meters Vols & Costs'!$P$77="Yes",'Input| Prices'!M$55,1)*Q16 -> 0 | R36: =IF('Input | Meters Vols & Costs'!$P$77="Yes",'Input| Prices'!N$55,1)*R16 -> 0 | S36: =IF('Input | Meters Vols & Costs'!$P$77="Yes",'Input| Prices'!O$55,1)*S16 -> 0 | T36: =IF('Input | Meters Vols & Costs'!$P$77="Yes",'Input| Prices'!P$55,1)*T16 -> 0 | U36: =IF('Input | Meters Vols & Costs'!$P$77="Yes",'Input| Prices'!Q$55,1)*U16 -> 0 | V36: 0
F37: Non AMI - Type 5 Locally read Interval - Single Phase | G37: Single Phase Meter Population | H37: Direct Connect Meter Population | I37: Meter Type 5 | J37: 0 | K37: INT 1ph | L37: $dollars | M37: 2018-12-01 | O37: =IF('Input | Meters Vols & Costs'!$P$77="Yes",'Input| Prices'!K$55,1)*O17 -> 0 | P37: =IF('Input | Meters Vols & Costs'!$P$77="Yes",'Input| Prices'!L$55,1)*P17 -> 0 | Q37: =IF('Input | Meters Vols & Costs'!$P$77="Yes",'Input| Prices'!M$55,1)*Q17 -> 0 | R37: =IF('Input | Meters Vols & Costs'!$P$77="Yes",'Input| Prices'!N$55,1)*R17 -> 0 | S37: =IF('Input | Meters Vols & Costs'!$P$77="Yes",'Input| Prices'!O$55,1)*S17 -> 0 | T37: =IF('Input | Meters Vols & Costs'!$P$77="Yes",'Input| Prices'!P$55,1)*T17 -> 0 | U37: =IF('Input | Meters Vols & Costs'!$P$77="Yes",'Input| Prices'!Q$55,1)*U17 -> 0 | V37: 0
F38: Non AMI - Type 5 Locally read Interval - 3 Phase | G38: Single Phase Meter Population | H38: Direct Connect Meter Population | I38: Meter Type 5 | J38: 0 | K38: INT 3ph | L38: $dollars | M38: 2018-12-01 | O38: =IF('Input | Meters Vols & Costs'!$P$77="Yes",'Input| Prices'!K$55,1)*O18 -> 0 | P38: =IF('Input | Meters Vols & Costs'!$P$77="Yes",'Input| Prices'!L$55,1)*P18 -> 0 | Q38: =IF('Input | Meters Vols & Costs'!$P$77="Yes",'Input| Prices'!M$55,1)*Q18 -> 0 | R38: =IF('Input | Meters Vols & Costs'!$P$77="Yes",'Input| Prices'!N$55,1)*R18 -> 0 | S38: =IF('Input | Meters Vols & Costs'!$P$77="Yes",'Input| Prices'!O$55,1)*S18 -> 0 | T38: =IF('Input | Meters Vols & Costs'!$P$77="Yes",'Input| Prices'!P$55,1)*T18 -> 0 | U38: =IF('Input | Meters Vols & Costs'!$P$77="Yes",'Input| Prices'!Q$55,1)*U18 -> 0 | V38: 0
F39: Non AMI - Type 5 Locally read Interval - 3 Phase - CT | G39: Multi Phase Meter Population | H39: Current Transformer Connected Meter Population | I39: Meter Type 5 | J39: 0 | K39: INT 3ph CT | L39: $dollars | M39: 2018-12-01 | O39: =IF('Input | Meters Vols & Costs'!$P$77="Yes",'Input| Prices'!K$55,1)*O19 -> 0 | P39: =IF('Input | Meters Vols & Costs'!$P$77="Yes",'Input| Prices'!L$55,1)*P19 -> 0 | Q39: =IF('Input | Meters Vols & Costs'!$P$77="Yes",'Input| Prices'!M$55,1)*Q19 -> 0 | R39: =IF('Input | Meters Vols & Costs'!$P$77="Yes",'Input| Prices'!N$55,1)*R19 -> 0 | S39: =IF('Input | Meters Vols & Costs'!$P$77="Yes",'Input| Prices'!O$55,1)*S19 -> 0 | T39: =IF('Input | Meters Vols & Costs'!$P$77="Yes",'Input| Prices'!P$55,1)*T19 -> 0 | U39: =IF('Input | Meters Vols & Costs'!$P$77="Yes",'Input| Prices'!Q$55,1)*U19 -> 0 | V39: 0
F40: Non AMI - Type 6 Locally read Accumulation - Single Phase | G40: Multi Phase Meter Population | H40: Direct Connect Meter Population | I40: Meter Type 6 | J40: 0 | K40: ACC 1ph | L40: $dollars | M40: 2018-12-01 | O40: =IF('Input | Meters Vols & Costs'!$P$77="Yes",'Input| Prices'!K$55,1)*O20 -> 0 | P40: =IF('Input | Meters Vols & Costs'!$P$77="Yes",'Input| Prices'!L$55,1)*P20 -> 0 | Q40: =IF('Input | Meters Vols & Costs'!$P$77="Yes",'Input| Prices'!M$55,1)*Q20 -> 0 | R40: =IF('Input | Meters Vols & Costs'!$P$77="Yes",'Input| Prices'!N$55,1)*R20 -> 0 | S40: =IF('Input | Meters Vols & Costs'!$P$77="Yes",'Input| Prices'!O$55,1)*S20 -> 0 | T40: =IF('Input | Meters Vols & Costs'!$P$77="Yes",'Input| Prices'!P$55,1)*T20 -> 0 | U40: =IF('Input | Meters Vols & Costs'!$P$77="Yes",'Input| Prices'!Q$55,1)*U20 -> 0 | V40: 0
F41: Non AMI - Type 6 Locally read Accumulation - 3 Phase | G41: 0 | H41: Direct Connect Meter Population | I41: Meter Type 6 | J41: 0 | K41: ACC 3ph | L41: $dollars | M41: 2018-12-01 | O41: =IF('Input | Meters Vols & Costs'!$P$77="Yes",'Input| Prices'!K$55,1)*O21 -> 0 | P41: =IF('Input | Meters Vols & Costs'!$P$77="Yes",'Input| Prices'!L$55,1)*P21 -> 0 | Q41: =IF('Input | Meters Vols & Costs'!$P$77="Yes",'Input| Prices'!M$55,1)*Q21 -> 0 | R41: =IF('Input | Meters Vols & Costs'!$P$77="Yes",'Input| Prices'!N$55,1)*R21 -> 0 | S41: =IF('Input | Meters Vols & Costs'!$P$77="Yes",'Input| Prices'!O$55,1)*S21 -> 0 | T41: =IF('Input | Meters Vols & Costs'!$P$77="Yes",'Input| Prices'!P$55,1)*T21 -> 0 | U41: =IF('Input | Meters Vols & Costs'!$P$77="Yes",'Input| Prices'!Q$55,1)*U21 -> 0 | V41: 0
F42: 0 | G42: 0 | H42: 0 | I42: 0 | J42: 0 | K42: 0 | L42: $dollars | M42: 2018-12-01 | O42: =IF('Input | Meters Vols & Costs'!$P$77="Yes",'Input| Prices'!K$55,1)*O22 -> 0 | P42: =IF('Input | Meters Vols & Costs'!$P$77="Yes",'Input| Prices'!L$55,1)*P22 -> 0 | Q42: =IF('Input | Meters Vols & Costs'!$P$77="Yes",'Input| Prices'!M$55,1)*Q22 -> 0 | R42: =IF('Input | Meters Vols & Costs'!$P$77="Yes",'Input| Prices'!N$55,1)*R22 -> 0 | S42: =IF('Input | Meters Vols & Costs'!$P$77="Yes",'Input| Prices'!O$55,1)*S22 -> 0 | T42: =IF('Input | Meters Vols & Costs'!$P$77="Yes",'Input| Prices'!P$55,1)*T22 -> 0 | U42: =IF('Input | Meters Vols & Costs'!$P$77="Yes",'Input| Prices'!Q$55,1)*U22 -> 0 | V42: 0
F43: 0 | G43: 0 | H43: 0 | I43: 0 | J43: 0 | K43: 0 | L43: $dollars | M43: 2018-12-01 | O43: =IF('Input | Meters Vols & Costs'!$P$77="Yes",'Input| Prices'!K$55,1)*O23 -> 0 | P43: =IF('Input | Meters Vols & Costs'!$P$77="Yes",'Input| Prices'!L$55,1)*P23 -> 0 | Q43: =IF('Input | Meters Vols & Costs'!$P$77="Yes",'Input| Prices'!M$55,1)*Q23 -> 0 | R43: =IF('Input | Meters Vols & Costs'!$P$77="Yes",'Input| Prices'!N$55,1)*R23 -> 0 | S43: =IF('Input | Meters Vols & Costs'!$P$77="Yes",'Input| Prices'!O$55,1)*S23 -> 0 | T43: =IF('Input | Meters Vols & Costs'!$P$77="Yes",'Input| Prices'!P$55,1)*T23 -> 0 | U43: =IF('Input | Meters Vols & Costs'!$P$77="Yes",'Input| Prices'!Q$55,1)*U23 -> 0 | V43: 0
F44: 0 | G44: 0 | H44: 0 | I44: 0 | J44: 0 | K44: 0 | L44: $dollars | M44: 2018-12-01 | O44: =IF('Input | Meters Vols & Costs'!$P$77="Yes",'Input| Prices'!K$55,1)*O24 -> 0 | P44: =IF('Input | Meters Vols & Costs'!$P$77="Yes",'Input| Prices'!L$55,1)*P24 -> 0 | Q44: =IF('Input | Meters Vols & Costs'!$P$77="Yes",'Input| Prices'!M$55,1)*Q24 -> 0 | R44: =IF('Input | Meters Vols & Costs'!$P$77="Yes",'Input| Prices'!N$55,1)*R24 -> 0 | S44: =IF('Input | Meters Vols & Costs'!$P$77="Yes",'Input| Prices'!O$55,1)*S24 -> 0 | T44: =IF('Input | Meters Vols & Costs'!$P$77="Yes",'Input| Prices'!P$55,1)*T24 -> 0 | U44: =IF('Input | Meters Vols & Costs'!$P$77="Yes",'Input| Prices'!Q$55,1)*U24 -> 0 | V44: 0
F45: 0 | G45: 0 | H45: 0 | I45: 0 | J45: 0 | K45: 0 | L45: $dollars | M45: 2018-12-01 | O45: =IF('Input | Meters Vols & Costs'!$P$77="Yes",'Input| Prices'!K$55,1)*O25 -> 0 | P45: =IF('Input | Meters Vols & Costs'!$P$77="Yes",'Input| Prices'!L$55,1)*P25 -> 0 | Q45: =IF('Input | Meters Vols & Costs'!$P$77="Yes",'Input| Prices'!M$55,1)*Q25 -> 0 | R45: =IF('Input | Meters Vols & Costs'!$P$77="Yes",'Input| Prices'!N$55,1)*R25 -> 0 | S45: =IF('Input | Meters Vols & Costs'!$P$77="Yes",'Input| Prices'!O$55,1)*S25 -> 0 | T45: =IF('Input | Meters Vols & Costs'!$P$77="Yes",'Input| Prices'!P$55,1)*T25 -> 0 | U45: =IF('Input | Meters Vols & Costs'!$P$77="Yes",'Input| Prices'!Q$55,1)*U25 -> 0 | V45: 0
F46: 0 | G46: 0 | H46: 0 | I46: 0 | J46: 0 | K46: 0 | L46: $dollars | M46: 2018-12-01 | O46: =IF('Input | Meters Vols & Costs'!$P$77="Yes",'Input| Prices'!K$55,1)*O26 -> 0 | P46: =IF('Input | Meters Vols & Costs'!$P$77="Yes",'Input| Prices'!L$55,1)*P26 -> 0 | Q46: =IF('Input | Meters Vols & Costs'!$P$77="Yes",'Input| Prices'!M$55,1)*Q26 -> 0 | R46: =IF('Input | Meters Vols & Costs'!$P$77="Yes",'Input| Prices'!N$55,1)*R26 -> 0 | S46: =IF('Input | Meters Vols & Costs'!$P$77="Yes",'Input| Prices'!O$55,1)*S26 -> 0 | T46: =IF('Input | Meters Vols & Costs'!$P$77="Yes",'Input| Prices'!P$55,1)*T26 -> 0 | U46: =IF('Input | Meters Vols & Costs'!$P$77="Yes",'Input| Prices'!Q$55,1)*U26 -> 0 | V46: 0
F47: 0 | G47: 0 | H47: 0 | I47: 0 | J47: 0 | K47: 0 | L47: $dollars | M47: 2018-12-01 | O47: =IF('Input | Meters Vols & Costs'!$P$77="Yes",'Input| Prices'!K$55,1)*O27 -> 0 | P47: =IF('Input | Meters Vols & Costs'!$P$77="Yes",'Input| Prices'!L$55,1)*P27 -> 0 | Q47: =IF('Input | Meters Vols & Costs'!$P$77="Yes",'Input| Prices'!M$55,1)*Q27 -> 0 | R47: =IF('Input | Meters Vols & Costs'!$P$77="Yes",'Input| Prices'!N$55,1)*R27 -> 0 | S47: =IF('Input | Meters Vols & Costs'!$P$77="Yes",'Input| Prices'!O$55,1)*S27 -> 0 | T47: =IF('Input | Meters Vols & Costs'!$P$77="Yes",'Input| Prices'!P$55,1)*T27 -> 0 | U47: =IF('Input | Meters Vols & Costs'!$P$77="Yes",'Input| Prices'!Q$55,1)*U27 -> 0 | V47: 0
F48: Total | L48: $dollars | M48: 2018-12-01 | O48: =SUM(O33:O47) -> 0 | P48: 2462064.549 | Q48: 2486772.013 | R48: 2503251.509 | S48: 2518499.489 | T48: 2536954.368 | U48: 2561079.455 | V48: =SUM(Q48:U48) -> 12606556.83 | X48: =(V48=SUM('Calc | Meters Detail'!V28,'Calc | Meters Detail'!V48,'Calc | Meters Detail'!V68,'Calc | Meters Detail'!V88,'Calc | Meters Detail'!V108,'Calc | Meters Detail'!V128,'Calc | Meters Detail'!V148,'Calc | Meters Detail'!V168,'Calc | Meters Detail'!V188,'Calc | Meters Detail'!V208))/1 -> 1
O49: =(O48='Calc | Meters Detail'!O228)/1 -> 1 | P49: =(P48='Calc | Meters Detail'!P228)/1 -> 1 | Q49: =(Q48='Calc | Meters Detail'!Q228)/1 -> 1 | R49: =(R48='Calc | Meters Detail'!R228)/1 -> 1 | S49: =(S48='Calc | Meters Detail'!S228)/1 -> 1 | T49: =(T48='Calc | Meters Detail'!T228)/1 -> 1 | U49: =(U48='Calc | Meters Detail'!U228)/1 -> 1 | V49: =(V48='Calc | Meters Detail'!V228)/1 -> 1 | X49: =PRODUCT(O49:U49) -> 1
D51: ii | E51: Meters - Non-Labour Component
E52: Unescalated
F53: =I_MeterTypes[[#Headers],[Meter Type]] -> Meter Type | G53: =I_MeterTypes[[#Headers],[RIN Subcategory 1]] -> RIN Subcategory 1 | H53: =I_MeterTypes[[#Headers],[RIN Subcategory 2]] -> RIN Subcategory 2 | I53: =I_MeterTypes[[#Headers],[AER Type]] -> AER Type | J53: =I_MeterTypes[[#Headers],[RIN Subcategory 3]] -> RIN Subcategory 3 | K53: =I_MeterTypes[[#Headers],[Meter Code]] -> Meter Code | L53: Units | M53: Basis | O53: =O$12 -> 2018-19 | P53: =P$12 -> 2019-20 | Q53: 2020-21 | R53: 2021-22 | S53: 2022-23 | T53: 2023-24 | U53: 2024-25 | V53: Total
F54: =I_MeterTypes[Meter Type] -> AMI - Single Phase, single element | G54: =I_MeterTypes[RIN Subcategory 1] -> Single Phase Meter Population | H54: =I_MeterTypes[RIN Subcategory 2] -> Other | I54: =I_MeterTypes[AER Type] -> Meter Type 4 | J54: =I_MeterTypes[RIN Subcategory 3] -> Single phase single element - AMI | K54: =I_MeterTypes[Meter Code] -> AMI 1ph 1e | L54: $dollars | M54: =Basis_Capex -> 2018-12-01 | O54: =ICM_AddMetReq*ICM_UnitCost -> 0 | P54: 2385000 | Q54: 2565000 | R54: 2565000 | S54: 2664000 | T54: 2745000 | U54: 2745000 | V54: =SUM(N54:U54) -> 15669000
F55: AMI - Single Phase, two element | G55: Single Phase Meter Population | H55: Other | I55: Meter Type 4 | J55: Single phase two element with contactor - AMI | K55: AMI 1ph 2e | L55: $dollars | M55: 2018-12-01 | O55: 0 | P55: 0 | Q55: 0 | R55: 0 | S55: 0 | T55: 0 | U55: 0 | V55: 0
F56: AMI - 3 Phase DC | G56: Multi Phase Meter Population | H56: Direct Connect Meter Population | I56: Meter Type 4 | J56: Three phase - AMI | K56: AMI 3ph DC | L56: $dollars | M56: 2018-12-01 | O56: 0 | P56: 0 | Q56: 0 | R56: 0 | S56: 0 | T56: 0 | U56: 0 | V56: 0
F57: AMI 3Ph CT | G57: Multi Phase Meter Population | H57: Current Transformer Connected Meter Population | I57: Meter Type 4 | J57: 0 | K57: AMI 3ph CT | L57: $dollars | M57: 2018-12-01 | O57: 0 | P57: 0 | Q57: 0 | R57: 0 | S57: 0 | T57: 0 | U57: 0 | V57: 0
F58: Non AMI - Type 5 Locally read Interval - Single Phase | G58: Single Phase Meter Population | H58: Direct Connect Meter Population | I58: Meter Type 5 | J58: 0 | K58: INT 1ph | L58: $dollars | M58: 2018-12-01 | O58: 0 | P58: 0 | Q58: 0 | R58: 0 | S58: 0 | T58: 0 | U58: 0 | V58: 0
F59: Non AMI - Type 5 Locally read Interval - 3 Phase | G59: Single Phase Meter Population | H59: Direct Connect Meter Population | I59: Meter Type 5 | J59: 0 | K59: INT 3ph | L59: $dollars | M59: 2018-12-01 | O59: 0 | P59: 0 | Q59: 0 | R59: 0 | S59: 0 | T59: 0 | U59: 0 | V59: 0
F60: Non AMI - Type 5 Locally read Interval - 3 Phase - CT | G60: Multi Phase Meter Population | H60: Current Transformer Connected Meter Population | I60: Meter Type 5 | J60: 0 | K60: INT 3ph CT | L60: $dollars | M60: 2018-12-01 | O60: 0 | P60: 0 | Q60: 0 | R60: 0 | S60: 0 | T60: 0 | U60: 0 | V60: 0
F61: Non AMI - Type 6 Locally read Accumulation - Single Phase | G61: Multi Phase Meter Population | H61: Direct Connect Meter Population | I61: Meter Type 6 | J61: 0 | K61: ACC 1ph | L61: $dollars | M61: 2018-12-01 | O61: 0 | P61: 0 | Q61: 0 | R61: 0 | S61: 0 | T61: 0 | U61: 0 | V61: 0
F62: Non AMI - Type 6 Locally read Accumulation - 3 Phase | G62: 0 | H62: Direct Connect Meter Population | I62: Meter Type 6 | J62: 0 | K62: ACC 3ph | L62: $dollars | M62: 2018-12-01 | O62: 0 | P62: 0 | Q62: 0 | R62: 0 | S62: 0 | T62: 0 | U62: 0 | V62: 0
F63: 0 | G63: 0 | H63: 0 | I63: 0 | J63: 0 | K63: 0 | L63: $dollars | M63: 2018-12-01 | O63: 0 | P63: 0 | Q63: 0 | R63: 0 | S63: 0 | T63: 0 | U63: 0 | V63: 0
F64: 0 | G64: 0 | H64: 0 | I64: 0 | J64: 0 | K64: 0 | L64: $dollars | M64: 2018-12-01 | O64: 0 | P64: 0 | Q64: 0 | R64: 0 | S64: 0 | T64: 0 | U64: 0 | V64: 0
F65: 0 | G65: 0 | H65: 0 | I65: 0 | J65: 0 | K65: 0 | L65: $dollars | M65: 2018-12-01 | O65: 0 | P65: 0 | Q65: 0 | R65: 0 | S65: 0 | T65: 0 | U65: 0 | V65: 0
F66: 0 | G66: 0 | H66: 0 | I66: 0 | J66: 0 | K66: 0 | L66: $dollars | M66: 2018-12-01 | O66: 0 | P66: 0 | Q66: 0 | R66: 0 | S66: 0 | T66: 0 | U66: 0 | V66: 0
F67: 0 | G67: 0 | H67: 0 | I67: 0 | J67: 0 | K67: 0 | L67: $dollars | M67: 2018-12-01 | O67: 0 | P67: 0 | Q67: 0 | R67: 0 | S67: 0 | T67: 0 | U67: 0 | V67: 0
F68: 0 | G68: 0 | H68: 0 | I68: 0 | J68: 0 | K68: 0 | L68: $dollars | M68: 2018-12-01 | O68: 0 | P68: 0 | Q68: 0 | R68: 0 | S68: 0 | T68: 0 | U68: 0 | V68: 0
F69: Total | L69: $dollars | M69: 2018-12-01 | O69: =SUM(O54:O68) -> 0 | P69: 2385000 | Q69: 2565000 | R69: 2565000 | S69: 2664000 | T69: 2745000 | U69: 2745000 | V69: =SUM(Q69:U69) -> 13284000
D71: ii | E71: Meters - Non-Labour Component
E72: Incl Escalation of Non-Labour Costs
F73: =I_MeterTypes[[#Headers],[Meter Type]] -> Meter Type | G73: =I_MeterTypes[[#Headers],[RIN Subcategory 1]] -> RIN Subcategory 1 | H73: =I_MeterTypes[[#Headers],[RIN Subcategory 2]] -> RIN Subcategory 2 | I73: =I_MeterTypes[[#Headers],[AER Type]] -> AER Type | J73: =I_MeterTypes[[#Headers],[RIN Subcategory 3]] -> RIN Subcategory 3 | K73: =I_MeterTypes[[#Headers],[Meter Code]] -> Meter Code | L73: Units | M73: Basis | O73: =O$12 -> 2018-19 | P73: =P$12 -> 2019-20 | Q73: 2020-21 | R73: 2021-22 | S73: 2022-23 | T73: 2023-24 | U73: 2024-25 | V73: Total
F74: =I_MeterTypes[Meter Type] -> AMI - Single Phase, single element | G74: =I_MeterTypes[RIN Subcategory 1] -> Single Phase Meter Population | H74: =I_MeterTypes[RIN Subcategory 2] -> Other | I74: =I_MeterTypes[AER Type] -> Meter Type 4 | J74: =I_MeterTypes[RIN Subcategory 3] -> Single phase single element - AMI | K74: =I_MeterTypes[Meter Code] -> AMI 1ph 1e | L74: $dollars | M74: =Basis_Capex -> 2018-12-01 | O74: =IF('Input | Meters Vols & Costs'!$P$142="Yes",'Input| Prices'!K$59,1)*O54 -> 0 | P74: =IF('Input | Meters Vols & Costs'!$P$142="Yes",'Input| Prices'!L$59,1)*P54 -> 2396925 | Q74: =IF('Input | Meters Vols & Costs'!$P$142="Yes",'Input| Prices'!M$59,1)*Q54 -> 2590714.125 | R74: =IF('Input | Meters Vols & Costs'!$P$142="Yes",'Input| Prices'!N$59,1)*R54 -> 2603667.696 | S74: =IF('Input | Meters Vols & Costs'!$P$142="Yes",'Input| Prices'!O$59,1)*S54 -> 2717680.934 | T74: =IF('Input | Meters Vols & Costs'!$P$142="Yes",'Input| Prices'!P$59,1)*T54 -> 2814314.69 | U74: =IF('Input | Meters Vols & Costs'!$P$142="Yes",'Input| Prices'!Q$59,1)*U54 -> 2828386.263 | V74: =SUM(N74:U74) -> 15951688.71
F75: AMI - Single Phase, two element | G75: Single Phase Meter Population | H75: Other | I75: Meter Type 4 | J75: Single phase two element with contactor - AMI | K75: AMI 1ph 2e | L75: $dollars | M75: 2018-12-01 | O75: =IF('Input | Meters Vols & Costs'!$P$142="Yes",'Input| Prices'!K$59,1)*O55 -> 0 | P75: =IF('Input | Meters Vols & Costs'!$P$142="Yes",'Input| Prices'!L$59,1)*P55 -> 0 | Q75: =IF('Input | Meters Vols & Costs'!$P$142="Yes",'Input| Prices'!M$59,1)*Q55 -> 0 | R75: =IF('Input | Meters Vols & Costs'!$P$142="Yes",'Input| Prices'!N$59,1)*R55 -> 0 | S75: =IF('Input | Meters Vols & Costs'!$P$142="Yes",'Input| Prices'!O$59,1)*S55 -> 0 | T75: =IF('Input | Meters Vols & Costs'!$P$142="Yes",'Input| Prices'!P$59,1)*T55 -> 0 | U75: =IF('Input | Meters Vols & Costs'!$P$142="Yes",'Input| Prices'!Q$59,1)*U55 -> 0 | V75: 0
F76: AMI - 3 Phase DC | G76: Multi Phase Meter Population | H76: Direct Connect Meter Population | I76: Meter Type 4 | J76: Three phase - AMI | K76: AMI 3ph DC | L76: $dollars | M76: 2018-12-01 | O76: =IF('Input | Meters Vols & Costs'!$P$142="Yes",'Input| Prices'!K$59,1)*O56 -> 0 | P76: =IF('Input | Meters Vols & Costs'!$P$142="Yes",'Input| Prices'!L$59,1)*P56 -> 0 | Q76: =IF('Input | Meters Vols & Costs'!$P$142="Yes",'Input| Prices'!M$59,1)*Q56 -> 0 | R76: =IF('Input | Meters Vols & Costs'!$P$142="Yes",'Input| Prices'!N$59,1)*R56 -> 0 | S76: =IF('Input | Meters Vols & Costs'!$P$142="Yes",'Input| Prices'!O$59,1)*S56 -> 0 | T76: =IF('Input | Meters Vols & Costs'!$P$142="Yes",'Input| Prices'!P$59,1)*T56 -> 0 | U76: =IF('Input | Meters Vols & Costs'!$P$142="Yes",'Input| Prices'!Q$59,1)*U56 -> 0 | V76: 0
F77: AMI 3Ph CT | G77: Multi Phase Meter Population | H77: Current Transformer Connected Meter Population | I77: Meter Type 4 | J77: 0 | K77: AMI 3ph CT | L77: $dollars | M77: 2018-12-01 | O77: =IF('Input | Meters Vols & Costs'!$P$142="Yes",'Input| Prices'!K$59,1)*O57 -> 0 | P77: =IF('Input | Meters Vols & Costs'!$P$142="Yes",'Input| Prices'!L$59,1)*P57 -> 0 | Q77: =IF('Input | Meters Vols & Costs'!$P$142="Yes",'Input| Prices'!M$59,1)*Q57 -> 0 | R77: =IF('Input | Meters Vols & Costs'!$P$142="Yes",'Input| Prices'!N$59,1)*R57 -> 0 | S77: =IF('Input | Meters Vols & Costs'!$P$142="Yes",'Input| Prices'!O$59,1)*S57 -> 0 | T77: =IF('Input | Meters Vols & Costs'!$P$142="Yes",'Input| Prices'!P$59,1)*T57 -> 0 | U77: =IF('Input | Meters Vols & Costs'!$P$142="Yes",'Input| Prices'!Q$59,1)*U57 -> 0 | V77: 0
F78: Non AMI - Type 5 Locally read Interval - Single Phase | G78: Single Phase Meter Population | H78: Direct Connect Meter Population | I78: Meter Type 5 | J78: 0 | K78: INT 1ph | L78: $dollars | M78: 2018-12-01 | O78: =IF('Input | Meters Vols & Costs'!$P$142="Yes",'Input| Prices'!K$59,1)*O58 -> 0 | P78: =IF('Input | Meters Vols & Costs'!$P$142="Yes",'Input| Prices'!L$59,1)*P58 -> 0 | Q78: =IF('Input | Meters Vols & Costs'!$P$142="Yes",'Input| Prices'!M$59,1)*Q58 -> 0 | R78: =IF('Input | Meters Vols & Costs'!$P$142="Yes",'Input| Prices'!N$59,1)*R58 -> 0 | S78: =IF('Input | Meters Vols & Costs'!$P$142="Yes",'Input| Prices'!O$59,1)*S58 -> 0 | T78: =IF('Input | Meters Vols & Costs'!$P$142="Yes",'Input| Prices'!P$59,1)*T58 -> 0 | U78: =IF('Input | Meters Vols & Costs'!$P$142="Yes",'Input| Prices'!Q$59,1)*U58 -> 0 | V78: 0
F79: Non AMI - Type 5 Locally read Interval - 3 Phase | G79: Single Phase Meter Population | H79: Direct Connect Meter Population | I79: Meter Type 5 | J79: 0 | K79: INT 3ph | L79: $dollars | M79: 2018-12-01 | O79: =IF('Input | Meters Vols & Costs'!$P$142="Yes",'Input| Prices'!K$59,1)*O59 -> 0 | P79: =IF('Input | Meters Vols & Costs'!$P$142="Yes",'Input| Prices'!L$59,1)*P59 -> 0 | Q79: =IF('Input | Meters Vols & Costs'!$P$142="Yes",'Input| Prices'!M$59,1)*Q59 -> 0 | R79: =IF('Input | Meters Vols & Costs'!$P$142="Yes",'Input| Prices'!N$59,1)*R59 -> 0 | S79: =IF('Input | Meters Vols & Costs'!$P$142="Yes",'Input| Prices'!O$59,1)*S59 -> 0 | T79: =IF('Input | Meters Vols & Costs'!$P$142="Yes",'Input| Prices'!P$59,1)*T59 -> 0 | U79: =IF('Input | Meters Vols & Costs'!$P$142="Yes",'Input| Prices'!Q$59,1)*U59 -> 0 | V79: 0
F80: Non AMI - Type 5 Locally read Interval - 3 Phase - CT | G80: Multi Phase Meter Population | H80: Current Transformer Connected Meter Population | I80: Meter Type 5 | J80: 0 | K80: INT 3ph CT | L80: $dollars | M80: 2018-12-01 | O80: =IF('Input | Meters Vols & Costs'!$P$142="Yes",'Input| Prices'!K$59,1)*O60 -> 0 | P80: =IF('Input | Meters Vols & Costs'!$P$142="Yes",'Input| Prices'!L$59,1)*P60 -> 0 | Q80: =IF('Input | Meters Vols & Costs'!$P$142="Yes",'Input| Prices'!M$59,1)*Q60 -> 0 | R80: =IF('Input | Meters Vols & Costs'!$P$142="Yes",'Input| Prices'!N$59,1)*R60 -> 0 | S80: =IF('Input | Meters Vols & Costs'!$P$142="Yes",'Input| Prices'!O$59,1)*S60 -> 0 | T80: =IF('Input | Meters Vols & Costs'!$P$142="Yes",'Input| Prices'!P$59,1)*T60 -> 0 | U80: =IF('Input | Meters Vols & Costs'!$P$142="Yes",'Input| Prices'!Q$59,1)*U60 -> 0 | V80: 0
F81: Non AMI - Type 6 Locally read Accumulation - Single Phase | G81: Multi Phase Meter Population | H81: Direct Connect Meter Population | I81: Meter Type 6 | J81: 0 | K81: ACC 1ph | L81: $dollars | M81: 2018-12-01 | O81: =IF('Input | Meters Vols & Costs'!$P$142="Yes",'Input| Prices'!K$59,1)*O61 -> 0 | P81: =IF('Input | Meters Vols & Costs'!$P$142="Yes",'Input| Prices'!L$59,1)*P61 -> 0 | Q81: =IF('Input | Meters Vols & Costs'!$P$142="Yes",'Input| Prices'!M$59,1)*Q61 -> 0 | R81: =IF('Input | Meters Vols & Costs'!$P$142="Yes",'Input| Prices'!N$59,1)*R61 -> 0 | S81: =IF('Input | Meters Vols & Costs'!$P$142="Yes",'Input| Prices'!O$59,1)*S61 -> 0 | T81: =IF('Input | Meters Vols & Costs'!$P$142="Yes",'Input| Prices'!P$59,1)*T61 -> 0 | U81: =IF('Input | Meters Vols & Costs'!$P$142="Yes",'Input| Prices'!Q$59,1)*U61 -> 0 | V81: 0
F82: Non AMI - Type 6 Locally read Accumulation - 3 Phase | G82: 0 | H82: Direct Connect Meter Population | I82: Meter Type 6 | J82: 0 | K82: ACC 3ph | L82: $dollars | M82: 2018-12-01 | O82: =IF('Input | Meters Vols & Costs'!$P$142="Yes",'Input| Prices'!K$59,1)*O62 -> 0 | P82: =IF('Input | Meters Vols & Costs'!$P$142="Yes",'Input| Prices'!L$59,1)*P62 -> 0 | Q82: =IF('Input | Meters Vols & Costs'!$P$142="Yes",'Input| Prices'!M$59,1)*Q62 -> 0 | R82: =IF('Input | Meters Vols & Costs'!$P$142="Yes",'Input| Prices'!N$59,1)*R62 -> 0 | S82: =IF('Input | Meters Vols & Costs'!$P$142="Yes",'Input| Prices'!O$59,1)*S62 -> 0 | T82: =IF('Input | Meters Vols & Costs'!$P$142="Yes",'Input| Prices'!P$59,1)*T62 -> 0 | U82: =IF('Input | Meters Vols & Costs'!$P$142="Yes",'Input| Prices'!Q$59,1)*U62 -> 0 | V82: 0
F83: 0 | G83: 0 | H83: 0 | I83: 0 | J83: 0 | K83: 0 | L83: $dollars | M83: 2018-12-01 | O83: =IF('Input | Meters Vols & Costs'!$P$142="Yes",'Input| Prices'!K$59,1)*O63 -> 0 | P83: =IF('Input | Meters Vols & Costs'!$P$142="Yes",'Input| Prices'!L$59,1)*P63 -> 0 | Q83: =IF('Input | Meters Vols & Costs'!$P$142="Yes",'Input| Prices'!M$59,1)*Q63 -> 0 | R83: =IF('Input | Meters Vols & Costs'!$P$142="Yes",'Input| Prices'!N$59,1)*R63 -> 0 | S83: =IF('Input | Meters Vols & Costs'!$P$142="Yes",'Input| Prices'!O$59,1)*S63 -> 0 | T83: =IF('Input | Meters Vols & Costs'!$P$142="Yes",'Input| Prices'!P$59,1)*T63 -> 0 | U83: =IF('Input | Meters Vols & Costs'!$P$142="Yes",'Input| Prices'!Q$59,1)*U63 -> 0 | V83: 0
F84: 0 | G84: 0 | H84: 0 | I84: 0 | J84: 0 | K84: 0 | L84: $dollars | M84: 2018-12-01 | O84: =IF('Input | Meters Vols & Costs'!$P$142="Yes",'Input| Prices'!K$59,1)*O64 -> 0 | P84: =IF('Input | Meters Vols & Costs'!$P$142="Yes",'Input| Prices'!L$59,1)*P64 -> 0 | Q84: =IF('Input | Meters Vols & Costs'!$P$142="Yes",'Input| Prices'!M$59,1)*Q64 -> 0 | R84: =IF('Input | Meters Vols & Costs'!$P$142="Yes",'Input| Prices'!N$59,1)*R64 -> 0 | S84: =IF('Input | Meters Vols & Costs'!$P$142="Yes",'Input| Prices'!O$59,1)*S64 -> 0 | T84: =IF('Input | Meters Vols & Costs'!$P$142="Yes",'Input| Prices'!P$59,1)*T64 -> 0 | U84: =IF('Input | Meters Vols & Costs'!$P$142="Yes",'Input| Prices'!Q$59,1)*U64 -> 0 | V84: 0
F85: 0 | G85: 0 | H85: 0 | I85: 0 | J85: 0 | K85: 0 | L85: $dollars | M85: 2018-12-01 | O85: =IF('Input | Meters Vols & Costs'!$P$142="Yes",'Input| Prices'!K$59,1)*O65 -> 0 | P85: =IF('Input | Meters Vols & Costs'!$P$142="Yes",'Input| Prices'!L$59,1)*P65 -> 0 | Q85: =IF('Input | Meters Vols & Costs'!$P$142="Yes",'Input| Prices'!M$59,1)*Q65 -> 0 | R85: =IF('Input | Meters Vols & Costs'!$P$142="Yes",'Input| Prices'!N$59,1)*R65 -> 0 | S85: =IF('Input | Meters Vols & Costs'!$P$142="Yes",'Input| Prices'!O$59,1)*S65 -> 0 | T85: =IF('Input | Meters Vols & Costs'!$P$142="Yes",'Input| Prices'!P$59,1)*T65 -> 0 | U85: =IF('Input | Meters Vols & Costs'!$P$142="Yes",'Input| Prices'!Q$59,1)*U65 -> 0 | V85: 0
F86: 0 | G86: 0 | H86: 0 | I86: 0 | J86: 0 | K86: 0 | L86: $dollars | M86: 2018-12-01 | O86: =IF('Input | Meters Vols & Costs'!$P$142="Yes",'Input| Prices'!K$59,1)*O66 -> 0 | P86: =IF('Input | Meters Vols & Costs'!$P$142="Yes",'Input| Prices'!L$59,1)*P66 -> 0 | Q86: =IF('Input | Meters Vols & Costs'!$P$142="Yes",'Input| Prices'!M$59,1)*Q66 -> 0 | R86: =IF('Input | Meters Vols & Costs'!$P$142="Yes",'Input| Prices'!N$59,1)*R66 -> 0 | S86: =IF('Input | Meters Vols & Costs'!$P$142="Yes",'Input| Prices'!O$59,1)*S66 -> 0 | T86: =IF('Input | Meters Vols & Costs'!$P$142="Yes",'Input| Prices'!P$59,1)*T66 -> 0 | U86: =IF('Input | Meters Vols & Costs'!$P$142="Yes",'Input| Prices'!Q$59,1)*U66 -> 0 | V86: 0
F87: 0 | G87: 0 | H87: 0 | I87: 0 | J87: 0 | K87: 0 | L87: $dollars | M87: 2018-12-01 | O87: =IF('Input | Meters Vols & Costs'!$P$142="Yes",'Input| Prices'!K$59,1)*O67 -> 0 | P87: =IF('Input | Meters Vols & Costs'!$P$142="Yes",'Input| Prices'!L$59,1)*P67 -> 0 | Q87: =IF('Input | Meters Vols & Costs'!$P$142="Yes",'Input| Prices'!M$59,1)*Q67 -> 0 | R87: =IF('Input | Meters Vols & Costs'!$P$142="Yes",'Input| Prices'!N$59,1)*R67 -> 0 | S87: =IF('Input | Meters Vols & Costs'!$P$142="Yes",'Input| Prices'!O$59,1)*S67 -> 0 | T87: =IF('Input | Meters Vols & Costs'!$P$142="Yes",'Input| Prices'!P$59,1)*T67 -> 0 | U87: =IF('Input | Meters Vols & Costs'!$P$142="Yes",'Input| Prices'!Q$59,1)*U67 -> 0 | V87: 0
F88: 0 | G88: 0 | H88: 0 | I88: 0 | J88: 0 | K88: 0 | L88: $dollars | M88: 2018-12-01 | O88: =IF('Input | Meters Vols & Costs'!$P$142="Yes",'Input| Prices'!K$59,1)*O68 -> 0 | P88: =IF('Input | Meters Vols & Costs'!$P$142="Yes",'Input| Prices'!L$59,1)*P68 -> 0 | Q88: =IF('Input | Meters Vols & Costs'!$P$142="Yes",'Input| Prices'!M$59,1)*Q68 -> 0 | R88: =IF('Input | Meters Vols & Costs'!$P$142="Yes",'Input| Prices'!N$59,1)*R68 -> 0 | S88: =IF('Input | Meters Vols & Costs'!$P$142="Yes",'Input| Prices'!O$59,1)*S68 -> 0 | T88: =IF('Input | Meters Vols & Costs'!$P$142="Yes",'Input| Prices'!P$59,1)*T68 -> 0 | U88: =IF('Input | Meters Vols & Costs'!$P$142="Yes",'Input| Prices'!Q$59,1)*U68 -> 0 | V88: 0
F89: Total | L89: $dollars | M89: 2018-12-01 | O89: =SUM(O74:O88) -> 0 | P89: 2396925 | Q89: 2590714.125 | R89: 2603667.696 | S89: 2717680.934 | T89: 2814314.69 | U89: 2828386.263 | V89: =SUM(Q89:U89) -> 13554763.71 | X89: =(V89=SUM('Calc | Meters Detail'!V259,'Calc | Meters Detail'!V279,'Calc | Meters Detail'!V299,'Calc | Meters Detail'!V319,'Calc | Meters Detail'!V339,'Calc | Meters Detail'!V359,'Calc | Meters Detail'!V379,'Calc | Meters Detail'!V399,'Calc | Meters Detail'!V419,'Calc | Meters Detail'!V439))/1 -> 1
O90: =(O69='Calc | Meters Detail'!O459)/1 -> 1 | P90: =(P89='Calc | Meters Detail'!P459)/1 -> 1 | Q90: =(Q89='Calc | Meters Detail'!Q459)/1 -> 1 | R90: =(R89='Calc | Meters Detail'!R459)/1 -> 1 | S90: =(S89='Calc | Meters Detail'!S459)/1 -> 1 | T90: =(T89='Calc | Meters Detail'!T459)/1 -> 1 | U90: =(U89='Calc | Meters Detail'!U459)/1 -> 1 | V90: =(V89='Calc | Meters Detail'!V459)/1 -> 1 | X90: =PRODUCT(O90:U90) -> 1
D93: iii | E93: Total Meter Costs (SCS & ACS)
F94: =I_MeterTypes[[#Headers],[Meter Type]] -> Meter Type | G94: =I_MeterTypes[[#Headers],[RIN Subcategory 1]] -> RIN Subcategory 1 | H94: =I_MeterTypes[[#Headers],[RIN Subcategory 2]] -> RIN Subcategory 2 | I94: =I_MeterTypes[[#Headers],[AER Type]] -> AER Type | J94: =I_MeterTypes[[#Headers],[RIN Subcategory 3]] -> RIN Subcategory 3 | K94: =I_MeterTypes[[#Headers],[Meter Code]] -> Meter Code | L94: Units | M94: Basis | O94: =O$12 -> 2018-19 | P94: =P$12 -> 2019-20 | Q94: 2020-21 | R94: 2021-22 | S94: 2022-23 | T94: 2023-24 | U94: 2024-25 | V94: Total
F95: =I_MeterTypes[Meter Type] -> AMI - Single Phase, single element | G95: =I_MeterTypes[RIN Subcategory 1] -> Single Phase Meter Population | H95: =I_MeterTypes[RIN Subcategory 2] -> Other | I95: =I_MeterTypes[AER Type] -> Meter Type 4 | J95: =I_MeterTypes[RIN Subcategory 3] -> Single phase single element - AMI | K95: =I_MeterTypes[Meter Code] -> AMI 1ph 1e | L95: $dollars | M95: =Basis_Capex -> 2018-12-01 | O95: =O33+O74 -> 0 | P95: =P33+P74 -> 4858989.549 | Q95: 5077486.138 | R95: 5106919.204 | S95: 5236180.423 | T95: 5351269.058 | U95: 5389465.718 | V95: =SUM(N95:U95) -> 31020310.09
F96: AMI - Single Phase, two element | G96: Single Phase Meter Population | H96: Other | I96: Meter Type 4 | J96: Single phase two element with contactor - AMI | K96: AMI 1ph 2e | L96: $dollars | M96: 2018-12-01 | O96: =O34+O75 -> 0 | P96: =P34+P75 -> 0 | Q96: 0 | R96: 0 | S96: 0 | T96: 0 | U96: 0 | V96: 0
F97: AMI - 3 Phase DC | G97: Multi Phase Meter Population | H97: Direct Connect Meter Population | I97: Meter Type 4 | J97: Three phase - AMI | K97: AMI 3ph DC | L97: $dollars | M97: 2018-12-01 | O97: 0 | P97: =P35+P76 -> 0 | Q97: 0 | R97: 0 | S97: 0 | T97: 0 | U97: 0 | V97: 0
F98: AMI 3Ph CT | G98: Multi Phase Meter Population | H98: Current Transformer Connected Meter Population | I98: Meter Type 4 | J98: 0 | K98: AMI 3ph CT | L98: $dollars | M98: 2018-12-01 | O98: 0 | P98: =P36+P77 -> 0 | Q98: 0 | R98: 0 | S98: 0 | T98: 0 | U98: 0 | V98: 0
F99: Non AMI - Type 5 Locally read Interval - Single Phase | G99: Single Phase Meter Population | H99: Direct Connect Meter Population | I99: Meter Type 5 | J99: 0 | K99: INT 1ph | L99: $dollars | M99: 2018-12-01 | O99: 0 | P99: =P37+P78 -> 0 | Q99: 0 | R99: 0 | S99: 0 | T99: 0 | U99: 0 | V99: 0
F100: Non AMI - Type 5 Locally read Interval - 3 Phase | G100: Single Phase Meter Population | H100: Direct Connect Meter Population | I100: Meter Type 5 | J100: 0 | K100: INT 3ph | L100: $dollars | M100: 2018-12-01 | O100: 0 | P100: =P38+P79 -> 0 | Q100: 0 | R100: 0 | S100: 0 | T100: 0 | U100: 0 | V100: 0
F101: Non AMI - Type 5 Locally read Interval - 3 Phase - CT | G101: Multi Phase Meter Population | H101: Current Transformer Connected Meter Population | I101: Meter Type 5 | J101: 0 | K101: INT 3ph CT | L101: $dollars | M101: 2018-12-01 | O101: 0 | P101: =P39+P80 -> 0 | Q101: 0 | R101: 0 | S101: 0 | T101: 0 | U101: 0 | V101: 0
F102: Non AMI - Type 6 Locally read Accumulation - Single Phase | G102: Multi Phase Meter Population | H102: Direct Connect Meter Population | I102: Meter Type 6 | J102: 0 | K102: ACC 1ph | L102: $dollars | M102: 2018-12-01 | O102: 0 | P102: =P40+P81 -> 0 | Q102: 0 | R102: 0 | S102: 0 | T102: 0 | U102: 0 | V102: 0
F103: Non AMI - Type 6 Locally read Accumulation - 3 Phase | G103: 0 | H103: Direct Connect Meter Population | I103: Meter Type 6 | J103: 0 | K103: ACC 3ph | L103: $dollars | M103: 2018-12-01 | O103: 0 | P103: =P41+P82 -> 0 | Q103: 0 | R103: 0 | S103: 0 | T103: 0 | U103: 0 | V103: 0
F104: 0 | G104: 0 | H104: 0 | I104: 0 | J104: 0 | K104: 0 | L104: $dollars | M104: 2018-12-01 | O104: 0 | P104: =P42+P83 -> 0 | Q104: 0 | R104: 0 | S104: 0 | T104: 0 | U104: 0 | V104: 0
F105: 0 | G105: 0 | H105: 0 | I105: 0 | J105: 0 | K105: 0 | L105: $dollars | M105: 2018-12-01 | O105: 0 | P105: =P43+P84 -> 0 | Q105: 0 | R105: 0 | S105: 0 | T105: 0 | U105: 0 | V105: 0
F106: 0 | G106: 0 | H106: 0 | I106: 0 | J106: 0 | K106: 0 | L106: $dollars | M106: 2018-12-01 | O106: 0 | P106: =P44+P85 -> 0 | Q106: 0 | R106: 0 | S106: 0 | T106: 0 | U106: 0 | V106: 0
F107: 0 | G107: 0 | H107: 0 | I107: 0 | J107: 0 | K107: 0 | L107: $dollars | M107: 2018-12-01 | O107: 0 | P107: =P45+P86 -> 0 | Q107: 0 | R107: 0 | S107: 0 | T107: 0 | U107: 0 | V107: 0
F108: 0 | G108: 0 | H108: 0 | I108: 0 | J108: 0 | K108: 0 | L108: $dollars | M108: 2018-12-01 | O108: 0 | P108: =P46+P87 -> 0 | Q108: 0 | R108: 0 | S108: 0 | T108: 0 | U108: 0 | V108: 0
F109: 0 | G109: 0 | H109: 0 | I109: 0 | J109: 0 | K109: 0 | L109: $dollars | M109: 2018-12-01 | O109: 0 | P109: =P47+P88 -> 0 | Q109: 0 | R109: 0 | S109: 0 | T109: 0 | U109: 0 | V109: 0
F110: Total | L110: $dollars | M110: 2018-12-01 | O110: =SUM(O95:O108) -> 0 | P110: 4858989.549 | Q110: =SUM(Q95:Q108) -> 5077486.138 | R110: 5106919.204 | S110: 5236180.423 | T110: 5351269.058 | U110: 5389465.718 | V110: =SUM(Q110:U110) -> 26161320.54 | X110: =(V110=(V89+V48))/1 -> 1
C112: b | D112: Meter Costs by SCS/ACS
D114: i | E114: Meters - SCS
F115: =I_MeterTypes[[#Headers],[Meter Type]] -> Meter Type | G115: =I_MeterTypes[[#Headers],[RIN Subcategory 1]] -> RIN Subcategory 1 | H115: =I_MeterTypes[[#Headers],[RIN Subcategory 2]] -> RIN Subcategory 2 | I115: =I_MeterTypes[[#Headers],[AER Type]] -> AER Type | J115: =I_MeterTypes[[#Headers],[RIN Subcategory 3]] -> RIN Subcategory 3 | K115: =I_MeterTypes[[#Headers],[Meter Code]] -> Meter Code | L115: Units | M115: Basis | O115: =O$12 -> 2018-19 | P115: =P$12 -> 2019-20 | Q115: 2020-21 | R115: 2021-22 | S115: 2022-23 | T115: 2023-24 | U115: 2024-25 | V115: Total
F116: =I_MeterTypes[Meter Type] -> AMI - Single Phase, single element | G116: =I_MeterTypes[RIN Subcategory 1] -> Single Phase Meter Population | H116: =I_MeterTypes[RIN Subcategory 2] -> Other | I116: =I_MeterTypes[AER Type] -> Meter Type 4 | J116: =I_MeterTypes[RIN Subcategory 3] -> Single phase single element - AMI | K116: =I_MeterTypes[Meter Code] -> AMI 1ph 1e | L116: $dollars | M116: =Basis_Capex -> 2018-12-01 | O116: ='Input | Meters Vols & Costs'!J29*ICM_D_TC1+ 'Input | Meters Vols & Costs'!J30*ICM_D_TC2+ 'Input | Meters Vols & Costs'!J31*ICM_D_TC3+ 'Input | Meters Vols & Costs'!J32*ICM_D_TC4+ 'Input | Meters Vols & Costs'!J33*ICM_D_TC5+ 'Input | Meters Vols & Costs'!J34*ICM_D_TC6+ 'Input | Meters Vols & Costs'!J35*ICM_D_TC7+ 'Input | Meters Vols & Costs'!J36*ICM_D_TC8+ 'Input | Meters Vols & Costs'!J37*ICM_D_TC9+ 'Input | Meters Vols & Costs'!J38*ICM_D_TC10 -> 0 | P116: 0 | Q116: 0 | R116: 0 | S116: 0 | T116: 0 | U116: 0 | V116: =SUM(N116:U116) -> 0
F117: AMI - Single Phase, two element | G117: Single Phase Meter Population | H117: Other | I117: Meter Type 4 | J117: Single phase two element with contactor - AMI | K117: AMI 1ph 2e | L117: $dollars | M117: 2018-12-01 | O117: 0 | P117: 0 | Q117: 0 | R117: 0 | S117: 0 | T117: 0 | U117: 0 | V117: 0
F118: AMI - 3 Phase DC | G118: Multi Phase Meter Population | H118: Direct Connect Meter Population | I118: Meter Type 4 | J118: Three phase - AMI | K118: AMI 3ph DC | L118: $dollars | M118: 2018-12-01 | O118: 0 | P118: 0 | Q118: 0 | R118: 0 | S118: 0 | T118: 0 | U118: 0 | V118: 0
F119: AMI 3Ph CT | G119: Multi Phase Meter Population | H119: Current Transformer Connected Meter Population | I119: Meter Type 4 | J119: 0 | K119: AMI 3ph CT | L119: $dollars | M119: 2018-12-01 | O119: 0 | P119: 0 | Q119: 0 | R119: 0 | S119: 0 | T119: 0 | U119: 0 | V119: 0
F120: Non AMI - Type 5 Locally read Interval - Single Phase | G120: Single Phase Meter Population | H120: Direct Connect Meter Population | I120: Meter Type 5 | J120: 0 | K120: INT 1ph | L120: $dollars | M120: 2018-12-01 | O120: 0 | P120: 0 | Q120: 0 | R120: 0 | S120: 0 | T120: 0 | U120: 0 | V120: 0
F121: Non AMI - Type 5 Locally read Interval - 3 Phase | G121: Single Phase Meter Population | H121: Direct Connect Meter Population | I121: Meter Type 5 | J121: 0 | K121: INT 3ph | L121: $dollars | M121: 2018-12-01 | O121: 0 | P121: 0 | Q121: 0 | R121: 0 | S121: 0 | T121: 0 | U121: 0 | V121: 0
F122: Non AMI - Type 5 Locally read Interval - 3 Phase - CT | G122: Multi Phase Meter Population | H122: Current Transformer Connected Meter Population | I122: Meter Type 5 | J122: 0 | K122: INT 3ph CT | L122: $dollars | M122: 2018-12-01 | O122: 0 | P122: 0 | Q122: 0 | R122: 0 | S122: 0 | T122: 0 | U122: 0 | V122: 0
F123: Non AMI - Type 6 Locally read Accumulation - Single Phase | G123: Multi Phase Meter Population | H123: Direct Connect Meter Population | I123: Meter Type 6 | J123: 0 | K123: ACC 1ph | L123: $dollars | M123: 2018-12-01 | O123: 0 | P123: 0 | Q123: 0 | R123: 0 | S123: 0 | T123: 0 | U123: 0 | V123: 0
F124: Non AMI - Type 6 Locally read Accumulation - 3 Phase | G124: 0 | H124: Direct Connect Meter Population | I124: Meter Type 6 | J124: 0 | K124: ACC 3ph | L124: $dollars | M124: 2018-12-01 | O124: 0 | P124: 0 | Q124: 0 | R124: 0 | S124: 0 | T124: 0 | U124: 0 | V124: 0
F125: 0 | G125: 0 | H125: 0 | I125: 0 | J125: 0 | K125: 0 | L125: $dollars | M125: 2018-12-01 | O125: 0 | P125: 0 | Q125: 0 | R125: 0 | S125: 0 | T125: 0 | U125: 0 | V125: 0
F126: 0 | G126: 0 | H126: 0 | I126: 0 | J126: 0 | K126: 0 | L126: $dollars | M126: 2018-12-01 | O126: 0 | P126: 0 | Q126: 0 | R126: 0 | S126: 0 | T126: 0 | U126: 0 | V126: 0
F127: 0 | G127: 0 | H127: 0 | I127: 0 | J127: 0 | K127: 0 | L127: $dollars | M127: 2018-12-01 | O127: 0 | P127: 0 | Q127: 0 | R127: 0 | S127: 0 | T127: 0 | U127: 0 | V127: 0
F128: 0 | G128: 0 | H128: 0 | I128: 0 | J128: 0 | K128: 0 | L128: $dollars | M128: 2018-12-01 | O128: 0 | P128: 0 | Q128: 0 | R128: 0 | S128: 0 | T128: 0 | U128: 0 | V128: 0
F129: 0 | G129: 0 | H129: 0 | I129: 0 | J129: 0 | K129: 0 | L129: $dollars | M129: 2018-12-01 | O129: 0 | P129: 0 | Q129: 0 | R129: 0 | S129: 0 | T129: 0 | U129: 0 | V129: 0
F130: 0 | G130: 0 | H130: 0 | I130: 0 | J130: 0 | K130: 0 | L130: $dollars | M130: 2018-12-01 | O130: 0 | P130: 0 | Q130: 0 | R130: 0 | S130: 0 | T130: 0 | U130: 0 | V130: 0
F131: Total | L131: $dollars | M131: 2018-12-01 | O131: =SUM(O116:O129) -> 0 | P131: 0 | Q131: 0 | R131: 0 | S131: 0 | T131: 0 | U131: 0 | V131: =SUM(O131:U131) -> 0
D134: ii | E134: Meters - ACS
F135: =I_MeterTypes[[#Headers],[Meter Type]] -> Meter Type | G135: =I_MeterTypes[[#Headers],[RIN Subcategory 1]] -> RIN Subcategory 1 | H135: =I_MeterTypes[[#Headers],[RIN Subcategory 2]] -> RIN Subcategory 2 | I135: =I_MeterTypes[[#Headers],[AER Type]] -> AER Type | J135: =I_MeterTypes[[#Headers],[RIN Subcategory 3]] -> RIN Subcategory 3 | K135: =I_MeterTypes[[#Headers],[Meter Code]] -> Meter Code | L135: Units | M135: Basis | O135: =O$12 -> 2018-19 | P135: =P$12 -> 2019-20 | Q135: 2020-21 | R135: 2021-22 | S135: 2022-23 | T135: 2023-24 | U135: 2024-25 | V135: Total
F136: =I_MeterTypes[Meter Type] -> AMI - Single Phase, single element | G136: =I_MeterTypes[RIN Subcategory 1] -> Single Phase Meter Population | H136: =I_MeterTypes[RIN Subcategory 2] -> Other | I136: =I_MeterTypes[AER Type] -> Meter Type 4 | J136: =I_MeterTypes[RIN Subcategory 3] -> Single phase single element - AMI | K136: =I_MeterTypes[Meter Code] -> AMI 1ph 1e | L136: $dollars | M136: =Basis_Capex -> 2018-12-01 | O136: =(1-'Input | Meters Vols & Costs'!J29)*ICM_D_TC1+ (1-'Input | Meters Vols & Costs'!J30)*ICM_D_TC2+ (1-'Input | Meters Vols & Costs'!J31)*ICM_D_TC3+ (1-'Input | Meters Vols & Costs'!J32)*ICM_D_TC4+ (1-'Input | Meters Vols & Costs'!J33)*ICM_D_TC5+ (1-'Input | Meters Vols & Costs'!J34)*ICM_D_TC6+ (1-'Input | Meters Vols & Costs'!J35)*ICM_D_TC7+ (1-'Input | Meters Vols & Costs'!J36)*ICM_D_TC8+ (1-'Input | Meters Vols & Costs'!J37)*ICM_D_TC9+ (1-'Input | Meters Vols & Costs'!J38)*ICM_D_TC10 -> 0 | P136: 4858989.549 | Q136: 5077486.138 | R136: 5106919.204 | S136: 5236180.423 | T136: 5351269.058 | U136: 5389465.718 | V136: =SUM(N136:U136) -> 31020310.09
F137: AMI - Single Phase, two element | G137: Single Phase Meter Population | H137: Other | I137: Meter Type 4 | J137: Single phase two element with contactor - AMI | K137: AMI 1ph 2e | L137: $dollars | M137: 2018-12-01 | O137: 0 | P137: 0 | Q137: 0 | R137: 0 | S137: 0 | T137: 0 | U137: 0 | V137: =SUM(N137:U137) -> 0
F138: AMI - 3 Phase DC | G138: Multi Phase Meter Population | H138: Direct Connect Meter Population | I138: Meter Type 4 | J138: Three phase - AMI | K138: AMI 3ph DC | L138: $dollars | M138: 2018-12-01 | O138: 0 | P138: 0 | Q138: 0 | R138: 0 | S138: 0 | T138: 0 | U138: 0 | V138: 0
F139: AMI 3Ph CT | G139: Multi Phase Meter Population | H139: Current Transformer Connected Meter Population | I139: Meter Type 4 | J139: 0 | K139: AMI 3ph CT | L139: $dollars | M139: 2018-12-01 | O139: 0 | P139: 0 | Q139: 0 | R139: 0 | S139: 0 | T139: 0 | U139: 0 | V139: 0
F140: Non AMI - Type 5 Locally read Interval - Single Phase | G140: Single Phase Meter Population | H140: Direct Connect Meter Population | I140: Meter Type 5 | J140: 0 | K140: INT 1ph | L140: $dollars | M140: 2018-12-01 | O140: 0 | P140: 0 | Q140: 0 | R140: 0 | S140: 0 | T140: 0 | U140: 0 | V140: 0
F141: Non AMI - Type 5 Locally read Interval - 3 Phase | G141: Single Phase Meter Population | H141: Direct Connect Meter Population | I141: Meter Type 5 | J141: 0 | K141: INT 3ph | L141: $dollars | M141: 2018-12-01 | O141: 0 | P141: 0 | Q141: 0 | R141: 0 | S141: 0 | T141: 0 | U141: 0 | V141: 0
F142: Non AMI - Type 5 Locally read Interval - 3 Phase - CT | G142: Multi Phase Meter Population | H142: Current Transformer Connected Meter Population | I142: Meter Type 5 | J142: 0 | K142: INT 3ph CT | L142: $dollars | M142: 2018-12-01 | O142: 0 | P142: 0 | Q142: 0 | R142: 0 | S142: 0 | T142: 0 | U142: 0 | V142: 0
F143: Non AMI - Type 6 Locally read Accumulation - Single Phase | G143: Multi Phase Meter Population | H143: Direct Connect Meter Population | I143: Meter Type 6 | J143: 0 | K143: ACC 1ph | L143: $dollars | M143: 2018-12-01 | O143: 0 | P143: 0 | Q143: 0 | R143: 0 | S143: 0 | T143: 0 | U143: 0 | V143: 0
F144: Non AMI - Type 6 Locally read Accumulation - 3 Phase | G144: 0 | H144: Direct Connect Meter Population | I144: Meter Type 6 | J144: 0 | K144: ACC 3ph | L144: $dollars | M144: 2018-12-01 | O144: 0 | P144: 0 | Q144: 0 | R144: 0 | S144: 0 | T144: 0 | U144: 0 | V144: 0
F145: 0 | G145: 0 | H145: 0 | I145: 0 | J145: 0 | K145: 0 | L145: $dollars | M145: 2018-12-01 | O145: 0 | P145: 0 | Q145: 0 | R145: 0 | S145: 0 | T145: 0 | U145: 0 | V145: 0
F146: 0 | G146: 0 | H146: 0 | I146: 0 | J146: 0 | K146: 0 | L146: $dollars | M146: 2018-12-01 | O146: 0 | P146: 0 | Q146: 0 | R146: 0 | S146: 0 | T146: 0 | U146: 0 | V146: 0
F147: 0 | G147: 0 | H147: 0 | I147: 0 | J147: 0 | K147: 0 | L147: $dollars | M147: 2018-12-01 | O147: 0 | P147: 0 | Q147: 0 | R147: 0 | S147: 0 | T147: 0 | U147: 0 | V147: 0
F148: 0 | G148: 0 | H148: 0 | I148: 0 | J148: 0 | K148: 0 | L148: $dollars | M148: 2018-12-01 | O148: 0 | P148: 0 | Q148: 0 | R148: 0 | S148: 0 | T148: 0 | U148: 0 | V148: 0
F149: 0 | G149: 0 | H149: 0 | I149: 0 | J149: 0 | K149: 0 | L149: $dollars | M149: 2018-12-01 | O149: 0 | P149: 0 | Q149: 0 | R149: 0 | S149: 0 | T149: 0 | U149: 0 | V149: 0
F150: 0 | G150: 0 | H150: 0 | I150: 0 | J150: 0 | K150: 0 | L150: $dollars | M150: 2018-12-01 | O150: 0 | P150: 0 | Q150: 0 | R150: 0 | S150: 0 | T150: 0 | U150: 0 | V150: 0
F151: Total | L151: $dollars | M151: 2018-12-01 | O151: =SUM(O136:O149) -> 0 | P151: 4858989.549 | Q151: 5077486.138 | R151: 5106919.204 | S151: 5236180.423 | T151: =SUM(T136:T149) -> 5351269.058 | U151: =SUM(U136:U149) -> 5389465.718 | V151: =SUM(Q151:U151) -> 26161320.54 | X151: =(V151+V131=V110)/1 -> 1
A156: Output - Meter Capex (ACS) to Metering RFM/PTRM
D159: Total (Including Overheads and Additional Costs)
F160: Total Metering ACS | L160: Units | M160: Basis | Q160: ='Input | Meters Vols & Costs'!Q$171 -> 2020-21 | R160: ='Input | Meters Vols & Costs'!R$171 -> 2021-22 | S160: ='Input | Meters Vols & Costs'!S$171 -> 2022-23 | T160: ='Input | Meters Vols & Costs'!T$171 -> 2023-24 | U160: ='Input | Meters Vols & Costs'!U$171 -> 2024-25 | V160: Total
F161: Overheads | L161: $dollars | M161: =Basis_Capex -> 2018-12-01 | Q161: ='Input | Meters Vols & Costs'!Q55* IF('Input | Meters Vols & Costs'!$L55="$millions",10^6,IF('Input | Meters Vols & Costs'!$L55="$000",10^3,1))/IF($L161="$millions",10^6,IF($L161="$000",10^3,1)) -> 256374.3069 | R161: ='Input | Meters Vols & Costs'!R55* IF('Input | Meters Vols & Costs'!$L55="$millions",10^6,IF('Input | Meters Vols & Costs'!$L55="$000",10^3,1))/IF($L161="$millions",10^6,IF($L161="$000",10^3,1)) -> 257845.9602 | S161: ='Input | Meters Vols & Costs'!S55* IF('Input | Meters Vols & Costs'!$L55="$millions",10^6,IF('Input | Meters Vols & Costs'!$L55="$000",10^3,1))/IF($L161="$millions",10^6,IF($L161="$000",10^3,1)) -> 261809.0211 | T161: ='Input | Meters Vols & Costs'!T55* IF('Input | Meters Vols & Costs'!$L55="$millions",10^6,IF('Input | Meters Vols & Costs'!$L55="$000",10^3,1))/IF($L161="$millions",10^6,IF($L161="$000",10^3,1)) -> 267563.4529 | U161: ='Input | Meters Vols & Costs'!U55* IF('Input | Meters Vols & Costs'!$L55="$millions",10^6,IF('Input | Meters Vols & Costs'!$L55="$000",10^3,1))/IF($L161="$millions",10^6,IF($L161="$000",10^3,1)) -> 269473.2859 | V161: =SUM(Q161:U161) -> 1313066.027
F162: Additional Projects | L162: $dollars | M162: =Basis_Capex -> 2018-12-01 | Q162: ='Input | Meters Vols & Costs'!Q50* IF('Input | Meters Vols & Costs'!$L50="$millions",10^6,IF('Input | Meters Vols & Costs'!$L50="$000",10^3,1))/IF($L162="$millions",10^6,IF($L162="$000",10^3,1)) -> 50000 | R162: ='Input | Meters Vols & Costs'!R50* IF('Input | Meters Vols & Costs'!$L50="$millions",10^6,IF('Input | Meters Vols & Costs'!$L50="$000",10^3,1))/IF($L162="$millions",10^6,IF($L162="$000",10^3,1)) -> 50000 | S162: ='Input | Meters Vols & Costs'!S50* IF('Input | Meters Vols & Costs'!$L50="$millions",10^6,IF('Input | Meters Vols & Costs'!$L50="$000",10^3,1))/IF($L162="$millions",10^6,IF($L162="$000",10^3,1)) -> 0 | T162: ='Input | Meters Vols & Costs'!T50* IF('Input | Meters Vols & Costs'!$L50="$millions",10^6,IF('Input | Meters Vols & Costs'!$L50="$000",10^3,1))/IF($L162="$millions",10^6,IF($L162="$000",10^3,1)) -> 0 | U162: ='Input | Meters Vols & Costs'!U50* IF('Input | Meters Vols & Costs'!$L50="$millions",10^6,IF('Input | Meters Vols & Costs'!$L50="$000",10^3,1))/IF($L162="$millions",10^6,IF($L162="$000",10^3,1)) -> 0 | V162: =SUM(Q162:U162) -> 100000
F163: ACS Meter Costs | L163: $dollars | M163: =Basis_Capex -> 2018-12-01 | Q163: ='Calc | Capex Meters'!Q151 -> 5077486.138 | R163: ='Calc | Capex Meters'!R151 -> 5106919.204 | S163: ='Calc | Capex Meters'!S151 -> 5236180.423 | T163: ='Calc | Capex Meters'!T151 -> 5351269.058 | U163: ='Calc | Capex Meters'!U151 -> 5389465.718 | V163: =SUM(Q163:U163) -> 26161320.54 | X163: =(V163=V151)/1 -> 1
F164: Total | L164: $dollars | M164: =Basis_Capex -> 2018-12-01 | Q164: =SUM(Q161:Q163) -> 5383860.445 | R164: =SUM(R161:R163) -> 5414765.165 | S164: =SUM(S161:S163) -> 5497989.444 | T164: =SUM(T161:T163) -> 5618832.511 | U164: =SUM(U161:U163) -> 5658939.004 | V164: =SUM(Q164:U164) -> 27574386.57

Sheet Calc | Meters Detail
B1: ='Input|General'!B1&" v"&'Input|General'!$D$2 -> AER Metering Opex & Capex Forecasting Model v1.08
B2: =MID(CELL("filename",A1),FIND("]",CELL("filename",A1))+1,255) -> Calc | Meters Detail
A6: Extra: Detailed Cost Tables - including real price escalation
O8: 1 | P8: 2 | Q8: 3 | R8: 4 | S8: 5 | T8: 6 | U8: 7
B9: a | C9: Labour Costs
D10: 1 | E10: ='Input | Meters Vols & Costs'!$G$29 -> New Meter Installations - Growth
F12: =I_MeterTypes[[#Headers],[Meter Type]] -> Meter Type | G12: =I_MeterTypes[[#Headers],[RIN Subcategory 1]] -> RIN Subcategory 1 | H12: =I_MeterTypes[[#Headers],[RIN Subcategory 2]] -> RIN Subcategory 2 | I12: =I_MeterTypes[[#Headers],[AER Type]] -> AER Type | J12: =I_MeterTypes[[#Headers],[RIN Subcategory 3]] -> RIN Subcategory 3 | K12: =I_MeterTypes[[#Headers],[Meter Code]] -> Meter Code | L12: Units | M12: Basis | O12: ='Input | Meters Vols & Costs'!O$171 -> 2018-19 | P12: ='Input | Meters Vols & Costs'!P$171 -> 2019-20 | Q12: ='Input | Meters Vols & Costs'!Q$171 -> 2020-21 | R12: ='Input | Meters Vols & Costs'!R$171 -> 2021-22 | S12: ='Input | Meters Vols & Costs'!S$171 -> 2022-23 | T12: ='Input | Meters Vols & Costs'!T$171 -> 2023-24 | U12: ='Input | Meters Vols & Costs'!U$171 -> 2024-25 | V12: Total
F13: =I_MeterTypes[Meter Type] -> AMI - Single Phase, single element | G13: =I_MeterTypes[RIN Subcategory 1] -> Single Phase Meter Population | H13: =I_MeterTypes[RIN Subcategory 2] -> Other | I13: =I_MeterTypes[AER Type] -> Meter Type 4 | J13: =I_MeterTypes[RIN Subcategory 3] -> Single phase single element - AMI | K13: =I_MeterTypes[Meter Code] -> AMI 1ph 1e | L13: $dollars | M13: =Basis_Capex -> 2018-12-01 | O13: =IF('Input | Meters Vols & Costs'!$P$77="Yes",'Input| Prices'!K$55,1)*INDEX(ICM_LabourCost,,$D10)*INDEX(ICM_Vol1,,O$8) -> 0 | P13: ='Input| Prices'!L$55*INDEX(ICM_LabourCost,,$D10)*INDEX(ICM_Vol1,,P$8) -> 0 | Q13: ='Input| Prices'!M$55*INDEX(ICM_LabourCost,,$D10)*INDEX(ICM_Vol1,,Q$8) -> 0 | R13: ='Input| Prices'!N$55*INDEX(ICM_LabourCost,,$D10)*INDEX(ICM_Vol1,,R$8) -> 0 | S13: ='Input| Prices'!O$55*INDEX(ICM_LabourCost,,$D10)*INDEX(ICM_Vol1,,S$8) -> 0 | T13: ='Input| Prices'!P$55*INDEX(ICM_LabourCost,,$D10)*INDEX(ICM_Vol1,,T$8) -> 0 | U13: ='Input| Prices'!Q$55*INDEX(ICM_LabourCost,,$D10)*INDEX(ICM_Vol1,,U$8) -> 0 | V13: =SUM(N13:U13) -> 0
F14: AMI - Single Phase, two element | G14: Single Phase Meter Population | H14: Other | I14: Meter Type 4 | J14: Single phase two element with contactor - AMI | K14: AMI 1ph 2e | L14: $dollars | M14: 2018-12-01 | O14: 0 | P14: 0 | Q14: 0 | R14: 0 | S14: 0 | T14: 0 | U14: 0 | V14: 0
F15: AMI - 3 Phase DC | G15: Multi Phase Meter Population | H15: Direct Connect Meter Population | I15: Meter Type 4 | J15: Three phase - AMI | K15: AMI 3ph DC | L15: $dollars | M15: 2018-12-01 | O15: 0 | P15: 0 | Q15: 0 | R15: 0 | S15: 0 | T15: 0 | U15: 0 | V15: 0
F16: AMI 3Ph CT | G16: Multi Phase Meter Population | H16: Current Transformer Connected Meter Population | I16: Meter Type 4 | J16: 0 | K16: AMI 3ph CT | L16: $dollars | M16: 2018-12-01 | O16: 0 | P16: 0 | Q16: 0 | R16: 0 | S16: 0 | T16: 0 | U16: 0 | V16: 0
F17: Non AMI - Type 5 Locally read Interval - Single Phase | G17: Single Phase Meter Population | H17: Direct Connect Meter Population | I17: Meter Type 5 | J17: 0 | K17: INT 1ph | L17: $dollars | M17: 2018-12-01 | O17: 0 | P17: 0 | Q17: 0 | R17: 0 | S17: 0 | T17: 0 | U17: 0 | V17: 0
F18: Non AMI - Type 5 Locally read Interval - 3 Phase | G18: Single Phase Meter Population | H18: Direct Connect Meter Population | I18: Meter Type 5 | J18: 0 | K18: INT 3ph | L18: $dollars | M18: 2018-12-01 | O18: 0 | P18: 0 | Q18: 0 | R18: 0 | S18: 0 | T18: 0 | U18: 0 | V18: 0
F19: Non AMI - Type 5 Locally read Interval - 3 Phase - CT | G19: Multi Phase Meter Population | H19: Current Transformer Connected Meter Population | I19: Meter Type 5 | J19: 0 | K19: INT 3ph CT | L19: $dollars | M19: 2018-12-01 | O19: 0 | P19: 0 | Q19: 0 | R19: 0 | S19: 0 | T19: 0 | U19: 0 | V19: 0
F20: Non AMI - Type 6 Locally read Accumulation - Single Phase | G20: Multi Phase Meter Population | H20: Direct Connect Meter Population | I20: Meter Type 6 | J20: 0 | K20: ACC 1ph | L20: $dollars | M20: 2018-12-01 | O20: 0 | P20: 0 | Q20: 0 | R20: 0 | S20: 0 | T20: 0 | U20: 0 | V20: 0
F21: Non AMI - Type 6 Locally read Accumulation - 3 Phase | G21: 0 | H21: Direct Connect Meter Population | I21: Meter Type 6 | J21: 0 | K21: ACC 3ph | L21: $dollars | M21: 2018-12-01 | O21: 0 | P21: 0 | Q21: 0 | R21: 0 | S21: 0 | T21: 0 | U21: 0 | V21: 0
F22: 0 | G22: 0 | H22: 0 | I22: 0 | J22: 0 | K22: 0 | L22: $dollars | M22: 2018-12-01 | O22: 0 | P22: 0 | Q22: 0 | R22: 0 | S22: 0 | T22: 0 | U22: 0 | V22: 0
F23: 0 | G23: 0 | H23: 0 | I23: 0 | J23: 0 | K23: 0 | L23: $dollars | M23: 2018-12-01 | O23: 0 | P23: 0 | Q23: 0 | R23: 0 | S23: 0 | T23: 0 | U23: 0 | V23: 0
F24: 0 | G24: 0 | H24: 0 | I24: 0 | J24: 0 | K24: 0 | L24: $dollars | M24: 2018-12-01 | O24: 0 | P24: 0 | Q24: 0 | R24: 0 | S24: 0 | T24: 0 | U24: 0 | V24: 0
F25: 0 | G25: 0 | H25: 0 | I25: 0 | J25: 0 | K25: 0 | L25: $dollars | M25: 2018-12-01 | O25: 0 | P25: 0 | Q25: 0 | R25: 0 | S25: 0 | T25: 0 | U25: 0 | V25: 0
F26: 0 | G26: 0 | H26: 0 | I26: 0 | J26: 0 | K26: 0 | L26: $dollars | M26: 2018-12-01 | O26: 0 | P26: 0 | Q26: 0 | R26: 0 | S26: 0 | T26: 0 | U26: 0 | V26: 0
F27: 0 | G27: 0 | H27: 0 | I27: 0 | J27: 0 | K27: 0 | L27: $dollars | M27: 2018-12-01 | O27: 0 | P27: 0 | Q27: 0 | R27: 0 | S27: 0 | T27: 0 | U27: 0 | V27: 0
F28: Total | L28: $dollars | M28: 2018-12-01 | O28: =SUM(O13:O27) -> 0 | P28: =SUM(P13:P27) -> 0 | Q28: 0 | R28: 0 | S28: 0 | T28: 0 | U28: 0 | V28: =SUM(Q28:U28) -> 0
D30: 2 | E30: ='Input | Meters Vols & Costs'!$G$30 -> Refurbished meters
F32: =I_MeterTypes[[#Headers],[Meter Type]] -> Meter Type | G32: =I_MeterTypes[[#Headers],[RIN Subcategory 1]] -> RIN Subcategory 1 | H32: =I_MeterTypes[[#Headers],[RIN Subcategory 2]] -> RIN Subcategory 2 | I32: =I_MeterTypes[[#Headers],[AER Type]] -> AER Type | J32: =I_MeterTypes[[#Headers],[RIN Subcategory 3]] -> RIN Subcategory 3 | K32: =I_MeterTypes[[#Headers],[Meter Code]] -> Meter Code | L32: Units | M32: Basis | O32: =O$12 -> 2018-19 | P32: =P$12 -> 2019-20 | Q32: 2020-21 | R32: 2021-22 | S32: 2022-23 | T32: 2023-24 | U32: 2024-25 | V32: Total
F33: =I_MeterTypes[Meter Type] -> AMI - Single Phase, single element | G33: =I_MeterTypes[RIN Subcategory 1] -> Single Phase Meter Population | H33: =I_MeterTypes[RIN Subcategory 2] -> Other | I33: =I_MeterTypes[AER Type] -> Meter Type 4 | J33: =I_MeterTypes[RIN Subcategory 3] -> Single phase single element - AMI | K33: =I_MeterTypes[Meter Code] -> AMI 1ph 1e | L33: $dollars | M33: =Basis_Capex -> 2018-12-01 | O33: =IF('Input | Meters Vols & Costs'!$P$77="Yes",'Input| Prices'!K$55,1)*INDEX(ICM_LabourCost,,$D30)*INDEX(ICM_Vol2,,O$8) -> 0 | P33: =IF('Input | Meters Vols & Costs'!$P$77="Yes",'Input| Prices'!L$55,1)*INDEX(ICM_LabourCost,,$D30)*INDEX(ICM_Vol2,,P$8) -> 0 | Q33: =IF('Input | Meters Vols & Costs'!$P$77="Yes",'Input| Prices'!M$55,1)*INDEX(ICM_LabourCost,,$D30)*INDEX(ICM_Vol2,,Q$8) -> 0 | R33: =IF('Input | Meters Vols & Costs'!$P$77="Yes",'Input| Prices'!N$55,1)*INDEX(ICM_LabourCost,,$D30)*INDEX(ICM_Vol2,,R$8) -> 0 | S33: =IF('Input | Meters Vols & Costs'!$P$77="Yes",'Input| Prices'!O$55,1)*INDEX(ICM_LabourCost,,$D30)*INDEX(ICM_Vol2,,S$8) -> 0 | T33: =IF('Input | Meters Vols & Costs'!$P$77="Yes",'Input| Prices'!P$55,1)*INDEX(ICM_LabourCost,,$D30)*INDEX(ICM_Vol2,,T$8) -> 0 | U33: =IF('Input | Meters Vols & Costs'!$P$77="Yes",'Input| Prices'!Q$55,1)*INDEX(ICM_LabourCost,,$D30)*INDEX(ICM_Vol2,,U$8) -> 0 | V33: =SUM(N33:U33) -> 0
F34: AMI - Single Phase, two element | G34: Single Phase Meter Population | H34: Other | I34: Meter Type 4 | J34: Single phase two element with contactor - AMI | K34: AMI 1ph 2e | L34: $dollars | M34: 2018-12-01 | O34: 0 | P34: 0 | Q34: 0 | R34: 0 | S34: 0 | T34: 0 | U34: 0 | V34: 0
F35: AMI - 3 Phase DC | G35: Multi Phase Meter Population | H35: Direct Connect Meter Population | I35: Meter Type 4 | J35: Three phase - AMI | K35: AMI 3ph DC | L35: $dollars | M35: 2018-12-01 | O35: 0 | P35: 0 | Q35: 0 | R35: 0 | S35: 0 | T35: 0 | U35: 0 | V35: 0
F36: AMI 3Ph CT | G36: Multi Phase Meter Population | H36: Current Transformer Connected Meter Population | I36: Meter Type 4 | J36: 0 | K36: AMI 3ph CT | L36: $dollars | M36: 2018-12-01 | O36: 0 | P36: 0 | Q36: 0 | R36: 0 | S36: 0 | T36: 0 | U36: 0 | V36: 0
F37: Non AMI - Type 5 Locally read Interval - Single Phase | G37: Single Phase Meter Population | H37: Direct Connect Meter Population | I37: Meter Type 5 | J37: 0 | K37: INT 1ph | L37: $dollars | M37: 2018-12-01 | O37: 0 | P37: 0 | Q37: 0 | R37: 0 | S37: 0 | T37: 0 | U37: 0 | V37: 0
F38: Non AMI - Type 5 Locally read Interval - 3 Phase | G38: Single Phase Meter Population | H38: Direct Connect Meter Population | I38: Meter Type 5 | J38: 0 | K38: INT 3ph | L38: $dollars | M38: 2018-12-01 | O38: 0 | P38: 0 | Q38: 0 | R38: 0 | S38: 0 | T38: 0 | U38: 0 | V38: 0
F39: Non AMI - Type 5 Locally read Interval - 3 Phase - CT | G39: Multi Phase Meter Population | H39: Current Transformer Connected Meter Population | I39: Meter Type 5 | J39: 0 | K39: INT 3ph CT | L39: $dollars | M39: 2018-12-01 | O39: 0 | P39: 0 | Q39: 0 | R39: 0 | S39: 0 | T39: 0 | U39: 0 | V39: 0
F40: Non AMI - Type 6 Locally read Accumulation - Single Phase | G40: Multi Phase Meter Population | H40: Direct Connect Meter Population | I40: Meter Type 6 | J40: 0 | K40: ACC 1ph | L40: $dollars | M40: 2018-12-01 | O40: 0 | P40: 0 | Q40: 0 | R40: 0 | S40: 0 | T40: 0 | U40: 0 | V40: 0
F41: Non AMI - Type 6 Locally read Accumulation - 3 Phase | G41: 0 | H41: Direct Connect Meter Population | I41: Meter Type 6 | J41: 0 | K41: ACC 3ph | L41: $dollars | M41: 2018-12-01 | O41: 0 | P41: 0 | Q41: 0 | R41: 0 | S41: 0 | T41: 0 | U41: 0 | V41: 0
F42: 0 | G42: 0 | H42: 0 | I42: 0 | J42: 0 | K42: 0 | L42: $dollars | M42: 2018-12-01 | O42: 0 | P42: 0 | Q42: 0 | R42: 0 | S42: 0 | T42: 0 | U42: 0 | V42: 0
F43: 0 | G43: 0 | H43: 0 | I43: 0 | J43: 0 | K43: 0 | L43: $dollars | M43: 2018-12-01 | O43: 0 | P43: 0 | Q43: 0 | R43: 0 | S43: 0 | T43: 0 | U43: 0 | V43: 0
F44: 0 | G44: 0 | H44: 0 | I44: 0 | J44: 0 | K44: 0 | L44: $dollars | M44: 2018-12-01 | O44: 0 | P44: 0 | Q44: 0 | R44: 0 | S44: 0 | T44: 0 | U44: 0 | V44: 0
F45: 0 | G45: 0 | H45: 0 | I45: 0 | J45: 0 | K45: 0 | L45: $dollars | M45: 2018-12-01 | O45: 0 | P45: 0 | Q45: 0 | R45: 0 | S45: 0 | T45: 0 | U45: 0 | V45: 0
F46: 0 | G46: 0 | H46: 0 | I46: 0 | J46: 0 | K46: 0 | L46: $dollars | M46: 2018-12-01 | O46: 0 | P46: 0 | Q46: 0 | R46: 0 | S46: 0 | T46: 0 | U46: 0 | V46: 0
F47: 0 | G47: 0 | H47: 0 | I47: 0 | J47: 0 | K47: 0 | L47: $dollars | M47: 2018-12-01 | O47: 0 | P47: 0 | Q47: 0 | R47: 0 | S47: 0 | T47: 0 | U47: 0 | V47: 0
F48: Total | L48: $dollars | M48: 2018-12-01 | O48: =SUM(O33:O47) -> 0 | P48: =SUM(P33:P47) -> 0 | Q48: 0 | R48: 0 | S48: 0 | T48: 0 | U48: 0 | V48: =SUM(Q48:U48) -> 0
D50: 3 | E50: ='Input | Meters Vols & Costs'!$G$31 -> Replacements - End of life
F52: =I_MeterTypes[[#Headers],[Meter Type]] -> Meter Type | G52: =I_MeterTypes[[#Headers],[RIN Subcategory 1]] -> RIN Subcategory 1 | H52: =I_MeterTypes[[#Headers],[RIN Subcategory 2]] -> RIN Subcategory 2 | I52: =I_MeterTypes[[#Headers],[AER Type]] -> AER Type | J52: =I_MeterTypes[[#Headers],[RIN Subcategory 3]] -> RIN Subcategory 3 | K52: =I_MeterTypes[[#Headers],[Meter Code]] -> Meter Code | L52: Units | M52: Basis | O52: =O$12 -> 2018-19 | P52: =P$12 -> 2019-20 | Q52: 2020-21 | R52: 2021-22 | S52: 2022-23 | T52: 2023-24 | U52: 2024-25 | V52: Total
F53: =I_MeterTypes[Meter Type] -> AMI - Single Phase, single element | G53: =I_MeterTypes[RIN Subcategory 1] -> Single Phase Meter Population | H53: =I_MeterTypes[RIN Subcategory 2] -> Other | I53: =I_MeterTypes[AER Type] -> Meter Type 4 | J53: =I_MeterTypes[RIN Subcategory 3] -> Single phase single element - AMI | K53: =I_MeterTypes[Meter Code] -> AMI 1ph 1e | L53: $dollars | M53: =Basis_Capex -> 2018-12-01 | O53: =IF('Input | Meters Vols & Costs'!$P$77="Yes",'Input| Prices'!K$55,1)*INDEX(ICM_LabourCost,,$D50)*INDEX(ICM_Vol3,,O$8) -> 0 | P53: =IF('Input | Meters Vols & Costs'!$P$77="Yes",'Input| Prices'!L$55,1)*INDEX(ICM_LabourCost,,$D50)*INDEX(ICM_Vol3,,P$8) -> 1969651.639 | Q53: =IF('Input | Meters Vols & Costs'!$P$77="Yes",'Input| Prices'!M$55,1)*INDEX(ICM_LabourCost,,$D50)*INDEX(ICM_Vol3,,Q$8) -> 1989417.61 | R53: =IF('Input | Meters Vols & Costs'!$P$77="Yes",'Input| Prices'!N$55,1)*INDEX(ICM_LabourCost,,$D50)*INDEX(ICM_Vol3,,R$8) -> 2002601.207 | S53: =IF('Input | Meters Vols & Costs'!$P$77="Yes",'Input| Prices'!O$55,1)*INDEX(ICM_LabourCost,,$D50)*INDEX(ICM_Vol3,,S$8) -> 2014799.591 | T53: =IF('Input | Meters Vols & Costs'!$P$77="Yes",'Input| Prices'!P$55,1)*INDEX(ICM_LabourCost,,$D50)*INDEX(ICM_Vol3,,T$8) -> 2029563.494 | U53: =IF('Input | Meters Vols & Costs'!$P$77="Yes",'Input| Prices'!Q$55,1)*INDEX(ICM_LabourCost,,$D50)*INDEX(ICM_Vol3,,U$8) -> 2048863.564 | V53: =SUM(N53:U53) -> 12054897.11
F54: AMI - Single Phase, two element | G54: Single Phase Meter Population | H54: Other | I54: Meter Type 4 | J54: Single phase two element with contactor - AMI | K54: AMI 1ph 2e | L54: $dollars | M54: 2018-12-01 | O54: 0 | P54: 0 | Q54: 0 | R54: 0 | S54: 0 | T54: 0 | U54: 0 | V54: 0
F55: AMI - 3 Phase DC | G55: Multi Phase Meter Population | H55: Direct Connect Meter Population | I55: Meter Type 4 | J55: Three phase - AMI | K55: AMI 3ph DC | L55: $dollars | M55: 2018-12-01 | O55: 0 | P55: 0 | Q55: 0 | R55: 0 | S55: 0 | T55: 0 | U55: 0 | V55: 0
F56: AMI 3Ph CT | G56: Multi Phase Meter Population | H56: Current Transformer Connected Meter Population | I56: Meter Type 4 | J56: 0 | K56: AMI 3ph CT | L56: $dollars | M56: 2018-12-01 | O56: 0 | P56: 0 | Q56: 0 | R56: 0 | S56: 0 | T56: 0 | U56: 0 | V56: 0
F57: Non AMI - Type 5 Locally read Interval - Single Phase | G57: Single Phase Meter Population | H57: Direct Connect Meter Population | I57: Meter Type 5 | J57: 0 | K57: INT 1ph | L57: $dollars | M57: 2018-12-01 | O57: 0 | P57: 0 | Q57: 0 | R57: 0 | S57: 0 | T57: 0 | U57: 0 | V57: 0
F58: Non AMI - Type 5 Locally read Interval - 3 Phase | G58: Single Phase Meter Population | H58: Direct Connect Meter Population | I58: Meter Type 5 | J58: 0 | K58: INT 3ph | L58: $dollars | M58: 2018-12-01 | O58: 0 | P58: 0 | Q58: 0 | R58: 0 | S58: 0 | T58: 0 | U58: 0 | V58: 0
F59: Non AMI - Type 5 Locally read Interval - 3 Phase - CT | G59: Multi Phase Meter Population | H59: Current Transformer Connected Meter Population | I59: Meter Type 5 | J59: 0 | K59: INT 3ph CT | L59: $dollars | M59: 2018-12-01 | O59: 0 | P59: 0 | Q59: 0 | R59: 0 | S59: 0 | T59: 0 | U59: 0 | V59: 0
F60: Non AMI - Type 6 Locally read Accumulation - Single Phase | G60: Multi Phase Meter Population | H60: Direct Connect Meter Population | I60: Meter Type 6 | J60: 0 | K60: ACC 1ph | L60: $dollars | M60: 2018-12-01 | O60: 0 | P60: 0 | Q60: 0 | R60: 0 | S60: 0 | T60: 0 | U60: 0 | V60: 0
F61: Non AMI - Type 6 Locally read Accumulation - 3 Phase | G61: 0 | H61: Direct Connect Meter Population | I61: Meter Type 6 | J61: 0 | K61: ACC 3ph | L61: $dollars | M61: 2018-12-01 | O61: 0 | P61: 0 | Q61: 0 | R61: 0 | S61: 0 | T61: 0 | U61: 0 | V61: 0
F62: 0 | G62: 0 | H62: 0 | I62: 0 | J62: 0 | K62: 0 | L62: $dollars | M62: 2018-12-01 | O62: 0 | P62: 0 | Q62: 0 | R62: 0 | S62: 0 | T62: 0 | U62: 0 | V62: 0
F63: 0 | G63: 0 | H63: 0 | I63: 0 | J63: 0 | K63: 0 | L63: $dollars | M63: 2018-12-01 | O63: 0 | P63: 0 | Q63: 0 | R63: 0 | S63: 0 | T63: 0 | U63: 0 | V63: 0
F64: 0 | G64: 0 | H64: 0 | I64: 0 | J64: 0 | K64: 0 | L64: $dollars | M64: 2018-12-01 | O64: 0 | P64: 0 | Q64: 0 | R64: 0 | S64: 0 | T64: 0 | U64: 0 | V64: 0
F65: 0 | G65: 0 | H65: 0 | I65: 0 | J65: 0 | K65: 0 | L65: $dollars | M65: 2018-12-01 | O65: 0 | P65: 0 | Q65: 0 | R65: 0 | S65: 0 | T65: 0 | U65: 0 | V65: 0
F66: 0 | G66: 0 | H66: 0 | I66: 0 | J66: 0 | K66: 0 | L66: $dollars | M66: 2018-12-01 | O66: 0 | P66: 0 | Q66: 0 | R66: 0 | S66: 0 | T66: 0 | U66: 0 | V66: 0
F67: 0 | G67: 0 | H67: 0 | I67: 0 | J67: 0 | K67: 0 | L67: $dollars | M67: 2018-12-01 | O67: 0 | P67: 0 | Q67: 0 | R67: 0 | S67: 0 | T67: 0 | U67: 0 | V67: 0
F68: Total | L68: $dollars | M68: 2018-12-01 | O68: =SUM(O53:O60) -> 0 | P68: =SUM(P53:P60) -> 1969651.639 | Q68: 1989417.61 | R68: 2002601.207 | S68: 2014799.591 | T68: 2029563.494 | U68: 2048863.564 | V68: =SUM(Q68:U68) -> 10085245.47
D70: 4 | E70: ='Input | Meters Vols & Costs'!$G$32 -> Replacements - Failures and faults
F72: =I_MeterTypes[[#Headers],[Meter Type]] -> Meter Type | G72: =I_MeterTypes[[#Headers],[RIN Subcategory 1]] -> RIN Subcategory 1 | H72: =I_MeterTypes[[#Headers],[RIN Subcategory 2]] -> RIN Subcategory 2 | I72: =I_MeterTypes[[#Headers],[AER Type]] -> AER Type | J72: =I_MeterTypes[[#Headers],[RIN Subcategory 3]] -> RIN Subcategory 3 | K72: =I_MeterTypes[[#Headers],[Meter Code]] -> Meter Code | L72: Units | M72: Basis | O72: =O$12 -> 2018-19 | P72: =P$12 -> 2019-20 | Q72: 2020-21 | R72: 2021-22 | S72: 2022-23 | T72: 2023-24 | U72: 2024-25 | V72: Total
F73: =I_MeterTypes[Meter Type] -> AMI - Single Phase, single element | G73: =I_MeterTypes[RIN Subcategory 1] -> Single Phase Meter Population | H73: =I_MeterTypes[RIN Subcategory 2] -> Other | I73: =I_MeterTypes[AER Type] -> Meter Type 4 | J73: =I_MeterTypes[RIN Subcategory 3] -> Single phase single element - AMI | K73: =I_MeterTypes[Meter Code] -> AMI 1ph 1e | L73: $dollars | M73: =Basis_Capex -> 2018-12-01 | O73: =IF('Input | Meters Vols & Costs'!$P$77="Yes",'Input| Prices'!K$55,1)*INDEX(ICM_LabourCost,,$D70)*INDEX(ICM_Vol4,,O$8) -> 0 | P73: =IF('Input | Meters Vols & Costs'!$P$77="Yes",'Input| Prices'!L$55,1)*INDEX(ICM_LabourCost,,$D70)*INDEX(ICM_Vol4,,P$8) -> 492412.9098 | Q73: =IF('Input | Meters Vols & Costs'!$P$77="Yes",'Input| Prices'!M$55,1)*INDEX(ICM_LabourCost,,$D70)*INDEX(ICM_Vol4,,Q$8) -> 497354.4025 | R73: =IF('Input | Meters Vols & Costs'!$P$77="Yes",'Input| Prices'!N$55,1)*INDEX(ICM_LabourCost,,$D70)*INDEX(ICM_Vol4,,R$8) -> 500650.3018 | S73: =IF('Input | Meters Vols & Costs'!$P$77="Yes",'Input| Prices'!O$55,1)*INDEX(ICM_LabourCost,,$D70)*INDEX(ICM_Vol4,,S$8) -> 503699.8978 | T73: =IF('Input | Meters Vols & Costs'!$P$77="Yes",'Input| Prices'!P$55,1)*INDEX(ICM_LabourCost,,$D70)*INDEX(ICM_Vol4,,T$8) -> 507390.8736 | U73: =IF('Input | Meters Vols & Costs'!$P$77="Yes",'Input| Prices'!Q$55,1)*INDEX(ICM_LabourCost,,$D70)*INDEX(ICM_Vol4,,U$8) -> 512215.891 | V73: =SUM(N73:U73) -> 3013724.276
F74: AMI - Single Phase, two element | G74: Single Phase Meter Population | H74: Other | I74: Meter Type 4 | J74: Single phase two element with contactor - AMI | K74: AMI 1ph 2e | L74: $dollars | M74: 2018-12-01 | O74: 0 | P74: 0 | Q74: 0 | R74: 0 | S74: 0 | T74: 0 | U74: 0 | V74: 0
F75: AMI - 3 Phase DC | G75: Multi Phase Meter Population | H75: Direct Connect Meter Population | I75: Meter Type 4 | J75: Three phase - AMI | K75: AMI 3ph DC | L75: $dollars | M75: 2018-12-01 | O75: 0 | P75: 0 | Q75: 0 | R75: 0 | S75: 0 | T75: 0 | U75: 0 | V75: 0
F76: AMI 3Ph CT | G76: Multi Phase Meter Population | H76: Current Transformer Connected Meter Population | I76: Meter Type 4 | J76: 0 | K76: AMI 3ph CT | L76: $dollars | M76: 2018-12-01 | O76: 0 | P76: 0 | Q76: 0 | R76: 0 | S76: 0 | T76: 0 | U76: 0 | V76: 0
F77: Non AMI - Type 5 Locally read Interval - Single Phase | G77: Single Phase Meter Population | H77: Direct Connect Meter Population | I77: Meter Type 5 | J77: 0 | K77: INT 1ph | L77: $dollars | M77: 2018-12-01 | O77: 0 | P77: 0 | Q77: 0 | R77: 0 | S77: 0 | T77: 0 | U77: 0 | V77: 0
F78: Non AMI - Type 5 Locally read Interval - 3 Phase | G78: Single Phase Meter Population | H78: Direct Connect Meter Population | I78: Meter Type 5 | J78: 0 | K78: INT 3ph | L78: $dollars | M78: 2018-12-01 | O78: 0 | P78: 0 | Q78: 0 | R78: 0 | S78: 0 | T78: 0 | U78: 0 | V78: 0
F79: Non AMI - Type 5 Locally read Interval - 3 Phase - CT | G79: Multi Phase Meter Population | H79: Current Transformer Connected Meter Population | I79: Meter Type 5 | J79: 0 | K79: INT 3ph CT | L79: $dollars | M79: 2018-12-01 | O79: 0 | P79: 0 | Q79: 0 | R79: 0 | S79: 0 | T79: 0 | U79: 0 | V79: 0
F80: Non AMI - Type 6 Locally read Accumulation - Single Phase | G80: Multi Phase Meter Population | H80: Direct Connect Meter Population | I80: Meter Type 6 | J80: 0 | K80: ACC 1ph | L80: $dollars | M80: 2018-12-01 | O80: 0 | P80: 0 | Q80: 0 | R80: 0 | S80: 0 | T80: 0 | U80: 0 | V80: 0
F81: Non AMI - Type 6 Locally read Accumulation - 3 Phase | G81: 0 | H81: Direct Connect Meter Population | I81: Meter Type 6 | J81: 0 | K81: ACC 3ph | L81: $dollars | M81: 2018-12-01 | O81: 0 | P81: 0 | Q81: 0 | R81: 0 | S81: 0 | T81: 0 | U81: 0 | V81: 0
F82: 0 | G82: 0 | H82: 0 | I82: 0 | J82: 0 | K82: 0 | L82: $dollars | M82: 2018-12-01 | O82: 0 | P82: 0 | Q82: 0 | R82: 0 | S82: 0 | T82: 0 | U82: 0 | V82: 0
F83: 0 | G83: 0 | H83: 0 | I83: 0 | J83: 0 | K83: 0 | L83: $dollars | M83: 2018-12-01 | O83: 0 | P83: 0 | Q83: 0 | R83: 0 | S83: 0 | T83: 0 | U83: 0 | V83: 0
F84: 0 | G84: 0 | H84: 0 | I84: 0 | J84: 0 | K84: 0 | L84: $dollars | M84: 2018-12-01 | O84: 0 | P84: 0 | Q84: 0 | R84: 0 | S84: 0 | T84: 0 | U84: 0 | V84: 0
F85: 0 | G85: 0 | H85: 0 | I85: 0 | J85: 0 | K85: 0 | L85: $dollars | M85: 2018-12-01 | O85: 0 | P85: 0 | Q85: 0 | R85: 0 | S85: 0 | T85: 0 | U85: 0 | V85: 0
F86: 0 | G86: 0 | H86: 0 | I86: 0 | J86: 0 | K86: 0 | L86: $dollars | M86: 2018-12-01 | O86: 0 | P86: 0 | Q86: 0 | R86: 0 | S86: 0 | T86: 0 | U86: 0 | V86: 0
F87: 0 | G87: 0 | H87: 0 | I87: 0 | J87: 0 | K87: 0 | L87: $dollars | M87: 2018-12-01 | O87: 0 | P87: 0 | Q87: 0 | R87: 0 | S87: 0 | T87: 0 | U87: 0 | V87: 0
F88: Total | L88: $dollars | M88: 2018-12-01 | O88: =SUM(O73:O87) -> 0 | P88: =SUM(P73:P87) -> 492412.9098 | Q88: 497354.4025 | R88: 500650.3018 | S88: 503699.8978 | T88: 507390.8736 | U88: 512215.891 | V88: =SUM(Q88:U88) -> 2521311.367
D90: 5 | E90: ='Input | Meters Vols & Costs'!$G$33 -> 0
F92: =I_MeterTypes[[#Headers],[Meter Type]] -> Meter Type | G92: =I_MeterTypes[[#Headers],[RIN Subcategory 1]] -> RIN Subcategory 1 | H92: =I_MeterTypes[[#Headers],[RIN Subcategory 2]] -> RIN Subcategory 2 | I92: =I_MeterTypes[[#Headers],[AER Type]] -> AER Type | J92: =I_MeterTypes[[#Headers],[RIN Subcategory 3]] -> RIN Subcategory 3 | K92: =I_MeterTypes[[#Headers],[Meter Code]] -> Meter Code | L92: Units | M92: Basis | O92: =O$12 -> 2018-19 | P92: =P$12 -> 2019-20 | Q92: 2020-21 | R92: 2021-22 | S92: 2022-23 | T92: 2023-24 | U92: 2024-25 | V92: Total
F93: =I_MeterTypes[Meter Type] -> AMI - Single Phase, single element | G93: =I_MeterTypes[RIN Subcategory 1] -> Single Phase Meter Population | H93: =I_MeterTypes[RIN Subcategory 2] -> Other | I93: =I_MeterTypes[AER Type] -> Meter Type 4 | J93: =I_MeterTypes[RIN Subcategory 3] -> Single phase single element - AMI | K93: =I_MeterTypes[Meter Code] -> AMI 1ph 1e | L93: $dollars | M93: =Basis_Capex -> 2018-12-01 | O93: =IF('Input | Meters Vols & Costs'!$P$77="Yes",'Input| Prices'!K$55,1)*INDEX(ICM_LabourCost,,$D90)*INDEX(ICM_Vol5,,O$8) -> 0 | P93: =IF('Input | Meters Vols & Costs'!$P$77="Yes",'Input| Prices'!L$55,1)*INDEX(ICM_LabourCost,,$D90)*INDEX(ICM_Vol5,,P$8) -> 0 | Q93: =IF('Input | Meters Vols & Costs'!$P$77="Yes",'Input| Prices'!M$55,1)*INDEX(ICM_LabourCost,,$D90)*INDEX(ICM_Vol5,,Q$8) -> 0 | R93: =IF('Input | Meters Vols & Costs'!$P$77="Yes",'Input| Prices'!N$55,1)*INDEX(ICM_LabourCost,,$D90)*INDEX(ICM_Vol5,,R$8) -> 0 | S93: =IF('Input | Meters Vols & Costs'!$P$77="Yes",'Input| Prices'!O$55,1)*INDEX(ICM_LabourCost,,$D90)*INDEX(ICM_Vol5,,S$8) -> 0 | T93: =IF('Input | Meters Vols & Costs'!$P$77="Yes",'Input| Prices'!P$55,1)*INDEX(ICM_LabourCost,,$D90)*INDEX(ICM_Vol5,,T$8) -> 0 | U93: =IF('Input | Meters Vols & Costs'!$P$77="Yes",'Input| Prices'!Q$55,1)*INDEX(ICM_LabourCost,,$D90)*INDEX(ICM_Vol5,,U$8) -> 0 | V93: =SUM(N93:U93) -> 0
F94: AMI - Single Phase, two element | G94: Single Phase Meter Population | H94: Other | I94: Meter Type 4 | J94: Single phase two element with contactor - AMI | K94: AMI 1ph 2e | L94: $dollars | M94: 2018-12-01 | O94: 0 | P94: 0 | Q94: 0 | R94: 0 | S94: 0 | T94: 0 | U94: 0 | V94: 0
F95: AMI - 3 Phase DC | G95: Multi Phase Meter Population | H95: Direct Connect Meter Population | I95: Meter Type 4 | J95: Three phase - AMI | K95: AMI 3ph DC | L95: $dollars | M95: 2018-12-01 | O95: 0 | P95: 0 | Q95: 0 | R95: 0 | S95: 0 | T95: 0 | U95: 0 | V95: 0
F96: AMI 3Ph CT | G96: Multi Phase Meter Population | H96: Current Transformer Connected Meter Population | I96: Meter Type 4 | J96: 0 | K96: AMI 3ph CT | L96: $dollars | M96: 2018-12-01 | O96: 0 | P96: 0 | Q96: 0 | R96: 0 | S96: 0 | T96: 0 | U96: 0 | V96: 0
F97: Non AMI - Type 5 Locally read Interval - Single Phase | G97: Single Phase Meter Population | H97: Direct Connect Meter Population | I97: Meter Type 5 | J97: 0 | K97: INT 1ph | L97: $dollars | M97: 2018-12-01 | O97: 0 | P97: 0 | Q97: 0 | R97: 0 | S97: 0 | T97: 0 | U97: 0 | V97: 0
F98: Non AMI - Type 5 Locally read Interval - 3 Phase | G98: Single Phase Meter Population | H98: Direct Connect Meter Population | I98: Meter Type 5 | J98: 0 | K98: INT 3ph | L98: $dollars | M98: 2018-12-01 | O98: 0 | P98: 0 | Q98: 0 | R98: 0 | S98: 0 | T98: 0 | U98: 0 | V98: 0
F99: Non AMI - Type 5 Locally read Interval - 3 Phase - CT | G99: Multi Phase Meter Population | H99: Current Transformer Connected Meter Population | I99: Meter Type 5 | J99: 0 | K99: INT 3ph CT | L99: $dollars | M99: 2018-12-01 | O99: 0 | P99: 0 | Q99: 0 | R99: 0 | S99: 0 | T99: 0 | U99: 0 | V99: 0
F100: Non AMI - Type 6 Locally read Accumulation - Single Phase | G100: Multi Phase Meter Population | H100: Direct Connect Meter Population | I100: Meter Type 6 | J100: 0 | K100: ACC 1ph | L100: $dollars | M100: 2018-12-01 | O100: 0 | P100: 0 | Q100: 0 | R100: 0 | S100: 0 | T100: 0 | U100: 0 | V100: 0
F101: Non AMI - Type 6 Locally read Accumulation - 3 Phase | G101: 0 | H101: Direct Connect Meter Population | I101: Meter Type 6 | J101: 0 | K101: ACC 3ph | L101: $dollars | M101: 2018-12-01 | O101: 0 | P101: 0 | Q101: 0 | R101: 0 | S101: 0 | T101: 0 | U101: 0 | V101: 0
F102: 0 | G102: 0 | H102: 0 | I102: 0 | J102: 0 | K102: 0 | L102: $dollars | M102: 2018-12-01 | O102: 0 | P102: 0 | Q102: 0 | R102: 0 | S102: 0 | T102: 0 | U102: 0 | V102: 0
F103: 0 | G103: 0 | H103: 0 | I103: 0 | J103: 0 | K103: 0 | L103: $dollars | M103: 2018-12-01 | O103: 0 | P103: 0 | Q103: 0 | R103: 0 | S103: 0 | T103: 0 | U103: 0 | V103: 0
F104: 0 | G104: 0 | H104: 0 | I104: 0 | J104: 0 | K104: 0 | L104: $dollars | M104: 2018-12-01 | O104: 0 | P104: 0 | Q104: 0 | R104: 0 | S104: 0 | T104: 0 | U104: 0 | V104: 0
F105: 0 | G105: 0 | H105: 0 | I105: 0 | J105: 0 | K105: 0 | L105: $dollars | M105: 2018-12-01 | O105: 0 | P105: 0 | Q105: 0 | R105: 0 | S105: 0 | T105: 0 | U105: 0 | V105: 0
F106: 0 | G106: 0 | H106: 0 | I106: 0 | J106: 0 | K106: 0 | L106: $dollars | M106: 2018-12-01 | O106: 0 | P106: 0 | Q106: 0 | R106: 0 | S106: 0 | T106: 0 | U106: 0 | V106: 0
F107: 0 | G107: 0 | H107: 0 | I107: 0 | J107: 0 | K107: 0 | L107: $dollars | M107: 2018-12-01 | O107: 0 | P107: 0 | Q107: 0 | R107: 0 | S107: 0 | T107: 0 | U107: 0 | V107: 0
F108: Total | L108: $dollars | M108: 2018-12-01 | O108: =SUM(O93:O107) -> 0 | P108: =SUM(P93:P107) -> 0 | Q108: 0 | R108: 0 | S108: 0 | T108: 0 | U108: 0 | V108: =SUM(Q108:U108) -> 0
D110: 6 | E110: ='Input | Meters Vols & Costs'!$G$34 -> 0
F112: =I_MeterTypes[[#Headers],[Meter Type]] -> Meter Type | G112: =I_MeterTypes[[#Headers],[RIN Subcategory 1]] -> RIN Subcategory 1 | H112: =I_MeterTypes[[#Headers],[RIN Subcategory 2]] -> RIN Subcategory 2 | I112: =I_MeterTypes[[#Headers],[AER Type]] -> AER Type | J112: =I_MeterTypes[[#Headers],[RIN Subcategory 3]] -> RIN Subcategory 3 | K112: =I_MeterTypes[[#Headers],[Meter Code]] -> Meter Code | L112: Units | M112: Basis | O112: =O$12 -> 2018-19 | P112: =P$12 -> 2019-20 | Q112: 2020-21 | R112: 2021-22 | S112: 2022-23 | T112: 2023-24 | U112: 2024-25 | V112: Total
F113: =I_MeterTypes[Meter Type] -> AMI - Single Phase, single element | G113: =I_MeterTypes[RIN Subcategory 1] -> Single Phase Meter Population | H113: =I_MeterTypes[RIN Subcategory 2] -> Other | I113: =I_MeterTypes[AER Type] -> Meter Type 4 | J113: =I_MeterTypes[RIN Subcategory 3] -> Single phase single element - AMI | K113: =I_MeterTypes[Meter Code] -> AMI 1ph 1e | L113: $dollars | M113: =Basis_Capex -> 2018-12-01 | O113: =IF('Input | Meters Vols & Costs'!$P$77="Yes",'Input| Prices'!K$55,1)*INDEX(ICM_LabourCost,,$D110)*INDEX(ICM_Vol6,,O$8) -> 0 | P113: =IF('Input | Meters Vols & Costs'!$P$77="Yes",'Input| Prices'!L$55,1)*INDEX(ICM_LabourCost,,$D110)*INDEX(ICM_Vol6,,P$8) -> 0 | Q113: =IF('Input | Meters Vols & Costs'!$P$77="Yes",'Input| Prices'!M$55,1)*INDEX(ICM_LabourCost,,$D110)*INDEX(ICM_Vol6,,Q$8) -> 0 | R113: =IF('Input | Meters Vols & Costs'!$P$77="Yes",'Input| Prices'!N$55,1)*INDEX(ICM_LabourCost,,$D110)*INDEX(ICM_Vol6,,R$8) -> 0 | S113: =IF('Input | Meters Vols & Costs'!$P$77="Yes",'Input| Prices'!O$55,1)*INDEX(ICM_LabourCost,,$D110)*INDEX(ICM_Vol6,,S$8) -> 0 | T113: =IF('Input | Meters Vols & Costs'!$P$77="Yes",'Input| Prices'!P$55,1)*INDEX(ICM_LabourCost,,$D110)*INDEX(ICM_Vol6,,T$8) -> 0 | U113: =IF('Input | Meters Vols & Costs'!$P$77="Yes",'Input| Prices'!Q$55,1)*INDEX(ICM_LabourCost,,$D110)*INDEX(ICM_Vol6,,U$8) -> 0 | V113: =SUM(N113:U113) -> 0
F114: AMI - Single Phase, two element | G114: Single Phase Meter Population | H114: Other | I114: Meter Type 4 | J114: Single phase two element with contactor - AMI | K114: AMI 1ph 2e | L114: $dollars | M114: 2018-12-01 | O114: 0 | P114: 0 | Q114: 0 | R114: 0 | S114: 0 | T114: 0 | U114: 0 | V114: 0
F115: AMI - 3 Phase DC | G115: Multi Phase Meter Population | H115: Direct Connect Meter Population | I115: Meter Type 4 | J115: Three phase - AMI | K115: AMI 3ph DC | L115: $dollars | M115: 2018-12-01 | O115: 0 | P115: 0 | Q115: 0 | R115: 0 | S115: 0 | T115: 0 | U115: 0 | V115: 0
F116: AMI 3Ph CT | G116: Multi Phase Meter Population | H116: Current Transformer Connected Meter Population | I116: Meter Type 4 | J116: 0 | K116: AMI 3ph CT | L116: $dollars | M116: 2018-12-01 | O116: 0 | P116: 0 | Q116: 0 | R116: 0 | S116: 0 | T116: 0 | U116: 0 | V116: 0
F117: Non AMI - Type 5 Locally read Interval - Single Phase | G117: Single Phase Meter Population | H117: Direct Connect Meter Population | I117: Meter Type 5 | J117: 0 | K117: INT 1ph | L117: $dollars | M117: 2018-12-01 | O117: 0 | P117: 0 | Q117: 0 | R117: 0 | S117: 0 | T117: 0 | U117: 0 | V117: 0
F118: Non AMI - Type 5 Locally read Interval - 3 Phase | G118: Single Phase Meter Population | H118: Direct Connect Meter Population | I118: Meter Type 5 | J118: 0 | K118: INT 3ph | L118: $dollars | M118: 2018-12-01 | O118: 0 | P118: 0 | Q118: 0 | R118: 0 | S118: 0 | T118: 0 | U118: 0 | V118: 0
F119: Non AMI - Type 5 Locally read Interval - 3 Phase - CT | G119: Multi Phase Meter Population | H119: Current Transformer Connected Meter Population | I119: Meter Type 5 | J119: 0 | K119: INT 3ph CT | L119: $dollars | M119: 2018-12-01 | O119: 0 | P119: 0 | Q119: 0 | R119: 0 | S119: 0 | T119: 0 | U119: 0 | V119: 0
F120: Non AMI - Type 6 Locally read Accumulation - Single Phase | G120: Multi Phase Meter Population | H120: Direct Connect Meter Population | I120: Meter Type 6 | J120: 0 | K120: ACC 1ph | L120: $dollars | M120: 2018-12-01 | O120: 0 | P120: 0 | Q120: 0 | R120: 0 | S120: 0 | T120: 0 | U120: 0 | V120: 0
F121: Non AMI - Type 6 Locally read Accumulation - 3 Phase | G121: 0 | H121: Direct Connect Meter Population | I121: Meter Type 6 | J121: 0 | K121: ACC 3ph | L121: $dollars | M121: 2018-12-01 | O121: 0 | P121: 0 | Q121: 0 | R121: 0 | S121: 0 | T121: 0 | U121: 0 | V121: 0
F122: 0 | G122: 0 | H122: 0 | I122: 0 | J122: 0 | K122: 0 | L122: $dollars | M122: 2018-12-01 | O122: 0 | P122: 0 | Q122: 0 | R122: 0 | S122: 0 | T122: 0 | U122: 0 | V122: 0
F123: 0 | G123: 0 | H123: 0 | I123: 0 | J123: 0 | K123: 0 | L123: $dollars | M123: 2018-12-01 | O123: 0 | P123: 0 | Q123: 0 | R123: 0 | S123: 0 | T123: 0 | U123: 0 | V123: 0
F124: 0 | G124: 0 | H124: 0 | I124: 0 | J124: 0 | K124: 0 | L124: $dollars | M124: 2018-12-01 | O124: 0 | P124: 0 | Q124: 0 | R124: 0 | S124: 0 | T124: 0 | U124: 0 | V124: 0
F125: 0 | G125: 0 | H125: 0 | I125: 0 | J125: 0 | K125: 0 | L125: $dollars | M125: 2018-12-01 | O125: 0 | P125: 0 | Q125: 0 | R125: 0 | S125: 0 | T125: 0 | U125: 0 | V125: 0
F126: 0 | G126: 0 | H126: 0 | I126: 0 | J126: 0 | K126: 0 | L126: $dollars | M126: 2018-12-01 | O126: 0 | P126: 0 | Q126: 0 | R126: 0 | S126: 0 | T126: 0 | U126: 0 | V126: 0
F127: 0 | G127: 0 | H127: 0 | I127: 0 | J127: 0 | K127: 0 | L127: $dollars | M127: 2018-12-01 | O127: 0 | P127: 0 | Q127: 0 | R127: 0 | S127: 0 | T127: 0 | U127: 0 | V127: 0
F128: Total | L128: $dollars | M128: 2018-12-01 | O128: =SUM(O113:O127) -> 0 | P128: =SUM(P113:P127) -> 0 | Q128: 0 | R128: 0 | S128: 0 | T128: 0 | U128: 0 | V128: =SUM(Q128:U128) -> 0
D130: 7 | E130: ='Input | Meters Vols & Costs'!$G$35 -> 0
F132: =I_MeterTypes[[#Headers],[Meter Type]] -> Meter Type | G132: =I_MeterTypes[[#Headers],[RIN Subcategory 1]] -> RIN Subcategory 1 | H132: =I_MeterTypes[[#Headers],[RIN Subcategory 2]] -> RIN Subcategory 2 | I132: =I_MeterTypes[[#Headers],[AER Type]] -> AER Type | J132: =I_MeterTypes[[#Headers],[RIN Subcategory 3]] -> RIN Subcategory 3 | K132: =I_MeterTypes[[#Headers],[Meter Code]] -> Meter Code | L132: Units | M132: Basis | O132: =O$12 -> 2018-19 | P132: =P$12 -> 2019-20 | Q132: 2020-21 | R132: 2021-22 | S132: 2022-23 | T132: 2023-24 | U132: 2024-25 | V132: Total
F133: =I_MeterTypes[Meter Type] -> AMI - Single Phase, single element | G133: =I_MeterTypes[RIN Subcategory 1] -> Single Phase Meter Population | H133: =I_MeterTypes[RIN Subcategory 2] -> Other | I133: =I_MeterTypes[AER Type] -> Meter Type 4 | J133: =I_MeterTypes[RIN Subcategory 3] -> Single phase single element - AMI | K133: =I_MeterTypes[Meter Code] -> AMI 1ph 1e | L133: $dollars | M133: =Basis_Capex -> 2018-12-01 | O133: =IF('Input | Meters Vols & Costs'!$P$77="Yes",'Input| Prices'!K$55,1)*INDEX(ICM_LabourCost,,$D130)*INDEX(ICM_Vol7,,O$8) -> 0 | P133: =IF('Input | Meters Vols & Costs'!$P$77="Yes",'Input| Prices'!L$55,1)*INDEX(ICM_LabourCost,,$D130)*INDEX(ICM_Vol7,,P$8) -> 0 | Q133: =IF('Input | Meters Vols & Costs'!$P$77="Yes",'Input| Prices'!M$55,1)*INDEX(ICM_LabourCost,,$D130)*INDEX(ICM_Vol7,,Q$8) -> 0 | R133: =IF('Input | Meters Vols & Costs'!$P$77="Yes",'Input| Prices'!N$55,1)*INDEX(ICM_LabourCost,,$D130)*INDEX(ICM_Vol7,,R$8) -> 0 | S133: =IF('Input | Meters Vols & Costs'!$P$77="Yes",'Input| Prices'!O$55,1)*INDEX(ICM_LabourCost,,$D130)*INDEX(ICM_Vol7,,S$8) -> 0 | T133: =IF('Input | Meters Vols & Costs'!$P$77="Yes",'Input| Prices'!P$55,1)*INDEX(ICM_LabourCost,,$D130)*INDEX(ICM_Vol7,,T$8) -> 0 | U133: =IF('Input | Meters Vols & Costs'!$P$77="Yes",'Input| Prices'!Q$55,1)*INDEX(ICM_LabourCost,,$D130)*INDEX(ICM_Vol7,,U$8) -> 0 | V133: =SUM(N133:U133) -> 0
F134: AMI - Single Phase, two element | G134: Single Phase Meter Population | H134: Other | I134: Meter Type 4 | J134: Single phase two element with contactor - AMI | K134: AMI 1ph 2e | L134: $dollars | M134: 2018-12-01 | O134: 0 | P134: 0 | Q134: 0 | R134: 0 | S134: 0 | T134: 0 | U134: 0 | V134: 0
F135: AMI - 3 Phase DC | G135: Multi Phase Meter Population | H135: Direct Connect Meter Population | I135: Meter Type 4 | J135: Three phase - AMI | K135: AMI 3ph DC | L135: $dollars | M135: 2018-12-01 | O135: 0 | P135: 0 | Q135: 0 | R135: 0 | S135: 0 | T135: 0 | U135: 0 | V135: 0
F136: AMI 3Ph CT | G136: Multi Phase Meter Population | H136: Current Transformer Connected Meter Population | I136: Meter Type 4 | J136: 0 | K136: AMI 3ph CT | L136: $dollars | M136: 2018-12-01 | O136: 0 | P136: 0 | Q136: 0 | R136: 0 | S136: 0 | T136: 0 | U136: 0 | V136: 0
F137: Non AMI - Type 5 Locally read Interval - Single Phase | G137: Single Phase Meter Population | H137: Direct Connect Meter Population | I137: Meter Type 5 | J137: 0 | K137: INT 1ph | L137: $dollars | M137: 2018-12-01 | O137: 0 | P137: 0 | Q137: 0 | R137: 0 | S137: 0 | T137: 0 | U137: 0 | V137: 0
F138: Non AMI - Type 5 Locally read Interval - 3 Phase | G138: Single Phase Meter Population | H138: Direct Connect Meter Population | I138: Meter Type 5 | J138: 0 | K138: INT 3ph | L138: $dollars | M138: 2018-12-01 | O138: 0 | P138: 0 | Q138: 0 | R138: 0 | S138: 0 | T138: 0 | U138: 0 | V138: 0
F139: Non AMI - Type 5 Locally read Interval - 3 Phase - CT | G139: Multi Phase Meter Population | H139: Current Transformer Connected Meter Population | I139: Meter Type 5 | J139: 0 | K139: INT 3ph CT | L139: $dollars | M139: 2018-12-01 | O139: 0 | P139: 0 | Q139: 0 | R139: 0 | S139: 0 | T139: 0 | U139: 0 | V139: 0
F140: Non AMI - Type 6 Locally read Accumulation - Single Phase | G140: Multi Phase Meter Population | H140: Direct Connect Meter Population | I140: Meter Type 6 | J140: 0 | K140: ACC 1ph | L140: $dollars | M140: 2018-12-01 | O140: 0 | P140: 0 | Q140: 0 | R140: 0 | S140: 0 | T140: 0 | U140: 0 | V140: 0
F141: Non AMI - Type 6 Locally read Accumulation - 3 Phase | G141: 0 | H141: Direct Connect Meter Population | I141: Meter Type 6 | J141: 0 | K141: ACC 3ph | L141: $dollars | M141: 2018-12-01 | O141: 0 | P141: 0 | Q141: 0 | R141: 0 | S141: 0 | T141: 0 | U141: 0 | V141: 0
F142: 0 | G142: 0 | H142: 0 | I142: 0 | J142: 0 | K142: 0 | L142: $dollars | M142: 2018-12-01 | O142: 0 | P142: 0 | Q142: 0 | R142: 0 | S142: 0 | T142: 0 | U142: 0 | V142: 0
F143: 0 | G143: 0 | H143: 0 | I143: 0 | J143: 0 | K143: 0 | L143: $dollars | M143: 2018-12-01 | O143: 0 | P143: 0 | Q143: 0 | R143: 0 | S143: 0 | T143: 0 | U143: 0 | V143: 0
F144: 0 | G144: 0 | H144: 0 | I144: 0 | J144: 0 | K144: 0 | L144: $dollars | M144: 2018-12-01 | O144: 0 | P144: 0 | Q144: 0 | R144: 0 | S144: 0 | T144: 0 | U144: 0 | V144: 0
F145: 0 | G145: 0 | H145: 0 | I145: 0 | J145: 0 | K145: 0 | L145: $dollars | M145: 2018-12-01 | O145: 0 | P145: 0 | Q145: 0 | R145: 0 | S145: 0 | T145: 0 | U145: 0 | V145: 0
F146: 0 | G146: 0 | H146: 0 | I146: 0 | J146: 0 | K146: 0 | L146: $dollars | M146: 2018-12-01 | O146: 0 | P146: 0 | Q146: 0 | R146: 0 | S146: 0 | T146: 0 | U146: 0 | V146: 0
F147: 0 | G147: 0 | H147: 0 | I147: 0 | J147: 0 | K147: 0 | L147: $dollars | M147: 2018-12-01 | O147: 0 | P147: 0 | Q147: 0 | R147: 0 | S147: 0 | T147: 0 | U147: 0 | V147: 0
F148: Total | L148: $dollars | M148: 2018-12-01 | O148: =SUM(O133:O147) -> 0 | P148: =SUM(P133:P147) -> 0 | Q148: 0 | R148: 0 | S148: 0 | T148: 0 | U148: 0 | V148: =SUM(Q148:U148) -> 0
D150: 8 | E150: ='Input | Meters Vols & Costs'!$G$36 -> 0
F152: =I_MeterTypes[[#Headers],[Meter Type]] -> Meter Type | G152: =I_MeterTypes[[#Headers],[RIN Subcategory 1]] -> RIN Subcategory 1 | H152: =I_MeterTypes[[#Headers],[RIN Subcategory 2]] -> RIN Subcategory 2 | I152: =I_MeterTypes[[#Headers],[AER Type]] -> AER Type | J152: =I_MeterTypes[[#Headers],[RIN Subcategory 3]] -> RIN Subcategory 3 | K152: =I_MeterTypes[[#Headers],[Meter Code]] -> Meter Code | L152: Units | M152: Basis | O152: =O$12 -> 2018-19 | P152: =P$12 -> 2019-20 | Q152: 2020-21 | R152: 2021-22 | S152: 2022-23 | T152: 2023-24 | U152: 2024-25 | V152: Total
F153: =I_MeterTypes[Meter Type] -> AMI - Single Phase, single element | G153: =I_MeterTypes[RIN Subcategory 1] -> Single Phase Meter Population | H153: =I_MeterTypes[RIN Subcategory 2] -> Other | I153: =I_MeterTypes[AER Type] -> Meter Type 4 | J153: =I_MeterTypes[RIN Subcategory 3] -> Single phase single element - AMI | K153: =I_MeterTypes[Meter Code] -> AMI 1ph 1e | L153: $dollars | M153: =Basis_Capex -> 2018-12-01 | O153: =IF('Input | Meters Vols & Costs'!$P$77="Yes",'Input| Prices'!K$55,1)*INDEX(ICM_LabourCost,,$D150)*INDEX(ICM_Vol8,,O$8) -> 0 | P153: =IF('Input | Meters Vols & Costs'!$P$77="Yes",'Input| Prices'!L$55,1)*INDEX(ICM_LabourCost,,$D150)*INDEX(ICM_Vol8,,P$8) -> 0 | Q153: =IF('Input | Meters Vols & Costs'!$P$77="Yes",'Input| Prices'!M$55,1)*INDEX(ICM_LabourCost,,$D150)*INDEX(ICM_Vol8,,Q$8) -> 0 | R153: =IF('Input | Meters Vols & Costs'!$P$77="Yes",'Input| Prices'!N$55,1)*INDEX(ICM_LabourCost,,$D150)*INDEX(ICM_Vol8,,R$8) -> 0 | S153: =IF('Input | Meters Vols & Costs'!$P$77="Yes",'Input| Prices'!O$55,1)*INDEX(ICM_LabourCost,,$D150)*INDEX(ICM_Vol8,,S$8) -> 0 | T153: =IF('Input | Meters Vols & Costs'!$P$77="Yes",'Input| Prices'!P$55,1)*INDEX(ICM_LabourCost,,$D150)*INDEX(ICM_Vol8,,T$8) -> 0 | U153: =IF('Input | Meters Vols & Costs'!$P$77="Yes",'Input| Prices'!Q$55,1)*INDEX(ICM_LabourCost,,$D150)*INDEX(ICM_Vol8,,U$8) -> 0 | V153: =SUM(N153:U153) -> 0
F154: AMI - Single Phase, two element | G154: Single Phase Meter Population | H154: Other | I154: Meter Type 4 | J154: Single phase two element with contactor - AMI | K154: AMI 1ph 2e | L154: $dollars | M154: 2018-12-01 | O154: 0 | P154: 0 | Q154: 0 | R154: 0 | S154: 0 | T154: 0 | U154: 0 | V154: 0
F155: AMI - 3 Phase DC | G155: Multi Phase Meter Population | H155: Direct Connect Meter Population | I155: Meter Type 4 | J155: Three phase - AMI | K155: AMI 3ph DC | L155: $dollars | M155: 2018-12-01 | O155: 0 | P155: 0 | Q155: 0 | R155: 0 | S155: 0 | T155: 0 | U155: 0 | V155: 0
F156: AMI 3Ph CT | G156: Multi Phase Meter Population | H156: Current Transformer Connected Meter Population | I156: Meter Type 4 | J156: 0 | K156: AMI 3ph CT | L156: $dollars | M156: 2018-12-01 | O156: 0 | P156: 0 | Q156: 0 | R156: 0 | S156: 0 | T156: 0 | U156: 0 | V156: 0
F157: Non AMI - Type 5 Locally read Interval - Single Phase | G157: Single Phase Meter Population | H157: Direct Connect Meter Population | I157: Meter Type 5 | J157: 0 | K157: INT 1ph | L157: $dollars | M157: 2018-12-01 | O157: 0 | P157: 0 | Q157: 0 | R157: 0 | S157: 0 | T157: 0 | U157: 0 | V157: 0
F158: Non AMI - Type 5 Locally read Interval - 3 Phase | G158: Single Phase Meter Population | H158: Direct Connect Meter Population | I158: Meter Type 5 | J158: 0 | K158: INT 3ph | L158: $dollars | M158: 2018-12-01 | O158: 0 | P158: 0 | Q158: 0 | R158: 0 | S158: 0 | T158: 0 | U158: 0 | V158: 0
F159: Non AMI - Type 5 Locally read Interval - 3 Phase - CT | G159: Multi Phase Meter Population | H159: Current Transformer Connected Meter Population | I159: Meter Type 5 | J159: 0 | K159: INT 3ph CT | L159: $dollars | M159: 2018-12-01 | O159: 0 | P159: 0 | Q159: 0 | R159: 0 | S159: 0 | T159: 0 | U159: 0 | V159: 0
F160: Non AMI - Type 6 Locally read Accumulation - Single Phase | G160: Multi Phase Meter Population | H160: Direct Connect Meter Population | I160: Meter Type 6 | J160: 0 | K160: ACC 1ph | L160: $dollars | M160: 2018-12-01 | O160: 0 | P160: 0 | Q160: 0 | R160: 0 | S160: 0 | T160: 0 | U160: 0 | V160: 0
F161: Non AMI - Type 6 Locally read Accumulation - 3 Phase | G161: 0 | H161: Direct Connect Meter Population | I161: Meter Type 6 | J161: 0 | K161: ACC 3ph | L161: $dollars | M161: 2018-12-01 | O161: 0 | P161: 0 | Q161: 0 | R161: 0 | S161: 0 | T161: 0 | U161: 0 | V161: 0
F162: 0 | G162: 0 | H162: 0 | I162: 0 | J162: 0 | K162: 0 | L162: $dollars | M162: 2018-12-01 | O162: 0 | P162: 0 | Q162: 0 | R162: 0 | S162: 0 | T162: 0 | U162: 0 | V162: 0
F163: 0 | G163: 0 | H163: 0 | I163: 0 | J163: 0 | K163: 0 | L163: $dollars | M163: 2018-12-01 | O163: 0 | P163: 0 | Q163: 0 | R163: 0 | S163: 0 | T163: 0 | U163: 0 | V163: 0
F164: 0 | G164: 0 | H164: 0 | I164: 0 | J164: 0 | K164: 0 | L164: $dollars | M164: 2018-12-01 | O164: 0 | P164: 0 | Q164: 0 | R164: 0 | S164: 0 | T164: 0 | U164: 0 | V164: 0
F165: 0 | G165: 0 | H165: 0 | I165: 0 | J165: 0 | K165: 0 | L165: $dollars | M165: 2018-12-01 | O165: 0 | P165: 0 | Q165: 0 | R165: 0 | S165: 0 | T165: 0 | U165: 0 | V165: 0
F166: 0 | G166: 0 | H166: 0 | I166: 0 | J166: 0 | K166: 0 | L166: $dollars | M166: 2018-12-01 | O166: 0 | P166: 0 | Q166: 0 | R166: 0 | S166: 0 | T166: 0 | U166: 0 | V166: 0
F167: 0 | G167: 0 | H167: 0 | I167: 0 | J167: 0 | K167: 0 | L167: $dollars | M167: 2018-12-01 | O167: 0 | P167: 0 | Q167: 0 | R167: 0 | S167: 0 | T167: 0 | U167: 0 | V167: 0
F168: Total | L168: $dollars | M168: 2018-12-01 | O168: =SUM(O153:O167) -> 0 | P168: =SUM(P153:P167) -> 0 | Q168: 0 | R168: 0 | S168: 0 | T168: 0 | U168: 0 | V168: =SUM(Q168:U168) -> 0
D170: 9 | E170: ='Input | Meters Vols & Costs'!$G$37 -> 0
F172: =I_MeterTypes[[#Headers],[Meter Type]] -> Meter Type | G172: =I_MeterTypes[[#Headers],[RIN Subcategory 1]] -> RIN Subcategory 1 | H172: =I_MeterTypes[[#Headers],[RIN Subcategory 2]] -> RIN Subcategory 2 | I172: =I_MeterTypes[[#Headers],[AER Type]] -> AER Type | J172: =I_MeterTypes[[#Headers],[RIN Subcategory 3]] -> RIN Subcategory 3 | K172: =I_MeterTypes[[#Headers],[Meter Code]] -> Meter Code | L172: Units | M172: Basis | O172: =O$12 -> 2018-19 | P172: =P$12 -> 2019-20 | Q172: 2020-21 | R172: 2021-22 | S172: 2022-23 | T172: 2023-24 | U172: 2024-25 | V172: Total
F173: =I_MeterTypes[Meter Type] -> AMI - Single Phase, single element | G173: =I_MeterTypes[RIN Subcategory 1] -> Single Phase Meter Population | H173: =I_MeterTypes[RIN Subcategory 2] -> Other | I173: =I_MeterTypes[AER Type] -> Meter Type 4 | J173: =I_MeterTypes[RIN Subcategory 3] -> Single phase single element - AMI | K173: =I_MeterTypes[Meter Code] -> AMI 1ph 1e | L173: $dollars | M173: =Basis_Capex -> 2018-12-01 | O173: =IF('Input | Meters Vols & Costs'!$P$77="Yes",'Input| Prices'!K$55,1)*INDEX(ICM_LabourCost,,$D170)*INDEX(ICM_Vol9,,O$8) -> 0 | P173: =IF('Input | Meters Vols & Costs'!$P$77="Yes",'Input| Prices'!L$55,1)*INDEX(ICM_LabourCost,,$D170)*INDEX(ICM_Vol9,,P$8) -> 0 | Q173: =IF('Input | Meters Vols & Costs'!$P$77="Yes",'Input| Prices'!M$55,1)*INDEX(ICM_LabourCost,,$D170)*INDEX(ICM_Vol9,,Q$8) -> 0 | R173: =IF('Input | Meters Vols & Costs'!$P$77="Yes",'Input| Prices'!N$55,1)*INDEX(ICM_LabourCost,,$D170)*INDEX(ICM_Vol9,,R$8) -> 0 | S173: =IF('Input | Meters Vols & Costs'!$P$77="Yes",'Input| Prices'!O$55,1)*INDEX(ICM_LabourCost,,$D170)*INDEX(ICM_Vol9,,S$8) -> 0 | T173: =IF('Input | Meters Vols & Costs'!$P$77="Yes",'Input| Prices'!P$55,1)*INDEX(ICM_LabourCost,,$D170)*INDEX(ICM_Vol9,,T$8) -> 0 | U173: =IF('Input | Meters Vols & Costs'!$P$77="Yes",'Input| Prices'!Q$55,1)*INDEX(ICM_LabourCost,,$D170)*INDEX(ICM_Vol9,,U$8) -> 0 | V173: =SUM(N173:U173) -> 0
F174: AMI - Single Phase, two element | G174: Single Phase Meter Population | H174: Other | I174: Meter Type 4 | J174: Single phase two element with contactor - AMI | K174: AMI 1ph 2e | L174: $dollars | M174: 2018-12-01 | O174: 0 | P174: 0 | Q174: 0 | R174: 0 | S174: 0 | T174: 0 | U174: 0 | V174: 0
F175: AMI - 3 Phase DC | G175: Multi Phase Meter Population | H175: Direct Connect Meter Population | I175: Meter Type 4 | J175: Three phase - AMI | K175: AMI 3ph DC | L175: $dollars | M175: 2018-12-01 | O175: 0 | P175: 0 | Q175: 0 | R175: 0 | S175: 0 | T175: 0 | U175: 0 | V175: 0
F176: AMI 3Ph CT | G176: Multi Phase Meter Population | H176: Current Transformer Connected Meter Population | I176: Meter Type 4 | J176: 0 | K176: AMI 3ph CT | L176: $dollars | M176: 2018-12-01 | O176: 0 | P176: 0 | Q176: 0 | R176: 0 | S176: 0 | T176: 0 | U176: 0 | V176: 0
F177: Non AMI - Type 5 Locally read Interval - Single Phase | G177: Single Phase Meter Population | H177: Direct Connect Meter Population | I177: Meter Type 5 | J177: 0 | K177: INT 1ph | L177: $dollars | M177: 2018-12-01 | O177: 0 | P177: 0 | Q177: 0 | R177: 0 | S177: 0 | T177: 0 | U177: 0 | V177: 0
F178: Non AMI - Type 5 Locally read Interval - 3 Phase | G178: Single Phase Meter Population | H178: Direct Connect Meter Population | I178: Meter Type 5 | J178: 0 | K178: INT 3ph | L178: $dollars | M178: 2018-12-01 | O178: 0 | P178: 0 | Q178: 0 | R178: 0 | S178: 0 | T178: 0 | U178: 0 | V178: 0
F179: Non AMI - Type 5 Locally read Interval - 3 Phase - CT | G179: Multi Phase Meter Population | H179: Current Transformer Connected Meter Population | I179: Meter Type 5 | J179: 0 | K179: INT 3ph CT | L179: $dollars | M179: 2018-12-01 | O179: 0 | P179: 0 | Q179: 0 | R179: 0 | S179: 0 | T179: 0 | U179: 0 | V179: 0
F180: Non AMI - Type 6 Locally read Accumulation - Single Phase | G180: Multi Phase Meter Population | H180: Direct Connect Meter Population | I180: Meter Type 6 | J180: 0 | K180: ACC 1ph | L180: $dollars | M180: 2018-12-01 | O180: 0 | P180: 0 | Q180: 0 | R180: 0 | S180: 0 | T180: 0 | U180: 0 | V180: 0
F181: Non AMI - Type 6 Locally read Accumulation - 3 Phase | G181: 0 | H181: Direct Connect Meter Population | I181: Meter Type 6 | J181: 0 | K181: ACC 3ph | L181: $dollars | M181: 2018-12-01 | O181: 0 | P181: 0 | Q181: 0 | R181: 0 | S181: 0 | T181: 0 | U181: 0 | V181: 0
F182: 0 | G182: 0 | H182: 0 | I182: 0 | J182: 0 | K182: 0 | L182: $dollars | M182: 2018-12-01 | O182: 0 | P182: 0 | Q182: 0 | R182: 0 | S182: 0 | T182: 0 | U182: 0 | V182: 0
F183: 0 | G183: 0 | H183: 0 | I183: 0 | J183: 0 | K183: 0 | L183: $dollars | M183: 2018-12-01 | O183: 0 | P183: 0 | Q183: 0 | R183: 0 | S183: 0 | T183: 0 | U183: 0 | V183: 0
F184: 0 | G184: 0 | H184: 0 | I184: 0 | J184: 0 | K184: 0 | L184: $dollars | M184: 2018-12-01 | O184: 0 | P184: 0 | Q184: 0 | R184: 0 | S184: 0 | T184: 0 | U184: 0 | V184: 0
F185: 0 | G185: 0 | H185: 0 | I185: 0 | J185: 0 | K185: 0 | L185: $dollars | M185: 2018-12-01 | O185: 0 | P185: 0 | Q185: 0 | R185: 0 | S185: 0 | T185: 0 | U185: 0 | V185: 0
F186: 0 | G186: 0 | H186: 0 | I186: 0 | J186: 0 | K186: 0 | L186: $dollars | M186: 2018-12-01 | O186: 0 | P186: 0 | Q186: 0 | R186: 0 | S186: 0 | T186: 0 | U186: 0 | V186: 0
F187: 0 | G187: 0 | H187: 0 | I187: 0 | J187: 0 | K187: 0 | L187: $dollars | M187: 2018-12-01 | O187: 0 | P187: 0 | Q187: 0 | R187: 0 | S187: 0 | T187: 0 | U187: 0 | V187: 0
F188: Total | L188: $dollars | M188: 2018-12-01 | O188: =SUM(O173:O187) -> 0 | P188: =SUM(P173:P187) -> 0 | Q188: 0 | R188: 0 | S188: 0 | T188: 0 | U188: 0 | V188: =SUM(Q188:U188) -> 0
D190: 10 | E190: ='Input | Meters Vols & Costs'!$G$38 -> Meter abolishments
F192: =I_MeterTypes[[#Headers],[Meter Type]] -> Meter Type | G192: =I_MeterTypes[[#Headers],[RIN Subcategory 1]] -> RIN Subcategory 1 | H192: =I_MeterTypes[[#Headers],[RIN Subcategory 2]] -> RIN Subcategory 2 | I192: =I_MeterTypes[[#Headers],[AER Type]] -> AER Type | J192: =I_MeterTypes[[#Headers],[RIN Subcategory 3]] -> RIN Subcategory 3 | K192: =I_MeterTypes[[#Headers],[Meter Code]] -> Meter Code | L192: Units | M192: Basis | O192: =O$12 -> 2018-19 | P192: =P$12 -> 2019-20 | Q192: 2020-21 | R192: 2021-22 | S192: 2022-23 | T192: 2023-24 | U192: 2024-25 | V192: Total
F193: =I_MeterTypes[Meter Type] -> AMI - Single Phase, single element | G193: =I_MeterTypes[RIN Subcategory 1] -> Single Phase Meter Population | H193: =I_MeterTypes[RIN Subcategory 2] -> Other | I193: =I_MeterTypes[AER Type] -> Meter Type 4 | J193: =I_MeterTypes[RIN Subcategory 3] -> Single phase single element - AMI | K193: =I_MeterTypes[Meter Code] -> AMI 1ph 1e | L193: $dollars | M193: =Basis_Capex -> 2018-12-01 | O193: =IF('Input | Meters Vols & Costs'!$P$77="Yes",'Input| Prices'!K$55,1)*INDEX(ICM_LabourCost,,$D190)*INDEX(ICM_Vol10,,O$8) -> 0 | P193: =IF('Input | Meters Vols & Costs'!$P$77="Yes",'Input| Prices'!L$55,1)*INDEX(ICM_LabourCost,,$D190)*INDEX(ICM_Vol10,,P$8) -> 0 | Q193: =IF('Input | Meters Vols & Costs'!$P$77="Yes",'Input| Prices'!M$55,1)*INDEX(ICM_LabourCost,,$D190)*INDEX(ICM_Vol10,,Q$8) -> 0 | R193: =IF('Input | Meters Vols & Costs'!$P$77="Yes",'Input| Prices'!N$55,1)*INDEX(ICM_LabourCost,,$D190)*INDEX(ICM_Vol10,,R$8) -> 0 | S193: =IF('Input | Meters Vols & Costs'!$P$77="Yes",'Input| Prices'!O$55,1)*INDEX(ICM_LabourCost,,$D190)*INDEX(ICM_Vol10,,S$8) -> 0 | T193: =IF('Input | Meters Vols & Costs'!$P$77="Yes",'Input| Prices'!P$55,1)*INDEX(ICM_LabourCost,,$D190)*INDEX(ICM_Vol10,,T$8) -> 0 | U193: =IF('Input | Meters Vols & Costs'!$P$77="Yes",'Input| Prices'!Q$55,1)*INDEX(ICM_LabourCost,,$D190)*INDEX(ICM_Vol10,,U$8) -> 0 | V193: =SUM(N193:U193) -> 0
F194: AMI - Single Phase, two element | G194: Single Phase Meter Population | H194: Other | I194: Meter Type 4 | J194: Single phase two element with contactor - AMI | K194: AMI 1ph 2e | L194: $dollars | M194: 2018-12-01 | O194: 0 | P194: 0 | Q194: 0 | R194: 0 | S194: 0 | T194: 0 | U194: 0 | V194: 0
F195: AMI - 3 Phase DC | G195: Multi Phase Meter Population | H195: Direct Connect Meter Population | I195: Meter Type 4 | J195: Three phase - AMI | K195: AMI 3ph DC | L195: $dollars | M195: 2018-12-01 | O195: 0 | P195: 0 | Q195: 0 | R195: 0 | S195: 0 | T195: 0 | U195: 0 | V195: 0
F196: AMI 3Ph CT | G196: Multi Phase Meter Population | H196: Current Transformer Connected Meter Population | I196: Meter Type 4 | J196: 0 | K196: AMI 3ph CT | L196: $dollars | M196: 2018-12-01 | O196: 0 | P196: 0 | Q196: 0 | R196: 0 | S196: 0 | T196: 0 | U196: 0 | V196: 0
F197: Non AMI - Type 5 Locally read Interval - Single Phase | G197: Single Phase Meter Population | H197: Direct Connect Meter Population | I197: Meter Type 5 | J197: 0 | K197: INT 1ph | L197: $dollars | M197: 2018-12-01 | O197: 0 | P197: 0 | Q197: 0 | R197: 0 | S197: 0 | T197: 0 | U197: 0 | V197: 0
F198: Non AMI - Type 5 Locally read Interval - 3 Phase | G198: Single Phase Meter Population | H198: Direct Connect Meter Population | I198: Meter Type 5 | J198: 0 | K198: INT 3ph | L198: $dollars | M198: 2018-12-01 | O198: 0 | P198: 0 | Q198: 0 | R198: 0 | S198: 0 | T198: 0 | U198: 0 | V198: 0
F199: Non AMI - Type 5 Locally read Interval - 3 Phase - CT | G199: Multi Phase Meter Population | H199: Current Transformer Connected Meter Population | I199: Meter Type 5 | J199: 0 | K199: INT 3ph CT | L199: $dollars | M199: 2018-12-01 | O199: 0 | P199: 0 | Q199: 0 | R199: 0 | S199: 0 | T199: 0 | U199: 0 | V199: 0
F200: Non AMI - Type 6 Locally read Accumulation - Single Phase | G200: Multi Phase Meter Population | H200: Direct Connect Meter Population | I200: Meter Type 6 | J200: 0 | K200: ACC 1ph | L200: $dollars | M200: 2018-12-01 | O200: 0 | P200: 0 | Q200: 0 | R200: 0 | S200: 0 | T200: 0 | U200: 0 | V200: 0
F201: Non AMI - Type 6 Locally read Accumulation - 3 Phase | G201: 0 | H201: Direct Connect Meter Population | I201: Meter Type 6 | J201: 0 | K201: ACC 3ph | L201: $dollars | M201: 2018-12-01 | O201: 0 | P201: 0 | Q201: 0 | R201: 0 | S201: 0 | T201: 0 | U201: 0 | V201: 0
F202: 0 | G202: 0 | H202: 0 | I202: 0 | J202: 0 | K202: 0 | L202: $dollars | M202: 2018-12-01 | O202: 0 | P202: 0 | Q202: 0 | R202: 0 | S202: 0 | T202: 0 | U202: 0 | V202: 0
F203: 0 | G203: 0 | H203: 0 | I203: 0 | J203: 0 | K203: 0 | L203: $dollars | M203: 2018-12-01 | O203: 0 | P203: 0 | Q203: 0 | R203: 0 | S203: 0 | T203: 0 | U203: 0 | V203: 0
F204: 0 | G204: 0 | H204: 0 | I204: 0 | J204: 0 | K204: 0 | L204: $dollars | M204: 2018-12-01 | O204: 0 | P204: 0 | Q204: 0 | R204: 0 | S204: 0 | T204: 0 | U204: 0 | V204: 0
F205: 0 | G205: 0 | H205: 0 | I205: 0 | J205: 0 | K205: 0 | L205: $dollars | M205: 2018-12-01 | O205: 0 | P205: 0 | Q205: 0 | R205: 0 | S205: 0 | T205: 0 | U205: 0 | V205: 0
F206: 0 | G206: 0 | H206: 0 | I206: 0 | J206: 0 | K206: 0 | L206: $dollars | M206: 2018-12-01 | O206: 0 | P206: 0 | Q206: 0 | R206: 0 | S206: 0 | T206: 0 | U206: 0 | V206: 0
F207: 0 | G207: 0 | H207: 0 | I207: 0 | J207: 0 | K207: 0 | L207: $dollars | M207: 2018-12-01 | O207: 0 | P207: 0 | Q207: 0 | R207: 0 | S207: 0 | T207: 0 | U207: 0 | V207: 0
F208: Total | L208: $dollars | M208: 2018-12-01 | O208: =SUM(O193:O207) -> 0 | P208: =SUM(P193:P207) -> 0 | Q208: 0 | R208: 0 | S208: 0 | T208: 0 | U208: 0 | V208: =SUM(Q208:U208) -> 0
D210: TOTAL LABOUR COST
F212: =I_MeterTypes[[#Headers],[Meter Type]] -> Meter Type | G212: =I_MeterTypes[[#Headers],[RIN Subcategory 1]] -> RIN Subcategory 1 | H212: =I_MeterTypes[[#Headers],[RIN Subcategory 2]] -> RIN Subcategory 2 | I212: =I_MeterTypes[[#Headers],[AER Type]] -> AER Type | J212: =I_MeterTypes[[#Headers],[RIN Subcategory 3]] -> RIN Subcategory 3 | K212: =I_MeterTypes[[#Headers],[Meter Code]] -> Meter Code | L212: Units | M212: Basis | O212: =O$12 -> 2018-19 | P212: =P$12 -> 2019-20 | Q212: 2020-21 | R212: 2021-22 | S212: 2022-23 | T212: 2023-24 | U212: 2024-25 | V212: Total
F213: =I_MeterTypes[Meter Type] -> AMI - Single Phase, single element | G213: =I_MeterTypes[RIN Subcategory 1] -> Single Phase Meter Population | H213: =I_MeterTypes[RIN Subcategory 2] -> Other | I213: =I_MeterTypes[AER Type] -> Meter Type 4 | J213: =I_MeterTypes[RIN Subcategory 3] -> Single phase single element - AMI | K213: =I_MeterTypes[Meter Code] -> AMI 1ph 1e | L213: $dollars | M213: =Basis_Capex -> 2018-12-01 | O213: =O13+O33+O53+O73+O93+O113+O133+O153+O173+O193 -> 0 | P213: =P13+P33+P53+P73+P93+P113+P133+P153+P173+P193 -> 2462064.549 | Q213: 2486772.013 | R213: 2503251.509 | S213: 2518499.489 | T213: 2536954.368 | U213: 2561079.455 | V213: =SUM(N213:U213) -> 15068621.38
F214: AMI - Single Phase, two element | G214: Single Phase Meter Population | H214: Other | I214: Meter Type 4 | J214: Single phase two element with contactor - AMI | K214: AMI 1ph 2e | L214: $dollars | M214: 2018-12-01 | O214: =O14+O34+O54+O74+O94+O114+O134+O154+O174+O194 -> 0 | P214: 0 | Q214: 0 | R214: 0 | S214: 0 | T214: 0 | U214: 0 | V214: 0
F215: AMI - 3 Phase DC | G215: Multi Phase Meter Population | H215: Direct Connect Meter Population | I215: Meter Type 4 | J215: Three phase - AMI | K215: AMI 3ph DC | L215: $dollars | M215: 2018-12-01 | O215: =O15+O35+O55+O75+O95+O115+O135+O155+O175+O195 -> 0 | P215: 0 | Q215: 0 | R215: 0 | S215: 0 | T215: 0 | U215: 0 | V215: 0
F216: AMI 3Ph CT | G216: Multi Phase Meter Population | H216: Current Transformer Connected Meter Population | I216: Meter Type 4 | J216: 0 | K216: AMI 3ph CT | L216: $dollars | M216: 2018-12-01 | O216: =O16+O36+O56+O76+O96+O116+O136+O156+O176+O196 -> 0 | P216: 0 | Q216: 0 | R216: 0 | S216: 0 | T216: 0 | U216: 0 | V216: 0
F217: Non AMI - Type 5 Locally read Interval - Single Phase | G217: Single Phase Meter Population | H217: Direct Connect Meter Population | I217: Meter Type 5 | J217: 0 | K217: INT 1ph | L217: $dollars | M217: 2018-12-01 | O217: =O17+O37+O57+O77+O97+O117+O137+O157+O177+O197 -> 0 | P217: 0 | Q217: 0 | R217: 0 | S217: 0 | T217: 0 | U217: 0 | V217: 0
F218: Non AMI - Type 5 Locally read Interval - 3 Phase | G218: Single Phase Meter Population | H218: Direct Connect Meter Population | I218: Meter Type 5 | J218: 0 | K218: INT 3ph | L218: $dollars | M218: 2018-12-01 | O218: =O18+O38+O58+O78+O98+O118+O138+O158+O178+O198 -> 0 | P218: 0 | Q218: 0 | R218: 0 | S218: 0 | T218: 0 | U218: 0 | V218: 0
F219: Non AMI - Type 5 Locally read Interval - 3 Phase - CT | G219: Multi Phase Meter Population | H219: Current Transformer Connected Meter Population | I219: Meter Type 5 | J219: 0 | K219: INT 3ph CT | L219: $dollars | M219: 2018-12-01 | O219: =O19+O39+O59+O79+O99+O119+O139+O159+O179+O199 -> 0 | P219: 0 | Q219: 0 | R219: 0 | S219: 0 | T219: 0 | U219: 0 | V219: 0
F220: Non AMI - Type 6 Locally read Accumulation - Single Phase | G220: Multi Phase Meter Population | H220: Direct Connect Meter Population | I220: Meter Type 6 | J220: 0 | K220: ACC 1ph | L220: $dollars | M220: 2018-12-01 | O220: =O20+O40+O60+O80+O100+O120+O140+O160+O180+O200 -> 0 | P220: 0 | Q220: 0 | R220: 0 | S220: 0 | T220: 0 | U220: 0 | V220: 0
F221: Non AMI - Type 6 Locally read Accumulation - 3 Phase | G221: 0 | H221: Direct Connect Meter Population | I221: Meter Type 6 | J221: 0 | K221: ACC 3ph | L221: $dollars | M221: 2018-12-01 | O221: =O21+O41+O61+O81+O101+O121+O141+O161+O181+O201 -> 0 | P221: 0 | Q221: 0 | R221: 0 | S221: 0 | T221: 0 | U221: 0 | V221: 0
F222: 0 | G222: 0 | H222: 0 | I222: 0 | J222: 0 | K222: 0 | L222: $dollars | M222: 2018-12-01 | O222: =O22+O42+O62+O82+O102+O122+O142+O162+O182+O202 -> 0 | P222: 0 | Q222: 0 | R222: 0 | S222: 0 | T222: 0 | U222: 0 | V222: 0
F223: 0 | G223: 0 | H223: 0 | I223: 0 | J223: 0 | K223: 0 | L223: $dollars | M223: 2018-12-01 | O223: =O23+O43+O63+O83+O103+O123+O143+O163+O183+O203 -> 0 | P223: 0 | Q223: 0 | R223: 0 | S223: 0 | T223: 0 | U223: 0 | V223: 0
F224: 0 | G224: 0 | H224: 0 | I224: 0 | J224: 0 | K224: 0 | L224: $dollars | M224: 2018-12-01 | O224: =O24+O44+O64+O84+O104+O124+O144+O164+O184+O204 -> 0 | P224: 0 | Q224: 0 | R224: 0 | S224: 0 | T224: 0 | U224: 0 | V224: 0
F225: 0 | G225: 0 | H225: 0 | I225: 0 | J225: 0 | K225: 0 | L225: $dollars | M225: 2018-12-01 | O225: =O25+O45+O65+O85+O105+O125+O145+O165+O185+O205 -> 0 | P225: 0 | Q225: 0 | R225: 0 | S225: 0 | T225: 0 | U225: 0 | V225: 0
... 383 more rows

Sheet Calc | Capex Comm, IT, Other
B1: ='Input|General'!B1&" v"&'Input|General'!$D$2 -> AER Metering Opex & Capex Forecasting Model v1.08
B2: =MID(CELL("filename",A1),FIND("]",CELL("filename",A1))+1,255) -> Calc | Capex Comm, IT, Other
A7: CALC | Comms
B10: a | C10: Equipment cost
E11: Equipment Type | F11: Action/Driver | G11: Units | H11: Basis | J11: ='Input | Comms, IT, Other'!J$82 -> 2017-18 | K11: ='Input | Comms, IT, Other'!K$82 -> 2018-19 | L11: ='Input | Comms, IT, Other'!L$82 -> 2019-20 | M11: ='Input | Comms, IT, Other'!M$82 -> 2020-21 | N11: ='Input | Comms, IT, Other'!N$82 -> 2021-22 | O11: ='Input | Comms, IT, Other'!O$82 -> 2022-23 | P11: ='Input | Comms, IT, Other'!P$82 -> 2023-24 | Q11: ='Input | Comms, IT, Other'!Q$82 -> 2024-25
E12: =ICC_AllocFields -> Access Points | F12: Growth | G12: $dollars | H12: =Basis_Capex -> 2018-12-01 | J12: ='Input | Comms, IT, Other'!J202*'Input | Comms, IT, Other'!$I45*IF('Input | Comms, IT, Other'!$H45="Yes",'Input| Prices'!J$59,1) -> 0 | K12: ='Input | Comms, IT, Other'!K202*'Input | Comms, IT, Other'!$I45*IF('Input | Comms, IT, Other'!$H45="Yes",'Input| Prices'!K$59,1) -> 33252 | L12: ='Input | Comms, IT, Other'!L202*'Input | Comms, IT, Other'!$I45*IF('Input | Comms, IT, Other'!$H45="Yes",'Input| Prices'!L$59,1) -> 33820.26 | M12: ='Input | Comms, IT, Other'!M202*'Input | Comms, IT, Other'!$I45*IF('Input | Comms, IT, Other'!$H45="Yes",'Input| Prices'!M$59,1) -> 34393.3713 | N12: ='Input | Comms, IT, Other'!N202*'Input | Comms, IT, Other'!$I45*IF('Input | Comms, IT, Other'!$H45="Yes",'Input| Prices'!N$59,1) -> 35016.03151 | O12: ='Input | Comms, IT, Other'!O202*'Input | Comms, IT, Other'!$I45*IF('Input | Comms, IT, Other'!$H45="Yes",'Input| Prices'!O$59,1) -> 35680.78391 | P12: ='Input | Comms, IT, Other'!P202*'Input | Comms, IT, Other'!$I45*IF('Input | Comms, IT, Other'!$H45="Yes",'Input| Prices'!P$59,1) -> 36351.30843 | Q12: ='Input | Comms, IT, Other'!Q202*'Input | Comms, IT, Other'!$I45*IF('Input | Comms, IT, Other'!$H45="Yes",'Input| Prices'!Q$59,1) -> 36533.06497
E13: Relays | F13: Growth | G13: $dollars | H13: 2018-12-01 | J13: ='Input | Comms, IT, Other'!J203*'Input | Comms, IT, Other'!$I46*IF('Input | Comms, IT, Other'!$H46="Yes",'Input| Prices'!J$59,1) -> 0 | K13: ='Input | Comms, IT, Other'!K203*'Input | Comms, IT, Other'!$I46*IF('Input | Comms, IT, Other'!$H46="Yes",'Input| Prices'!K$59,1) -> 0 | L13: ='Input | Comms, IT, Other'!L203*'Input | Comms, IT, Other'!$I46*IF('Input | Comms, IT, Other'!$H46="Yes",'Input| Prices'!L$59,1) -> 0 | M13: ='Input | Comms, IT, Other'!M203*'Input | Comms, IT, Other'!$I46*IF('Input | Comms, IT, Other'!$H46="Yes",'Input| Prices'!M$59,1) -> 22500 | N13: ='Input | Comms, IT, Other'!N203*'Input | Comms, IT, Other'!$I46*IF('Input | Comms, IT, Other'!$H46="Yes",'Input| Prices'!N$59,1) -> 22500 | O13: ='Input | Comms, IT, Other'!O203*'Input | Comms, IT, Other'!$I46*IF('Input | Comms, IT, Other'!$H46="Yes",'Input| Prices'!O$59,1) -> 22500 | P13: ='Input | Comms, IT, Other'!P203*'Input | Comms, IT, Other'!$I46*IF('Input | Comms, IT, Other'!$H46="Yes",'Input| Prices'!P$59,1) -> 22500 | Q13: ='Input | Comms, IT, Other'!Q203*'Input | Comms, IT, Other'!$I46*IF('Input | Comms, IT, Other'!$H46="Yes",'Input| Prices'!Q$59,1) -> 22500
E14: Antennas | F14: Growth | G14: $dollars | H14: 2018-12-01 | J14: ='Input | Comms, IT, Other'!J204*'Input | Comms, IT, Other'!$I47*IF('Input | Comms, IT, Other'!$H47="Yes",'Input| Prices'!J$59,1) -> 0 | K14: ='Input | Comms, IT, Other'!K204*'Input | Comms, IT, Other'!$I47*IF('Input | Comms, IT, Other'!$H47="Yes",'Input| Prices'!K$59,1) -> 0 | L14: ='Input | Comms, IT, Other'!L204*'Input | Comms, IT, Other'!$I47*IF('Input | Comms, IT, Other'!$H47="Yes",'Input| Prices'!L$59,1) -> 0 | M14: ='Input | Comms, IT, Other'!M204*'Input | Comms, IT, Other'!$I47*IF('Input | Comms, IT, Other'!$H47="Yes",'Input| Prices'!M$59,1) -> 1200 | N14: ='Input | Comms, IT, Other'!N204*'Input | Comms, IT, Other'!$I47*IF('Input | Comms, IT, Other'!$H47="Yes",'Input| Prices'!N$59,1) -> 1200 | O14: ='Input | Comms, IT, Other'!O204*'Input | Comms, IT, Other'!$I47*IF('Input | Comms, IT, Other'!$H47="Yes",'Input| Prices'!O$59,1) -> 1200 | P14: ='Input | Comms, IT, Other'!P204*'Input | Comms, IT, Other'!$I47*IF('Input | Comms, IT, Other'!$H47="Yes",'Input| Prices'!P$59,1) -> 1200 | Q14: ='Input | Comms, IT, Other'!Q204*'Input | Comms, IT, Other'!$I47*IF('Input | Comms, IT, Other'!$H47="Yes",'Input| Prices'!Q$59,1) -> 1200
E15: Batteries | F15: Growth | G15: $dollars | H15: 2018-12-01 | J15: ='Input | Comms, IT, Other'!J205*'Input | Comms, IT, Other'!$I48*IF('Input | Comms, IT, Other'!$H48="Yes",'Input| Prices'!J$59,1) -> 0 | K15: ='Input | Comms, IT, Other'!K205*'Input | Comms, IT, Other'!$I48*IF('Input | Comms, IT, Other'!$H48="Yes",'Input| Prices'!K$59,1) -> 0 | L15: ='Input | Comms, IT, Other'!L205*'Input | Comms, IT, Other'!$I48*IF('Input | Comms, IT, Other'!$H48="Yes",'Input| Prices'!L$59,1) -> 0 | M15: ='Input | Comms, IT, Other'!M205*'Input | Comms, IT, Other'!$I48*IF('Input | Comms, IT, Other'!$H48="Yes",'Input| Prices'!M$59,1) -> 80000 | N15: ='Input | Comms, IT, Other'!N205*'Input | Comms, IT, Other'!$I48*IF('Input | Comms, IT, Other'!$H48="Yes",'Input| Prices'!N$59,1) -> 80000 | O15: ='Input | Comms, IT, Other'!O205*'Input | Comms, IT, Other'!$I48*IF('Input | Comms, IT, Other'!$H48="Yes",'Input| Prices'!O$59,1) -> 80000 | P15: ='Input | Comms, IT, Other'!P205*'Input | Comms, IT, Other'!$I48*IF('Input | Comms, IT, Other'!$H48="Yes",'Input| Prices'!P$59,1) -> 80000 | Q15: ='Input | Comms, IT, Other'!Q205*'Input | Comms, IT, Other'!$I48*IF('Input | Comms, IT, Other'!$H48="Yes",'Input| Prices'!Q$59,1) -> 80000
E16: Access Points | F16: Replacements - faults and failures | G16: $dollars | H16: 2018-12-01 | J16: ='Input | Comms, IT, Other'!J206*'Input | Comms, IT, Other'!$I49*IF('Input | Comms, IT, Other'!$H49="Yes",'Input| Prices'!J$59,1) -> 0 | K16: ='Input | Comms, IT, Other'!K206*'Input | Comms, IT, Other'!$I49*IF('Input | Comms, IT, Other'!$H49="Yes",'Input| Prices'!K$59,1) -> 0 | L16: ='Input | Comms, IT, Other'!L206*'Input | Comms, IT, Other'!$I49*IF('Input | Comms, IT, Other'!$H49="Yes",'Input| Prices'!L$59,1) -> 40000 | M16: ='Input | Comms, IT, Other'!M206*'Input | Comms, IT, Other'!$I49*IF('Input | Comms, IT, Other'!$H49="Yes",'Input| Prices'!M$59,1) -> 42000 | N16: ='Input | Comms, IT, Other'!N206*'Input | Comms, IT, Other'!$I49*IF('Input | Comms, IT, Other'!$H49="Yes",'Input| Prices'!N$59,1) -> 44000 | O16: ='Input | Comms, IT, Other'!O206*'Input | Comms, IT, Other'!$I49*IF('Input | Comms, IT, Other'!$H49="Yes",'Input| Prices'!O$59,1) -> 46000 | P16: ='Input | Comms, IT, Other'!P206*'Input | Comms, IT, Other'!$I49*IF('Input | Comms, IT, Other'!$H49="Yes",'Input| Prices'!P$59,1) -> 48000 | Q16: ='Input | Comms, IT, Other'!Q206*'Input | Comms, IT, Other'!$I49*IF('Input | Comms, IT, Other'!$H49="Yes",'Input| Prices'!Q$59,1) -> 50000
E17: Batteries | F17: Replacements - faults and failures | G17: $dollars | H17: 2018-12-01 | J17: ='Input | Comms, IT, Other'!J207*'Input | Comms, IT, Other'!$I50*IF('Input | Comms, IT, Other'!$H50="Yes",'Input| Prices'!J$59,1) -> 0 | K17: ='Input | Comms, IT, Other'!K207*'Input | Comms, IT, Other'!$I50*IF('Input | Comms, IT, Other'!$H50="Yes",'Input| Prices'!K$59,1) -> 0 | L17: ='Input | Comms, IT, Other'!L207*'Input | Comms, IT, Other'!$I50*IF('Input | Comms, IT, Other'!$H50="Yes",'Input| Prices'!L$59,1) -> 14400 | M17: ='Input | Comms, IT, Other'!M207*'Input | Comms, IT, Other'!$I50*IF('Input | Comms, IT, Other'!$H50="Yes",'Input| Prices'!M$59,1) -> 14400 | N17: ='Input | Comms, IT, Other'!N207*'Input | Comms, IT, Other'!$I50*IF('Input | Comms, IT, Other'!$H50="Yes",'Input| Prices'!N$59,1) -> 16800 | O17: ='Input | Comms, IT, Other'!O207*'Input | Comms, IT, Other'!$I50*IF('Input | Comms, IT, Other'!$H50="Yes",'Input| Prices'!O$59,1) -> 19200 | P17: ='Input | Comms, IT, Other'!P207*'Input | Comms, IT, Other'!$I50*IF('Input | Comms, IT, Other'!$H50="Yes",'Input| Prices'!P$59,1) -> 21600 | Q17: ='Input | Comms, IT, Other'!Q207*'Input | Comms, IT, Other'!$I50*IF('Input | Comms, IT, Other'!$H50="Yes",'Input| Prices'!Q$59,1) -> 24000
E18: 0 | F18: 0 | G18: $dollars | H18: 2018-12-01 | J18: ='Input | Comms, IT, Other'!J208*'Input | Comms, IT, Other'!$I51*IF('Input | Comms, IT, Other'!$H51="Yes",'Input| Prices'!J$59,1) -> 0 | K18: ='Input | Comms, IT, Other'!K208*'Input | Comms, IT, Other'!$I51*IF('Input | Comms, IT, Other'!$H51="Yes",'Input| Prices'!K$59,1) -> 0 | L18: ='Input | Comms, IT, Other'!L208*'Input | Comms, IT, Other'!$I51*IF('Input | Comms, IT, Other'!$H51="Yes",'Input| Prices'!L$59,1) -> 0 | M18: ='Input | Comms, IT, Other'!M208*'Input | Comms, IT, Other'!$I51*IF('Input | Comms, IT, Other'!$H51="Yes",'Input| Prices'!M$59,1) -> 0 | N18: ='Input | Comms, IT, Other'!N208*'Input | Comms, IT, Other'!$I51*IF('Input | Comms, IT, Other'!$H51="Yes",'Input| Prices'!N$59,1) -> 0 | O18: ='Input | Comms, IT, Other'!O208*'Input | Comms, IT, Other'!$I51*IF('Input | Comms, IT, Other'!$H51="Yes",'Input| Prices'!O$59,1) -> 0 | P18: ='Input | Comms, IT, Other'!P208*'Input | Comms, IT, Other'!$I51*IF('Input | Comms, IT, Other'!$H51="Yes",'Input| Prices'!P$59,1) -> 0 | Q18: ='Input | Comms, IT, Other'!Q208*'Input | Comms, IT, Other'!$I51*IF('Input | Comms, IT, Other'!$H51="Yes",'Input| Prices'!Q$59,1) -> 0
E19: 0 | F19: 0 | G19: $dollars | H19: 2018-12-01 | J19: ='Input | Comms, IT, Other'!J209*'Input | Comms, IT, Other'!$I52*IF('Input | Comms, IT, Other'!$H52="Yes",'Input| Prices'!J$59,1) -> 0 | K19: ='Input | Comms, IT, Other'!K209*'Input | Comms, IT, Other'!$I52*IF('Input | Comms, IT, Other'!$H52="Yes",'Input| Prices'!K$59,1) -> 0 | L19: ='Input | Comms, IT, Other'!L209*'Input | Comms, IT, Other'!$I52*IF('Input | Comms, IT, Other'!$H52="Yes",'Input| Prices'!L$59,1) -> 0 | M19: ='Input | Comms, IT, Other'!M209*'Input | Comms, IT, Other'!$I52*IF('Input | Comms, IT, Other'!$H52="Yes",'Input| Prices'!M$59,1) -> 0 | N19: ='Input | Comms, IT, Other'!N209*'Input | Comms, IT, Other'!$I52*IF('Input | Comms, IT, Other'!$H52="Yes",'Input| Prices'!N$59,1) -> 0 | O19: ='Input | Comms, IT, Other'!O209*'Input | Comms, IT, Other'!$I52*IF('Input | Comms, IT, Other'!$H52="Yes",'Input| Prices'!O$59,1) -> 0 | P19: ='Input | Comms, IT, Other'!P209*'Input | Comms, IT, Other'!$I52*IF('Input | Comms, IT, Other'!$H52="Yes",'Input| Prices'!P$59,1) -> 0 | Q19: ='Input | Comms, IT, Other'!Q209*'Input | Comms, IT, Other'!$I52*IF('Input | Comms, IT, Other'!$H52="Yes",'Input| Prices'!Q$59,1) -> 0
E20: 0 | F20: 0 | G20: $dollars | H20: 2018-12-01 | J20: ='Input | Comms, IT, Other'!J210*'Input | Comms, IT, Other'!$I53*IF('Input | Comms, IT, Other'!$H53="Yes",'Input| Prices'!J$59,1) -> 0 | K20: ='Input | Comms, IT, Other'!K210*'Input | Comms, IT, Other'!$I53*IF('Input | Comms, IT, Other'!$H53="Yes",'Input| Prices'!K$59,1) -> 0 | L20: ='Input | Comms, IT, Other'!L210*'Input | Comms, IT, Other'!$I53*IF('Input | Comms, IT, Other'!$H53="Yes",'Input| Prices'!L$59,1) -> 0 | M20: ='Input | Comms, IT, Other'!M210*'Input | Comms, IT, Other'!$I53*IF('Input | Comms, IT, Other'!$H53="Yes",'Input| Prices'!M$59,1) -> 0 | N20: ='Input | Comms, IT, Other'!N210*'Input | Comms, IT, Other'!$I53*IF('Input | Comms, IT, Other'!$H53="Yes",'Input| Prices'!N$59,1) -> 0 | O20: ='Input | Comms, IT, Other'!O210*'Input | Comms, IT, Other'!$I53*IF('Input | Comms, IT, Other'!$H53="Yes",'Input| Prices'!O$59,1) -> 0 | P20: ='Input | Comms, IT, Other'!P210*'Input | Comms, IT, Other'!$I53*IF('Input | Comms, IT, Other'!$H53="Yes",'Input| Prices'!P$59,1) -> 0 | Q20: ='Input | Comms, IT, Other'!Q210*'Input | Comms, IT, Other'!$I53*IF('Input | Comms, IT, Other'!$H53="Yes",'Input| Prices'!Q$59,1) -> 0
E21: 0 | F21: 0 | G21: $dollars | H21: 2018-12-01 | J21: ='Input | Comms, IT, Other'!J211*'Input | Comms, IT, Other'!$I54*IF('Input | Comms, IT, Other'!$H54="Yes",'Input| Prices'!J$59,1) -> 0 | K21: ='Input | Comms, IT, Other'!K211*'Input | Comms, IT, Other'!$I54*IF('Input | Comms, IT, Other'!$H54="Yes",'Input| Prices'!K$59,1) -> 0 | L21: ='Input | Comms, IT, Other'!L211*'Input | Comms, IT, Other'!$I54*IF('Input | Comms, IT, Other'!$H54="Yes",'Input| Prices'!L$59,1) -> 0 | M21: ='Input | Comms, IT, Other'!M211*'Input | Comms, IT, Other'!$I54*IF('Input | Comms, IT, Other'!$H54="Yes",'Input| Prices'!M$59,1) -> 0 | N21: ='Input | Comms, IT, Other'!N211*'Input | Comms, IT, Other'!$I54*IF('Input | Comms, IT, Other'!$H54="Yes",'Input| Prices'!N$59,1) -> 0 | O21: ='Input | Comms, IT, Other'!O211*'Input | Comms, IT, Other'!$I54*IF('Input | Comms, IT, Other'!$H54="Yes",'Input| Prices'!O$59,1) -> 0 | P21: ='Input | Comms, IT, Other'!P211*'Input | Comms, IT, Other'!$I54*IF('Input | Comms, IT, Other'!$H54="Yes",'Input| Prices'!P$59,1) -> 0 | Q21: ='Input | Comms, IT, Other'!Q211*'Input | Comms, IT, Other'!$I54*IF('Input | Comms, IT, Other'!$H54="Yes",'Input| Prices'!Q$59,1) -> 0
E22: 0 | F22: 0 | G22: $dollars | H22: 2018-12-01 | J22: ='Input | Comms, IT, Other'!J212*'Input | Comms, IT, Other'!$I55*IF('Input | Comms, IT, Other'!$H55="Yes",'Input| Prices'!J$59,1) -> 0 | K22: ='Input | Comms, IT, Other'!K212*'Input | Comms, IT, Other'!$I55*IF('Input | Comms, IT, Other'!$H55="Yes",'Input| Prices'!K$59,1) -> 0 | L22: ='Input | Comms, IT, Other'!L212*'Input | Comms, IT, Other'!$I55*IF('Input | Comms, IT, Other'!$H55="Yes",'Input| Prices'!L$59,1) -> 0 | M22: ='Input | Comms, IT, Other'!M212*'Input | Comms, IT, Other'!$I55*IF('Input | Comms, IT, Other'!$H55="Yes",'Input| Prices'!M$59,1) -> 0 | N22: ='Input | Comms, IT, Other'!N212*'Input | Comms, IT, Other'!$I55*IF('Input | Comms, IT, Other'!$H55="Yes",'Input| Prices'!N$59,1) -> 0 | O22: ='Input | Comms, IT, Other'!O212*'Input | Comms, IT, Other'!$I55*IF('Input | Comms, IT, Other'!$H55="Yes",'Input| Prices'!O$59,1) -> 0 | P22: ='Input | Comms, IT, Other'!P212*'Input | Comms, IT, Other'!$I55*IF('Input | Comms, IT, Other'!$H55="Yes",'Input| Prices'!P$59,1) -> 0 | Q22: ='Input | Comms, IT, Other'!Q212*'Input | Comms, IT, Other'!$I55*IF('Input | Comms, IT, Other'!$H55="Yes",'Input| Prices'!Q$59,1) -> 0
E23: 0 | F23: 0 | G23: $dollars | H23: 2018-12-01 | J23: ='Input | Comms, IT, Other'!J213*'Input | Comms, IT, Other'!$I56*IF('Input | Comms, IT, Other'!$H56="Yes",'Input| Prices'!J$59,1) -> 0 | K23: ='Input | Comms, IT, Other'!K213*'Input | Comms, IT, Other'!$I56*IF('Input | Comms, IT, Other'!$H56="Yes",'Input| Prices'!K$59,1) -> 0 | L23: ='Input | Comms, IT, Other'!L213*'Input | Comms, IT, Other'!$I56*IF('Input | Comms, IT, Other'!$H56="Yes",'Input| Prices'!L$59,1) -> 0 | M23: ='Input | Comms, IT, Other'!M213*'Input | Comms, IT, Other'!$I56*IF('Input | Comms, IT, Other'!$H56="Yes",'Input| Prices'!M$59,1) -> 0 | N23: ='Input | Comms, IT, Other'!N213*'Input | Comms, IT, Other'!$I56*IF('Input | Comms, IT, Other'!$H56="Yes",'Input| Prices'!N$59,1) -> 0 | O23: ='Input | Comms, IT, Other'!O213*'Input | Comms, IT, Other'!$I56*IF('Input | Comms, IT, Other'!$H56="Yes",'Input| Prices'!O$59,1) -> 0 | P23: ='Input | Comms, IT, Other'!P213*'Input | Comms, IT, Other'!$I56*IF('Input | Comms, IT, Other'!$H56="Yes",'Input| Prices'!P$59,1) -> 0 | Q23: ='Input | Comms, IT, Other'!Q213*'Input | Comms, IT, Other'!$I56*IF('Input | Comms, IT, Other'!$H56="Yes",'Input| Prices'!Q$59,1) -> 0
E24: 0 | F24: 0 | G24: $dollars | H24: 2018-12-01 | J24: ='Input | Comms, IT, Other'!J214*'Input | Comms, IT, Other'!$I57*IF('Input | Comms, IT, Other'!$H57="Yes",'Input| Prices'!J$59,1) -> 0 | K24: ='Input | Comms, IT, Other'!K214*'Input | Comms, IT, Other'!$I57*IF('Input | Comms, IT, Other'!$H57="Yes",'Input| Prices'!K$59,1) -> 0 | L24: ='Input | Comms, IT, Other'!L214*'Input | Comms, IT, Other'!$I57*IF('Input | Comms, IT, Other'!$H57="Yes",'Input| Prices'!L$59,1) -> 0 | M24: ='Input | Comms, IT, Other'!M214*'Input | Comms, IT, Other'!$I57*IF('Input | Comms, IT, Other'!$H57="Yes",'Input| Prices'!M$59,1) -> 0 | N24: ='Input | Comms, IT, Other'!N214*'Input | Comms, IT, Other'!$I57*IF('Input | Comms, IT, Other'!$H57="Yes",'Input| Prices'!N$59,1) -> 0 | O24: ='Input | Comms, IT, Other'!O214*'Input | Comms, IT, Other'!$I57*IF('Input | Comms, IT, Other'!$H57="Yes",'Input| Prices'!O$59,1) -> 0 | P24: ='Input | Comms, IT, Other'!P214*'Input | Comms, IT, Other'!$I57*IF('Input | Comms, IT, Other'!$H57="Yes",'Input| Prices'!P$59,1) -> 0 | Q24: ='Input | Comms, IT, Other'!Q214*'Input | Comms, IT, Other'!$I57*IF('Input | Comms, IT, Other'!$H57="Yes",'Input| Prices'!Q$59,1) -> 0
E25: 0 | F25: 0 | G25: $dollars | H25: 2018-12-01 | J25: ='Input | Comms, IT, Other'!J215*'Input | Comms, IT, Other'!$I58*IF('Input | Comms, IT, Other'!$H58="Yes",'Input| Prices'!J$59,1) -> 0 | K25: ='Input | Comms, IT, Other'!K215*'Input | Comms, IT, Other'!$I58*IF('Input | Comms, IT, Other'!$H58="Yes",'Input| Prices'!K$59,1) -> 0 | L25: ='Input | Comms, IT, Other'!L215*'Input | Comms, IT, Other'!$I58*IF('Input | Comms, IT, Other'!$H58="Yes",'Input| Prices'!L$59,1) -> 0 | M25: ='Input | Comms, IT, Other'!M215*'Input | Comms, IT, Other'!$I58*IF('Input | Comms, IT, Other'!$H58="Yes",'Input| Prices'!M$59,1) -> 0 | N25: ='Input | Comms, IT, Other'!N215*'Input | Comms, IT, Other'!$I58*IF('Input | Comms, IT, Other'!$H58="Yes",'Input| Prices'!N$59,1) -> 0 | O25: ='Input | Comms, IT, Other'!O215*'Input | Comms, IT, Other'!$I58*IF('Input | Comms, IT, Other'!$H58="Yes",'Input| Prices'!O$59,1) -> 0 | P25: ='Input | Comms, IT, Other'!P215*'Input | Comms, IT, Other'!$I58*IF('Input | Comms, IT, Other'!$H58="Yes",'Input| Prices'!P$59,1) -> 0 | Q25: ='Input | Comms, IT, Other'!Q215*'Input | Comms, IT, Other'!$I58*IF('Input | Comms, IT, Other'!$H58="Yes",'Input| Prices'!Q$59,1) -> 0
E26: 0 | F26: 0 | G26: $dollars | H26: 2018-12-01 | J26: ='Input | Comms, IT, Other'!J216*'Input | Comms, IT, Other'!$I59*IF('Input | Comms, IT, Other'!$H59="Yes",'Input| Prices'!J$59,1) -> 0 | K26: ='Input | Comms, IT, Other'!K216*'Input | Comms, IT, Other'!$I59*IF('Input | Comms, IT, Other'!$H59="Yes",'Input| Prices'!K$59,1) -> 0 | L26: ='Input | Comms, IT, Other'!L216*'Input | Comms, IT, Other'!$I59*IF('Input | Comms, IT, Other'!$H59="Yes",'Input| Prices'!L$59,1) -> 0 | M26: ='Input | Comms, IT, Other'!M216*'Input | Comms, IT, Other'!$I59*IF('Input | Comms, IT, Other'!$H59="Yes",'Input| Prices'!M$59,1) -> 0 | N26: ='Input | Comms, IT, Other'!N216*'Input | Comms, IT, Other'!$I59*IF('Input | Comms, IT, Other'!$H59="Yes",'Input| Prices'!N$59,1) -> 0 | O26: ='Input | Comms, IT, Other'!O216*'Input | Comms, IT, Other'!$I59*IF('Input | Comms, IT, Other'!$H59="Yes",'Input| Prices'!O$59,1) -> 0 | P26: ='Input | Comms, IT, Other'!P216*'Input | Comms, IT, Other'!$I59*IF('Input | Comms, IT, Other'!$H59="Yes",'Input| Prices'!P$59,1) -> 0 | Q26: ='Input | Comms, IT, Other'!Q216*'Input | Comms, IT, Other'!$I59*IF('Input | Comms, IT, Other'!$H59="Yes",'Input| Prices'!Q$59,1) -> 0
E27: 0 | F27: 0 | G27: $dollars | H27: 2018-12-01 | J27: ='Input | Comms, IT, Other'!J217*'Input | Comms, IT, Other'!$I60*IF('Input | Comms, IT, Other'!$H60="Yes",'Input| Prices'!J$59,1) -> 0 | K27: ='Input | Comms, IT, Other'!K217*'Input | Comms, IT, Other'!$I60*IF('Input | Comms, IT, Other'!$H60="Yes",'Input| Prices'!K$59,1) -> 0 | L27: ='Input | Comms, IT, Other'!L217*'Input | Comms, IT, Other'!$I60*IF('Input | Comms, IT, Other'!$H60="Yes",'Input| Prices'!L$59,1) -> 0 | M27: ='Input | Comms, IT, Other'!M217*'Input | Comms, IT, Other'!$I60*IF('Input | Comms, IT, Other'!$H60="Yes",'Input| Prices'!M$59,1) -> 0 | N27: ='Input | Comms, IT, Other'!N217*'Input | Comms, IT, Other'!$I60*IF('Input | Comms, IT, Other'!$H60="Yes",'Input| Prices'!N$59,1) -> 0 | O27: ='Input | Comms, IT, Other'!O217*'Input | Comms, IT, Other'!$I60*IF('Input | Comms, IT, Other'!$H60="Yes",'Input| Prices'!O$59,1) -> 0 | P27: ='Input | Comms, IT, Other'!P217*'Input | Comms, IT, Other'!$I60*IF('Input | Comms, IT, Other'!$H60="Yes",'Input| Prices'!P$59,1) -> 0 | Q27: ='Input | Comms, IT, Other'!Q217*'Input | Comms, IT, Other'!$I60*IF('Input | Comms, IT, Other'!$H60="Yes",'Input| Prices'!Q$59,1) -> 0
E28: 0 | F28: 0 | G28: $dollars | H28: 2018-12-01 | J28: ='Input | Comms, IT, Other'!J218*'Input | Comms, IT, Other'!$I61*IF('Input | Comms, IT, Other'!$H61="Yes",'Input| Prices'!J$59,1) -> 0 | K28: ='Input | Comms, IT, Other'!K218*'Input | Comms, IT, Other'!$I61*IF('Input | Comms, IT, Other'!$H61="Yes",'Input| Prices'!K$59,1) -> 0 | L28: ='Input | Comms, IT, Other'!L218*'Input | Comms, IT, Other'!$I61*IF('Input | Comms, IT, Other'!$H61="Yes",'Input| Prices'!L$59,1) -> 0 | M28: ='Input | Comms, IT, Other'!M218*'Input | Comms, IT, Other'!$I61*IF('Input | Comms, IT, Other'!$H61="Yes",'Input| Prices'!M$59,1) -> 0 | N28: ='Input | Comms, IT, Other'!N218*'Input | Comms, IT, Other'!$I61*IF('Input | Comms, IT, Other'!$H61="Yes",'Input| Prices'!N$59,1) -> 0 | O28: ='Input | Comms, IT, Other'!O218*'Input | Comms, IT, Other'!$I61*IF('Input | Comms, IT, Other'!$H61="Yes",'Input| Prices'!O$59,1) -> 0 | P28: ='Input | Comms, IT, Other'!P218*'Input | Comms, IT, Other'!$I61*IF('Input | Comms, IT, Other'!$H61="Yes",'Input| Prices'!P$59,1) -> 0 | Q28: ='Input | Comms, IT, Other'!Q218*'Input | Comms, IT, Other'!$I61*IF('Input | Comms, IT, Other'!$H61="Yes",'Input| Prices'!Q$59,1) -> 0
E29: 0 | F29: 0 | G29: $dollars | H29: 2018-12-01 | J29: ='Input | Comms, IT, Other'!J219*'Input | Comms, IT, Other'!$I62*IF('Input | Comms, IT, Other'!$H62="Yes",'Input| Prices'!J$59,1) -> 0 | K29: ='Input | Comms, IT, Other'!K219*'Input | Comms, IT, Other'!$I62*IF('Input | Comms, IT, Other'!$H62="Yes",'Input| Prices'!K$59,1) -> 0 | L29: ='Input | Comms, IT, Other'!L219*'Input | Comms, IT, Other'!$I62*IF('Input | Comms, IT, Other'!$H62="Yes",'Input| Prices'!L$59,1) -> 0 | M29: ='Input | Comms, IT, Other'!M219*'Input | Comms, IT, Other'!$I62*IF('Input | Comms, IT, Other'!$H62="Yes",'Input| Prices'!M$59,1) -> 0 | N29: ='Input | Comms, IT, Other'!N219*'Input | Comms, IT, Other'!$I62*IF('Input | Comms, IT, Other'!$H62="Yes",'Input| Prices'!N$59,1) -> 0 | O29: ='Input | Comms, IT, Other'!O219*'Input | Comms, IT, Other'!$I62*IF('Input | Comms, IT, Other'!$H62="Yes",'Input| Prices'!O$59,1) -> 0 | P29: ='Input | Comms, IT, Other'!P219*'Input | Comms, IT, Other'!$I62*IF('Input | Comms, IT, Other'!$H62="Yes",'Input| Prices'!P$59,1) -> 0 | Q29: ='Input | Comms, IT, Other'!Q219*'Input | Comms, IT, Other'!$I62*IF('Input | Comms, IT, Other'!$H62="Yes",'Input| Prices'!Q$59,1) -> 0
E30: 0 | F30: 0 | G30: $dollars | H30: 2018-12-01 | J30: ='Input | Comms, IT, Other'!J220*'Input | Comms, IT, Other'!$I63*IF('Input | Comms, IT, Other'!$H63="Yes",'Input| Prices'!J$59,1) -> 0 | K30: ='Input | Comms, IT, Other'!K220*'Input | Comms, IT, Other'!$I63*IF('Input | Comms, IT, Other'!$H63="Yes",'Input| Prices'!K$59,1) -> 0 | L30: ='Input | Comms, IT, Other'!L220*'Input | Comms, IT, Other'!$I63*IF('Input | Comms, IT, Other'!$H63="Yes",'Input| Prices'!L$59,1) -> 0 | M30: ='Input | Comms, IT, Other'!M220*'Input | Comms, IT, Other'!$I63*IF('Input | Comms, IT, Other'!$H63="Yes",'Input| Prices'!M$59,1) -> 0 | N30: ='Input | Comms, IT, Other'!N220*'Input | Comms, IT, Other'!$I63*IF('Input | Comms, IT, Other'!$H63="Yes",'Input| Prices'!N$59,1) -> 0 | O30: ='Input | Comms, IT, Other'!O220*'Input | Comms, IT, Other'!$I63*IF('Input | Comms, IT, Other'!$H63="Yes",'Input| Prices'!O$59,1) -> 0 | P30: ='Input | Comms, IT, Other'!P220*'Input | Comms, IT, Other'!$I63*IF('Input | Comms, IT, Other'!$H63="Yes",'Input| Prices'!P$59,1) -> 0 | Q30: ='Input | Comms, IT, Other'!Q220*'Input | Comms, IT, Other'!$I63*IF('Input | Comms, IT, Other'!$H63="Yes",'Input| Prices'!Q$59,1) -> 0
E31: 0 | F31: 0 | G31: $dollars | H31: 2018-12-01 | J31: ='Input | Comms, IT, Other'!J221*'Input | Comms, IT, Other'!$I64*IF('Input | Comms, IT, Other'!$H64="Yes",'Input| Prices'!J$59,1) -> 0 | K31: ='Input | Comms, IT, Other'!K221*'Input | Comms, IT, Other'!$I64*IF('Input | Comms, IT, Other'!$H64="Yes",'Input| Prices'!K$59,1) -> 0 | L31: ='Input | Comms, IT, Other'!L221*'Input | Comms, IT, Other'!$I64*IF('Input | Comms, IT, Other'!$H64="Yes",'Input| Prices'!L$59,1) -> 0 | M31: ='Input | Comms, IT, Other'!M221*'Input | Comms, IT, Other'!$I64*IF('Input | Comms, IT, Other'!$H64="Yes",'Input| Prices'!M$59,1) -> 0 | N31: ='Input | Comms, IT, Other'!N221*'Input | Comms, IT, Other'!$I64*IF('Input | Comms, IT, Other'!$H64="Yes",'Input| Prices'!N$59,1) -> 0 | O31: ='Input | Comms, IT, Other'!O221*'Input | Comms, IT, Other'!$I64*IF('Input | Comms, IT, Other'!$H64="Yes",'Input| Prices'!O$59,1) -> 0 | P31: ='Input | Comms, IT, Other'!P221*'Input | Comms, IT, Other'!$I64*IF('Input | Comms, IT, Other'!$H64="Yes",'Input| Prices'!P$59,1) -> 0 | Q31: ='Input | Comms, IT, Other'!Q221*'Input | Comms, IT, Other'!$I64*IF('Input | Comms, IT, Other'!$H64="Yes",'Input| Prices'!Q$59,1) -> 0
E32: Total | H32: 2018-12-01 | J32: =SUM(J12:J31) -> 0 | K32: 33252 | L32: 88220.26 | M32: 194493.3713 | N32: 199516.0315 | O32: 204580.7839 | P32: 209651.3084 | Q32: 214233.065
B34: b | C34: Installation cost
E35: Equipment Type | F35: Action/Driver | G35: Units | H35: Basis | J35: ='Input | Comms, IT, Other'!J$82 -> 2017-18 | K35: ='Input | Comms, IT, Other'!K$82 -> 2018-19 | L35: ='Input | Comms, IT, Other'!L$82 -> 2019-20 | M35: ='Input | Comms, IT, Other'!M$82 -> 2020-21 | N35: ='Input | Comms, IT, Other'!N$82 -> 2021-22 | O35: ='Input | Comms, IT, Other'!O$82 -> 2022-23 | P35: ='Input | Comms, IT, Other'!P$82 -> 2023-24 | Q35: ='Input | Comms, IT, Other'!Q$82 -> 2024-25
E36: =ICC_AllocFields -> Access Points | F36: Growth | G36: $dollars | H36: =Basis_Capex -> 2018-12-01 | J36: ='Input | Comms, IT, Other'!J202*'Input | Comms, IT, Other'!$L45*IF('Input | Comms, IT, Other'!$K45="Yes",'Input| Prices'!J$55,1) -> 0 | K36: ='Input | Comms, IT, Other'!K202*'Input | Comms, IT, Other'!$L45*IF('Input | Comms, IT, Other'!$K45="Yes",'Input| Prices'!K$55,1) -> 3325.2 | L36: ='Input | Comms, IT, Other'!L202*'Input | Comms, IT, Other'!$L45*IF('Input | Comms, IT, Other'!$K45="Yes",'Input| Prices'!L$55,1) -> 3381.771274 | M36: ='Input | Comms, IT, Other'!M202*'Input | Comms, IT, Other'!$L45*IF('Input | Comms, IT, Other'!$K45="Yes",'Input| Prices'!M$55,1) -> 3456.308595 | N36: ='Input | Comms, IT, Other'!N202*'Input | Comms, IT, Other'!$L45*IF('Input | Comms, IT, Other'!$K45="Yes",'Input| Prices'!N$55,1) -> 3524.578124 | O36: ='Input | Comms, IT, Other'!O202*'Input | Comms, IT, Other'!$L45*IF('Input | Comms, IT, Other'!$K45="Yes",'Input| Prices'!O$55,1) -> 3595.389311 | P36: ='Input | Comms, IT, Other'!P202*'Input | Comms, IT, Other'!$L45*IF('Input | Comms, IT, Other'!$K45="Yes",'Input| Prices'!P$55,1) -> 3671.438942 | Q36: ='Input | Comms, IT, Other'!Q202*'Input | Comms, IT, Other'!$L45*IF('Input | Comms, IT, Other'!$K45="Yes",'Input| Prices'!Q$55,1) -> 3706.352374
E37: Relays | F37: Growth | G37: $dollars | H37: 2018-12-01 | J37: ='Input | Comms, IT, Other'!J203*'Input | Comms, IT, Other'!$L46*IF('Input | Comms, IT, Other'!$K46="Yes",'Input| Prices'!J$55,1) -> 0 | K37: ='Input | Comms, IT, Other'!K203*'Input | Comms, IT, Other'!$L46*IF('Input | Comms, IT, Other'!$K46="Yes",'Input| Prices'!K$55,1) -> 0 | L37: ='Input | Comms, IT, Other'!L203*'Input | Comms, IT, Other'!$L46*IF('Input | Comms, IT, Other'!$K46="Yes",'Input| Prices'!L$55,1) -> 0 | M37: ='Input | Comms, IT, Other'!M203*'Input | Comms, IT, Other'!$L46*IF('Input | Comms, IT, Other'!$K46="Yes",'Input| Prices'!M$55,1) -> 12000 | N37: ='Input | Comms, IT, Other'!N203*'Input | Comms, IT, Other'!$L46*IF('Input | Comms, IT, Other'!$K46="Yes",'Input| Prices'!N$55,1) -> 12000 | O37: ='Input | Comms, IT, Other'!O203*'Input | Comms, IT, Other'!$L46*IF('Input | Comms, IT, Other'!$K46="Yes",'Input| Prices'!O$55,1) -> 12000 | P37: ='Input | Comms, IT, Other'!P203*'Input | Comms, IT, Other'!$L46*IF('Input | Comms, IT, Other'!$K46="Yes",'Input| Prices'!P$55,1) -> 12000 | Q37: ='Input | Comms, IT, Other'!Q203*'Input | Comms, IT, Other'!$L46*IF('Input | Comms, IT, Other'!$K46="Yes",'Input| Prices'!Q$55,1) -> 12000
E38: Antennas | F38: Growth | G38: $dollars | H38: 2018-12-01 | J38: ='Input | Comms, IT, Other'!J204*'Input | Comms, IT, Other'!$L47*IF('Input | Comms, IT, Other'!$K47="Yes",'Input| Prices'!J$55,1) -> 0 | K38: ='Input | Comms, IT, Other'!K204*'Input | Comms, IT, Other'!$L47*IF('Input | Comms, IT, Other'!$K47="Yes",'Input| Prices'!K$55,1) -> 0 | L38: ='Input | Comms, IT, Other'!L204*'Input | Comms, IT, Other'!$L47*IF('Input | Comms, IT, Other'!$K47="Yes",'Input| Prices'!L$55,1) -> 0 | M38: ='Input | Comms, IT, Other'!M204*'Input | Comms, IT, Other'!$L47*IF('Input | Comms, IT, Other'!$K47="Yes",'Input| Prices'!M$55,1) -> 1200 | N38: ='Input | Comms, IT, Other'!N204*'Input | Comms, IT, Other'!$L47*IF('Input | Comms, IT, Other'!$K47="Yes",'Input| Prices'!N$55,1) -> 1200 | O38: ='Input | Comms, IT, Other'!O204*'Input | Comms, IT, Other'!$L47*IF('Input | Comms, IT, Other'!$K47="Yes",'Input| Prices'!O$55,1) -> 1200 | P38: ='Input | Comms, IT, Other'!P204*'Input | Comms, IT, Other'!$L47*IF('Input | Comms, IT, Other'!$K47="Yes",'Input| Prices'!P$55,1) -> 1200 | Q38: ='Input | Comms, IT, Other'!Q204*'Input | Comms, IT, Other'!$L47*IF('Input | Comms, IT, Other'!$K47="Yes",'Input| Prices'!Q$55,1) -> 1200
E39: Batteries | F39: Growth | G39: $dollars | H39: 2018-12-01 | J39: ='Input | Comms, IT, Other'!J205*'Input | Comms, IT, Other'!$L48*IF('Input | Comms, IT, Other'!$K48="Yes",'Input| Prices'!J$55,1) -> 0 | K39: ='Input | Comms, IT, Other'!K205*'Input | Comms, IT, Other'!$L48*IF('Input | Comms, IT, Other'!$K48="Yes",'Input| Prices'!K$55,1) -> 0 | L39: ='Input | Comms, IT, Other'!L205*'Input | Comms, IT, Other'!$L48*IF('Input | Comms, IT, Other'!$K48="Yes",'Input| Prices'!L$55,1) -> 0 | M39: ='Input | Comms, IT, Other'!M205*'Input | Comms, IT, Other'!$L48*IF('Input | Comms, IT, Other'!$K48="Yes",'Input| Prices'!M$55,1) -> 80000 | N39: ='Input | Comms, IT, Other'!N205*'Input | Comms, IT, Other'!$L48*IF('Input | Comms, IT, Other'!$K48="Yes",'Input| Prices'!N$55,1) -> 80000 | O39: ='Input | Comms, IT, Other'!O205*'Input | Comms, IT, Other'!$L48*IF('Input | Comms, IT, Other'!$K48="Yes",'Input| Prices'!O$55,1) -> 80000 | P39: ='Input | Comms, IT, Other'!P205*'Input | Comms, IT, Other'!$L48*IF('Input | Comms, IT, Other'!$K48="Yes",'Input| Prices'!P$55,1) -> 80000 | Q39: ='Input | Comms, IT, Other'!Q205*'Input | Comms, IT, Other'!$L48*IF('Input | Comms, IT, Other'!$K48="Yes",'Input| Prices'!Q$55,1) -> 80000
E40: Access Points | F40: Replacements - faults and failures | G40: $dollars | H40: 2018-12-01 | J40: ='Input | Comms, IT, Other'!J206*'Input | Comms, IT, Other'!$L49*IF('Input | Comms, IT, Other'!$K49="Yes",'Input| Prices'!J$55,1) -> 0 | K40: ='Input | Comms, IT, Other'!K206*'Input | Comms, IT, Other'!$L49*IF('Input | Comms, IT, Other'!$K49="Yes",'Input| Prices'!K$55,1) -> 0 | L40: ='Input | Comms, IT, Other'!L206*'Input | Comms, IT, Other'!$L49*IF('Input | Comms, IT, Other'!$K49="Yes",'Input| Prices'!L$55,1) -> 4000 | M40: ='Input | Comms, IT, Other'!M206*'Input | Comms, IT, Other'!$L49*IF('Input | Comms, IT, Other'!$K49="Yes",'Input| Prices'!M$55,1) -> 4200 | N40: ='Input | Comms, IT, Other'!N206*'Input | Comms, IT, Other'!$L49*IF('Input | Comms, IT, Other'!$K49="Yes",'Input| Prices'!N$55,1) -> 4400 | O40: ='Input | Comms, IT, Other'!O206*'Input | Comms, IT, Other'!$L49*IF('Input | Comms, IT, Other'!$K49="Yes",'Input| Prices'!O$55,1) -> 4600 | P40: ='Input | Comms, IT, Other'!P206*'Input | Comms, IT, Other'!$L49*IF('Input | Comms, IT, Other'!$K49="Yes",'Input| Prices'!P$55,1) -> 4800 | Q40: ='Input | Comms, IT, Other'!Q206*'Input | Comms, IT, Other'!$L49*IF('Input | Comms, IT, Other'!$K49="Yes",'Input| Prices'!Q$55,1) -> 5000
E41: Batteries | F41: Replacements - faults and failures | G41: $dollars | H41: 2018-12-01 | J41: ='Input | Comms, IT, Other'!J207*'Input | Comms, IT, Other'!$L50*IF('Input | Comms, IT, Other'!$K50="Yes",'Input| Prices'!J$55,1) -> 0 | K41: ='Input | Comms, IT, Other'!K207*'Input | Comms, IT, Other'!$L50*IF('Input | Comms, IT, Other'!$K50="Yes",'Input| Prices'!K$55,1) -> 0 | L41: ='Input | Comms, IT, Other'!L207*'Input | Comms, IT, Other'!$L50*IF('Input | Comms, IT, Other'!$K50="Yes",'Input| Prices'!L$55,1) -> 14400 | M41: ='Input | Comms, IT, Other'!M207*'Input | Comms, IT, Other'!$L50*IF('Input | Comms, IT, Other'!$K50="Yes",'Input| Prices'!M$55,1) -> 14400 | N41: ='Input | Comms, IT, Other'!N207*'Input | Comms, IT, Other'!$L50*IF('Input | Comms, IT, Other'!$K50="Yes",'Input| Prices'!N$55,1) -> 16800 | O41: ='Input | Comms, IT, Other'!O207*'Input | Comms, IT, Other'!$L50*IF('Input | Comms, IT, Other'!$K50="Yes",'Input| Prices'!O$55,1) -> 19200 | P41: ='Input | Comms, IT, Other'!P207*'Input | Comms, IT, Other'!$L50*IF('Input | Comms, IT, Other'!$K50="Yes",'Input| Prices'!P$55,1) -> 21600 | Q41: ='Input | Comms, IT, Other'!Q207*'Input | Comms, IT, Other'!$L50*IF('Input | Comms, IT, Other'!$K50="Yes",'Input| Prices'!Q$55,1) -> 24000
E42: 0 | F42: 0 | G42: $dollars | H42: 2018-12-01 | J42: ='Input | Comms, IT, Other'!J208*'Input | Comms, IT, Other'!$L51*IF('Input | Comms, IT, Other'!$K51="Yes",'Input| Prices'!J$55,1) -> 0 | K42: ='Input | Comms, IT, Other'!K208*'Input | Comms, IT, Other'!$L51*IF('Input | Comms, IT, Other'!$K51="Yes",'Input| Prices'!K$55,1) -> 0 | L42: ='Input | Comms, IT, Other'!L208*'Input | Comms, IT, Other'!$L51*IF('Input | Comms, IT, Other'!$K51="Yes",'Input| Prices'!L$55,1) -> 0 | M42: ='Input | Comms, IT, Other'!M208*'Input | Comms, IT, Other'!$L51*IF('Input | Comms, IT, Other'!$K51="Yes",'Input| Prices'!M$55,1) -> 0 | N42: ='Input | Comms, IT, Other'!N208*'Input | Comms, IT, Other'!$L51*IF('Input | Comms, IT, Other'!$K51="Yes",'Input| Prices'!N$55,1) -> 0 | O42: ='Input | Comms, IT, Other'!O208*'Input | Comms, IT, Other'!$L51*IF('Input | Comms, IT, Other'!$K51="Yes",'Input| Prices'!O$55,1) -> 0 | P42: ='Input | Comms, IT, Other'!P208*'Input | Comms, IT, Other'!$L51*IF('Input | Comms, IT, Other'!$K51="Yes",'Input| Prices'!P$55,1) -> 0 | Q42: ='Input | Comms, IT, Other'!Q208*'Input | Comms, IT, Other'!$L51*IF('Input | Comms, IT, Other'!$K51="Yes",'Input| Prices'!Q$55,1) -> 0
E43: 0 | F43: 0 | G43: $dollars | H43: 2018-12-01 | J43: ='Input | Comms, IT, Other'!J209*'Input | Comms, IT, Other'!$L52*IF('Input | Comms, IT, Other'!$K52="Yes",'Input| Prices'!J$55,1) -> 0 | K43: ='Input | Comms, IT, Other'!K209*'Input | Comms, IT, Other'!$L52*IF('Input | Comms, IT, Other'!$K52="Yes",'Input| Prices'!K$55,1) -> 0 | L43: ='Input | Comms, IT, Other'!L209*'Input | Comms, IT, Other'!$L52*IF('Input | Comms, IT, Other'!$K52="Yes",'Input| Prices'!L$55,1) -> 0 | M43: ='Input | Comms, IT, Other'!M209*'Input | Comms, IT, Other'!$L52*IF('Input | Comms, IT, Other'!$K52="Yes",'Input| Prices'!M$55,1) -> 0 | N43: ='Input | Comms, IT, Other'!N209*'Input | Comms, IT, Other'!$L52*IF('Input | Comms, IT, Other'!$K52="Yes",'Input| Prices'!N$55,1) -> 0 | O43: ='Input | Comms, IT, Other'!O209*'Input | Comms, IT, Other'!$L52*IF('Input | Comms, IT, Other'!$K52="Yes",'Input| Prices'!O$55,1) -> 0 | P43: ='Input | Comms, IT, Other'!P209*'Input | Comms, IT, Other'!$L52*IF('Input | Comms, IT, Other'!$K52="Yes",'Input| Prices'!P$55,1) -> 0 | Q43: ='Input | Comms, IT, Other'!Q209*'Input | Comms, IT, Other'!$L52*IF('Input | Comms, IT, Other'!$K52="Yes",'Input| Prices'!Q$55,1) -> 0
E44: 0 | F44: 0 | G44: $dollars | H44: 2018-12-01 | J44: ='Input | Comms, IT, Other'!J210*'Input | Comms, IT, Other'!$L53*IF('Input | Comms, IT, Other'!$K53="Yes",'Input| Prices'!J$55,1) -> 0 | K44: ='Input | Comms, IT, Other'!K210*'Input | Comms, IT, Other'!$L53*IF('Input | Comms, IT, Other'!$K53="Yes",'Input| Prices'!K$55,1) -> 0 | L44: ='Input | Comms, IT, Other'!L210*'Input | Comms, IT, Other'!$L53*IF('Input | Comms, IT, Other'!$K53="Yes",'Input| Prices'!L$55,1) -> 0 | M44: ='Input | Comms, IT, Other'!M210*'Input | Comms, IT, Other'!$L53*IF('Input | Comms, IT, Other'!$K53="Yes",'Input| Prices'!M$55,1) -> 0 | N44: ='Input | Comms, IT, Other'!N210*'Input | Comms, IT, Other'!$L53*IF('Input | Comms, IT, Other'!$K53="Yes",'Input| Prices'!N$55,1) -> 0 | O44: ='Input | Comms, IT, Other'!O210*'Input | Comms, IT, Other'!$L53*IF('Input | Comms, IT, Other'!$K53="Yes",'Input| Prices'!O$55,1) -> 0 | P44: ='Input | Comms, IT, Other'!P210*'Input | Comms, IT, Other'!$L53*IF('Input | Comms, IT, Other'!$K53="Yes",'Input| Prices'!P$55,1) -> 0 | Q44: ='Input | Comms, IT, Other'!Q210*'Input | Comms, IT, Other'!$L53*IF('Input | Comms, IT, Other'!$K53="Yes",'Input| Prices'!Q$55,1) -> 0
E45: 0 | F45: 0 | G45: $dollars | H45: 2018-12-01 | J45: ='Input | Comms, IT, Other'!J211*'Input | Comms, IT, Other'!$L54*IF('Input | Comms, IT, Other'!$K54="Yes",'Input| Prices'!J$55,1) -> 0 | K45: ='Input | Comms, IT, Other'!K211*'Input | Comms, IT, Other'!$L54*IF('Input | Comms, IT, Other'!$K54="Yes",'Input| Prices'!K$55,1) -> 0 | L45: ='Input | Comms, IT, Other'!L211*'Input | Comms, IT, Other'!$L54*IF('Input | Comms, IT, Other'!$K54="Yes",'Input| Prices'!L$55,1) -> 0 | M45: ='Input | Comms, IT, Other'!M211*'Input | Comms, IT, Other'!$L54*IF('Input | Comms, IT, Other'!$K54="Yes",'Input| Prices'!M$55,1) -> 0 | N45: ='Input | Comms, IT, Other'!N211*'Input | Comms, IT, Other'!$L54*IF('Input | Comms, IT, Other'!$K54="Yes",'Input| Prices'!N$55,1) -> 0 | O45: ='Input | Comms, IT, Other'!O211*'Input | Comms, IT, Other'!$L54*IF('Input | Comms, IT, Other'!$K54="Yes",'Input| Prices'!O$55,1) -> 0 | P45: ='Input | Comms, IT, Other'!P211*'Input | Comms, IT, Other'!$L54*IF('Input | Comms, IT, Other'!$K54="Yes",'Input| Prices'!P$55,1) -> 0 | Q45: ='Input | Comms, IT, Other'!Q211*'Input | Comms, IT, Other'!$L54*IF('Input | Comms, IT, Other'!$K54="Yes",'Input| Prices'!Q$55,1) -> 0
E46: 0 | F46: 0 | G46: $dollars | H46: 2018-12-01 | J46: ='Input | Comms, IT, Other'!J212*'Input | Comms, IT, Other'!$L55*IF('Input | Comms, IT, Other'!$K55="Yes",'Input| Prices'!J$55,1) -> 0 | K46: ='Input | Comms, IT, Other'!K212*'Input | Comms, IT, Other'!$L55*IF('Input | Comms, IT, Other'!$K55="Yes",'Input| Prices'!K$55,1) -> 0 | L46: ='Input | Comms, IT, Other'!L212*'Input | Comms, IT, Other'!$L55*IF('Input | Comms, IT, Other'!$K55="Yes",'Input| Prices'!L$55,1) -> 0 | M46: ='Input | Comms, IT, Other'!M212*'Input | Comms, IT, Other'!$L55*IF('Input | Comms, IT, Other'!$K55="Yes",'Input| Prices'!M$55,1) -> 0 | N46: ='Input | Comms, IT, Other'!N212*'Input | Comms, IT, Other'!$L55*IF('Input | Comms, IT, Other'!$K55="Yes",'Input| Prices'!N$55,1) -> 0 | O46: ='Input | Comms, IT, Other'!O212*'Input | Comms, IT, Other'!$L55*IF('Input | Comms, IT, Other'!$K55="Yes",'Input| Prices'!O$55,1) -> 0 | P46: ='Input | Comms, IT, Other'!P212*'Input | Comms, IT, Other'!$L55*IF('Input | Comms, IT, Other'!$K55="Yes",'Input| Prices'!P$55,1) -> 0 | Q46: ='Input | Comms, IT, Other'!Q212*'Input | Comms, IT, Other'!$L55*IF('Input | Comms, IT, Other'!$K55="Yes",'Input| Prices'!Q$55,1) -> 0
E47: 0 | F47: 0 | G47: $dollars | H47: 2018-12-01 | J47: ='Input | Comms, IT, Other'!J213*'Input | Comms, IT, Other'!$L56*IF('Input | Comms, IT, Other'!$K56="Yes",'Input| Prices'!J$55,1) -> 0 | K47: ='Input | Comms, IT, Other'!K213*'Input | Comms, IT, Other'!$L56*IF('Input | Comms, IT, Other'!$K56="Yes",'Input| Prices'!K$55,1) -> 0 | L47: ='Input | Comms, IT, Other'!L213*'Input | Comms, IT, Other'!$L56*IF('Input | Comms, IT, Other'!$K56="Yes",'Input| Prices'!L$55,1) -> 0 | M47: ='Input | Comms, IT, Other'!M213*'Input | Comms, IT, Other'!$L56*IF('Input | Comms, IT, Other'!$K56="Yes",'Input| Prices'!M$55,1) -> 0 | N47: ='Input | Comms, IT, Other'!N213*'Input | Comms, IT, Other'!$L56*IF('Input | Comms, IT, Other'!$K56="Yes",'Input| Prices'!N$55,1) -> 0 | O47: ='Input | Comms, IT, Other'!O213*'Input | Comms, IT, Other'!$L56*IF('Input | Comms, IT, Other'!$K56="Yes",'Input| Prices'!O$55,1) -> 0 | P47: ='Input | Comms, IT, Other'!P213*'Input | Comms, IT, Other'!$L56*IF('Input | Comms, IT, Other'!$K56="Yes",'Input| Prices'!P$55,1) -> 0 | Q47: ='Input | Comms, IT, Other'!Q213*'Input | Comms, IT, Other'!$L56*IF('Input | Comms, IT, Other'!$K56="Yes",'Input| Prices'!Q$55,1) -> 0
E48: 0 | F48: 0 | G48: $dollars | H48: 2018-12-01 | J48: ='Input | Comms, IT, Other'!J214*'Input | Comms, IT, Other'!$L57*IF('Input | Comms, IT, Other'!$K57="Yes",'Input| Prices'!J$55,1) -> 0 | K48: ='Input | Comms, IT, Other'!K214*'Input | Comms, IT, Other'!$L57*IF('Input | Comms, IT, Other'!$K57="Yes",'Input| Prices'!K$55,1) -> 0 | L48: ='Input | Comms, IT, Other'!L214*'Input | Comms, IT, Other'!$L57*IF('Input | Comms, IT, Other'!$K57="Yes",'Input| Prices'!L$55,1) -> 0 | M48: ='Input | Comms, IT, Other'!M214*'Input | Comms, IT, Other'!$L57*IF('Input | Comms, IT, Other'!$K57="Yes",'Input| Prices'!M$55,1) -> 0 | N48: ='Input | Comms, IT, Other'!N214*'Input | Comms, IT, Other'!$L57*IF('Input | Comms, IT, Other'!$K57="Yes",'Input| Prices'!N$55,1) -> 0 | O48: ='Input | Comms, IT, Other'!O214*'Input | Comms, IT, Other'!$L57*IF('Input | Comms, IT, Other'!$K57="Yes",'Input| Prices'!O$55,1) -> 0 | P48: ='Input | Comms, IT, Other'!P214*'Input | Comms, IT, Other'!$L57*IF('Input | Comms, IT, Other'!$K57="Yes",'Input| Prices'!P$55,1) -> 0 | Q48: ='Input | Comms, IT, Other'!Q214*'Input | Comms, IT, Other'!$L57*IF('Input | Comms, IT, Other'!$K57="Yes",'Input| Prices'!Q$55,1) -> 0
E49: 0 | F49: 0 | G49: $dollars | H49: 2018-12-01 | J49: ='Input | Comms, IT, Other'!J215*'Input | Comms, IT, Other'!$L58*IF('Input | Comms, IT, Other'!$K58="Yes",'Input| Prices'!J$55,1) -> 0 | K49: ='Input | Comms, IT, Other'!K215*'Input | Comms, IT, Other'!$L58*IF('Input | Comms, IT, Other'!$K58="Yes",'Input| Prices'!K$55,1) -> 0 | L49: ='Input | Comms, IT, Other'!L215*'Input | Comms, IT, Other'!$L58*IF('Input | Comms, IT, Other'!$K58="Yes",'Input| Prices'!L$55,1) -> 0 | M49: ='Input | Comms, IT, Other'!M215*'Input | Comms, IT, Other'!$L58*IF('Input | Comms, IT, Other'!$K58="Yes",'Input| Prices'!M$55,1) -> 0 | N49: ='Input | Comms, IT, Other'!N215*'Input | Comms, IT, Other'!$L58*IF('Input | Comms, IT, Other'!$K58="Yes",'Input| Prices'!N$55,1) -> 0 | O49: ='Input | Comms, IT, Other'!O215*'Input | Comms, IT, Other'!$L58*IF('Input | Comms, IT, Other'!$K58="Yes",'Input| Prices'!O$55,1) -> 0 | P49: ='Input | Comms, IT, Other'!P215*'Input | Comms, IT, Other'!$L58*IF('Input | Comms, IT, Other'!$K58="Yes",'Input| Prices'!P$55,1) -> 0 | Q49: ='Input | Comms, IT, Other'!Q215*'Input | Comms, IT, Other'!$L58*IF('Input | Comms, IT, Other'!$K58="Yes",'Input| Prices'!Q$55,1) -> 0
E50: 0 | F50: 0 | G50: $dollars | H50: 2018-12-01 | J50: ='Input | Comms, IT, Other'!J216*'Input | Comms, IT, Other'!$L59*IF('Input | Comms, IT, Other'!$K59="Yes",'Input| Prices'!J$55,1) -> 0 | K50: ='Input | Comms, IT, Other'!K216*'Input | Comms, IT, Other'!$L59*IF('Input | Comms, IT, Other'!$K59="Yes",'Input| Prices'!K$55,1) -> 0 | L50: ='Input | Comms, IT, Other'!L216*'Input | Comms, IT, Other'!$L59*IF('Input | Comms, IT, Other'!$K59="Yes",'Input| Prices'!L$55,1) -> 0 | M50: ='Input | Comms, IT, Other'!M216*'Input | Comms, IT, Other'!$L59*IF('Input | Comms, IT, Other'!$K59="Yes",'Input| Prices'!M$55,1) -> 0 | N50: ='Input | Comms, IT, Other'!N216*'Input | Comms, IT, Other'!$L59*IF('Input | Comms, IT, Other'!$K59="Yes",'Input| Prices'!N$55,1) -> 0 | O50: ='Input | Comms, IT, Other'!O216*'Input | Comms, IT, Other'!$L59*IF('Input | Comms, IT, Other'!$K59="Yes",'Input| Prices'!O$55,1) -> 0 | P50: ='Input | Comms, IT, Other'!P216*'Input | Comms, IT, Other'!$L59*IF('Input | Comms, IT, Other'!$K59="Yes",'Input| Prices'!P$55,1) -> 0 | Q50: ='Input | Comms, IT, Other'!Q216*'Input | Comms, IT, Other'!$L59*IF('Input | Comms, IT, Other'!$K59="Yes",'Input| Prices'!Q$55,1) -> 0
E51: 0 | F51: 0 | G51: $dollars | H51: 2018-12-01 | J51: ='Input | Comms, IT, Other'!J217*'Input | Comms, IT, Other'!$L60*IF('Input | Comms, IT, Other'!$K60="Yes",'Input| Prices'!J$55,1) -> 0 | K51: ='Input | Comms, IT, Other'!K217*'Input | Comms, IT, Other'!$L60*IF('Input | Comms, IT, Other'!$K60="Yes",'Input| Prices'!K$55,1) -> 0 | L51: ='Input | Comms, IT, Other'!L217*'Input | Comms, IT, Other'!$L60*IF('Input | Comms, IT, Other'!$K60="Yes",'Input| Prices'!L$55,1) -> 0 | M51: ='Input | Comms, IT, Other'!M217*'Input | Comms, IT, Other'!$L60*IF('Input | Comms, IT, Other'!$K60="Yes",'Input| Prices'!M$55,1) -> 0 | N51: ='Input | Comms, IT, Other'!N217*'Input | Comms, IT, Other'!$L60*IF('Input | Comms, IT, Other'!$K60="Yes",'Input| Prices'!N$55,1) -> 0 | O51: ='Input | Comms, IT, Other'!O217*'Input | Comms, IT, Other'!$L60*IF('Input | Comms, IT, Other'!$K60="Yes",'Input| Prices'!O$55,1) -> 0 | P51: ='Input | Comms, IT, Other'!P217*'Input | Comms, IT, Other'!$L60*IF('Input | Comms, IT, Other'!$K60="Yes",'Input| Prices'!P$55,1) -> 0 | Q51: ='Input | Comms, IT, Other'!Q217*'Input | Comms, IT, Other'!$L60*IF('Input | Comms, IT, Other'!$K60="Yes",'Input| Prices'!Q$55,1) -> 0
E52: 0 | F52: 0 | G52: $dollars | H52: 2018-12-01 | J52: ='Input | Comms, IT, Other'!J218*'Input | Comms, IT, Other'!$L61*IF('Input | Comms, IT, Other'!$K61="Yes",'Input| Prices'!J$55,1) -> 0 | K52: ='Input | Comms, IT, Other'!K218*'Input | Comms, IT, Other'!$L61*IF('Input | Comms, IT, Other'!$K61="Yes",'Input| Prices'!K$55,1) -> 0 | L52: ='Input | Comms, IT, Other'!L218*'Input | Comms, IT, Other'!$L61*IF('Input | Comms, IT, Other'!$K61="Yes",'Input| Prices'!L$55,1) -> 0 | M52: ='Input | Comms, IT, Other'!M218*'Input | Comms, IT, Other'!$L61*IF('Input | Comms, IT, Other'!$K61="Yes",'Input| Prices'!M$55,1) -> 0 | N52: ='Input | Comms, IT, Other'!N218*'Input | Comms, IT, Other'!$L61*IF('Input | Comms, IT, Other'!$K61="Yes",'Input| Prices'!N$55,1) -> 0 | O52: ='Input | Comms, IT, Other'!O218*'Input | Comms, IT, Other'!$L61*IF('Input | Comms, IT, Other'!$K61="Yes",'Input| Prices'!O$55,1) -> 0 | P52: ='Input | Comms, IT, Other'!P218*'Input | Comms, IT, Other'!$L61*IF('Input | Comms, IT, Other'!$K61="Yes",'Input| Prices'!P$55,1) -> 0 | Q52: ='Input | Comms, IT, Other'!Q218*'Input | Comms, IT, Other'!$L61*IF('Input | Comms, IT, Other'!$K61="Yes",'Input| Prices'!Q$55,1) -> 0
E53: 0 | F53: 0 | G53: $dollars | H53: 2018-12-01 | J53: ='Input | Comms, IT, Other'!J219*'Input | Comms, IT, Other'!$L62*IF('Input | Comms, IT, Other'!$K62="Yes",'Input| Prices'!J$55,1) -> 0 | K53: ='Input | Comms, IT, Other'!K219*'Input | Comms, IT, Other'!$L62*IF('Input | Comms, IT, Other'!$K62="Yes",'Input| Prices'!K$55,1) -> 0 | L53: ='Input | Comms, IT, Other'!L219*'Input | Comms, IT, Other'!$L62*IF('Input | Comms, IT, Other'!$K62="Yes",'Input| Prices'!L$55,1) -> 0 | M53: ='Input | Comms, IT, Other'!M219*'Input | Comms, IT, Other'!$L62*IF('Input | Comms, IT, Other'!$K62="Yes",'Input| Prices'!M$55,1) -> 0 | N53: ='Input | Comms, IT, Other'!N219*'Input | Comms, IT, Other'!$L62*IF('Input | Comms, IT, Other'!$K62="Yes",'Input| Prices'!N$55,1) -> 0 | O53: ='Input | Comms, IT, Other'!O219*'Input | Comms, IT, Other'!$L62*IF('Input | Comms, IT, Other'!$K62="Yes",'Input| Prices'!O$55,1) -> 0 | P53: ='Input | Comms, IT, Other'!P219*'Input | Comms, IT, Other'!$L62*IF('Input | Comms, IT, Other'!$K62="Yes",'Input| Prices'!P$55,1) -> 0 | Q53: ='Input | Comms, IT, Other'!Q219*'Input | Comms, IT, Other'!$L62*IF('Input | Comms, IT, Other'!$K62="Yes",'Input| Prices'!Q$55,1) -> 0
E54: 0 | F54: 0 | G54: $dollars | H54: 2018-12-01 | J54: ='Input | Comms, IT, Other'!J220*'Input | Comms, IT, Other'!$L63*IF('Input | Comms, IT, Other'!$K63="Yes",'Input| Prices'!J$55,1) -> 0 | K54: ='Input | Comms, IT, Other'!K220*'Input | Comms, IT, Other'!$L63*IF('Input | Comms, IT, Other'!$K63="Yes",'Input| Prices'!K$55,1) -> 0 | L54: ='Input | Comms, IT, Other'!L220*'Input | Comms, IT, Other'!$L63*IF('Input | Comms, IT, Other'!$K63="Yes",'Input| Prices'!L$55,1) -> 0 | M54: ='Input | Comms, IT, Other'!M220*'Input | Comms, IT, Other'!$L63*IF('Input | Comms, IT, Other'!$K63="Yes",'Input| Prices'!M$55,1) -> 0 | N54: ='Input | Comms, IT, Other'!N220*'Input | Comms, IT, Other'!$L63*IF('Input | Comms, IT, Other'!$K63="Yes",'Input| Prices'!N$55,1) -> 0 | O54: ='Input | Comms, IT, Other'!O220*'Input | Comms, IT, Other'!$L63*IF('Input | Comms, IT, Other'!$K63="Yes",'Input| Prices'!O$55,1) -> 0 | P54: ='Input | Comms, IT, Other'!P220*'Input | Comms, IT, Other'!$L63*IF('Input | Comms, IT, Other'!$K63="Yes",'Input| Prices'!P$55,1) -> 0 | Q54: ='Input | Comms, IT, Other'!Q220*'Input | Comms, IT, Other'!$L63*IF('Input | Comms, IT, Other'!$K63="Yes",'Input| Prices'!Q$55,1) -> 0
E55: 0 | F55: 0 | G55: $dollars | H55: 2018-12-01 | J55: ='Input | Comms, IT, Other'!J221*'Input | Comms, IT, Other'!$L64*IF('Input | Comms, IT, Other'!$K64="Yes",'Input| Prices'!J$55,1) -> 0 | K55: ='Input | Comms, IT, Other'!K221*'Input | Comms, IT, Other'!$L64*IF('Input | Comms, IT, Other'!$K64="Yes",'Input| Prices'!K$55,1) -> 0 | L55: ='Input | Comms, IT, Other'!L221*'Input | Comms, IT, Other'!$L64*IF('Input | Comms, IT, Other'!$K64="Yes",'Input| Prices'!L$55,1) -> 0 | M55: ='Input | Comms, IT, Other'!M221*'Input | Comms, IT, Other'!$L64*IF('Input | Comms, IT, Other'!$K64="Yes",'Input| Prices'!M$55,1) -> 0 | N55: ='Input | Comms, IT, Other'!N221*'Input | Comms, IT, Other'!$L64*IF('Input | Comms, IT, Other'!$K64="Yes",'Input| Prices'!N$55,1) -> 0 | O55: ='Input | Comms, IT, Other'!O221*'Input | Comms, IT, Other'!$L64*IF('Input | Comms, IT, Other'!$K64="Yes",'Input| Prices'!O$55,1) -> 0 | P55: ='Input | Comms, IT, Other'!P221*'Input | Comms, IT, Other'!$L64*IF('Input | Comms, IT, Other'!$K64="Yes",'Input| Prices'!P$55,1) -> 0 | Q55: ='Input | Comms, IT, Other'!Q221*'Input | Comms, IT, Other'!$L64*IF('Input | Comms, IT, Other'!$K64="Yes",'Input| Prices'!Q$55,1) -> 0
E56: Total | H56: 2018-12-01 | J56: =SUM(J36:J55) -> 0 | K56: 3325.2 | L56: 21781.77127 | M56: 115256.3086 | N56: 117924.5781 | O56: 120595.3893 | P56: 123271.4389 | Q56: 125906.3524
B58: e | C58: Overheads cost
E59: Equipment Type | F59: Action/Driver | G59: Units | H59: Basis | J59: ='Input | Comms, IT, Other'!J$82 -> 2017-18 | K59: ='Input | Comms, IT, Other'!K$82 -> 2018-19 | L59: ='Input | Comms, IT, Other'!L$82 -> 2019-20 | M59: ='Input | Comms, IT, Other'!M$82 -> 2020-21 | N59: ='Input | Comms, IT, Other'!N$82 -> 2021-22 | O59: ='Input | Comms, IT, Other'!O$82 -> 2022-23 | P59: ='Input | Comms, IT, Other'!P$82 -> 2023-24 | Q59: ='Input | Comms, IT, Other'!Q$82 -> 2024-25
E60: =ICC_AllocFields -> Access Points | F60: Growth | G60: $dollars | H60: =Basis_Capex -> 2018-12-01 | J60: ='Input | Comms, IT, Other'!$N45*(J12+J36) -> 0 | K60: ='Input | Comms, IT, Other'!$N45*(K12+K36) -> 1828.86 | L60: ='Input | Comms, IT, Other'!$N45*(L12+L36) -> 1860.101564 | M60: ='Input | Comms, IT, Other'!$N45*(M12+M36) -> 1892.483995 | N60: ='Input | Comms, IT, Other'!$N45*(N12+N36) -> 1927.030482 | O60: ='Input | Comms, IT, Other'!$N45*(O12+O36) -> 1963.808661 | P60: ='Input | Comms, IT, Other'!$N45*(P12+P36) -> 2001.137369 | Q60: ='Input | Comms, IT, Other'!$N45*(Q12+Q36) -> 2011.970867
E61: Relays | F61: Growth | G61: $dollars | H61: 2018-12-01 | J61: ='Input | Comms, IT, Other'!$N46*(J13+J37) -> 0 | K61: ='Input | Comms, IT, Other'!$N46*(K13+K37) -> 0 | L61: ='Input | Comms, IT, Other'!$N46*(L13+L37) -> 0 | M61: ='Input | Comms, IT, Other'!$N46*(M13+M37) -> 1725 | N61: ='Input | Comms, IT, Other'!$N46*(N13+N37) -> 1725 | O61: ='Input | Comms, IT, Other'!$N46*(O13+O37) -> 1725 | P61: ='Input | Comms, IT, Other'!$N46*(P13+P37) -> 1725 | Q61: ='Input | Comms, IT, Other'!$N46*(Q13+Q37) -> 1725
E62: Antennas | F62: Growth | G62: $dollars | H62: 2018-12-01 | J62: ='Input | Comms, IT, Other'!$N47*(J14+J38) -> 0 | K62: ='Input | Comms, IT, Other'!$N47*(K14+K38) -> 0 | L62: ='Input | Comms, IT, Other'!$N47*(L14+L38) -> 0 | M62: ='Input | Comms, IT, Other'!$N47*(M14+M38) -> 120 | N62: ='Input | Comms, IT, Other'!$N47*(N14+N38) -> 120 | O62: ='Input | Comms, IT, Other'!$N47*(O14+O38) -> 120 | P62: ='Input | Comms, IT, Other'!$N47*(P14+P38) -> 120 | Q62: ='Input | Comms, IT, Other'!$N47*(Q14+Q38) -> 120
E63: Batteries | F63: Growth | G63: $dollars | H63: 2018-12-01 | J63: ='Input | Comms, IT, Other'!$N48*(J15+J39) -> 0 | K63: ='Input | Comms, IT, Other'!$N48*(K15+K39) -> 0 | L63: ='Input | Comms, IT, Other'!$N48*(L15+L39) -> 0 | M63: ='Input | Comms, IT, Other'!$N48*(M15+M39) -> 8000 | N63: ='Input | Comms, IT, Other'!$N48*(N15+N39) -> 8000 | O63: ='Input | Comms, IT, Other'!$N48*(O15+O39) -> 8000 | P63: ='Input | Comms, IT, Other'!$N48*(P15+P39) -> 8000 | Q63: ='Input | Comms, IT, Other'!$N48*(Q15+Q39) -> 8000
E64: Access Points | F64: Replacements - faults and failures | G64: $dollars | H64: 2018-12-01 | J64: ='Input | Comms, IT, Other'!$N49*(J16+J40) -> 0 | K64: ='Input | Comms, IT, Other'!$N49*(K16+K40) -> 0 | L64: ='Input | Comms, IT, Other'!$N49*(L16+L40) -> 2200 | M64: ='Input | Comms, IT, Other'!$N49*(M16+M40) -> 2310 | N64: ='Input | Comms, IT, Other'!$N49*(N16+N40) -> 2420 | O64: ='Input | Comms, IT, Other'!$N49*(O16+O40) -> 2530 | P64: ='Input | Comms, IT, Other'!$N49*(P16+P40) -> 2640 | Q64: ='Input | Comms, IT, Other'!$N49*(Q16+Q40) -> 2750
E65: Batteries | F65: Replacements - faults and failures | G65: $dollars | H65: 2018-12-01 | J65: ='Input | Comms, IT, Other'!$N50*(J17+J41) -> 0 | K65: ='Input | Comms, IT, Other'!$N50*(K17+K41) -> 0 | L65: ='Input | Comms, IT, Other'!$N50*(L17+L41) -> 1440 | M65: ='Input | Comms, IT, Other'!$N50*(M17+M41) -> 1440 | N65: ='Input | Comms, IT, Other'!$N50*(N17+N41) -> 1680 | O65: ='Input | Comms, IT, Other'!$N50*(O17+O41) -> 1920 | P65: ='Input | Comms, IT, Other'!$N50*(P17+P41) -> 2160 | Q65: ='Input | Comms, IT, Other'!$N50*(Q17+Q41) -> 2400
E66: 0 | F66: 0 | G66: $dollars | H66: 2018-12-01 | J66: ='Input | Comms, IT, Other'!$N51*(J18+J42) -> 0 | K66: ='Input | Comms, IT, Other'!$N51*(K18+K42) -> 0 | L66: ='Input | Comms, IT, Other'!$N51*(L18+L42) -> 0 | M66: ='Input | Comms, IT, Other'!$N51*(M18+M42) -> 0 | N66: ='Input | Comms, IT, Other'!$N51*(N18+N42) -> 0 | O66: ='Input | Comms, IT, Other'!$N51*(O18+O42) -> 0 | P66: ='Input | Comms, IT, Other'!$N51*(P18+P42) -> 0 | Q66: ='Input | Comms, IT, Other'!$N51*(Q18+Q42) -> 0
E67: 0 | F67: 0 | G67: $dollars | H67: 2018-12-01 | J67: ='Input | Comms, IT, Other'!$N52*(J19+J43) -> 0 | K67: ='Input | Comms, IT, Other'!$N52*(K19+K43) -> 0 | L67: ='Input | Comms, IT, Other'!$N52*(L19+L43) -> 0 | M67: ='Input | Comms, IT, Other'!$N52*(M19+M43) -> 0 | N67: ='Input | Comms, IT, Other'!$N52*(N19+N43) -> 0 | O67: ='Input | Comms, IT, Other'!$N52*(O19+O43) -> 0 | P67: ='Input | Comms, IT, Other'!$N52*(P19+P43) -> 0 | Q67: ='Input | Comms, IT, Other'!$N52*(Q19+Q43) -> 0
E68: 0 | F68: 0 | G68: $dollars | H68: 2018-12-01 | J68: ='Input | Comms, IT, Other'!$N53*(J20+J44) -> 0 | K68: ='Input | Comms, IT, Other'!$N53*(K20+K44) -> 0 | L68: ='Input | Comms, IT, Other'!$N53*(L20+L44) -> 0 | M68: ='Input | Comms, IT, Other'!$N53*(M20+M44) -> 0 | N68: ='Input | Comms, IT, Other'!$N53*(N20+N44) -> 0 | O68: ='Input | Comms, IT, Other'!$N53*(O20+O44) -> 0 | P68: ='Input | Comms, IT, Other'!$N53*(P20+P44) -> 0 | Q68: ='Input | Comms, IT, Other'!$N53*(Q20+Q44) -> 0
E69: 0 | F69: 0 | G69: $dollars | H69: 2018-12-01 | J69: ='Input | Comms, IT, Other'!$N54*(J21+J45) -> 0 | K69: ='Input | Comms, IT, Other'!$N54*(K21+K45) -> 0 | L69: ='Input | Comms, IT, Other'!$N54*(L21+L45) -> 0 | M69: ='Input | Comms, IT, Other'!$N54*(M21+M45) -> 0 | N69: ='Input | Comms, IT, Other'!$N54*(N21+N45) -> 0 | O69: ='Input | Comms, IT, Other'!$N54*(O21+O45) -> 0 | P69: ='Input | Comms, IT, Other'!$N54*(P21+P45) -> 0 | Q69: ='Input | Comms, IT, Other'!$N54*(Q21+Q45) -> 0
E70: 0 | F70: 0 | G70: $dollars | H70: 2018-12-01 | J70: ='Input | Comms, IT, Other'!$N55*(J22+J46) -> 0 | K70: ='Input | Comms, IT, Other'!$N55*(K22+K46) -> 0 | L70: ='Input | Comms, IT, Other'!$N55*(L22+L46) -> 0 | M70: ='Input | Comms, IT, Other'!$N55*(M22+M46) -> 0 | N70: ='Input | Comms, IT, Other'!$N55*(N22+N46) -> 0 | O70: ='Input | Comms, IT, Other'!$N55*(O22+O46) -> 0 | P70: ='Input | Comms, IT, Other'!$N55*(P22+P46) -> 0 | Q70: ='Input | Comms, IT, Other'!$N55*(Q22+Q46) -> 0
E71: 0 | F71: 0 | G71: $dollars | H71: 2018-12-01 | J71: ='Input | Comms, IT, Other'!$N56*(J23+J47) -> 0 | K71: ='Input | Comms, IT, Other'!$N56*(K23+K47) -> 0 | L71: ='Input | Comms, IT, Other'!$N56*(L23+L47) -> 0 | M71: ='Input | Comms, IT, Other'!$N56*(M23+M47) -> 0 | N71: ='Input | Comms, IT, Other'!$N56*(N23+N47) -> 0 | O71: ='Input | Comms, IT, Other'!$N56*(O23+O47) -> 0 | P71: ='Input | Comms, IT, Other'!$N56*(P23+P47) -> 0 | Q71: ='Input | Comms, IT, Other'!$N56*(Q23+Q47) -> 0
E72: 0 | F72: 0 | G72: $dollars | H72: 2018-12-01 | J72: ='Input | Comms, IT, Other'!$N57*(J24+J48) -> 0 | K72: ='Input | Comms, IT, Other'!$N57*(K24+K48) -> 0 | L72: ='Input | Comms, IT, Other'!$N57*(L24+L48) -> 0 | M72: ='Input | Comms, IT, Other'!$N57*(M24+M48) -> 0 | N72: ='Input | Comms, IT, Other'!$N57*(N24+N48) -> 0 | O72: ='Input | Comms, IT, Other'!$N57*(O24+O48) -> 0 | P72: ='Input | Comms, IT, Other'!$N57*(P24+P48) -> 0 | Q72: ='Input | Comms, IT, Other'!$N57*(Q24+Q48) -> 0
E73: 0 | F73: 0 | G73: $dollars | H73: 2018-12-01 | J73: ='Input | Comms, IT, Other'!$N58*(J25+J49) -> 0 | K73: ='Input | Comms, IT, Other'!$N58*(K25+K49) -> 0 | L73: ='Input | Comms, IT, Other'!$N58*(L25+L49) -> 0 | M73: ='Input | Comms, IT, Other'!$N58*(M25+M49) -> 0 | N73: ='Input | Comms, IT, Other'!$N58*(N25+N49) -> 0 | O73: ='Input | Comms, IT, Other'!$N58*(O25+O49) -> 0 | P73: ='Input | Comms, IT, Other'!$N58*(P25+P49) -> 0 | Q73: ='Input | Comms, IT, Other'!$N58*(Q25+Q49) -> 0
E74: 0 | F74: 0 | G74: $dollars | H74: 2018-12-01 | J74: ='Input | Comms, IT, Other'!$N59*(J26+J50) -> 0 | K74: ='Input | Comms, IT, Other'!$N59*(K26+K50) -> 0 | L74: ='Input | Comms, IT, Other'!$N59*(L26+L50) -> 0 | M74: ='Input | Comms, IT, Other'!$N59*(M26+M50) -> 0 | N74: ='Input | Comms, IT, Other'!$N59*(N26+N50) -> 0 | O74: ='Input | Comms, IT, Other'!$N59*(O26+O50) -> 0 | P74: ='Input | Comms, IT, Other'!$N59*(P26+P50) -> 0 | Q74: ='Input | Comms, IT, Other'!$N59*(Q26+Q50) -> 0
E75: 0 | F75: 0 | G75: $dollars | H75: 2018-12-01 | J75: ='Input | Comms, IT, Other'!$N60*(J27+J51) -> 0 | K75: ='Input | Comms, IT, Other'!$N60*(K27+K51) -> 0 | L75: ='Input | Comms, IT, Other'!$N60*(L27+L51) -> 0 | M75: ='Input | Comms, IT, Other'!$N60*(M27+M51) -> 0 | N75: ='Input | Comms, IT, Other'!$N60*(N27+N51) -> 0 | O75: ='Input | Comms, IT, Other'!$N60*(O27+O51) -> 0 | P75: ='Input | Comms, IT, Other'!$N60*(P27+P51) -> 0 | Q75: ='Input | Comms, IT, Other'!$N60*(Q27+Q51) -> 0
E76: 0 | F76: 0 | G76: $dollars | H76: 2018-12-01 | J76: ='Input | Comms, IT, Other'!$N61*(J28+J52) -> 0 | K76: ='Input | Comms, IT, Other'!$N61*(K28+K52) -> 0 | L76: ='Input | Comms, IT, Other'!$N61*(L28+L52) -> 0 | M76: ='Input | Comms, IT, Other'!$N61*(M28+M52) -> 0 | N76: ='Input | Comms, IT, Other'!$N61*(N28+N52) -> 0 | O76: ='Input | Comms, IT, Other'!$N61*(O28+O52) -> 0 | P76: ='Input | Comms, IT, Other'!$N61*(P28+P52) -> 0 | Q76: ='Input | Comms, IT, Other'!$N61*(Q28+Q52) -> 0
E77: 0 | F77: 0 | G77: $dollars | H77: 2018-12-01 | J77: ='Input | Comms, IT, Other'!$N62*(J29+J53) -> 0 | K77: ='Input | Comms, IT, Other'!$N62*(K29+K53) -> 0 | L77: ='Input | Comms, IT, Other'!$N62*(L29+L53) -> 0 | M77: ='Input | Comms, IT, Other'!$N62*(M29+M53) -> 0 | N77: ='Input | Comms, IT, Other'!$N62*(N29+N53) -> 0 | O77: ='Input | Comms, IT, Other'!$N62*(O29+O53) -> 0 | P77: ='Input | Comms, IT, Other'!$N62*(P29+P53) -> 0 | Q77: ='Input | Comms, IT, Other'!$N62*(Q29+Q53) -> 0
E78: 0 | F78: 0 | G78: $dollars | H78: 2018-12-01 | J78: ='Input | Comms, IT, Other'!$N63*(J30+J54) -> 0 | K78: ='Input | Comms, IT, Other'!$N63*(K30+K54) -> 0 | L78: ='Input | Comms, IT, Other'!$N63*(L30+L54) -> 0 | M78: ='Input | Comms, IT, Other'!$N63*(M30+M54) -> 0 | N78: ='Input | Comms, IT, Other'!$N63*(N30+N54) -> 0 | O78: ='Input | Comms, IT, Other'!$N63*(O30+O54) -> 0 | P78: ='Input | Comms, IT, Other'!$N63*(P30+P54) -> 0 | Q78: ='Input | Comms, IT, Other'!$N63*(Q30+Q54) -> 0
E79: 0 | F79: 0 | G79: $dollars | H79: 2018-12-01 | J79: ='Input | Comms, IT, Other'!$N64*(J31+J55) -> 0 | K79: ='Input | Comms, IT, Other'!$N64*(K31+K55) -> 0 | L79: ='Input | Comms, IT, Other'!$N64*(L31+L55) -> 0 | M79: ='Input | Comms, IT, Other'!$N64*(M31+M55) -> 0 | N79: ='Input | Comms, IT, Other'!$N64*(N31+N55) -> 0 | O79: ='Input | Comms, IT, Other'!$N64*(O31+O55) -> 0 | P79: ='Input | Comms, IT, Other'!$N64*(P31+P55) -> 0 | Q79: ='Input | Comms, IT, Other'!$N64*(Q31+Q55) -> 0
E80: Total | G80: $dollars | H80: 2018-12-01 | J80: =SUM(J60:J79) -> 0 | K80: 1828.86 | L80: 5500.101564 | M80: 15487.48399 | N80: 15872.03048 | O80: 16258.80866 | P80: 16646.13737 | Q80: 17006.97087
A84: CALC | Capex Allocation
J87: 1 | K87: 2 | L87: 3 | M87: 4 | N87: 5 | O87: 6 | P87: 7 | Q87: 8
J88: ='Input | Comms, IT, Other'!J$82 -> 2017-18 | K88: ='Input | Comms, IT, Other'!K$82 -> 2018-19 | L88: ='Input | Comms, IT, Other'!L$82 -> 2019-20 | M88: ='Input | Comms, IT, Other'!M$82 -> 2020-21 | N88: ='Input | Comms, IT, Other'!N$82 -> 2021-22 | O88: ='Input | Comms, IT, Other'!O$82 -> 2022-23 | P88: ='Input | Comms, IT, Other'!P$82 -> 2023-24 | Q88: ='Input | Comms, IT, Other'!Q$82 -> 2024-25
B89: a | C89: Comms
F91: ACS | G91: Units | H91: Basis | J91: ='Input | Comms, IT, Other'!J$82 -> 2017-18 | K91: ='Input | Comms, IT, Other'!K$82 -> 2018-19 | L91: ='Input | Comms, IT, Other'!L$82 -> 2019-20 | M91: ='Input | Comms, IT, Other'!M$82 -> 2020-21 | N91: ='Input | Comms, IT, Other'!N$82 -> 2021-22 | O91: ='Input | Comms, IT, Other'!O$82 -> 2022-23 | P91: ='Input | Comms, IT, Other'!P$82 -> 2023-24 | Q91: ='Input | Comms, IT, Other'!Q$82 -> 2024-25
